Workbook

Sheet index
A2: 令和3年度下水道事業比較経営診断表
B4: 都道府県名 | K4: 処理区域内人口別区分 | L4: 政令市等 | O4: 処理区域内人口 （人） | Q4: 1945631
B5: 団体名 | K5: 有収水量密度別区分 | L5: 政令市等 | O5: 有収水量密度 （千㎥/ｈa) | Q5: 8.3
B6: 事業名 | K6: 供用開始後年数別区分 | L6: 政令市等 | O6: 供用開始後年数 (年） | Q6: 61
A8: 項 目 | E8: 団 体 | G8: 類型平均 | H8: 全国平均 | I8: 類型内 順 位 | J8: 項 目 | M8: 団 体 | O8: 類型平均 | P8: 全国平均 | Q8: 類型内 順 位
E9: R2年度 | F9: R3年度 | H9: (公共) | M9: R2年度 | N9: R3年度 | P9: (公共)
A10: 事業の概要 | J10: 財政状態の健全性
A11: 事業別普及率 | D11: ％ | E11: 99.3 | F11: 99.3 | G11: － | H11: 80.1 | I11: － | J11: 総収支比率 | L11: ％ | M11: 102.5 | N11: 105.6 | O11: 105.9 | P11: 108.3 | Q11: 11/21
A12: 進捗率 | D12: ％ | E12: 104.9 | F12: 104.8 | G12: 102.8 | H12: 96.2 | I12: － | J12: 経常収支比率 | L12: ％ | M12: 102.4 | N12: 105.6 | O12: 106.2 | P12: 106.2 | Q12: 11/21
A13: 一般家庭用使用料 （1ヶ月20㎥あたり） | D13: 円／月 | E13: 1371 | F13: 1371 | G13: 2238 | H13: 2866 | I13: － | J13: 事業別資金不足比率 | L13: ％ | M13: 0 | N13: 0 | O13: 0 | P13: 23 | Q13: 1/21
A14: 処理区域内人口密度 | D14: 人／ha | E14: 79 | F14: 79 | G14: 99 | H14: 60 | I14: － | J14: 利子負担率 | L14: ％ | M14: 1.2 | N14: 1 | O14: 1.2 | P14: 1.4 | Q14: 4/21
A15: 施設の効率性 | J15: 自己資本構成比率 | L15: ％ | M15: 57.6 | N15: 57.4 | O15: 64 | P15: 62.9 | Q15: 12/21
A16: 施設利用率 | D16: ％ | E16: 63.2 | F16: 65.2 | G16: 59.5 | H16: 62.3 | I16: 8/21 | J16: 固定資産対長期資本比率 | L16: ％ | M16: 101.8 | N16: 101.6 | O16: 101.2 | P16: 101.3 | Q16: 13/21
A17: 有収率 | D17: ％ | E17: 75 | F17: 73.4 | G17: 79.7 | H17: 80.4 | I17: 15/21 | J17: 処理区域内人口１人あたりの 企業債（地方債）現在高 | L17: 千円／人 | M17: 121 | N17: 120 | O17: 172 | P17: 183 | Q17: 3/21
A18: 水洗化率 | D18: ％ | E18: 100 | F18: 100 | G18: 99.2 | H18: 95.7 | I18: 1/21
A19: 経営の効率性
A20: 使用料単価 | D20: 円／㎥ | E20: 88.24 | F20: 88.96 | G20: 126.5 | H20: 134.43 | I20: 20/21
A21: 汚水処理原価 | D21: 円／㎥ | E21: 95.34 | F21: 93.63 | G21: 120.15 | H21: 134.79 | I21: 2/21
A22: 汚水処理原価(分流式下水道 等に要する経費控除前） | D22: 円／㎥ | E22: 95.34 | F22: 93.63 | G22: 121.57 | H22: 154.6 | I22: 2/21
A23: 汚水処理原価 （維持管理費） | D23: 円／㎥ | E23: 53.93 | F23: 53.26 | G23: 58.87 | H23: 72.15 | I23: 7/21
A24: 汚水処理原価 （資本費） | D24: 円／㎥ | E24: 41.41 | F24: 40.37 | G24: 61.27 | H24: 62.64 | I24: 2/21
A25: 経費回収率 | D25: ％ | E25: 92.5 | F25: 95 | G25: 105.3 | H25: 99.7 | I25: 20/21
A26: 経費回収率(分流式下水道 等に要する経費控除前） | D26: ％ | E26: 92.5 | F26: 95 | G26: 104.1 | H26: 86.9 | I26: 17/21
A27: 経費回収率 （維持管理費） | D27: ％ | E27: 163.6 | F27: 167 | G27: 214.9 | H27: 186.3 | I27: 20/21
A28: 処理区域内人口1人あたり の管理運営費(汚水分） | D28: 円／人 | E28: 9887 | F28: 9826 | G28: 13708 | H28: 14509 | I28: 1/21
A29: 処理区域内人口1人あたり の維持管理費（汚水分） | D29: 円／人 | E29: 5592 | F29: 5589 | G29: 6717 | H29: 7767 | I29: 6/21
A30: 処理区域内人口1人あたり の資本費（汚水分） | D30: 円／人 | E30: 4294 | F30: 4237 | G30: 6991 | H30: 6743 | I30: 1/21
A31: 職員１人あたりの 処理区域内人口 | D31: 人／人 | E31: 3781 | F31: 3822 | G31: 3818 | H31: 3948 | I31: 12/21
A32: 職員給与費対営業収益比率 | D32: ％ | E32: 8.6 | F32: 7.6 | G32: 6 | H32: 6.3 | I32: 15/21
A34: 経 営 状 況
A35: 収 益 的 収 支 | J35: 資 本 的 収 支
A36: 項 目 | E36: R2年度 | F36: R3年度 | G36: 増減額 | H36: 増減率（％） | J36: 項 目 | M36: R2年度 | N36: R3年度 | O36: 増減額 | P36: 増減率（％）
A37: 収 入 | D37: 百万円 | E37: 47576 | F37: 47413 | G37: -163 | H37: -0.3437875688 | J37: 収 入 | L37: 百万円 | M37: 22396 | N37: 22151 | O37: -245 | P37: -1.106044874
B38: 下水道使用料 | D38: 百万円 | E38: 17815 | F38: 18163 | G38: 348 | H38: 1.915983042 | K38: 企業債（非適：地方債） | L38: 百万円 | M38: 15912 | N38: 15800 | O38: -112 | P38: -0.7088607595
B39: 繰入金 | D39: 百万円 | E39: 18033 | F39: 18076 | G39: 43 | H39: 0.2378844877 | K39: 繰入金 | L39: 百万円 | M39: 399 | N39: 278 | O39: -121 | P39: -43.52517986
A40: 支 出 | D40: 百万円 | E40: 46409 | F40: 44905 | G40: -1504 | H40: -3.349292952 | J40: 支 出 | L40: 百万円 | M40: 38600 | N40: 38654 | O40: 54 | P40: 0.1397009365
B41: 支払利息 | D41: 百万円 | E41: 2792 | F41: 2444 | G41: -348 | H41: -14.23895254 | K41: 建設改良費 | L41: 百万円 | M41: 22629 | N41: 21858 | O41: -771 | P41: -3.527312654
B42: 減価償却費 | D42: 百万円 | E42: 24619 | F42: 24309 | G42: -310 | H42: -1.275247851 | K42: 元金償還金 | L42: 百万円 | M42: 15971 | N42: 16785 | O42: 814 | P42: 4.849568067
B43: 職員給与費 | D43: 百万円 | E43: 3063 | F43: 2744 | G43: -319 | H43: -11.62536443 | J43: 収 支 差 引 | L43: 百万円 | M43: -16204 | N43: -16503 | O43: -299 | P43: 1.811791795
A44: 収 支 差 引 | D44: 百万円 | E44: 1167 | F44: 2508 | G44: 1341 | H44: 53.46889952 | J44: 純 損 益 （非適：収支再差引） | L44: 百万円 | M44: 1167 | N44: 2508 | O44: 1341 | P44: 53.46889952
A46: ※「類型内順位」については
A47: の場合であれば指標の数値の高い方から、
A48: の場合であれば指標の数値が低い方から数えた順位となる
F49: 団体 | G49: 類型平均 | H49: 全国平均
F50: =+IF(IF(G17<>0,F17/G17,0)>0.6,IF(IF(G17<>0,F17/G17)<1.5,IF(G17<>0,F17/G17),1.5),0.6) -> 0.9209535759 | G50: =+IF(IF(G17<>0,G17/G17,0)>0.6,IF(IF(G17<>0,G17/G17,0)<1.5,IF(G17<>0,G17/G17,0),1.5),0.6) -> 1 | H50: =+IF(IF(G17<>0,H17/G17,0)>0.6,IF(IF(G17<>0,H17/G17,0)<1.5,IF(G17<>0,H17/G17,0),1.5),0.6) -> 1.008782936
F51: =+IF(IF(G25<>0,F25/G25,0)>0.6,IF(IF(G25<>0,F25/G25,0)<1.5,IF(G25<>0,F25/G25,0),1.5),0.6) -> 0.9021842355 | G51: =+IF(IF(G25<>0,G25/G25,0)>0.6,IF(IF(G25<>0,G25/G25,0)<1.5,IF(G25<>0,G25/G25,0),1.5),0.6) -> 1 | H51: =+IF(IF(G25<>0,H25/G25,0)>0.6,IF(IF(G25<>0,H25/G25,0)<1.5,IF(G25<>0,H25/G25,0),1.5),0.6) -> 0.9468186135
F52: =+IF(IF(G26<>0,F26/G26,0)>0.6,IF(IF(G26<>0,F26/G26,0)<1.5,IF(G26<>0,F26/G26,0),1.5),0.6) -> 0.9125840538 | G52: =+IF(IF(G26<>0,G26/G26,0)>0.6,IF(IF(G26<>0,G26/G26,0)<1.5,IF(G26<>0,G26/G26,0),1.5),0.6) -> 1 | H52: =+IF(IF(G26<>0,H26/G26,0)>0.6,IF(IF(G26<>0,H26/G26,0)<1.5,IF(G26<>0,H26/G26,0),1.5),0.6) -> 0.8347742555
F53: =+IF(IF(G22<>0,G22/F22,0)>0.6,IF(IF(G22<>0,G22/F22,0)<1.5,IF(G22<>0,G22/F22,0),1.5),0.6) -> 1.29840863 | G53: =+IF(IF(G22<>0,G22/G22,0)>0.6,IF(IF(G22<>0,G22/G22,0)<1.5,IF(G22<>0,G22/G22,0),1.5),0.6) -> 1 | H53: =+IF(IF(G22<>0,G22/H22,0)>0.6,IF(IF(G22<>0,G22/H22,0)<1.5,IF(G22<>0,G22/H22,0),1.5),0.6) -> 0.7863518758
F54: =+IF(IF(G18<>0,F18/G18,0)>0.6,IF(IF(G18<>0,F18/G18,0)<1.5,IF(G18<>0,F18/G18,0),1.5),0.6) -> 1.008064516 | G54: =+IF(IF(G18<>0,G18/G18,0)>0.6,IF(IF(G18<>0,G18/G18,0)<1.5,IF(G18<>0,G18/G18,0),1.5),0.6) -> 1 | H54: =+IF(IF(G18<>0,H18/G18,0)>0.6,IF(IF(G18<>0,H18/G18,0)<1.5,IF(G18<>0,H18/G18,0),1.5),0.6) -> 0.9647177419

Sheet R3収支
A1: 決算年度 | B1: 業務コード | C1: 業種コード | D1: 事業コード | E1: 並び順 | F1: 事業区分 | G1: 団体コード | H1: 都道府県 | I1: 団体名 | J1: 収入 | K1: 料金収入 | L1: 繰入金 | M1: 支出 | N1: 支払利息 | O1: 減価償却費 | P1: 職員給与費 | Q1: 収支差引 | R1: 収入 | S1: 地方債 | T1: 繰入金 | U1: 支出 | V1: 建設改良費 | W1: 元金償還金 | X1: 収支差引 | Y1: 収支再差引
A2: 2021 | B2: 46 | C2: 17 | D2: 1 | E2: 1 | F2: 公共 | G2: 011002 | H2: 北海道 | I2: 札幌市 | J2: =IF(千円単!J2="","",ROUND(千円単!J2/1000,0)) -> 47413 | K2: =IF(千円単!K2="","",ROUND(千円単!K2/1000,0)) -> 18163 | L2: =IF(千円単!L2="","",ROUND(千円単!L2/1000,0)) -> 18076 | M2: =IF(千円単!M2="","",ROUND(千円単!M2/1000,0)) -> 44905 | N2: =IF(千円単!N2="","",ROUND(千円単!N2/1000,0)) -> 2444 | O2: =IF(千円単!O2="","",ROUND(千円単!O2/1000,0)) -> 24309 | P2: =IF(千円単!P2="","",ROUND(千円単!P2/1000,0)) -> 2744 | Q2: =IF(千円単!Q2="","",ROUND(千円単!Q2/1000,0)) -> 2508 | R2: =IF(千円単!R2="","",ROUND(千円単!R2/1000,0)) -> 22151 | S2: =IF(千円単!S2="","",ROUND(千円単!S2/1000,0)) -> 15800 | T2: =IF(千円単!T2="","",ROUND(千円単!T2/1000,0)) -> 278 | U2: =IF(千円単!U2="","",ROUND(千円単!U2/1000,0)) -> 38654 | V2: =IF(千円単!V2="","",ROUND(千円単!V2/1000,0)) -> 21858 | W2: =IF(千円単!W2="","",ROUND(千円単!W2/1000,0)) -> 16785 | X2: =IF(千円単!X2="","",ROUND(千円単!X2/1000,0)) -> -16503 | Y2: =IF(千円単!Y2="","",ROUND(千円単!Y2/1000,0)) -> 2508
A3: 2021 | B3: 46 | C3: 17 | D3: 1 | E3: 2 | F3: 公共 | G3: 012025 | H3: 北海道 | I3: 函館市 | J3: =IF(千円単!J3="","",ROUND(千円単!J3/1000,0)) -> 7448 | K3: =IF(千円単!K3="","",ROUND(千円単!K3/1000,0)) -> 4021 | L3: =IF(千円単!L3="","",ROUND(千円単!L3/1000,0)) -> 1185 | M3: =IF(千円単!M3="","",ROUND(千円単!M3/1000,0)) -> 6299 | N3: =IF(千円単!N3="","",ROUND(千円単!N3/1000,0)) -> 632 | O3: =IF(千円単!O3="","",ROUND(千円単!O3/1000,0)) -> 3509 | P3: =IF(千円単!P3="","",ROUND(千円単!P3/1000,0)) -> 359 | Q3: =IF(千円単!Q3="","",ROUND(千円単!Q3/1000,0)) -> 1149 | R3: =IF(千円単!R3="","",ROUND(千円単!R3/1000,0)) -> 3022 | S3: =IF(千円単!S3="","",ROUND(千円単!S3/1000,0)) -> 1974 | T3: =IF(千円単!T3="","",ROUND(千円単!T3/1000,0)) -> 766 | U3: =IF(千円単!U3="","",ROUND(千円単!U3/1000,0)) -> 5676 | V3: =IF(千円単!V3="","",ROUND(千円単!V3/1000,0)) -> 1444 | W3: =IF(千円単!W3="","",ROUND(千円単!W3/1000,0)) -> 4225 | X3: =IF(千円単!X3="","",ROUND(千円単!X3/1000,0)) -> -2653 | Y3: =IF(千円単!Y3="","",ROUND(千円単!Y3/1000,0)) -> 1149
A4: 2021 | B4: 46 | C4: 17 | D4: 1 | E4: 3 | F4: 公共 | G4: 012033 | H4: 北海道 | I4: 小樽市 | J4: =IF(千円単!J4="","",ROUND(千円単!J4/1000,0)) -> 3413 | K4: =IF(千円単!K4="","",ROUND(千円単!K4/1000,0)) -> 1767 | L4: =IF(千円単!L4="","",ROUND(千円単!L4/1000,0)) -> 695 | M4: =IF(千円単!M4="","",ROUND(千円単!M4/1000,0)) -> 3285 | N4: =IF(千円単!N4="","",ROUND(千円単!N4/1000,0)) -> 118 | O4: =IF(千円単!O4="","",ROUND(千円単!O4/1000,0)) -> 1847 | P4: =IF(千円単!P4="","",ROUND(千円単!P4/1000,0)) -> 100 | Q4: =IF(千円単!Q4="","",ROUND(千円単!Q4/1000,0)) -> 128 | R4: =IF(千円単!R4="","",ROUND(千円単!R4/1000,0)) -> 1721 | S4: =IF(千円単!S4="","",ROUND(千円単!S4/1000,0)) -> 589 | T4: =IF(千円単!T4="","",ROUND(千円単!T4/1000,0)) -> 358 | U4: =IF(千円単!U4="","",ROUND(千円単!U4/1000,0)) -> 2849 | V4: =IF(千円単!V4="","",ROUND(千円単!V4/1000,0)) -> 1100 | W4: =IF(千円単!W4="","",ROUND(千円単!W4/1000,0)) -> 1748 | X4: =IF(千円単!X4="","",ROUND(千円単!X4/1000,0)) -> -1127 | Y4: =IF(千円単!Y4="","",ROUND(千円単!Y4/1000,0)) -> 128
A5: 2021 | B5: 46 | C5: 17 | D5: 1 | E5: 4 | F5: 公共 | G5: 012041 | H5: 北海道 | I5: 旭川市 | J5: =IF(千円単!J5="","",ROUND(千円単!J5/1000,0)) -> 8543 | K5: =IF(千円単!K5="","",ROUND(千円単!K5/1000,0)) -> 5121 | L5: =IF(千円単!L5="","",ROUND(千円単!L5/1000,0)) -> 1002 | M5: =IF(千円単!M5="","",ROUND(千円単!M5/1000,0)) -> 7983 | N5: =IF(千円単!N5="","",ROUND(千円単!N5/1000,0)) -> 370 | O5: =IF(千円単!O5="","",ROUND(千円単!O5/1000,0)) -> 4675 | P5: =IF(千円単!P5="","",ROUND(千円単!P5/1000,0)) -> 378 | Q5: =IF(千円単!Q5="","",ROUND(千円単!Q5/1000,0)) -> 560 | R5: =IF(千円単!R5="","",ROUND(千円単!R5/1000,0)) -> 3957 | S5: =IF(千円単!S5="","",ROUND(千円単!S5/1000,0)) -> 1964 | T5: =IF(千円単!T5="","",ROUND(千円単!T5/1000,0)) -> 137 | U5: =IF(千円単!U5="","",ROUND(千円単!U5/1000,0)) -> 7397 | V5: =IF(千円単!V5="","",ROUND(千円単!V5/1000,0)) -> 3780 | W5: =IF(千円単!W5="","",ROUND(千円単!W5/1000,0)) -> 3617 | X5: =IF(千円単!X5="","",ROUND(千円単!X5/1000,0)) -> -3440 | Y5: =IF(千円単!Y5="","",ROUND(千円単!Y5/1000,0)) -> 560
A6: 2021 | B6: 46 | C6: 17 | D6: 1 | E6: 5 | F6: 公共 | G6: 012050 | H6: 北海道 | I6: 室蘭市 | J6: =IF(千円単!J6="","",ROUND(千円単!J6/1000,0)) -> 2843 | K6: =IF(千円単!K6="","",ROUND(千円単!K6/1000,0)) -> 1382 | L6: =IF(千円単!L6="","",ROUND(千円単!L6/1000,0)) -> 750 | M6: =IF(千円単!M6="","",ROUND(千円単!M6/1000,0)) -> 2475 | N6: =IF(千円単!N6="","",ROUND(千円単!N6/1000,0)) -> 175 | O6: =IF(千円単!O6="","",ROUND(千円単!O6/1000,0)) -> 1321 | P6: =IF(千円単!P6="","",ROUND(千円単!P6/1000,0)) -> 119 | Q6: =IF(千円単!Q6="","",ROUND(千円単!Q6/1000,0)) -> 368 | R6: =IF(千円単!R6="","",ROUND(千円単!R6/1000,0)) -> 829 | S6: =IF(千円単!S6="","",ROUND(千円単!S6/1000,0)) -> 417 | T6: =IF(千円単!T6="","",ROUND(千円単!T6/1000,0)) -> 110 | U6: =IF(千円単!U6="","",ROUND(千円単!U6/1000,0)) -> 1830 | V6: =IF(千円単!V6="","",ROUND(千円単!V6/1000,0)) -> 813 | W6: =IF(千円単!W6="","",ROUND(千円単!W6/1000,0)) -> 1015 | X6: =IF(千円単!X6="","",ROUND(千円単!X6/1000,0)) -> -1002 | Y6: =IF(千円単!Y6="","",ROUND(千円単!Y6/1000,0)) -> 368
A7: 2021 | B7: 46 | C7: 17 | D7: 1 | E7: 6 | F7: 公共 | G7: 012068 | H7: 北海道 | I7: 釧路市 | J7: =IF(千円単!J7="","",ROUND(千円単!J7/1000,0)) -> 6375 | K7: =IF(千円単!K7="","",ROUND(千円単!K7/1000,0)) -> 3401 | L7: =IF(千円単!L7="","",ROUND(千円単!L7/1000,0)) -> 980 | M7: =IF(千円単!M7="","",ROUND(千円単!M7/1000,0)) -> 5228 | N7: =IF(千円単!N7="","",ROUND(千円単!N7/1000,0)) -> 293 | O7: =IF(千円単!O7="","",ROUND(千円単!O7/1000,0)) -> 2933 | P7: =IF(千円単!P7="","",ROUND(千円単!P7/1000,0)) -> 203 | Q7: =IF(千円単!Q7="","",ROUND(千円単!Q7/1000,0)) -> 1147 | R7: =IF(千円単!R7="","",ROUND(千円単!R7/1000,0)) -> 2527 | S7: =IF(千円単!S7="","",ROUND(千円単!S7/1000,0)) -> 1321 | T7: =IF(千円単!T7="","",ROUND(千円単!T7/1000,0)) -> 366 | U7: =IF(千円単!U7="","",ROUND(千円単!U7/1000,0)) -> 4246 | V7: =IF(千円単!V7="","",ROUND(千円単!V7/1000,0)) -> 2214 | W7: =IF(千円単!W7="","",ROUND(千円単!W7/1000,0)) -> 2031 | X7: =IF(千円単!X7="","",ROUND(千円単!X7/1000,0)) -> -1719 | Y7: =IF(千円単!Y7="","",ROUND(千円単!Y7/1000,0)) -> 1147
A8: 2021 | B8: 46 | C8: 17 | D8: 1 | E8: 7 | F8: 公共 | G8: 012076 | H8: 北海道 | I8: 帯広市 | J8: =IF(千円単!J8="","",ROUND(千円単!J8/1000,0)) -> 4638 | K8: =IF(千円単!K8="","",ROUND(千円単!K8/1000,0)) -> 2633 | L8: =IF(千円単!L8="","",ROUND(千円単!L8/1000,0)) -> 947 | M8: =IF(千円単!M8="","",ROUND(千円単!M8/1000,0)) -> 3921 | N8: =IF(千円単!N8="","",ROUND(千円単!N8/1000,0)) -> 292 | O8: =IF(千円単!O8="","",ROUND(千円単!O8/1000,0)) -> 2234 | P8: =IF(千円単!P8="","",ROUND(千円単!P8/1000,0)) -> 96 | Q8: =IF(千円単!Q8="","",ROUND(千円単!Q8/1000,0)) -> 717 | R8: =IF(千円単!R8="","",ROUND(千円単!R8/1000,0)) -> 1120 | S8: =IF(千円単!S8="","",ROUND(千円単!S8/1000,0)) -> 529 | T8: =IF(千円単!T8="","",ROUND(千円単!T8/1000,0)) -> 4 | U8: =IF(千円単!U8="","",ROUND(千円単!U8/1000,0)) -> 2954 | V8: =IF(千円単!V8="","",ROUND(千円単!V8/1000,0)) -> 1097 | W8: =IF(千円単!W8="","",ROUND(千円単!W8/1000,0)) -> 1858 | X8: =IF(千円単!X8="","",ROUND(千円単!X8/1000,0)) -> -1834 | Y8: =IF(千円単!Y8="","",ROUND(千円単!Y8/1000,0)) -> 717
A9: 2021 | B9: 46 | C9: 17 | D9: 1 | E9: 8 | F9: 公共 | G9: 012084 | H9: 北海道 | I9: 北見市 | J9: =IF(千円単!J9="","",ROUND(千円単!J9/1000,0)) -> 4081 | K9: =IF(千円単!K9="","",ROUND(千円単!K9/1000,0)) -> 1681 | L9: =IF(千円単!L9="","",ROUND(千円単!L9/1000,0)) -> 1020 | M9: =IF(千円単!M9="","",ROUND(千円単!M9/1000,0)) -> 3748 | N9: =IF(千円単!N9="","",ROUND(千円単!N9/1000,0)) -> 349 | O9: =IF(千円単!O9="","",ROUND(千円単!O9/1000,0)) -> 2397 | P9: =IF(千円単!P9="","",ROUND(千円単!P9/1000,0)) -> 189 | Q9: =IF(千円単!Q9="","",ROUND(千円単!Q9/1000,0)) -> 333 | R9: =IF(千円単!R9="","",ROUND(千円単!R9/1000,0)) -> 2426 | S9: =IF(千円単!S9="","",ROUND(千円単!S9/1000,0)) -> 1295 | T9: =IF(千円単!T9="","",ROUND(千円単!T9/1000,0)) -> 411 | U9: =IF(千円単!U9="","",ROUND(千円単!U9/1000,0)) -> 3964 | V9: =IF(千円単!V9="","",ROUND(千円単!V9/1000,0)) -> 1873 | W9: =IF(千円単!W9="","",ROUND(千円単!W9/1000,0)) -> 2090 | X9: =IF(千円単!X9="","",ROUND(千円単!X9/1000,0)) -> -1538 | Y9: =IF(千円単!Y9="","",ROUND(千円単!Y9/1000,0)) -> 333
A10: 2021 | B10: 46 | C10: 17 | D10: 1 | E10: 9 | F10: 公共 | G10: 012106 | H10: 北海道 | I10: 岩見沢市 | J10: =IF(千円単!J10="","",ROUND(千円単!J10/1000,0)) -> 3070 | K10: =IF(千円単!K10="","",ROUND(千円単!K10/1000,0)) -> 1167 | L10: =IF(千円単!L10="","",ROUND(千円単!L10/1000,0)) -> 736 | M10: =IF(千円単!M10="","",ROUND(千円単!M10/1000,0)) -> 2537 | N10: =IF(千円単!N10="","",ROUND(千円単!N10/1000,0)) -> 115 | O10: =IF(千円単!O10="","",ROUND(千円単!O10/1000,0)) -> 1272 | P10: =IF(千円単!P10="","",ROUND(千円単!P10/1000,0)) -> 44 | Q10: =IF(千円単!Q10="","",ROUND(千円単!Q10/1000,0)) -> 533 | R10: =IF(千円単!R10="","",ROUND(千円単!R10/1000,0)) -> 1204 | S10: =IF(千円単!S10="","",ROUND(千円単!S10/1000,0)) -> 517 | T10: =IF(千円単!T10="","",ROUND(千円単!T10/1000,0)) -> 164 | U10: =IF(千円単!U10="","",ROUND(千円単!U10/1000,0)) -> 2010 | V10: =IF(千円単!V10="","",ROUND(千円単!V10/1000,0)) -> 1164 | W10: =IF(千円単!W10="","",ROUND(千円単!W10/1000,0)) -> 834 | X10: =IF(千円単!X10="","",ROUND(千円単!X10/1000,0)) -> -806 | Y10: =IF(千円単!Y10="","",ROUND(千円単!Y10/1000,0)) -> 533
A11: 2021 | B11: 46 | C11: 17 | D11: 1 | E11: 10 | F11: 公共 | G11: 012114 | H11: 北海道 | I11: 網走市 | J11: =IF(千円単!J11="","",ROUND(千円単!J11/1000,0)) -> 1335 | K11: =IF(千円単!K11="","",ROUND(千円単!K11/1000,0)) -> 614 | L11: =IF(千円単!L11="","",ROUND(千円単!L11/1000,0)) -> 269 | M11: =IF(千円単!M11="","",ROUND(千円単!M11/1000,0)) -> 1284 | N11: =IF(千円単!N11="","",ROUND(千円単!N11/1000,0)) -> 75 | O11: =IF(千円単!O11="","",ROUND(千円単!O11/1000,0)) -> 858 | P11: =IF(千円単!P11="","",ROUND(千円単!P11/1000,0)) -> 36 | Q11: =IF(千円単!Q11="","",ROUND(千円単!Q11/1000,0)) -> 50 | R11: =IF(千円単!R11="","",ROUND(千円単!R11/1000,0)) -> 379 | S11: =IF(千円単!S11="","",ROUND(千円単!S11/1000,0)) -> 216 | T11: =IF(千円単!T11="","",ROUND(千円単!T11/1000,0)) -> 0 | U11: =IF(千円単!U11="","",ROUND(千円単!U11/1000,0)) -> 762 | V11: =IF(千円単!V11="","",ROUND(千円単!V11/1000,0)) -> 370 | W11: =IF(千円単!W11="","",ROUND(千円単!W11/1000,0)) -> 392 | X11: =IF(千円単!X11="","",ROUND(千円単!X11/1000,0)) -> -384 | Y11: =IF(千円単!Y11="","",ROUND(千円単!Y11/1000,0)) -> 50
A12: 2021 | B12: 46 | C12: 17 | D12: 1 | E12: 11 | F12: 公共 | G12: 012131 | H12: 北海道 | I12: 苫小牧市 | J12: =IF(千円単!J12="","",ROUND(千円単!J12/1000,0)) -> 5178 | K12: =IF(千円単!K12="","",ROUND(千円単!K12/1000,0)) -> 2278 | L12: =IF(千円単!L12="","",ROUND(千円単!L12/1000,0)) -> 1086 | M12: =IF(千円単!M12="","",ROUND(千円単!M12/1000,0)) -> 4455 | N12: =IF(千円単!N12="","",ROUND(千円単!N12/1000,0)) -> 440 | O12: =IF(千円単!O12="","",ROUND(千円単!O12/1000,0)) -> 2716 | P12: =IF(千円単!P12="","",ROUND(千円単!P12/1000,0)) -> 130 | Q12: =IF(千円単!Q12="","",ROUND(千円単!Q12/1000,0)) -> 724 | R12: =IF(千円単!R12="","",ROUND(千円単!R12/1000,0)) -> 2099 | S12: =IF(千円単!S12="","",ROUND(千円単!S12/1000,0)) -> 1368 | T12: =IF(千円単!T12="","",ROUND(千円単!T12/1000,0)) -> 249 | U12: =IF(千円単!U12="","",ROUND(千円単!U12/1000,0)) -> 3878 | V12: =IF(千円単!V12="","",ROUND(千円単!V12/1000,0)) -> 1885 | W12: =IF(千円単!W12="","",ROUND(千円単!W12/1000,0)) -> 1993 | X12: =IF(千円単!X12="","",ROUND(千円単!X12/1000,0)) -> -1779 | Y12: =IF(千円単!Y12="","",ROUND(千円単!Y12/1000,0)) -> 724
A13: 2021 | B13: 46 | C13: 17 | D13: 1 | E13: 12 | F13: 公共 | G13: 012149 | H13: 北海道 | I13: 稚内市 | J13: =IF(千円単!J13="","",ROUND(千円単!J13/1000,0)) -> 1088 | K13: =IF(千円単!K13="","",ROUND(千円単!K13/1000,0)) -> 448 | L13: =IF(千円単!L13="","",ROUND(千円単!L13/1000,0)) -> 387 | M13: =IF(千円単!M13="","",ROUND(千円単!M13/1000,0)) -> 1050 | N13: =IF(千円単!N13="","",ROUND(千円単!N13/1000,0)) -> 87 | O13: =IF(千円単!O13="","",ROUND(千円単!O13/1000,0)) -> 601 | P13: =IF(千円単!P13="","",ROUND(千円単!P13/1000,0)) -> 21 | Q13: =IF(千円単!Q13="","",ROUND(千円単!Q13/1000,0)) -> 38 | R13: =IF(千円単!R13="","",ROUND(千円単!R13/1000,0)) -> 595 | S13: =IF(千円単!S13="","",ROUND(千円単!S13/1000,0)) -> 331 | T13: =IF(千円単!T13="","",ROUND(千円単!T13/1000,0)) -> 104 | U13: =IF(千円単!U13="","",ROUND(千円単!U13/1000,0)) -> 1054 | V13: =IF(千円単!V13="","",ROUND(千円単!V13/1000,0)) -> 383 | W13: =IF(千円単!W13="","",ROUND(千円単!W13/1000,0)) -> 671 | X13: =IF(千円単!X13="","",ROUND(千円単!X13/1000,0)) -> -458 | Y13: =IF(千円単!Y13="","",ROUND(千円単!Y13/1000,0)) -> 38
A14: 2021 | B14: 46 | C14: 17 | D14: 1 | E14: 13 | F14: 公共 | G14: 012173 | H14: 北海道 | I14: 江別市 | J14: =IF(千円単!J14="","",ROUND(千円単!J14/1000,0)) -> 3385 | K14: =IF(千円単!K14="","",ROUND(千円単!K14/1000,0)) -> 1279 | L14: =IF(千円単!L14="","",ROUND(千円単!L14/1000,0)) -> 832 | M14: =IF(千円単!M14="","",ROUND(千円単!M14/1000,0)) -> 3241 | N14: =IF(千円単!N14="","",ROUND(千円単!N14/1000,0)) -> 140 | O14: =IF(千円単!O14="","",ROUND(千円単!O14/1000,0)) -> 2045 | P14: =IF(千円単!P14="","",ROUND(千円単!P14/1000,0)) -> 136 | Q14: =IF(千円単!Q14="","",ROUND(千円単!Q14/1000,0)) -> 144 | R14: =IF(千円単!R14="","",ROUND(千円単!R14/1000,0)) -> 1035 | S14: =IF(千円単!S14="","",ROUND(千円単!S14/1000,0)) -> 578 | T14: =IF(千円単!T14="","",ROUND(千円単!T14/1000,0)) -> 19 | U14: =IF(千円単!U14="","",ROUND(千円単!U14/1000,0)) -> 2006 | V14: =IF(千円単!V14="","",ROUND(千円単!V14/1000,0)) -> 1085 | W14: =IF(千円単!W14="","",ROUND(千円単!W14/1000,0)) -> 921 | X14: =IF(千円単!X14="","",ROUND(千円単!X14/1000,0)) -> -971 | Y14: =IF(千円単!Y14="","",ROUND(千円単!Y14/1000,0)) -> 144
A15: 2021 | B15: 46 | C15: 17 | D15: 1 | E15: 14 | F15: 公共 | G15: 012190 | H15: 北海道 | I15: 紋別市 | J15: =IF(千円単!J15="","",ROUND(千円単!J15/1000,0)) -> 1242 | K15: =IF(千円単!K15="","",ROUND(千円単!K15/1000,0)) -> 416 | L15: =IF(千円単!L15="","",ROUND(千円単!L15/1000,0)) -> 518 | M15: =IF(千円単!M15="","",ROUND(千円単!M15/1000,0)) -> 1016 | N15: =IF(千円単!N15="","",ROUND(千円単!N15/1000,0)) -> 82 | O15: =IF(千円単!O15="","",ROUND(千円単!O15/1000,0)) -> 620 | P15: =IF(千円単!P15="","",ROUND(千円単!P15/1000,0)) -> 42 | Q15: =IF(千円単!Q15="","",ROUND(千円単!Q15/1000,0)) -> 226 | R15: =IF(千円単!R15="","",ROUND(千円単!R15/1000,0)) -> 420 | S15: =IF(千円単!S15="","",ROUND(千円単!S15/1000,0)) -> 324 | T15: =IF(千円単!T15="","",ROUND(千円単!T15/1000,0)) -> 36 | U15: =IF(千円単!U15="","",ROUND(千円単!U15/1000,0)) -> 995 | V15: =IF(千円単!V15="","",ROUND(千円単!V15/1000,0)) -> 265 | W15: =IF(千円単!W15="","",ROUND(千円単!W15/1000,0)) -> 730 | X15: =IF(千円単!X15="","",ROUND(千円単!X15/1000,0)) -> -575 | Y15: =IF(千円単!Y15="","",ROUND(千円単!Y15/1000,0)) -> 226
A16: 2021 | B16: 46 | C16: 17 | D16: 1 | E16: 15 | F16: 公共 | G16: 012211 | H16: 北海道 | I16: 名寄市 | J16: =IF(千円単!J16="","",ROUND(千円単!J16/1000,0)) -> 1112 | K16: =IF(千円単!K16="","",ROUND(千円単!K16/1000,0)) -> 371 | L16: =IF(千円単!L16="","",ROUND(千円単!L16/1000,0)) -> 362 | M16: =IF(千円単!M16="","",ROUND(千円単!M16/1000,0)) -> 1072 | N16: =IF(千円単!N16="","",ROUND(千円単!N16/1000,0)) -> 58 | O16: =IF(千円単!O16="","",ROUND(千円単!O16/1000,0)) -> 733 | P16: =IF(千円単!P16="","",ROUND(千円単!P16/1000,0)) -> 103 | Q16: =IF(千円単!Q16="","",ROUND(千円単!Q16/1000,0)) -> 40 | R16: =IF(千円単!R16="","",ROUND(千円単!R16/1000,0)) -> 372 | S16: =IF(千円単!S16="","",ROUND(千円単!S16/1000,0)) -> 174 | T16: =IF(千円単!T16="","",ROUND(千円単!T16/1000,0)) -> 39 | U16: =IF(千円単!U16="","",ROUND(千円単!U16/1000,0)) -> 778 | V16: =IF(千円単!V16="","",ROUND(千円単!V16/1000,0)) -> 365 | W16: =IF(千円単!W16="","",ROUND(千円単!W16/1000,0)) -> 413 | X16: =IF(千円単!X16="","",ROUND(千円単!X16/1000,0)) -> -406 | Y16: =IF(千円単!Y16="","",ROUND(千円単!Y16/1000,0)) -> 40
A17: 2021 | B17: 46 | C17: 17 | D17: 1 | E17: 16 | F17: 公共 | G17: 012220 | H17: 北海道 | I17: 三笠市 | J17: =IF(千円単!J17="","",ROUND(千円単!J17/1000,0)) -> 557 | K17: =IF(千円単!K17="","",ROUND(千円単!K17/1000,0)) -> 192 | L17: =IF(千円単!L17="","",ROUND(千円単!L17/1000,0)) -> 207 | M17: =IF(千円単!M17="","",ROUND(千円単!M17/1000,0)) -> 511 | N17: =IF(千円単!N17="","",ROUND(千円単!N17/1000,0)) -> 39 | O17: =IF(千円単!O17="","",ROUND(千円単!O17/1000,0)) -> 365 | P17: =IF(千円単!P17="","",ROUND(千円単!P17/1000,0)) -> 17 | Q17: =IF(千円単!Q17="","",ROUND(千円単!Q17/1000,0)) -> 46 | R17: =IF(千円単!R17="","",ROUND(千円単!R17/1000,0)) -> 192 | S17: =IF(千円単!S17="","",ROUND(千円単!S17/1000,0)) -> 54 | T17: =IF(千円単!T17="","",ROUND(千円単!T17/1000,0)) -> 0 | U17: =IF(千円単!U17="","",ROUND(千円単!U17/1000,0)) -> 432 | V17: =IF(千円単!V17="","",ROUND(千円単!V17/1000,0)) -> 133 | W17: =IF(千円単!W17="","",ROUND(千円単!W17/1000,0)) -> 299 | X17: =IF(千円単!X17="","",ROUND(千円単!X17/1000,0)) -> -240 | Y17: =IF(千円単!Y17="","",ROUND(千円単!Y17/1000,0)) -> 46
A18: 2021 | B18: 46 | C18: 17 | D18: 1 | E18: 17 | F18: 公共 | G18: 012238 | H18: 北海道 | I18: 根室市 | J18: =IF(千円単!J18="","",ROUND(千円単!J18/1000,0)) -> 860 | K18: =IF(千円単!K18="","",ROUND(千円単!K18/1000,0)) -> 421 | L18: =IF(千円単!L18="","",ROUND(千円単!L18/1000,0)) -> 112 | M18: =IF(千円単!M18="","",ROUND(千円単!M18/1000,0)) -> 813 | N18: =IF(千円単!N18="","",ROUND(千円単!N18/1000,0)) -> 25 | O18: =IF(千円単!O18="","",ROUND(千円単!O18/1000,0)) -> 461 | P18: =IF(千円単!P18="","",ROUND(千円単!P18/1000,0)) -> 38 | Q18: =IF(千円単!Q18="","",ROUND(千円単!Q18/1000,0)) -> 47 | R18: =IF(千円単!R18="","",ROUND(千円単!R18/1000,0)) -> 238 | S18: =IF(千円単!S18="","",ROUND(千円単!S18/1000,0)) -> 119 | T18: =IF(千円単!T18="","",ROUND(千円単!T18/1000,0)) -> 17 | U18: =IF(千円単!U18="","",ROUND(千円単!U18/1000,0)) -> 431 | V18: =IF(千円単!V18="","",ROUND(千円単!V18/1000,0)) -> 248 | W18: =IF(千円単!W18="","",ROUND(千円単!W18/1000,0)) -> 181 | X18: =IF(千円単!X18="","",ROUND(千円単!X18/1000,0)) -> -193 | Y18: =IF(千円単!Y18="","",ROUND(千円単!Y18/1000,0)) -> 47
A19: 2021 | B19: 46 | C19: 17 | D19: 1 | E19: 18 | F19: 公共 | G19: 012246 | H19: 北海道 | I19: 千歳市 | J19: =IF(千円単!J19="","",ROUND(千円単!J19/1000,0)) -> 3295 | K19: =IF(千円単!K19="","",ROUND(千円単!K19/1000,0)) -> 1358 | L19: =IF(千円単!L19="","",ROUND(千円単!L19/1000,0)) -> 805 | M19: =IF(千円単!M19="","",ROUND(千円単!M19/1000,0)) -> 3214 | N19: =IF(千円単!N19="","",ROUND(千円単!N19/1000,0)) -> 147 | O19: =IF(千円単!O19="","",ROUND(千円単!O19/1000,0)) -> 1827 | P19: =IF(千円単!P19="","",ROUND(千円単!P19/1000,0)) -> 181 | Q19: =IF(千円単!Q19="","",ROUND(千円単!Q19/1000,0)) -> 80 | R19: =IF(千円単!R19="","",ROUND(千円単!R19/1000,0)) -> 351 | S19: =IF(千円単!S19="","",ROUND(千円単!S19/1000,0)) -> 176 | T19: =IF(千円単!T19="","",ROUND(千円単!T19/1000,0)) -> 32 | U19: =IF(千円単!U19="","",ROUND(千円単!U19/1000,0)) -> 1332 | V19: =IF(千円単!V19="","",ROUND(千円単!V19/1000,0)) -> 681 | W19: =IF(千円単!W19="","",ROUND(千円単!W19/1000,0)) -> 649 | X19: =IF(千円単!X19="","",ROUND(千円単!X19/1000,0)) -> -981 | Y19: =IF(千円単!Y19="","",ROUND(千円単!Y19/1000,0)) -> 80
A20: 2021 | B20: 46 | C20: 17 | D20: 1 | E20: 19 | F20: 公共 | G20: 012254 | H20: 北海道 | I20: 滝川市 | J20: =IF(千円単!J20="","",ROUND(千円単!J20/1000,0)) -> 1263 | K20: =IF(千円単!K20="","",ROUND(千円単!K20/1000,0)) -> 698 | L20: =IF(千円単!L20="","",ROUND(千円単!L20/1000,0)) -> 243 | M20: =IF(千円単!M20="","",ROUND(千円単!M20/1000,0)) -> 1162 | N20: =IF(千円単!N20="","",ROUND(千円単!N20/1000,0)) -> 71 | O20: =IF(千円単!O20="","",ROUND(千円単!O20/1000,0)) -> 817 | P20: =IF(千円単!P20="","",ROUND(千円単!P20/1000,0)) -> 10 | Q20: =IF(千円単!Q20="","",ROUND(千円単!Q20/1000,0)) -> 101 | R20: =IF(千円単!R20="","",ROUND(千円単!R20/1000,0)) -> 694 | S20: =IF(千円単!S20="","",ROUND(千円単!S20/1000,0)) -> 299 | T20: =IF(千円単!T20="","",ROUND(千円単!T20/1000,0)) -> 303 | U20: =IF(千円単!U20="","",ROUND(千円単!U20/1000,0)) -> 1125 | V20: =IF(千円単!V20="","",ROUND(千円単!V20/1000,0)) -> 533 | W20: =IF(千円単!W20="","",ROUND(千円単!W20/1000,0)) -> 592 | X20: =IF(千円単!X20="","",ROUND(千円単!X20/1000,0)) -> -431 | Y20: =IF(千円単!Y20="","",ROUND(千円単!Y20/1000,0)) -> 101
A21: 2021 | B21: 46 | C21: 17 | D21: 1 | E21: 20 | F21: 公共 | G21: 012262 | H21: 北海道 | I21: 砂川市 | J21: =IF(千円単!J21="","",ROUND(千円単!J21/1000,0)) -> 733 | K21: =IF(千円単!K21="","",ROUND(千円単!K21/1000,0)) -> 327 | L21: =IF(千円単!L21="","",ROUND(千円単!L21/1000,0)) -> 240 | M21: =IF(千円単!M21="","",ROUND(千円単!M21/1000,0)) -> 494 | N21: =IF(千円単!N21="","",ROUND(千円単!N21/1000,0)) -> 34 | O21: =IF(千円単!O21="","",ROUND(千円単!O21/1000,0)) -> 337 | P21: =IF(千円単!P21="","",ROUND(千円単!P21/1000,0)) -> 18 | Q21: =IF(千円単!Q21="","",ROUND(千円単!Q21/1000,0)) -> 239 | R21: =IF(千円単!R21="","",ROUND(千円単!R21/1000,0)) -> 59 | S21: =IF(千円単!S21="","",ROUND(千円単!S21/1000,0)) -> 36 | T21: =IF(千円単!T21="","",ROUND(千円単!T21/1000,0)) -> 0 | U21: =IF(千円単!U21="","",ROUND(千円単!U21/1000,0)) -> 437 | V21: =IF(千円単!V21="","",ROUND(千円単!V21/1000,0)) -> 53 | W21: =IF(千円単!W21="","",ROUND(千円単!W21/1000,0)) -> 384 | X21: =IF(千円単!X21="","",ROUND(千円単!X21/1000,0)) -> -378 | Y21: =IF(千円単!Y21="","",ROUND(千円単!Y21/1000,0)) -> 239
A22: 2021 | B22: 46 | C22: 17 | D22: 1 | E22: 21 | F22: 公共 | G22: 012301 | H22: 北海道 | I22: 登別市 | J22: =IF(千円単!J22="","",ROUND(千円単!J22/1000,0)) -> 1700 | K22: =IF(千円単!K22="","",ROUND(千円単!K22/1000,0)) -> 658 | L22: =IF(千円単!L22="","",ROUND(千円単!L22/1000,0)) -> 611 | M22: =IF(千円単!M22="","",ROUND(千円単!M22/1000,0)) -> 1595 | N22: =IF(千円単!N22="","",ROUND(千円単!N22/1000,0)) -> 239 | O22: =IF(千円単!O22="","",ROUND(千円単!O22/1000,0)) -> 950 | P22: =IF(千円単!P22="","",ROUND(千円単!P22/1000,0)) -> 46 | Q22: =IF(千円単!Q22="","",ROUND(千円単!Q22/1000,0)) -> 105 | R22: =IF(千円単!R22="","",ROUND(千円単!R22/1000,0)) -> 724 | S22: =IF(千円単!S22="","",ROUND(千円単!S22/1000,0)) -> 517 | T22: =IF(千円単!T22="","",ROUND(千円単!T22/1000,0)) -> 150 | U22: =IF(千円単!U22="","",ROUND(千円単!U22/1000,0)) -> 1448 | V22: =IF(千円単!V22="","",ROUND(千円単!V22/1000,0)) -> 232 | W22: =IF(千円単!W22="","",ROUND(千円単!W22/1000,0)) -> 1216 | X22: =IF(千円単!X22="","",ROUND(千円単!X22/1000,0)) -> -724 | Y22: =IF(千円単!Y22="","",ROUND(千円単!Y22/1000,0)) -> 105
A23: 2021 | B23: 46 | C23: 17 | D23: 1 | E23: 22 | F23: 公共 | G23: 012319 | H23: 北海道 | I23: 恵庭市 | J23: =IF(千円単!J23="","",ROUND(千円単!J23/1000,0)) -> 2646 | K23: =IF(千円単!K23="","",ROUND(千円単!K23/1000,0)) -> 982 | L23: =IF(千円単!L23="","",ROUND(千円単!L23/1000,0)) -> 607 | M23: =IF(千円単!M23="","",ROUND(千円単!M23/1000,0)) -> 2426 | N23: =IF(千円単!N23="","",ROUND(千円単!N23/1000,0)) -> 144 | O23: =IF(千円単!O23="","",ROUND(千円単!O23/1000,0)) -> 1536 | P23: =IF(千円単!P23="","",ROUND(千円単!P23/1000,0)) -> 57 | Q23: =IF(千円単!Q23="","",ROUND(千円単!Q23/1000,0)) -> 220 | R23: =IF(千円単!R23="","",ROUND(千円単!R23/1000,0)) -> 848 | S23: =IF(千円単!S23="","",ROUND(千円単!S23/1000,0)) -> 563 | T23: =IF(千円単!T23="","",ROUND(千円単!T23/1000,0)) -> 108 | U23: =IF(千円単!U23="","",ROUND(千円単!U23/1000,0)) -> 1721 | V23: =IF(千円単!V23="","",ROUND(千円単!V23/1000,0)) -> 782 | W23: =IF(千円単!W23="","",ROUND(千円単!W23/1000,0)) -> 940 | X23: =IF(千円単!X23="","",ROUND(千円単!X23/1000,0)) -> -873 | Y23: =IF(千円単!Y23="","",ROUND(千円単!Y23/1000,0)) -> 220
A24: 2021 | B24: 46 | C24: 17 | D24: 1 | E24: 23 | F24: 公共 | G24: 012335 | H24: 北海道 | I24: 伊達市 | J24: =IF(千円単!J24="","",ROUND(千円単!J24/1000,0)) -> 953 | K24: =IF(千円単!K24="","",ROUND(千円単!K24/1000,0)) -> 589 | L24: =IF(千円単!L24="","",ROUND(千円単!L24/1000,0)) -> 67 | M24: =IF(千円単!M24="","",ROUND(千円単!M24/1000,0)) -> 953 | N24: =IF(千円単!N24="","",ROUND(千円単!N24/1000,0)) -> 69 | O24: =IF(千円単!O24="","",ROUND(千円単!O24/1000,0)) -> 561 | P24: =IF(千円単!P24="","",ROUND(千円単!P24/1000,0)) -> 44 | Q24: =IF(千円単!Q24="","",ROUND(千円単!Q24/1000,0)) -> 0 | R24: =IF(千円単!R24="","",ROUND(千円単!R24/1000,0)) -> 439 | S24: =IF(千円単!S24="","",ROUND(千円単!S24/1000,0)) -> 149 | T24: =IF(千円単!T24="","",ROUND(千円単!T24/1000,0)) -> 0 | U24: =IF(千円単!U24="","",ROUND(千円単!U24/1000,0)) -> 751 | V24: =IF(千円単!V24="","",ROUND(千円単!V24/1000,0)) -> 161 | W24: =IF(千円単!W24="","",ROUND(千円単!W24/1000,0)) -> 589 | X24: =IF(千円単!X24="","",ROUND(千円単!X24/1000,0)) -> -312 | Y24: =IF(千円単!Y24="","",ROUND(千円単!Y24/1000,0)) -> 0
A25: 2021 | B25: 46 | C25: 17 | D25: 1 | E25: 24 | F25: 公共 | G25: 012343 | H25: 北海道 | I25: 北広島市 | J25: =IF(千円単!J25="","",ROUND(千円単!J25/1000,0)) -> 2120 | K25: =IF(千円単!K25="","",ROUND(千円単!K25/1000,0)) -> 776 | L25: =IF(千円単!L25="","",ROUND(千円単!L25/1000,0)) -> 375 | M25: =IF(千円単!M25="","",ROUND(千円単!M25/1000,0)) -> 2026 | N25: =IF(千円単!N25="","",ROUND(千円単!N25/1000,0)) -> 90 | O25: =IF(千円単!O25="","",ROUND(千円単!O25/1000,0)) -> 1300 | P25: =IF(千円単!P25="","",ROUND(千円単!P25/1000,0)) -> 64 | Q25: =IF(千円単!Q25="","",ROUND(千円単!Q25/1000,0)) -> 94 | R25: =IF(千円単!R25="","",ROUND(千円単!R25/1000,0)) -> 966 | S25: =IF(千円単!S25="","",ROUND(千円単!S25/1000,0)) -> 533 | T25: =IF(千円単!T25="","",ROUND(千円単!T25/1000,0)) -> 0 | U25: =IF(千円単!U25="","",ROUND(千円単!U25/1000,0)) -> 1587 | V25: =IF(千円単!V25="","",ROUND(千円単!V25/1000,0)) -> 947 | W25: =IF(千円単!W25="","",ROUND(千円単!W25/1000,0)) -> 632 | X25: =IF(千円単!X25="","",ROUND(千円単!X25/1000,0)) -> -621 | Y25: =IF(千円単!Y25="","",ROUND(千円単!Y25/1000,0)) -> 94
A26: 2021 | B26: 46 | C26: 17 | D26: 1 | E26: 25 | F26: 公共 | G26: 012351 | H26: 北海道 | I26: 石狩市 | J26: =IF(千円単!J26="","",ROUND(千円単!J26/1000,0)) -> 1302 | K26: =IF(千円単!K26="","",ROUND(千円単!K26/1000,0)) -> 606 | L26: =IF(千円単!L26="","",ROUND(千円単!L26/1000,0)) -> 385 | M26: =IF(千円単!M26="","",ROUND(千円単!M26/1000,0)) -> 1227 | N26: =IF(千円単!N26="","",ROUND(千円単!N26/1000,0)) -> 114 | O26: =IF(千円単!O26="","",ROUND(千円単!O26/1000,0)) -> 797 | P26: =IF(千円単!P26="","",ROUND(千円単!P26/1000,0)) -> 63 | Q26: =IF(千円単!Q26="","",ROUND(千円単!Q26/1000,0)) -> 75 | R26: =IF(千円単!R26="","",ROUND(千円単!R26/1000,0)) -> 537 | S26: =IF(千円単!S26="","",ROUND(千円単!S26/1000,0)) -> 358 | T26: =IF(千円単!T26="","",ROUND(千円単!T26/1000,0)) -> 66 | U26: =IF(千円単!U26="","",ROUND(千円単!U26/1000,0)) -> 1051 | V26: =IF(千円単!V26="","",ROUND(千円単!V26/1000,0)) -> 313 | W26: =IF(千円単!W26="","",ROUND(千円単!W26/1000,0)) -> 738 | X26: =IF(千円単!X26="","",ROUND(千円単!X26/1000,0)) -> -513 | Y26: =IF(千円単!Y26="","",ROUND(千円単!Y26/1000,0)) -> 75
A27: 2021 | B27: 46 | C27: 17 | D27: 1 | E27: 26 | F27: 公共 | G27: 012360 | H27: 北海道 | I27: 北斗市 | J27: =IF(千円単!J27="","",ROUND(千円単!J27/1000,0)) -> 971 | K27: =IF(千円単!K27="","",ROUND(千円単!K27/1000,0)) -> 584 | L27: =IF(千円単!L27="","",ROUND(千円単!L27/1000,0)) -> 93 | M27: =IF(千円単!M27="","",ROUND(千円単!M27/1000,0)) -> 896 | N27: =IF(千円単!N27="","",ROUND(千円単!N27/1000,0)) -> 85 | O27: =IF(千円単!O27="","",ROUND(千円単!O27/1000,0)) -> 562 | P27: =IF(千円単!P27="","",ROUND(千円単!P27/1000,0)) -> 32 | Q27: =IF(千円単!Q27="","",ROUND(千円単!Q27/1000,0)) -> 75 | R27: =IF(千円単!R27="","",ROUND(千円単!R27/1000,0)) -> 345 | S27: =IF(千円単!S27="","",ROUND(千円単!S27/1000,0)) -> 88 | T27: =IF(千円単!T27="","",ROUND(千円単!T27/1000,0)) -> 0 | U27: =IF(千円単!U27="","",ROUND(千円単!U27/1000,0)) -> 682 | V27: =IF(千円単!V27="","",ROUND(千円単!V27/1000,0)) -> 215 | W27: =IF(千円単!W27="","",ROUND(千円単!W27/1000,0)) -> 468 | X27: =IF(千円単!X27="","",ROUND(千円単!X27/1000,0)) -> -337 | Y27: =IF(千円単!Y27="","",ROUND(千円単!Y27/1000,0)) -> 75
A28: 2021 | B28: 46 | C28: 17 | D28: 1 | E28: 27 | F28: 公共 | G28: 013374 | H28: 北海道 | I28: 七飯町 | J28: =IF(千円単!J28="","",ROUND(千円単!J28/1000,0)) -> 455 | K28: =IF(千円単!K28="","",ROUND(千円単!K28/1000,0)) -> 337 | L28: =IF(千円単!L28="","",ROUND(千円単!L28/1000,0)) -> 6 | M28: =IF(千円単!M28="","",ROUND(千円単!M28/1000,0)) -> 454 | N28: =IF(千円単!N28="","",ROUND(千円単!N28/1000,0)) -> 44 | O28: =IF(千円単!O28="","",ROUND(千円単!O28/1000,0)) -> 265 | P28: =IF(千円単!P28="","",ROUND(千円単!P28/1000,0)) -> 27 | Q28: =IF(千円単!Q28="","",ROUND(千円単!Q28/1000,0)) -> 0 | R28: =IF(千円単!R28="","",ROUND(千円単!R28/1000,0)) -> 220 | S28: =IF(千円単!S28="","",ROUND(千円単!S28/1000,0)) -> 31 | T28: =IF(千円単!T28="","",ROUND(千円単!T28/1000,0)) -> 0 | U28: =IF(千円単!U28="","",ROUND(千円単!U28/1000,0)) -> 381 | V28: =IF(千円単!V28="","",ROUND(千円単!V28/1000,0)) -> 45 | W28: =IF(千円単!W28="","",ROUND(千円単!W28/1000,0)) -> 335 | X28: =IF(千円単!X28="","",ROUND(千円単!X28/1000,0)) -> -160 | Y28: =IF(千円単!Y28="","",ROUND(千円単!Y28/1000,0)) -> 0
A29: 2021 | B29: 46 | C29: 17 | D29: 1 | E29: 28 | F29: 公共 | G29: 013455 | H29: 北海道 | I29: 森町 | J29: =IF(千円単!J29="","",ROUND(千円単!J29/1000,0)) -> 440 | K29: =IF(千円単!K29="","",ROUND(千円単!K29/1000,0)) -> 88 | L29: =IF(千円単!L29="","",ROUND(千円単!L29/1000,0)) -> 215 | M29: =IF(千円単!M29="","",ROUND(千円単!M29/1000,0)) -> 484 | N29: =IF(千円単!N29="","",ROUND(千円単!N29/1000,0)) -> 56 | O29: =IF(千円単!O29="","",ROUND(千円単!O29/1000,0)) -> 262 | P29: =IF(千円単!P29="","",ROUND(千円単!P29/1000,0)) -> 15 | Q29: =IF(千円単!Q29="","",ROUND(千円単!Q29/1000,0)) -> -44 | R29: =IF(千円単!R29="","",ROUND(千円単!R29/1000,0)) -> 129 | S29: =IF(千円単!S29="","",ROUND(千円単!S29/1000,0)) -> 0 | T29: =IF(千円単!T29="","",ROUND(千円単!T29/1000,0)) -> 0 | U29: =IF(千円単!U29="","",ROUND(千円単!U29/1000,0)) -> 257 | V29: =IF(千円単!V29="","",ROUND(千円単!V29/1000,0)) -> 23 | W29: =IF(千円単!W29="","",ROUND(千円単!W29/1000,0)) -> 234 | X29: =IF(千円単!X29="","",ROUND(千円単!X29/1000,0)) -> -128 | Y29: =IF(千円単!Y29="","",ROUND(千円単!Y29/1000,0)) -> -44
A30: 2021 | B30: 46 | C30: 17 | D30: 1 | E30: 29 | F30: 公共 | G30: 014028 | H30: 北海道 | I30: 岩内町 | J30: =IF(千円単!J30="","",ROUND(千円単!J30/1000,0)) -> 659 | K30: =IF(千円単!K30="","",ROUND(千円単!K30/1000,0)) -> 70 | L30: =IF(千円単!L30="","",ROUND(千円単!L30/1000,0)) -> 227 | M30: =IF(千円単!M30="","",ROUND(千円単!M30/1000,0)) -> 659 | N30: =IF(千円単!N30="","",ROUND(千円単!N30/1000,0)) -> 49 | O30: =IF(千円単!O30="","",ROUND(千円単!O30/1000,0)) -> 357 | P30: =IF(千円単!P30="","",ROUND(千円単!P30/1000,0)) -> 10 | Q30: =IF(千円単!Q30="","",ROUND(千円単!Q30/1000,0)) -> 0 | R30: =IF(千円単!R30="","",ROUND(千円単!R30/1000,0)) -> 491 | S30: =IF(千円単!S30="","",ROUND(千円単!S30/1000,0)) -> 197 | T30: =IF(千円単!T30="","",ROUND(千円単!T30/1000,0)) -> 0 | U30: =IF(千円単!U30="","",ROUND(千円単!U30/1000,0)) -> 669 | V30: =IF(千円単!V30="","",ROUND(千円単!V30/1000,0)) -> 278 | W30: =IF(千円単!W30="","",ROUND(千円単!W30/1000,0)) -> 391 | X30: =IF(千円単!X30="","",ROUND(千円単!X30/1000,0)) -> -178 | Y30: =IF(千円単!Y30="","",ROUND(千円単!Y30/1000,0)) -> 0
A31: 2021 | B31: 46 | C31: 17 | D31: 1 | E31: 30 | F31: 公共 | G31: 014290 | H31: 北海道 | I31: 栗山町 | J31: =IF(千円単!J31="","",ROUND(千円単!J31/1000,0)) -> 534 | K31: =IF(千円単!K31="","",ROUND(千円単!K31/1000,0)) -> 175 | L31: =IF(千円単!L31="","",ROUND(千円単!L31/1000,0)) -> 218 | M31: =IF(千円単!M31="","",ROUND(千円単!M31/1000,0)) -> 410 | N31: =IF(千円単!N31="","",ROUND(千円単!N31/1000,0)) -> 19 | O31: =IF(千円単!O31="","",ROUND(千円単!O31/1000,0)) -> 269 | P31: =IF(千円単!P31="","",ROUND(千円単!P31/1000,0)) -> 9 | Q31: =IF(千円単!Q31="","",ROUND(千円単!Q31/1000,0)) -> 124 | R31: =IF(千円単!R31="","",ROUND(千円単!R31/1000,0)) -> 227 | S31: =IF(千円単!S31="","",ROUND(千円単!S31/1000,0)) -> 92 | T31: =IF(千円単!T31="","",ROUND(千円単!T31/1000,0)) -> 38 | U31: =IF(千円単!U31="","",ROUND(千円単!U31/1000,0)) -> 495 | V31: =IF(千円単!V31="","",ROUND(千円単!V31/1000,0)) -> 180 | W31: =IF(千円単!W31="","",ROUND(千円単!W31/1000,0)) -> 315 | X31: =IF(千円単!X31="","",ROUND(千円単!X31/1000,0)) -> -269 | Y31: =IF(千円単!Y31="","",ROUND(千円単!Y31/1000,0)) -> 124
A32: 2021 | B32: 46 | C32: 17 | D32: 1 | E32: 31 | F32: 公共 | G32: 014532 | H32: 北海道 | I32: 東神楽町 | J32: =IF(千円単!J32="","",ROUND(千円単!J32/1000,0)) -> 305 | K32: =IF(千円単!K32="","",ROUND(千円単!K32/1000,0)) -> 104 | L32: =IF(千円単!L32="","",ROUND(千円単!L32/1000,0)) -> 85 | M32: =IF(千円単!M32="","",ROUND(千円単!M32/1000,0)) -> 239 | N32: =IF(千円単!N32="","",ROUND(千円単!N32/1000,0)) -> 11 | O32: =IF(千円単!O32="","",ROUND(千円単!O32/1000,0)) -> 129 | P32: =IF(千円単!P32="","",ROUND(千円単!P32/1000,0)) -> 16 | Q32: =IF(千円単!Q32="","",ROUND(千円単!Q32/1000,0)) -> 66 | R32: =IF(千円単!R32="","",ROUND(千円単!R32/1000,0)) -> 154 | S32: =IF(千円単!S32="","",ROUND(千円単!S32/1000,0)) -> 72 | T32: =IF(千円単!T32="","",ROUND(千円単!T32/1000,0)) -> 54 | U32: =IF(千円単!U32="","",ROUND(千円単!U32/1000,0)) -> 223 | V32: =IF(千円単!V32="","",ROUND(千円単!V32/1000,0)) -> 99 | W32: =IF(千円単!W32="","",ROUND(千円単!W32/1000,0)) -> 125 | X32: =IF(千円単!X32="","",ROUND(千円単!X32/1000,0)) -> -69 | Y32: =IF(千円単!Y32="","",ROUND(千円単!Y32/1000,0)) -> 66
A33: 2021 | B33: 46 | C33: 17 | D33: 1 | E33: 32 | F33: 公共 | G33: 014818 | H33: 北海道 | I33: 増毛町 | J33: =IF(千円単!J33="","",ROUND(千円単!J33/1000,0)) -> 131 | K33: =IF(千円単!K33="","",ROUND(千円単!K33/1000,0)) -> 30 | L33: =IF(千円単!L33="","",ROUND(千円単!L33/1000,0)) -> 47 | M33: =IF(千円単!M33="","",ROUND(千円単!M33/1000,0)) -> 130 | N33: =IF(千円単!N33="","",ROUND(千円単!N33/1000,0)) -> 10 | O33: =IF(千円単!O33="","",ROUND(千円単!O33/1000,0)) -> 85 | P33: =IF(千円単!P33="","",ROUND(千円単!P33/1000,0)) -> 9 | Q33: =IF(千円単!Q33="","",ROUND(千円単!Q33/1000,0)) -> 1 | R33: =IF(千円単!R33="","",ROUND(千円単!R33/1000,0)) -> 208 | S33: =IF(千円単!S33="","",ROUND(千円単!S33/1000,0)) -> 106 | T33: =IF(千円単!T33="","",ROUND(千円単!T33/1000,0)) -> 13 | U33: =IF(千円単!U33="","",ROUND(千円単!U33/1000,0)) -> 252 | V33: =IF(千円単!V33="","",ROUND(千円単!V33/1000,0)) -> 134 | W33: =IF(千円単!W33="","",ROUND(千円単!W33/1000,0)) -> 118 | X33: =IF(千円単!X33="","",ROUND(千円単!X33/1000,0)) -> -44 | Y33: =IF(千円単!Y33="","",ROUND(千円単!Y33/1000,0)) -> 1
A34: 2021 | B34: 46 | C34: 17 | D34: 1 | E34: 33 | F34: 公共 | G34: 015148 | H34: 北海道 | I34: 枝幸町 | J34: =IF(千円単!J34="","",ROUND(千円単!J34/1000,0)) -> 260 | K34: =IF(千円単!K34="","",ROUND(千円単!K34/1000,0)) -> 64 | L34: =IF(千円単!L34="","",ROUND(千円単!L34/1000,0)) -> 121 | M34: =IF(千円単!M34="","",ROUND(千円単!M34/1000,0)) -> 257 | N34: =IF(千円単!N34="","",ROUND(千円単!N34/1000,0)) -> 10 | O34: =IF(千円単!O34="","",ROUND(千円単!O34/1000,0)) -> 163 | P34: =IF(千円単!P34="","",ROUND(千円単!P34/1000,0)) -> 8 | Q34: =IF(千円単!Q34="","",ROUND(千円単!Q34/1000,0)) -> 2 | R34: =IF(千円単!R34="","",ROUND(千円単!R34/1000,0)) -> 35 | S34: =IF(千円単!S34="","",ROUND(千円単!S34/1000,0)) -> 5 | T34: =IF(千円単!T34="","",ROUND(千円単!T34/1000,0)) -> 17 | U34: =IF(千円単!U34="","",ROUND(千円単!U34/1000,0)) -> 125 | V34: =IF(千円単!V34="","",ROUND(千円単!V34/1000,0)) -> 16 | W34: =IF(千円単!W34="","",ROUND(千円単!W34/1000,0)) -> 110 | X34: =IF(千円単!X34="","",ROUND(千円単!X34/1000,0)) -> -91 | Y34: =IF(千円単!Y34="","",ROUND(千円単!Y34/1000,0)) -> 2
A35: 2021 | B35: 46 | C35: 17 | D35: 1 | E35: 34 | F35: 公共 | G35: 015555 | H35: 北海道 | I35: 遠軽町 | J35: =IF(千円単!J35="","",ROUND(千円単!J35/1000,0)) -> 759 | K35: =IF(千円単!K35="","",ROUND(千円単!K35/1000,0)) -> 228 | L35: =IF(千円単!L35="","",ROUND(千円単!L35/1000,0)) -> 315 | M35: =IF(千円単!M35="","",ROUND(千円単!M35/1000,0)) -> 702 | N35: =IF(千円単!N35="","",ROUND(千円単!N35/1000,0)) -> 48 | O35: =IF(千円単!O35="","",ROUND(千円単!O35/1000,0)) -> 421 | P35: =IF(千円単!P35="","",ROUND(千円単!P35/1000,0)) -> 33 | Q35: =IF(千円単!Q35="","",ROUND(千円単!Q35/1000,0)) -> 56 | R35: =IF(千円単!R35="","",ROUND(千円単!R35/1000,0)) -> 342 | S35: =IF(千円単!S35="","",ROUND(千円単!S35/1000,0)) -> 148 | T35: =IF(千円単!T35="","",ROUND(千円単!T35/1000,0)) -> 42 | U35: =IF(千円単!U35="","",ROUND(千円単!U35/1000,0)) -> 676 | V35: =IF(千円単!V35="","",ROUND(千円単!V35/1000,0)) -> 306 | W35: =IF(千円単!W35="","",ROUND(千円単!W35/1000,0)) -> 370 | X35: =IF(千円単!X35="","",ROUND(千円単!X35/1000,0)) -> -334 | Y35: =IF(千円単!Y35="","",ROUND(千円単!Y35/1000,0)) -> 56
A36: 2021 | B36: 46 | C36: 17 | D36: 1 | E36: 35 | F36: 公共 | G36: 015784 | H36: 北海道 | I36: 白老町 | J36: =IF(千円単!J36="","",ROUND(千円単!J36/1000,0)) -> 1018 | K36: =IF(千円単!K36="","",ROUND(千円単!K36/1000,0)) -> 348 | L36: =IF(千円単!L36="","",ROUND(千円単!L36/1000,0)) -> 329 | M36: =IF(千円単!M36="","",ROUND(千円単!M36/1000,0)) -> 933 | N36: =IF(千円単!N36="","",ROUND(千円単!N36/1000,0)) -> 76 | O36: =IF(千円単!O36="","",ROUND(千円単!O36/1000,0)) -> 572 | P36: =IF(千円単!P36="","",ROUND(千円単!P36/1000,0)) -> 19 | Q36: =IF(千円単!Q36="","",ROUND(千円単!Q36/1000,0)) -> 85 | R36: =IF(千円単!R36="","",ROUND(千円単!R36/1000,0)) -> 901 | S36: =IF(千円単!S36="","",ROUND(千円単!S36/1000,0)) -> 262 | T36: =IF(千円単!T36="","",ROUND(千円単!T36/1000,0)) -> 323 | U36: =IF(千円単!U36="","",ROUND(千円単!U36/1000,0)) -> 1175 | V36: =IF(千円単!V36="","",ROUND(千円単!V36/1000,0)) -> 626 | W36: =IF(千円単!W36="","",ROUND(千円単!W36/1000,0)) -> 549 | X36: =IF(千円単!X36="","",ROUND(千円単!X36/1000,0)) -> -274 | Y36: =IF(千円単!Y36="","",ROUND(千円単!Y36/1000,0)) -> 85
A37: 2021 | B37: 46 | C37: 17 | D37: 1 | E37: 36 | F37: 公共 | G37: 015865 | H37: 北海道 | I37: むかわ町 | J37: =IF(千円単!J37="","",ROUND(千円単!J37/1000,0)) -> 200 | K37: =IF(千円単!K37="","",ROUND(千円単!K37/1000,0)) -> 55 | L37: =IF(千円単!L37="","",ROUND(千円単!L37/1000,0)) -> 68 | M37: =IF(千円単!M37="","",ROUND(千円単!M37/1000,0)) -> 198 | N37: =IF(千円単!N37="","",ROUND(千円単!N37/1000,0)) -> 17 | O37: =IF(千円単!O37="","",ROUND(千円単!O37/1000,0)) -> 124 | P37: =IF(千円単!P37="","",ROUND(千円単!P37/1000,0)) -> 9 | Q37: =IF(千円単!Q37="","",ROUND(千円単!Q37/1000,0)) -> 2 | R37: =IF(千円単!R37="","",ROUND(千円単!R37/1000,0)) -> 114 | S37: =IF(千円単!S37="","",ROUND(千円単!S37/1000,0)) -> 68 | T37: =IF(千円単!T37="","",ROUND(千円単!T37/1000,0)) -> 0 | U37: =IF(千円単!U37="","",ROUND(千円単!U37/1000,0)) -> 149 | V37: =IF(千円単!V37="","",ROUND(千円単!V37/1000,0)) -> 4 | W37: =IF(千円単!W37="","",ROUND(千円単!W37/1000,0)) -> 134 | X37: =IF(千円単!X37="","",ROUND(千円単!X37/1000,0)) -> -35 | Y37: =IF(千円単!Y37="","",ROUND(千円単!Y37/1000,0)) -> 2
A38: 2021 | B38: 46 | C38: 17 | D38: 1 | E38: 37 | F38: 公共 | G38: 016314 | H38: 北海道 | I38: 音更町 | J38: =IF(千円単!J38="","",ROUND(千円単!J38/1000,0)) -> 1082 | K38: =IF(千円単!K38="","",ROUND(千円単!K38/1000,0)) -> 580 | L38: =IF(千円単!L38="","",ROUND(千円単!L38/1000,0)) -> 238 | M38: =IF(千円単!M38="","",ROUND(千円単!M38/1000,0)) -> 900 | N38: =IF(千円単!N38="","",ROUND(千円単!N38/1000,0)) -> 86 | O38: =IF(千円単!O38="","",ROUND(千円単!O38/1000,0)) -> 564 | P38: =IF(千円単!P38="","",ROUND(千円単!P38/1000,0)) -> 5 | Q38: =IF(千円単!Q38="","",ROUND(千円単!Q38/1000,0)) -> 183 | R38: =IF(千円単!R38="","",ROUND(千円単!R38/1000,0)) -> 482 | S38: =IF(千円単!S38="","",ROUND(千円単!S38/1000,0)) -> 248 | T38: =IF(千円単!T38="","",ROUND(千円単!T38/1000,0)) -> 77 | U38: =IF(千円単!U38="","",ROUND(千円単!U38/1000,0)) -> 1008 | V38: =IF(千円単!V38="","",ROUND(千円単!V38/1000,0)) -> 360 | W38: =IF(千円単!W38="","",ROUND(千円単!W38/1000,0)) -> 648 | X38: =IF(千円単!X38="","",ROUND(千円単!X38/1000,0)) -> -527 | Y38: =IF(千円単!Y38="","",ROUND(千円単!Y38/1000,0)) -> 183
A39: 2021 | B39: 46 | C39: 17 | D39: 1 | E39: 38 | F39: 公共 | G39: 016365 | H39: 北海道 | I39: 清水町 | J39: =IF(千円単!J39="","",ROUND(千円単!J39/1000,0)) -> 224 | K39: =IF(千円単!K39="","",ROUND(千円単!K39/1000,0)) -> 88 | L39: =IF(千円単!L39="","",ROUND(千円単!L39/1000,0)) -> 82 | M39: =IF(千円単!M39="","",ROUND(千円単!M39/1000,0)) -> 205 | N39: =IF(千円単!N39="","",ROUND(千円単!N39/1000,0)) -> 3 | O39: =IF(千円単!O39="","",ROUND(千円単!O39/1000,0)) -> 116 | P39: =IF(千円単!P39="","",ROUND(千円単!P39/1000,0)) -> 15 | Q39: =IF(千円単!Q39="","",ROUND(千円単!Q39/1000,0)) -> 19 | R39: =IF(千円単!R39="","",ROUND(千円単!R39/1000,0)) -> 185 | S39: =IF(千円単!S39="","",ROUND(千円単!S39/1000,0)) -> 78 | T39: =IF(千円単!T39="","",ROUND(千円単!T39/1000,0)) -> 3 | U39: =IF(千円単!U39="","",ROUND(千円単!U39/1000,0)) -> 215 | V39: =IF(千円単!V39="","",ROUND(千円単!V39/1000,0)) -> 181 | W39: =IF(千円単!W39="","",ROUND(千円単!W39/1000,0)) -> 34 | X39: =IF(千円単!X39="","",ROUND(千円単!X39/1000,0)) -> -30 | Y39: =IF(千円単!Y39="","",ROUND(千円単!Y39/1000,0)) -> 19
A40: 2021 | B40: 46 | C40: 17 | D40: 1 | E40: 39 | F40: 公共 | G40: 016373 | H40: 北海道 | I40: 芽室町 | J40: =IF(千円単!J40="","",ROUND(千円単!J40/1000,0)) -> 604 | K40: =IF(千円単!K40="","",ROUND(千円単!K40/1000,0)) -> 400 | L40: =IF(千円単!L40="","",ROUND(千円単!L40/1000,0)) -> 62 | M40: =IF(千円単!M40="","",ROUND(千円単!M40/1000,0)) -> 602 | N40: =IF(千円単!N40="","",ROUND(千円単!N40/1000,0)) -> 22 | O40: =IF(千円単!O40="","",ROUND(千円単!O40/1000,0)) -> 366 | P40: =IF(千円単!P40="","",ROUND(千円単!P40/1000,0)) -> 20 | Q40: =IF(千円単!Q40="","",ROUND(千円単!Q40/1000,0)) -> 2 | R40: =IF(千円単!R40="","",ROUND(千円単!R40/1000,0)) -> 130 | S40: =IF(千円単!S40="","",ROUND(千円単!S40/1000,0)) -> 42 | T40: =IF(千円単!T40="","",ROUND(千円単!T40/1000,0)) -> 0 | U40: =IF(千円単!U40="","",ROUND(千円単!U40/1000,0)) -> 235 | V40: =IF(千円単!V40="","",ROUND(千円単!V40/1000,0)) -> 73 | W40: =IF(千円単!W40="","",ROUND(千円単!W40/1000,0)) -> 163 | X40: =IF(千円単!X40="","",ROUND(千円単!X40/1000,0)) -> -106 | Y40: =IF(千円単!Y40="","",ROUND(千円単!Y40/1000,0)) -> 2
A41: 2021 | B41: 46 | C41: 17 | D41: 1 | E41: 40 | F41: 公共 | G41: 016411 | H41: 北海道 | I41: 大樹町 | J41: =IF(千円単!J41="","",ROUND(千円単!J41/1000,0)) -> 277 | K41: =IF(千円単!K41="","",ROUND(千円単!K41/1000,0)) -> 58 | L41: =IF(千円単!L41="","",ROUND(千円単!L41/1000,0)) -> 150 | M41: =IF(千円単!M41="","",ROUND(千円単!M41/1000,0)) -> 246 | N41: =IF(千円単!N41="","",ROUND(千円単!N41/1000,0)) -> 15 | O41: =IF(千円単!O41="","",ROUND(千円単!O41/1000,0)) -> 151 | P41: =IF(千円単!P41="","",ROUND(千円単!P41/1000,0)) -> 8 | Q41: =IF(千円単!Q41="","",ROUND(千円単!Q41/1000,0)) -> 31 | R41: =IF(千円単!R41="","",ROUND(千円単!R41/1000,0)) -> 13 | S41: =IF(千円単!S41="","",ROUND(千円単!S41/1000,0)) -> 5 | T41: =IF(千円単!T41="","",ROUND(千円単!T41/1000,0)) -> 0 | U41: =IF(千円単!U41="","",ROUND(千円単!U41/1000,0)) -> 123 | V41: =IF(千円単!V41="","",ROUND(千円単!V41/1000,0)) -> 31 | W41: =IF(千円単!W41="","",ROUND(千円単!W41/1000,0)) -> 92 | X41: =IF(千円単!X41="","",ROUND(千円単!X41/1000,0)) -> -111 | Y41: =IF(千円単!Y41="","",ROUND(千円単!Y41/1000,0)) -> 31
A42: 2021 | B42: 46 | C42: 17 | D42: 1 | E42: 41 | F42: 公共 | G42: 016446 | H42: 北海道 | I42: 池田町 | J42: =IF(千円単!J42="","",ROUND(千円単!J42/1000,0)) -> 364 | K42: =IF(千円単!K42="","",ROUND(千円単!K42/1000,0)) -> 96 | L42: =IF(千円単!L42="","",ROUND(千円単!L42/1000,0)) -> 121 | M42: =IF(千円単!M42="","",ROUND(千円単!M42/1000,0)) -> 341 | N42: =IF(千円単!N42="","",ROUND(千円単!N42/1000,0)) -> 12 | O42: =IF(千円単!O42="","",ROUND(千円単!O42/1000,0)) -> 195 | P42: =IF(千円単!P42="","",ROUND(千円単!P42/1000,0)) -> 28 | Q42: =IF(千円単!Q42="","",ROUND(千円単!Q42/1000,0)) -> 23 | R42: =IF(千円単!R42="","",ROUND(千円単!R42/1000,0)) -> 332 | S42: =IF(千円単!S42="","",ROUND(千円単!S42/1000,0)) -> 140 | T42: =IF(千円単!T42="","",ROUND(千円単!T42/1000,0)) -> 3 | U42: =IF(千円単!U42="","",ROUND(千円単!U42/1000,0)) -> 424 | V42: =IF(千円単!V42="","",ROUND(千円単!V42/1000,0)) -> 267 | W42: =IF(千円単!W42="","",ROUND(千円単!W42/1000,0)) -> 157 | X42: =IF(千円単!X42="","",ROUND(千円単!X42/1000,0)) -> -92 | Y42: =IF(千円単!Y42="","",ROUND(千円単!Y42/1000,0)) -> 23
A43: 2021 | B43: 46 | C43: 17 | D43: 1 | E43: 42 | F43: 公共 | G43: 022012 | H43: 青森県 | I43: 青森市 | J43: =IF(千円単!J43="","",ROUND(千円単!J43/1000,0)) -> 7966 | K43: =IF(千円単!K43="","",ROUND(千円単!K43/1000,0)) -> 3631 | L43: =IF(千円単!L43="","",ROUND(千円単!L43/1000,0)) -> 1159 | M43: =IF(千円単!M43="","",ROUND(千円単!M43/1000,0)) -> 7601 | N43: =IF(千円単!N43="","",ROUND(千円単!N43/1000,0)) -> 814 | O43: =IF(千円単!O43="","",ROUND(千円単!O43/1000,0)) -> 4951 | P43: =IF(千円単!P43="","",ROUND(千円単!P43/1000,0)) -> 530 | Q43: =IF(千円単!Q43="","",ROUND(千円単!Q43/1000,0)) -> 365 | R43: =IF(千円単!R43="","",ROUND(千円単!R43/1000,0)) -> 5523 | S43: =IF(千円単!S43="","",ROUND(千円単!S43/1000,0)) -> 3964 | T43: =IF(千円単!T43="","",ROUND(千円単!T43/1000,0)) -> 935 | U43: =IF(千円単!U43="","",ROUND(千円単!U43/1000,0)) -> 8614 | V43: =IF(千円単!V43="","",ROUND(千円単!V43/1000,0)) -> 1519 | W43: =IF(千円単!W43="","",ROUND(千円単!W43/1000,0)) -> 7096 | X43: =IF(千円単!X43="","",ROUND(千円単!X43/1000,0)) -> -3091 | Y43: =IF(千円単!Y43="","",ROUND(千円単!Y43/1000,0)) -> 365
A44: 2021 | B44: 46 | C44: 17 | D44: 1 | E44: 43 | F44: 公共 | G44: 022021 | H44: 青森県 | I44: 弘前市 | J44: =IF(千円単!J44="","",ROUND(千円単!J44/1000,0)) -> 4602 | K44: =IF(千円単!K44="","",ROUND(千円単!K44/1000,0)) -> 2703 | L44: =IF(千円単!L44="","",ROUND(千円単!L44/1000,0)) -> 1150 | M44: =IF(千円単!M44="","",ROUND(千円単!M44/1000,0)) -> 4061 | N44: =IF(千円単!N44="","",ROUND(千円単!N44/1000,0)) -> 359 | O44: =IF(千円単!O44="","",ROUND(千円単!O44/1000,0)) -> 2038 | P44: =IF(千円単!P44="","",ROUND(千円単!P44/1000,0)) -> 205 | Q44: =IF(千円単!Q44="","",ROUND(千円単!Q44/1000,0)) -> 541 | R44: =IF(千円単!R44="","",ROUND(千円単!R44/1000,0)) -> 1619 | S44: =IF(千円単!S44="","",ROUND(千円単!S44/1000,0)) -> 1123 | T44: =IF(千円単!T44="","",ROUND(千円単!T44/1000,0)) -> 0 | U44: =IF(千円単!U44="","",ROUND(千円単!U44/1000,0)) -> 3617 | V44: =IF(千円単!V44="","",ROUND(千円単!V44/1000,0)) -> 714 | W44: =IF(千円単!W44="","",ROUND(千円単!W44/1000,0)) -> 2902 | X44: =IF(千円単!X44="","",ROUND(千円単!X44/1000,0)) -> -1998 | Y44: =IF(千円単!Y44="","",ROUND(千円単!Y44/1000,0)) -> 541
A45: 2021 | B45: 46 | C45: 17 | D45: 1 | E45: 44 | F45: 公共 | G45: 022039 | H45: 青森県 | I45: 八戸市 | J45: =IF(千円単!J45="","",ROUND(千円単!J45/1000,0)) -> 6653 | K45: =IF(千円単!K45="","",ROUND(千円単!K45/1000,0)) -> 2429 | L45: =IF(千円単!L45="","",ROUND(千円単!L45/1000,0)) -> 1887 | M45: =IF(千円単!M45="","",ROUND(千円単!M45/1000,0)) -> 6397 | N45: =IF(千円単!N45="","",ROUND(千円単!N45/1000,0)) -> 328 | O45: =IF(千円単!O45="","",ROUND(千円単!O45/1000,0)) -> 4302 | P45: =IF(千円単!P45="","",ROUND(千円単!P45/1000,0)) -> 215 | Q45: =IF(千円単!Q45="","",ROUND(千円単!Q45/1000,0)) -> 256 | R45: =IF(千円単!R45="","",ROUND(千円単!R45/1000,0)) -> 7802 | S45: =IF(千円単!S45="","",ROUND(千円単!S45/1000,0)) -> 4668 | T45: =IF(千円単!T45="","",ROUND(千円単!T45/1000,0)) -> 206 | U45: =IF(千円単!U45="","",ROUND(千円単!U45/1000,0)) -> 10302 | V45: =IF(千円単!V45="","",ROUND(千円単!V45/1000,0)) -> 5960 | W45: =IF(千円単!W45="","",ROUND(千円単!W45/1000,0)) -> 4342 | X45: =IF(千円単!X45="","",ROUND(千円単!X45/1000,0)) -> -2501 | Y45: =IF(千円単!Y45="","",ROUND(千円単!Y45/1000,0)) -> 256
A46: 2021 | B46: 46 | C46: 17 | D46: 1 | E46: 45 | F46: 公共 | G46: 022047 | H46: 青森県 | I46: 黒石市 | J46: =IF(千円単!J46="","",ROUND(千円単!J46/1000,0)) -> 665 | K46: =IF(千円単!K46="","",ROUND(千円単!K46/1000,0)) -> 324 | L46: =IF(千円単!L46="","",ROUND(千円単!L46/1000,0)) -> 19 | M46: =IF(千円単!M46="","",ROUND(千円単!M46/1000,0)) -> 575 | N46: =IF(千円単!N46="","",ROUND(千円単!N46/1000,0)) -> 63 | O46: =IF(千円単!O46="","",ROUND(千円単!O46/1000,0)) -> 308 | P46: =IF(千円単!P46="","",ROUND(千円単!P46/1000,0)) -> 20 | Q46: =IF(千円単!Q46="","",ROUND(千円単!Q46/1000,0)) -> 90 | R46: =IF(千円単!R46="","",ROUND(千円単!R46/1000,0)) -> 671 | S46: =IF(千円単!S46="","",ROUND(千円単!S46/1000,0)) -> 301 | T46: =IF(千円単!T46="","",ROUND(千円単!T46/1000,0)) -> 331 | U46: =IF(千円単!U46="","",ROUND(千円単!U46/1000,0)) -> 758 | V46: =IF(千円単!V46="","",ROUND(千円単!V46/1000,0)) -> 113 | W46: =IF(千円単!W46="","",ROUND(千円単!W46/1000,0)) -> 645 | X46: =IF(千円単!X46="","",ROUND(千円単!X46/1000,0)) -> -87 | Y46: =IF(千円単!Y46="","",ROUND(千円単!Y46/1000,0)) -> 90
A47: 2021 | B47: 46 | C47: 17 | D47: 1 | E47: 46 | F47: 公共 | G47: 022055 | H47: 青森県 | I47: 五所川原市 | J47: =IF(千円単!J47="","",ROUND(千円単!J47/1000,0)) -> 642 | K47: =IF(千円単!K47="","",ROUND(千円単!K47/1000,0)) -> 349 | L47: =IF(千円単!L47="","",ROUND(千円単!L47/1000,0)) -> 67 | M47: =IF(千円単!M47="","",ROUND(千円単!M47/1000,0)) -> 794 | N47: =IF(千円単!N47="","",ROUND(千円単!N47/1000,0)) -> 62 | O47: =IF(千円単!O47="","",ROUND(千円単!O47/1000,0)) -> 450 | P47: =IF(千円単!P47="","",ROUND(千円単!P47/1000,0)) -> 25 | Q47: =IF(千円単!Q47="","",ROUND(千円単!Q47/1000,0)) -> -152 | R47: =IF(千円単!R47="","",ROUND(千円単!R47/1000,0)) -> 502 | S47: =IF(千円単!S47="","",ROUND(千円単!S47/1000,0)) -> 167 | T47: =IF(千円単!T47="","",ROUND(千円単!T47/1000,0)) -> 0 | U47: =IF(千円単!U47="","",ROUND(千円単!U47/1000,0)) -> 603 | V47: =IF(千円単!V47="","",ROUND(千円単!V47/1000,0)) -> 130 | W47: =IF(千円単!W47="","",ROUND(千円単!W47/1000,0)) -> 474 | X47: =IF(千円単!X47="","",ROUND(千円単!X47/1000,0)) -> -101 | Y47: =IF(千円単!Y47="","",ROUND(千円単!Y47/1000,0)) -> -152
A48: 2021 | B48: 46 | C48: 17 | D48: 1 | E48: 47 | F48: 公共 | G48: 022063 | H48: 青森県 | I48: 十和田市 | J48: =IF(千円単!J48="","",ROUND(千円単!J48/1000,0)) -> 1685 | K48: =IF(千円単!K48="","",ROUND(千円単!K48/1000,0)) -> 837 | L48: =IF(千円単!L48="","",ROUND(千円単!L48/1000,0)) -> 396 | M48: =IF(千円単!M48="","",ROUND(千円単!M48/1000,0)) -> 1577 | N48: =IF(千円単!N48="","",ROUND(千円単!N48/1000,0)) -> 167 | O48: =IF(千円単!O48="","",ROUND(千円単!O48/1000,0)) -> 934 | P48: =IF(千円単!P48="","",ROUND(千円単!P48/1000,0)) -> 68 | Q48: =IF(千円単!Q48="","",ROUND(千円単!Q48/1000,0)) -> 108 | R48: =IF(千円単!R48="","",ROUND(千円単!R48/1000,0)) -> 1050 | S48: =IF(千円単!S48="","",ROUND(千円単!S48/1000,0)) -> 669 | T48: =IF(千円単!T48="","",ROUND(千円単!T48/1000,0)) -> 143 | U48: =IF(千円単!U48="","",ROUND(千円単!U48/1000,0)) -> 1725 | V48: =IF(千円単!V48="","",ROUND(千円単!V48/1000,0)) -> 556 | W48: =IF(千円単!W48="","",ROUND(千円単!W48/1000,0)) -> 1169 | X48: =IF(千円単!X48="","",ROUND(千円単!X48/1000,0)) -> -674 | Y48: =IF(千円単!Y48="","",ROUND(千円単!Y48/1000,0)) -> 108
A49: 2021 | B49: 46 | C49: 17 | D49: 1 | E49: 48 | F49: 公共 | G49: 022071 | H49: 青森県 | I49: 三沢市 | J49: =IF(千円単!J49="","",ROUND(千円単!J49/1000,0)) -> 1202 | K49: =IF(千円単!K49="","",ROUND(千円単!K49/1000,0)) -> 402 | L49: =IF(千円単!L49="","",ROUND(千円単!L49/1000,0)) -> 369 | M49: =IF(千円単!M49="","",ROUND(千円単!M49/1000,0)) -> 1099 | N49: =IF(千円単!N49="","",ROUND(千円単!N49/1000,0)) -> 119 | O49: =IF(千円単!O49="","",ROUND(千円単!O49/1000,0)) -> 712 | P49: =IF(千円単!P49="","",ROUND(千円単!P49/1000,0)) -> 39 | Q49: =IF(千円単!Q49="","",ROUND(千円単!Q49/1000,0)) -> 103 | R49: =IF(千円単!R49="","",ROUND(千円単!R49/1000,0)) -> 995 | S49: =IF(千円単!S49="","",ROUND(千円単!S49/1000,0)) -> 591 | T49: =IF(千円単!T49="","",ROUND(千円単!T49/1000,0)) -> 111 | U49: =IF(千円単!U49="","",ROUND(千円単!U49/1000,0)) -> 1372 | V49: =IF(千円単!V49="","",ROUND(千円単!V49/1000,0)) -> 484 | W49: =IF(千円単!W49="","",ROUND(千円単!W49/1000,0)) -> 889 | X49: =IF(千円単!X49="","",ROUND(千円単!X49/1000,0)) -> -377 | Y49: =IF(千円単!Y49="","",ROUND(千円単!Y49/1000,0)) -> 103
A50: 2021 | B50: 46 | C50: 17 | D50: 1 | E50: 49 | F50: 公共 | G50: 022080 | H50: 青森県 | I50: むつ市 | J50: =IF(千円単!J50="","",ROUND(千円単!J50/1000,0)) -> 689 | K50: =IF(千円単!K50="","",ROUND(千円単!K50/1000,0)) -> 91 | L50: =IF(千円単!L50="","",ROUND(千円単!L50/1000,0)) -> 287 | M50: =IF(千円単!M50="","",ROUND(千円単!M50/1000,0)) -> 658 | N50: =IF(千円単!N50="","",ROUND(千円単!N50/1000,0)) -> 94 | O50: =IF(千円単!O50="","",ROUND(千円単!O50/1000,0)) -> 415 | P50: =IF(千円単!P50="","",ROUND(千円単!P50/1000,0)) -> 33 | Q50: =IF(千円単!Q50="","",ROUND(千円単!Q50/1000,0)) -> 31 | R50: =IF(千円単!R50="","",ROUND(千円単!R50/1000,0)) -> 1443 | S50: =IF(千円単!S50="","",ROUND(千円単!S50/1000,0)) -> 776 | T50: =IF(千円単!T50="","",ROUND(千円単!T50/1000,0)) -> 197 | U50: =IF(千円単!U50="","",ROUND(千円単!U50/1000,0)) -> 1598 | V50: =IF(千円単!V50="","",ROUND(千円単!V50/1000,0)) -> 1060 | W50: =IF(千円単!W50="","",ROUND(千円単!W50/1000,0)) -> 538 | X50: =IF(千円単!X50="","",ROUND(千円単!X50/1000,0)) -> -156 | Y50: =IF(千円単!Y50="","",ROUND(千円単!Y50/1000,0)) -> 31
A51: 2021 | B51: 46 | C51: 17 | D51: 1 | E51: 50 | F51: 公共 | G51: 022098 | H51: 青森県 | I51: つがる市 | J51: =IF(千円単!J51="","",ROUND(千円単!J51/1000,0)) -> 429 | K51: =IF(千円単!K51="","",ROUND(千円単!K51/1000,0)) -> 73 | L51: =IF(千円単!L51="","",ROUND(千円単!L51/1000,0)) -> 232 | M51: =IF(千円単!M51="","",ROUND(千円単!M51/1000,0)) -> 392 | N51: =IF(千円単!N51="","",ROUND(千円単!N51/1000,0)) -> 50 | O51: =IF(千円単!O51="","",ROUND(千円単!O51/1000,0)) -> 266 | P51: =IF(千円単!P51="","",ROUND(千円単!P51/1000,0)) -> 17 | Q51: =IF(千円単!Q51="","",ROUND(千円単!Q51/1000,0)) -> 36 | R51: =IF(千円単!R51="","",ROUND(千円単!R51/1000,0)) -> 365 | S51: =IF(千円単!S51="","",ROUND(千円単!S51/1000,0)) -> 223 | T51: =IF(千円単!T51="","",ROUND(千円単!T51/1000,0)) -> 20 | U51: =IF(千円単!U51="","",ROUND(千円単!U51/1000,0)) -> 519 | V51: =IF(千円単!V51="","",ROUND(千円単!V51/1000,0)) -> 271 | W51: =IF(千円単!W51="","",ROUND(千円単!W51/1000,0)) -> 248 | X51: =IF(千円単!X51="","",ROUND(千円単!X51/1000,0)) -> -153 | Y51: =IF(千円単!Y51="","",ROUND(千円単!Y51/1000,0)) -> 36
A52: 2021 | B52: 46 | C52: 17 | D52: 1 | E52: 51 | F52: 公共 | G52: 022101 | H52: 青森県 | I52: 平川市 | J52: =IF(千円単!J52="","",ROUND(千円単!J52/1000,0)) -> 466 | K52: =IF(千円単!K52="","",ROUND(千円単!K52/1000,0)) -> 308 | L52: =IF(千円単!L52="","",ROUND(千円単!L52/1000,0)) -> 30 | M52: =IF(千円単!M52="","",ROUND(千円単!M52/1000,0)) -> 571 | N52: =IF(千円単!N52="","",ROUND(千円単!N52/1000,0)) -> 60 | O52: =IF(千円単!O52="","",ROUND(千円単!O52/1000,0)) -> 329 | P52: =IF(千円単!P52="","",ROUND(千円単!P52/1000,0)) -> 19 | Q52: =IF(千円単!Q52="","",ROUND(千円単!Q52/1000,0)) -> -105 | R52: =IF(千円単!R52="","",ROUND(千円単!R52/1000,0)) -> 344 | S52: =IF(千円単!S52="","",ROUND(千円単!S52/1000,0)) -> 79 | T52: =IF(千円単!T52="","",ROUND(千円単!T52/1000,0)) -> 0 | U52: =IF(千円単!U52="","",ROUND(千円単!U52/1000,0)) -> 438 | V52: =IF(千円単!V52="","",ROUND(千円単!V52/1000,0)) -> 55 | W52: =IF(千円単!W52="","",ROUND(千円単!W52/1000,0)) -> 383 | X52: =IF(千円単!X52="","",ROUND(千円単!X52/1000,0)) -> -94 | Y52: =IF(千円単!Y52="","",ROUND(千円単!Y52/1000,0)) -> -105
A53: 2021 | B53: 46 | C53: 17 | D53: 1 | E53: 52 | F53: 公共 | G53: 023612 | H53: 青森県 | I53: 藤崎町 | J53: =IF(千円単!J53="","",ROUND(千円単!J53/1000,0)) -> 237 | K53: =IF(千円単!K53="","",ROUND(千円単!K53/1000,0)) -> 89 | L53: =IF(千円単!L53="","",ROUND(千円単!L53/1000,0)) -> 73 | M53: =IF(千円単!M53="","",ROUND(千円単!M53/1000,0)) -> 232 | N53: =IF(千円単!N53="","",ROUND(千円単!N53/1000,0)) -> 26 | O53: =IF(千円単!O53="","",ROUND(千円単!O53/1000,0)) -> 161 | P53: =IF(千円単!P53="","",ROUND(千円単!P53/1000,0)) -> 0 | Q53: =IF(千円単!Q53="","",ROUND(千円単!Q53/1000,0)) -> 6 | R53: =IF(千円単!R53="","",ROUND(千円単!R53/1000,0)) -> 274 | S53: =IF(千円単!S53="","",ROUND(千円単!S53/1000,0)) -> 143 | T53: =IF(千円単!T53="","",ROUND(千円単!T53/1000,0)) -> 0 | U53: =IF(千円単!U53="","",ROUND(千円単!U53/1000,0)) -> 378 | V53: =IF(千円単!V53="","",ROUND(千円単!V53/1000,0)) -> 172 | W53: =IF(千円単!W53="","",ROUND(千円単!W53/1000,0)) -> 207 | X53: =IF(千円単!X53="","",ROUND(千円単!X53/1000,0)) -> -105 | Y53: =IF(千円単!Y53="","",ROUND(千円単!Y53/1000,0)) -> 6
A54: 2021 | B54: 46 | C54: 17 | D54: 1 | E54: 53 | F54: 公共 | G54: 023671 | H54: 青森県 | I54: 田舎館村 | J54: =IF(千円単!J54="","",ROUND(千円単!J54/1000,0)) -> 290 | K54: =IF(千円単!K54="","",ROUND(千円単!K54/1000,0)) -> 106 | L54: =IF(千円単!L54="","",ROUND(千円単!L54/1000,0)) -> 82 | M54: =IF(千円単!M54="","",ROUND(千円単!M54/1000,0)) -> 220 | N54: =IF(千円単!N54="","",ROUND(千円単!N54/1000,0)) -> 31 | O54: =IF(千円単!O54="","",ROUND(千円単!O54/1000,0)) -> 126 | P54: =IF(千円単!P54="","",ROUND(千円単!P54/1000,0)) -> 8 | Q54: =IF(千円単!Q54="","",ROUND(千円単!Q54/1000,0)) -> 70 | R54: =IF(千円単!R54="","",ROUND(千円単!R54/1000,0)) -> 107 | S54: =IF(千円単!S54="","",ROUND(千円単!S54/1000,0)) -> 53 | T54: =IF(千円単!T54="","",ROUND(千円単!T54/1000,0)) -> 54 | U54: =IF(千円単!U54="","",ROUND(千円単!U54/1000,0)) -> 210 | V54: =IF(千円単!V54="","",ROUND(千円単!V54/1000,0)) -> 3 | W54: =IF(千円単!W54="","",ROUND(千円単!W54/1000,0)) -> 206 | X54: =IF(千円単!X54="","",ROUND(千円単!X54/1000,0)) -> -102 | Y54: =IF(千円単!Y54="","",ROUND(千円単!Y54/1000,0)) -> 70
A55: 2021 | B55: 46 | C55: 17 | D55: 1 | E55: 54 | F55: 公共 | G55: 023817 | H55: 青森県 | I55: 板柳町 | J55: =IF(千円単!J55="","",ROUND(千円単!J55/1000,0)) -> 337 | K55: =IF(千円単!K55="","",ROUND(千円単!K55/1000,0)) -> 82 | L55: =IF(千円単!L55="","",ROUND(千円単!L55/1000,0)) -> 96 | M55: =IF(千円単!M55="","",ROUND(千円単!M55/1000,0)) -> 291 | N55: =IF(千円単!N55="","",ROUND(千円単!N55/1000,0)) -> 47 | O55: =IF(千円単!O55="","",ROUND(千円単!O55/1000,0)) -> 167 | P55: =IF(千円単!P55="","",ROUND(千円単!P55/1000,0)) -> 8 | Q55: =IF(千円単!Q55="","",ROUND(千円単!Q55/1000,0)) -> 46 | R55: =IF(千円単!R55="","",ROUND(千円単!R55/1000,0)) -> 611 | S55: =IF(千円単!S55="","",ROUND(千円単!S55/1000,0)) -> 330 | T55: =IF(千円単!T55="","",ROUND(千円単!T55/1000,0)) -> 89 | U55: =IF(千円単!U55="","",ROUND(千円単!U55/1000,0)) -> 675 | V55: =IF(千円単!V55="","",ROUND(千円単!V55/1000,0)) -> 428 | W55: =IF(千円単!W55="","",ROUND(千円単!W55/1000,0)) -> 247 | X55: =IF(千円単!X55="","",ROUND(千円単!X55/1000,0)) -> -64 | Y55: =IF(千円単!Y55="","",ROUND(千円単!Y55/1000,0)) -> 46
A56: 2021 | B56: 46 | C56: 17 | D56: 1 | E56: 55 | F56: 公共 | G56: 023841 | H56: 青森県 | I56: 鶴田町 | J56: =IF(千円単!J56="","",ROUND(千円単!J56/1000,0)) -> 377 | K56: =IF(千円単!K56="","",ROUND(千円単!K56/1000,0)) -> 56 | L56: =IF(千円単!L56="","",ROUND(千円単!L56/1000,0)) -> 221 | M56: =IF(千円単!M56="","",ROUND(千円単!M56/1000,0)) -> 276 | N56: =IF(千円単!N56="","",ROUND(千円単!N56/1000,0)) -> 44 | O56: =IF(千円単!O56="","",ROUND(千円単!O56/1000,0)) -> 190 | P56: =IF(千円単!P56="","",ROUND(千円単!P56/1000,0)) -> 7 | Q56: =IF(千円単!Q56="","",ROUND(千円単!Q56/1000,0)) -> 101 | R56: =IF(千円単!R56="","",ROUND(千円単!R56/1000,0)) -> 6 | S56: =IF(千円単!S56="","",ROUND(千円単!S56/1000,0)) -> 0 | T56: =IF(千円単!T56="","",ROUND(千円単!T56/1000,0)) -> 5 | U56: =IF(千円単!U56="","",ROUND(千円単!U56/1000,0)) -> 220 | V56: =IF(千円単!V56="","",ROUND(千円単!V56/1000,0)) -> 4 | W56: =IF(千円単!W56="","",ROUND(千円単!W56/1000,0)) -> 216 | X56: =IF(千円単!X56="","",ROUND(千円単!X56/1000,0)) -> -214 | Y56: =IF(千円単!Y56="","",ROUND(千円単!Y56/1000,0)) -> 101
A57: 2021 | B57: 46 | C57: 17 | D57: 1 | E57: 56 | F57: 公共 | G57: 024112 | H57: 青森県 | I57: 六ケ所村 | J57: =IF(千円単!J57="","",ROUND(千円単!J57/1000,0)) -> 529 | K57: =IF(千円単!K57="","",ROUND(千円単!K57/1000,0)) -> 51 | L57: =IF(千円単!L57="","",ROUND(千円単!L57/1000,0)) -> 317 | M57: =IF(千円単!M57="","",ROUND(千円単!M57/1000,0)) -> 527 | N57: =IF(千円単!N57="","",ROUND(千円単!N57/1000,0)) -> 63 | O57: =IF(千円単!O57="","",ROUND(千円単!O57/1000,0)) -> 318 | P57: =IF(千円単!P57="","",ROUND(千円単!P57/1000,0)) -> 25 | Q57: =IF(千円単!Q57="","",ROUND(千円単!Q57/1000,0)) -> 1 | R57: =IF(千円単!R57="","",ROUND(千円単!R57/1000,0)) -> 127 | S57: =IF(千円単!S57="","",ROUND(千円単!S57/1000,0)) -> 7 | T57: =IF(千円単!T57="","",ROUND(千円単!T57/1000,0)) -> 0 | U57: =IF(千円単!U57="","",ROUND(千円単!U57/1000,0)) -> 304 | V57: =IF(千円単!V57="","",ROUND(千円単!V57/1000,0)) -> 73 | W57: =IF(千円単!W57="","",ROUND(千円単!W57/1000,0)) -> 230 | X57: =IF(千円単!X57="","",ROUND(千円単!X57/1000,0)) -> -177 | Y57: =IF(千円単!Y57="","",ROUND(千円単!Y57/1000,0)) -> 1
A58: 2021 | B58: 46 | C58: 17 | D58: 1 | E58: 57 | F58: 公共 | G58: 032018 | H58: 岩手県 | I58: 盛岡市 | J58: =IF(千円単!J58="","",ROUND(千円単!J58/1000,0)) -> 7897 | K58: =IF(千円単!K58="","",ROUND(千円単!K58/1000,0)) -> 4156 | L58: =IF(千円単!L58="","",ROUND(千円単!L58/1000,0)) -> 2739 | M58: =IF(千円単!M58="","",ROUND(千円単!M58/1000,0)) -> 7510 | N58: =IF(千円単!N58="","",ROUND(千円単!N58/1000,0)) -> 542 | O58: =IF(千円単!O58="","",ROUND(千円単!O58/1000,0)) -> 4118 | P58: =IF(千円単!P58="","",ROUND(千円単!P58/1000,0)) -> 316 | Q58: =IF(千円単!Q58="","",ROUND(千円単!Q58/1000,0)) -> 387 | R58: =IF(千円単!R58="","",ROUND(千円単!R58/1000,0)) -> 2806 | S58: =IF(千円単!S58="","",ROUND(千円単!S58/1000,0)) -> 1367 | T58: =IF(千円単!T58="","",ROUND(千円単!T58/1000,0)) -> 458 | U58: =IF(千円単!U58="","",ROUND(千円単!U58/1000,0)) -> 5640 | V58: =IF(千円単!V58="","",ROUND(千円単!V58/1000,0)) -> 2641 | W58: =IF(千円単!W58="","",ROUND(千円単!W58/1000,0)) -> 2994 | X58: =IF(千円単!X58="","",ROUND(千円単!X58/1000,0)) -> -2834 | Y58: =IF(千円単!Y58="","",ROUND(千円単!Y58/1000,0)) -> 387
A59: 2021 | B59: 46 | C59: 17 | D59: 1 | E59: 58 | F59: 公共 | G59: 032026 | H59: 岩手県 | I59: 宮古市 | J59: =IF(千円単!J59="","",ROUND(千円単!J59/1000,0)) -> 1350 | K59: =IF(千円単!K59="","",ROUND(千円単!K59/1000,0)) -> 514 | L59: =IF(千円単!L59="","",ROUND(千円単!L59/1000,0)) -> 356 | M59: =IF(千円単!M59="","",ROUND(千円単!M59/1000,0)) -> 1250 | N59: =IF(千円単!N59="","",ROUND(千円単!N59/1000,0)) -> 108 | O59: =IF(千円単!O59="","",ROUND(千円単!O59/1000,0)) -> 804 | P59: =IF(千円単!P59="","",ROUND(千円単!P59/1000,0)) -> 48 | Q59: =IF(千円単!Q59="","",ROUND(千円単!Q59/1000,0)) -> 100 | R59: =IF(千円単!R59="","",ROUND(千円単!R59/1000,0)) -> 630 | S59: =IF(千円単!S59="","",ROUND(千円単!S59/1000,0)) -> 413 | T59: =IF(千円単!T59="","",ROUND(千円単!T59/1000,0)) -> 96 | U59: =IF(千円単!U59="","",ROUND(千円単!U59/1000,0)) -> 1206 | V59: =IF(千円単!V59="","",ROUND(千円単!V59/1000,0)) -> 254 | W59: =IF(千円単!W59="","",ROUND(千円単!W59/1000,0)) -> 858 | X59: =IF(千円単!X59="","",ROUND(千円単!X59/1000,0)) -> -577 | Y59: =IF(千円単!Y59="","",ROUND(千円単!Y59/1000,0)) -> 100
A60: 2021 | B60: 46 | C60: 17 | D60: 1 | E60: 59 | F60: 公共 | G60: 032034 | H60: 岩手県 | I60: 大船渡市 | J60: =IF(千円単!J60="","",ROUND(千円単!J60/1000,0)) -> 819 | K60: =IF(千円単!K60="","",ROUND(千円単!K60/1000,0)) -> 203 | L60: =IF(千円単!L60="","",ROUND(千円単!L60/1000,0)) -> 291 | M60: =IF(千円単!M60="","",ROUND(千円単!M60/1000,0)) -> 893 | N60: =IF(千円単!N60="","",ROUND(千円単!N60/1000,0)) -> 126 | O60: =IF(千円単!O60="","",ROUND(千円単!O60/1000,0)) -> 577 | P60: =IF(千円単!P60="","",ROUND(千円単!P60/1000,0)) -> 35 | Q60: =IF(千円単!Q60="","",ROUND(千円単!Q60/1000,0)) -> -74 | R60: =IF(千円単!R60="","",ROUND(千円単!R60/1000,0)) -> 1562 | S60: =IF(千円単!S60="","",ROUND(千円単!S60/1000,0)) -> 785 | T60: =IF(千円単!T60="","",ROUND(千円単!T60/1000,0)) -> 0 | U60: =IF(千円単!U60="","",ROUND(千円単!U60/1000,0)) -> 1764 | V60: =IF(千円単!V60="","",ROUND(千円単!V60/1000,0)) -> 1111 | W60: =IF(千円単!W60="","",ROUND(千円単!W60/1000,0)) -> 653 | X60: =IF(千円単!X60="","",ROUND(千円単!X60/1000,0)) -> -202 | Y60: =IF(千円単!Y60="","",ROUND(千円単!Y60/1000,0)) -> -74
A61: 2021 | B61: 46 | C61: 17 | D61: 1 | E61: 60 | F61: 公共 | G61: 032051 | H61: 岩手県 | I61: 花巻市 | J61: =IF(千円単!J61="","",ROUND(千円単!J61/1000,0)) -> 2263 | K61: =IF(千円単!K61="","",ROUND(千円単!K61/1000,0)) -> 753 | L61: =IF(千円単!L61="","",ROUND(千円単!L61/1000,0)) -> 1097 | M61: =IF(千円単!M61="","",ROUND(千円単!M61/1000,0)) -> 2157 | N61: =IF(千円単!N61="","",ROUND(千円単!N61/1000,0)) -> 302 | O61: =IF(千円単!O61="","",ROUND(千円単!O61/1000,0)) -> 1315 | P61: =IF(千円単!P61="","",ROUND(千円単!P61/1000,0)) -> 45 | Q61: =IF(千円単!Q61="","",ROUND(千円単!Q61/1000,0)) -> 106 | R61: =IF(千円単!R61="","",ROUND(千円単!R61/1000,0)) -> 1330 | S61: =IF(千円単!S61="","",ROUND(千円単!S61/1000,0)) -> 857 | T61: =IF(千円単!T61="","",ROUND(千円単!T61/1000,0)) -> 0 | U61: =IF(千円単!U61="","",ROUND(千円単!U61/1000,0)) -> 2272 | V61: =IF(千円単!V61="","",ROUND(千円単!V61/1000,0)) -> 397 | W61: =IF(千円単!W61="","",ROUND(千円単!W61/1000,0)) -> 1875 | X61: =IF(千円単!X61="","",ROUND(千円単!X61/1000,0)) -> -942 | Y61: =IF(千円単!Y61="","",ROUND(千円単!Y61/1000,0)) -> 106
A62: 2021 | B62: 46 | C62: 17 | D62: 1 | E62: 61 | F62: 公共 | G62: 032069 | H62: 岩手県 | I62: 北上市 | J62: =IF(千円単!J62="","",ROUND(千円単!J62/1000,0)) -> 2033 | K62: =IF(千円単!K62="","",ROUND(千円単!K62/1000,0)) -> 1278 | L62: =IF(千円単!L62="","",ROUND(千円単!L62/1000,0)) -> 521 | M62: =IF(千円単!M62="","",ROUND(千円単!M62/1000,0)) -> 1994 | N62: =IF(千円単!N62="","",ROUND(千円単!N62/1000,0)) -> 242 | O62: =IF(千円単!O62="","",ROUND(千円単!O62/1000,0)) -> 961 | P62: =IF(千円単!P62="","",ROUND(千円単!P62/1000,0)) -> 45 | Q62: =IF(千円単!Q62="","",ROUND(千円単!Q62/1000,0)) -> 39 | R62: =IF(千円単!R62="","",ROUND(千円単!R62/1000,0)) -> 1085 | S62: =IF(千円単!S62="","",ROUND(千円単!S62/1000,0)) -> 527 | T62: =IF(千円単!T62="","",ROUND(千円単!T62/1000,0)) -> 0 | U62: =IF(千円単!U62="","",ROUND(千円単!U62/1000,0)) -> 1786 | V62: =IF(千円単!V62="","",ROUND(千円単!V62/1000,0)) -> 228 | W62: =IF(千円単!W62="","",ROUND(千円単!W62/1000,0)) -> 1557 | X62: =IF(千円単!X62="","",ROUND(千円単!X62/1000,0)) -> -700 | Y62: =IF(千円単!Y62="","",ROUND(千円単!Y62/1000,0)) -> 39
A63: 2021 | B63: 46 | C63: 17 | D63: 1 | E63: 62 | F63: 公共 | G63: 032077 | H63: 岩手県 | I63: 久慈市 | J63: =IF(千円単!J63="","",ROUND(千円単!J63/1000,0)) -> 828 | K63: =IF(千円単!K63="","",ROUND(千円単!K63/1000,0)) -> 168 | L63: =IF(千円単!L63="","",ROUND(千円単!L63/1000,0)) -> 369 | M63: =IF(千円単!M63="","",ROUND(千円単!M63/1000,0)) -> 815 | N63: =IF(千円単!N63="","",ROUND(千円単!N63/1000,0)) -> 91 | O63: =IF(千円単!O63="","",ROUND(千円単!O63/1000,0)) -> 505 | P63: =IF(千円単!P63="","",ROUND(千円単!P63/1000,0)) -> 65 | Q63: =IF(千円単!Q63="","",ROUND(千円単!Q63/1000,0)) -> 13 | R63: =IF(千円単!R63="","",ROUND(千円単!R63/1000,0)) -> 1151 | S63: =IF(千円単!S63="","",ROUND(千円単!S63/1000,0)) -> 666 | T63: =IF(千円単!T63="","",ROUND(千円単!T63/1000,0)) -> 0 | U63: =IF(千円単!U63="","",ROUND(千円単!U63/1000,0)) -> 1221 | V63: =IF(千円単!V63="","",ROUND(千円単!V63/1000,0)) -> 769 | W63: =IF(千円単!W63="","",ROUND(千円単!W63/1000,0)) -> 353 | X63: =IF(千円単!X63="","",ROUND(千円単!X63/1000,0)) -> -71 | Y63: =IF(千円単!Y63="","",ROUND(千円単!Y63/1000,0)) -> 13
A64: 2021 | B64: 46 | C64: 17 | D64: 1 | E64: 63 | F64: 公共 | G64: 032085 | H64: 岩手県 | I64: 遠野市 | J64: =IF(千円単!J64="","",ROUND(千円単!J64/1000,0)) -> 502 | K64: =IF(千円単!K64="","",ROUND(千円単!K64/1000,0)) -> 123 | L64: =IF(千円単!L64="","",ROUND(千円単!L64/1000,0)) -> 249 | M64: =IF(千円単!M64="","",ROUND(千円単!M64/1000,0)) -> 508 | N64: =IF(千円単!N64="","",ROUND(千円単!N64/1000,0)) -> 67 | O64: =IF(千円単!O64="","",ROUND(千円単!O64/1000,0)) -> 296 | P64: =IF(千円単!P64="","",ROUND(千円単!P64/1000,0)) -> 32 | Q64: =IF(千円単!Q64="","",ROUND(千円単!Q64/1000,0)) -> -6 | R64: =IF(千円単!R64="","",ROUND(千円単!R64/1000,0)) -> 243 | S64: =IF(千円単!S64="","",ROUND(千円単!S64/1000,0)) -> 21 | T64: =IF(千円単!T64="","",ROUND(千円単!T64/1000,0)) -> 0 | U64: =IF(千円単!U64="","",ROUND(千円単!U64/1000,0)) -> 393 | V64: =IF(千円単!V64="","",ROUND(千円単!V64/1000,0)) -> 28 | W64: =IF(千円単!W64="","",ROUND(千円単!W64/1000,0)) -> 365 | X64: =IF(千円単!X64="","",ROUND(千円単!X64/1000,0)) -> -151 | Y64: =IF(千円単!Y64="","",ROUND(千円単!Y64/1000,0)) -> -6
A65: 2021 | B65: 46 | C65: 17 | D65: 1 | E65: 64 | F65: 公共 | G65: 032093 | H65: 岩手県 | I65: 一関市 | J65: =IF(千円単!J65="","",ROUND(千円単!J65/1000,0)) -> 1960 | K65: =IF(千円単!K65="","",ROUND(千円単!K65/1000,0)) -> 592 | L65: =IF(千円単!L65="","",ROUND(千円単!L65/1000,0)) -> 708 | M65: =IF(千円単!M65="","",ROUND(千円単!M65/1000,0)) -> 1809 | N65: =IF(千円単!N65="","",ROUND(千円単!N65/1000,0)) -> 172 | O65: =IF(千円単!O65="","",ROUND(千円単!O65/1000,0)) -> 993 | P65: =IF(千円単!P65="","",ROUND(千円単!P65/1000,0)) -> 36 | Q65: =IF(千円単!Q65="","",ROUND(千円単!Q65/1000,0)) -> 152 | R65: =IF(千円単!R65="","",ROUND(千円単!R65/1000,0)) -> 2232 | S65: =IF(千円単!S65="","",ROUND(千円単!S65/1000,0)) -> 999 | T65: =IF(千円単!T65="","",ROUND(千円単!T65/1000,0)) -> 164 | U65: =IF(千円単!U65="","",ROUND(千円単!U65/1000,0)) -> 2779 | V65: =IF(千円単!V65="","",ROUND(千円単!V65/1000,0)) -> 1615 | W65: =IF(千円単!W65="","",ROUND(千円単!W65/1000,0)) -> 1163 | X65: =IF(千円単!X65="","",ROUND(千円単!X65/1000,0)) -> -547 | Y65: =IF(千円単!Y65="","",ROUND(千円単!Y65/1000,0)) -> 152
A66: 2021 | B66: 46 | C66: 17 | D66: 1 | E66: 65 | F66: 公共 | G66: 032115 | H66: 岩手県 | I66: 釜石市 | J66: =IF(千円単!J66="","",ROUND(千円単!J66/1000,0)) -> 1365 | K66: =IF(千円単!K66="","",ROUND(千円単!K66/1000,0)) -> 404 | L66: =IF(千円単!L66="","",ROUND(千円単!L66/1000,0)) -> 369 | M66: =IF(千円単!M66="","",ROUND(千円単!M66/1000,0)) -> 1360 | N66: =IF(千円単!N66="","",ROUND(千円単!N66/1000,0)) -> 75 | O66: =IF(千円単!O66="","",ROUND(千円単!O66/1000,0)) -> 843 | P66: =IF(千円単!P66="","",ROUND(千円単!P66/1000,0)) -> 69 | Q66: =IF(千円単!Q66="","",ROUND(千円単!Q66/1000,0)) -> 5 | R66: =IF(千円単!R66="","",ROUND(千円単!R66/1000,0)) -> 476 | S66: =IF(千円単!S66="","",ROUND(千円単!S66/1000,0)) -> 267 | T66: =IF(千円単!T66="","",ROUND(千円単!T66/1000,0)) -> 0 | U66: =IF(千円単!U66="","",ROUND(千円単!U66/1000,0)) -> 683 | V66: =IF(千円単!V66="","",ROUND(千円単!V66/1000,0)) -> 369 | W66: =IF(千円単!W66="","",ROUND(千円単!W66/1000,0)) -> 314 | X66: =IF(千円単!X66="","",ROUND(千円単!X66/1000,0)) -> -207 | Y66: =IF(千円単!Y66="","",ROUND(千円単!Y66/1000,0)) -> 5
A67: 2021 | B67: 46 | C67: 17 | D67: 1 | E67: 66 | F67: 公共 | G67: 032140 | H67: 岩手県 | I67: 八幡平市 | J67: =IF(千円単!J67="","",ROUND(千円単!J67/1000,0)) -> 378 | K67: =IF(千円単!K67="","",ROUND(千円単!K67/1000,0)) -> 71 | L67: =IF(千円単!L67="","",ROUND(千円単!L67/1000,0)) -> 204 | M67: =IF(千円単!M67="","",ROUND(千円単!M67/1000,0)) -> 352 | N67: =IF(千円単!N67="","",ROUND(千円単!N67/1000,0)) -> 51 | O67: =IF(千円単!O67="","",ROUND(千円単!O67/1000,0)) -> 199 | P67: =IF(千円単!P67="","",ROUND(千円単!P67/1000,0)) -> 26 | Q67: =IF(千円単!Q67="","",ROUND(千円単!Q67/1000,0)) -> 26 | R67: =IF(千円単!R67="","",ROUND(千円単!R67/1000,0)) -> 184 | S67: =IF(千円単!S67="","",ROUND(千円単!S67/1000,0)) -> 70 | T67: =IF(千円単!T67="","",ROUND(千円単!T67/1000,0)) -> 6 | U67: =IF(千円単!U67="","",ROUND(千円単!U67/1000,0)) -> 277 | V67: =IF(千円単!V67="","",ROUND(千円単!V67/1000,0)) -> 121 | W67: =IF(千円単!W67="","",ROUND(千円単!W67/1000,0)) -> 156 | X67: =IF(千円単!X67="","",ROUND(千円単!X67/1000,0)) -> -93 | Y67: =IF(千円単!Y67="","",ROUND(千円単!Y67/1000,0)) -> 26
A68: 2021 | B68: 46 | C68: 17 | D68: 1 | E68: 67 | F68: 公共 | G68: 032158 | H68: 岩手県 | I68: 奥州市 | J68: =IF(千円単!J68="","",ROUND(千円単!J68/1000,0)) -> 2082 | K68: =IF(千円単!K68="","",ROUND(千円単!K68/1000,0)) -> 826 | L68: =IF(千円単!L68="","",ROUND(千円単!L68/1000,0)) -> 911 | M68: =IF(千円単!M68="","",ROUND(千円単!M68/1000,0)) -> 2055 | N68: =IF(千円単!N68="","",ROUND(千円単!N68/1000,0)) -> 259 | O68: =IF(千円単!O68="","",ROUND(千円単!O68/1000,0)) -> 1049 | P68: =IF(千円単!P68="","",ROUND(千円単!P68/1000,0)) -> 66 | Q68: =IF(千円単!Q68="","",ROUND(千円単!Q68/1000,0)) -> 26 | R68: =IF(千円単!R68="","",ROUND(千円単!R68/1000,0)) -> 2218 | S68: =IF(千円単!S68="","",ROUND(千円単!S68/1000,0)) -> 1432 | T68: =IF(千円単!T68="","",ROUND(千円単!T68/1000,0)) -> 274 | U68: =IF(千円単!U68="","",ROUND(千円単!U68/1000,0)) -> 3039 | V68: =IF(千円単!V68="","",ROUND(千円単!V68/1000,0)) -> 1420 | W68: =IF(千円単!W68="","",ROUND(千円単!W68/1000,0)) -> 1619 | X68: =IF(千円単!X68="","",ROUND(千円単!X68/1000,0)) -> -820 | Y68: =IF(千円単!Y68="","",ROUND(千円単!Y68/1000,0)) -> 26
A69: 2021 | B69: 46 | C69: 17 | D69: 1 | E69: 68 | F69: 公共 | G69: 032166 | H69: 岩手県 | I69: 滝沢市 | J69: =IF(千円単!J69="","",ROUND(千円単!J69/1000,0)) -> 1126 | K69: =IF(千円単!K69="","",ROUND(千円単!K69/1000,0)) -> 526 | L69: =IF(千円単!L69="","",ROUND(千円単!L69/1000,0)) -> 270 | M69: =IF(千円単!M69="","",ROUND(千円単!M69/1000,0)) -> 995 | N69: =IF(千円単!N69="","",ROUND(千円単!N69/1000,0)) -> 82 | O69: =IF(千円単!O69="","",ROUND(千円単!O69/1000,0)) -> 581 | P69: =IF(千円単!P69="","",ROUND(千円単!P69/1000,0)) -> 29 | Q69: =IF(千円単!Q69="","",ROUND(千円単!Q69/1000,0)) -> 131 | R69: =IF(千円単!R69="","",ROUND(千円単!R69/1000,0)) -> 248 | S69: =IF(千円単!S69="","",ROUND(千円単!S69/1000,0)) -> 168 | T69: =IF(千円単!T69="","",ROUND(千円単!T69/1000,0)) -> 18 | U69: =IF(千円単!U69="","",ROUND(千円単!U69/1000,0)) -> 594 | V69: =IF(千円単!V69="","",ROUND(千円単!V69/1000,0)) -> 229 | W69: =IF(千円単!W69="","",ROUND(千円単!W69/1000,0)) -> 365 | X69: =IF(千円単!X69="","",ROUND(千円単!X69/1000,0)) -> -346 | Y69: =IF(千円単!Y69="","",ROUND(千円単!Y69/1000,0)) -> 131
A70: 2021 | B70: 46 | C70: 17 | D70: 1 | E70: 69 | F70: 公共 | G70: 033014 | H70: 岩手県 | I70: 雫石町 | J70: =IF(千円単!J70="","",ROUND(千円単!J70/1000,0)) -> 449 | K70: =IF(千円単!K70="","",ROUND(千円単!K70/1000,0)) -> 126 | L70: =IF(千円単!L70="","",ROUND(千円単!L70/1000,0)) -> 194 | M70: =IF(千円単!M70="","",ROUND(千円単!M70/1000,0)) -> 444 | N70: =IF(千円単!N70="","",ROUND(千円単!N70/1000,0)) -> 43 | O70: =IF(千円単!O70="","",ROUND(千円単!O70/1000,0)) -> 318 | P70: =IF(千円単!P70="","",ROUND(千円単!P70/1000,0)) -> 6 | Q70: =IF(千円単!Q70="","",ROUND(千円単!Q70/1000,0)) -> 5 | R70: =IF(千円単!R70="","",ROUND(千円単!R70/1000,0)) -> 460 | S70: =IF(千円単!S70="","",ROUND(千円単!S70/1000,0)) -> 251 | T70: =IF(千円単!T70="","",ROUND(千円単!T70/1000,0)) -> 0 | U70: =IF(千円単!U70="","",ROUND(千円単!U70/1000,0)) -> 649 | V70: =IF(千円単!V70="","",ROUND(千円単!V70/1000,0)) -> 287 | W70: =IF(千円単!W70="","",ROUND(千円単!W70/1000,0)) -> 362 | X70: =IF(千円単!X70="","",ROUND(千円単!X70/1000,0)) -> -190 | Y70: =IF(千円単!Y70="","",ROUND(千円単!Y70/1000,0)) -> 5
A71: 2021 | B71: 46 | C71: 17 | D71: 1 | E71: 70 | F71: 公共 | G71: 033031 | H71: 岩手県 | I71: 岩手町 | J71: =IF(千円単!J71="","",ROUND(千円単!J71/1000,0)) -> 259 | K71: =IF(千円単!K71="","",ROUND(千円単!K71/1000,0)) -> 45 | L71: =IF(千円単!L71="","",ROUND(千円単!L71/1000,0)) -> 139 | M71: =IF(千円単!M71="","",ROUND(千円単!M71/1000,0)) -> 241 | N71: =IF(千円単!N71="","",ROUND(千円単!N71/1000,0)) -> 31 | O71: =IF(千円単!O71="","",ROUND(千円単!O71/1000,0)) -> 140 | P71: =IF(千円単!P71="","",ROUND(千円単!P71/1000,0)) -> 19 | Q71: =IF(千円単!Q71="","",ROUND(千円単!Q71/1000,0)) -> 17 | R71: =IF(千円単!R71="","",ROUND(千円単!R71/1000,0)) -> 164 | S71: =IF(千円単!S71="","",ROUND(千円単!S71/1000,0)) -> 104 | T71: =IF(千円単!T71="","",ROUND(千円単!T71/1000,0)) -> 0 | U71: =IF(千円単!U71="","",ROUND(千円単!U71/1000,0)) -> 247 | V71: =IF(千円単!V71="","",ROUND(千円単!V71/1000,0)) -> 92 | W71: =IF(千円単!W71="","",ROUND(千円単!W71/1000,0)) -> 155 | X71: =IF(千円単!X71="","",ROUND(千円単!X71/1000,0)) -> -83 | Y71: =IF(千円単!Y71="","",ROUND(千円単!Y71/1000,0)) -> 17
A72: 2021 | B72: 46 | C72: 17 | D72: 1 | E72: 71 | F72: 公共 | G72: 033219 | H72: 岩手県 | I72: 紫波町 | J72: =IF(千円単!J72="","",ROUND(千円単!J72/1000,0)) -> 720 | K72: =IF(千円単!K72="","",ROUND(千円単!K72/1000,0)) -> 317 | L72: =IF(千円単!L72="","",ROUND(千円単!L72/1000,0)) -> 355 | M72: =IF(千円単!M72="","",ROUND(千円単!M72/1000,0)) -> 743 | N72: =IF(千円単!N72="","",ROUND(千円単!N72/1000,0)) -> 63 | O72: =IF(千円単!O72="","",ROUND(千円単!O72/1000,0)) -> 475 | P72: =IF(千円単!P72="","",ROUND(千円単!P72/1000,0)) -> 28 | Q72: =IF(千円単!Q72="","",ROUND(千円単!Q72/1000,0)) -> -23 | R72: =IF(千円単!R72="","",ROUND(千円単!R72/1000,0)) -> 272 | S72: =IF(千円単!S72="","",ROUND(千円単!S72/1000,0)) -> 155 | T72: =IF(千円単!T72="","",ROUND(千円単!T72/1000,0)) -> 6 | U72: =IF(千円単!U72="","",ROUND(千円単!U72/1000,0)) -> 563 | V72: =IF(千円単!V72="","",ROUND(千円単!V72/1000,0)) -> 301 | W72: =IF(千円単!W72="","",ROUND(千円単!W72/1000,0)) -> 262 | X72: =IF(千円単!X72="","",ROUND(千円単!X72/1000,0)) -> -291 | Y72: =IF(千円単!Y72="","",ROUND(千円単!Y72/1000,0)) -> -23
A73: 2021 | B73: 46 | C73: 17 | D73: 1 | E73: 72 | F73: 公共 | G73: 033227 | H73: 岩手県 | I73: 矢巾町 | J73: =IF(千円単!J73="","",ROUND(千円単!J73/1000,0)) -> 823 | K73: =IF(千円単!K73="","",ROUND(千円単!K73/1000,0)) -> 441 | L73: =IF(千円単!L73="","",ROUND(千円単!L73/1000,0)) -> 136 | M73: =IF(千円単!M73="","",ROUND(千円単!M73/1000,0)) -> 677 | N73: =IF(千円単!N73="","",ROUND(千円単!N73/1000,0)) -> 60 | O73: =IF(千円単!O73="","",ROUND(千円単!O73/1000,0)) -> 392 | P73: =IF(千円単!P73="","",ROUND(千円単!P73/1000,0)) -> 12 | Q73: =IF(千円単!Q73="","",ROUND(千円単!Q73/1000,0)) -> 146 | R73: =IF(千円単!R73="","",ROUND(千円単!R73/1000,0)) -> 273 | S73: =IF(千円単!S73="","",ROUND(千円単!S73/1000,0)) -> 124 | T73: =IF(千円単!T73="","",ROUND(千円単!T73/1000,0)) -> 38 | U73: =IF(千円単!U73="","",ROUND(千円単!U73/1000,0)) -> 515 | V73: =IF(千円単!V73="","",ROUND(千円単!V73/1000,0)) -> 289 | W73: =IF(千円単!W73="","",ROUND(千円単!W73/1000,0)) -> 227 | X73: =IF(千円単!X73="","",ROUND(千円単!X73/1000,0)) -> -242 | Y73: =IF(千円単!Y73="","",ROUND(千円単!Y73/1000,0)) -> 146
A74: 2021 | B74: 46 | C74: 17 | D74: 1 | E74: 73 | F74: 公共 | G74: 033812 | H74: 岩手県 | I74: 金ケ崎町 | J74: =IF(千円単!J74="","",ROUND(千円単!J74/1000,0)) -> 510 | K74: =IF(千円単!K74="","",ROUND(千円単!K74/1000,0)) -> 219 | L74: =IF(千円単!L74="","",ROUND(千円単!L74/1000,0)) -> 189 | M74: =IF(千円単!M74="","",ROUND(千円単!M74/1000,0)) -> 398 | N74: =IF(千円単!N74="","",ROUND(千円単!N74/1000,0)) -> 54 | O74: =IF(千円単!O74="","",ROUND(千円単!O74/1000,0)) -> 206 | P74: =IF(千円単!P74="","",ROUND(千円単!P74/1000,0)) -> 7 | Q74: =IF(千円単!Q74="","",ROUND(千円単!Q74/1000,0)) -> 112 | R74: =IF(千円単!R74="","",ROUND(千円単!R74/1000,0)) -> 204 | S74: =IF(千円単!S74="","",ROUND(千円単!S74/1000,0)) -> 145 | T74: =IF(千円単!T74="","",ROUND(千円単!T74/1000,0)) -> 24 | U74: =IF(千円単!U74="","",ROUND(千円単!U74/1000,0)) -> 404 | V74: =IF(千円単!V74="","",ROUND(千円単!V74/1000,0)) -> 40 | W74: =IF(千円単!W74="","",ROUND(千円単!W74/1000,0)) -> 364 | X74: =IF(千円単!X74="","",ROUND(千円単!X74/1000,0)) -> -200 | Y74: =IF(千円単!Y74="","",ROUND(千円単!Y74/1000,0)) -> 112
A75: 2021 | B75: 46 | C75: 17 | D75: 1 | E75: 74 | F75: 公共 | G75: 034029 | H75: 岩手県 | I75: 平泉町 | J75: =IF(千円単!J75="","",ROUND(千円単!J75/1000,0)) -> 215 | K75: =IF(千円単!K75="","",ROUND(千円単!K75/1000,0)) -> 50 | L75: =IF(千円単!L75="","",ROUND(千円単!L75/1000,0)) -> 103 | M75: =IF(千円単!M75="","",ROUND(千円単!M75/1000,0)) -> 211 | N75: =IF(千円単!N75="","",ROUND(千円単!N75/1000,0)) -> 27 | O75: =IF(千円単!O75="","",ROUND(千円単!O75/1000,0)) -> 133 | P75: =IF(千円単!P75="","",ROUND(千円単!P75/1000,0)) -> 0 | Q75: =IF(千円単!Q75="","",ROUND(千円単!Q75/1000,0)) -> 3 | R75: =IF(千円単!R75="","",ROUND(千円単!R75/1000,0)) -> 118 | S75: =IF(千円単!S75="","",ROUND(千円単!S75/1000,0)) -> 50 | T75: =IF(千円単!T75="","",ROUND(千円単!T75/1000,0)) -> 0 | U75: =IF(千円単!U75="","",ROUND(千円単!U75/1000,0)) -> 186 | V75: =IF(千円単!V75="","",ROUND(千円単!V75/1000,0)) -> 36 | W75: =IF(千円単!W75="","",ROUND(千円単!W75/1000,0)) -> 149 | X75: =IF(千円単!X75="","",ROUND(千円単!X75/1000,0)) -> -68 | Y75: =IF(千円単!Y75="","",ROUND(千円単!Y75/1000,0)) -> 3
A76: 2021 | B76: 46 | C76: 17 | D76: 1 | E76: 75 | F76: 公共 | G76: 034614 | H76: 岩手県 | I76: 大槌町 | J76: =IF(千円単!J76="","",ROUND(千円単!J76/1000,0)) -> 732 | K76: =IF(千円単!K76="","",ROUND(千円単!K76/1000,0)) -> 55 | L76: =IF(千円単!L76="","",ROUND(千円単!L76/1000,0)) -> 289 | M76: =IF(千円単!M76="","",ROUND(千円単!M76/1000,0)) -> 718 | N76: =IF(千円単!N76="","",ROUND(千円単!N76/1000,0)) -> 51 | O76: =IF(千円単!O76="","",ROUND(千円単!O76/1000,0)) -> 580 | P76: =IF(千円単!P76="","",ROUND(千円単!P76/1000,0)) -> 12 | Q76: =IF(千円単!Q76="","",ROUND(千円単!Q76/1000,0)) -> 14 | R76: =IF(千円単!R76="","",ROUND(千円単!R76/1000,0)) -> 319 | S76: =IF(千円単!S76="","",ROUND(千円単!S76/1000,0)) -> 75 | T76: =IF(千円単!T76="","",ROUND(千円単!T76/1000,0)) -> 68 | U76: =IF(千円単!U76="","",ROUND(千円単!U76/1000,0)) -> 410 | V76: =IF(千円単!V76="","",ROUND(千円単!V76/1000,0)) -> 97 | W76: =IF(千円単!W76="","",ROUND(千円単!W76/1000,0)) -> 313 | X76: =IF(千円単!X76="","",ROUND(千円単!X76/1000,0)) -> -92 | Y76: =IF(千円単!Y76="","",ROUND(千円単!Y76/1000,0)) -> 14
A77: 2021 | B77: 46 | C77: 17 | D77: 1 | E77: 76 | F77: 公共 | G77: 041009 | H77: 宮城県 | I77: 仙台市 | J77: =IF(千円単!J77="","",ROUND(千円単!J77/1000,0)) -> 33427 | K77: =IF(千円単!K77="","",ROUND(千円単!K77/1000,0)) -> 15600 | L77: =IF(千円単!L77="","",ROUND(千円単!L77/1000,0)) -> 6098 | M77: =IF(千円単!M77="","",ROUND(千円単!M77/1000,0)) -> 30541 | N77: =IF(千円単!N77="","",ROUND(千円単!N77/1000,0)) -> 2202 | O77: =IF(千円単!O77="","",ROUND(千円単!O77/1000,0)) -> 19301 | P77: =IF(千円単!P77="","",ROUND(千円単!P77/1000,0)) -> 1120 | Q77: =IF(千円単!Q77="","",ROUND(千円単!Q77/1000,0)) -> 2886 | R77: =IF(千円単!R77="","",ROUND(千円単!R77/1000,0)) -> 18192 | S77: =IF(千円単!S77="","",ROUND(千円単!S77/1000,0)) -> 13023 | T77: =IF(千円単!T77="","",ROUND(千円単!T77/1000,0)) -> 392 | U77: =IF(千円単!U77="","",ROUND(千円単!U77/1000,0)) -> 31574 | V77: =IF(千円単!V77="","",ROUND(千円単!V77/1000,0)) -> 13344 | W77: =IF(千円単!W77="","",ROUND(千円単!W77/1000,0)) -> 18230 | X77: =IF(千円単!X77="","",ROUND(千円単!X77/1000,0)) -> -13383 | Y77: =IF(千円単!Y77="","",ROUND(千円単!Y77/1000,0)) -> 2886
A78: 2021 | B78: 46 | C78: 17 | D78: 1 | E78: 77 | F78: 公共 | G78: 042021 | H78: 宮城県 | I78: 石巻市 | J78: =IF(千円単!J78="","",ROUND(千円単!J78/1000,0)) -> 5357 | K78: =IF(千円単!K78="","",ROUND(千円単!K78/1000,0)) -> 1506 | L78: =IF(千円単!L78="","",ROUND(千円単!L78/1000,0)) -> 1631 | M78: =IF(千円単!M78="","",ROUND(千円単!M78/1000,0)) -> 5253 | N78: =IF(千円単!N78="","",ROUND(千円単!N78/1000,0)) -> 394 | O78: =IF(千円単!O78="","",ROUND(千円単!O78/1000,0)) -> 2945 | P78: =IF(千円単!P78="","",ROUND(千円単!P78/1000,0)) -> 155 | Q78: =IF(千円単!Q78="","",ROUND(千円単!Q78/1000,0)) -> 104 | R78: =IF(千円単!R78="","",ROUND(千円単!R78/1000,0)) -> 28208 | S78: =IF(千円単!S78="","",ROUND(千円単!S78/1000,0)) -> 3843 | T78: =IF(千円単!T78="","",ROUND(千円単!T78/1000,0)) -> 21561 | U78: =IF(千円単!U78="","",ROUND(千円単!U78/1000,0)) -> 36861 | V78: =IF(千円単!V78="","",ROUND(千円単!V78/1000,0)) -> 32412 | W78: =IF(千円単!W78="","",ROUND(千円単!W78/1000,0)) -> 4438 | X78: =IF(千円単!X78="","",ROUND(千円単!X78/1000,0)) -> -8653 | Y78: =IF(千円単!Y78="","",ROUND(千円単!Y78/1000,0)) -> 104
A79: 2021 | B79: 46 | C79: 17 | D79: 1 | E79: 78 | F79: 公共 | G79: 042030 | H79: 宮城県 | I79: 塩竈市 | J79: =IF(千円単!J79="","",ROUND(千円単!J79/1000,0)) -> 4532 | K79: =IF(千円単!K79="","",ROUND(千円単!K79/1000,0)) -> 1123 | L79: =IF(千円単!L79="","",ROUND(千円単!L79/1000,0)) -> 1275 | M79: =IF(千円単!M79="","",ROUND(千円単!M79/1000,0)) -> 3923 | N79: =IF(千円単!N79="","",ROUND(千円単!N79/1000,0)) -> 312 | O79: =IF(千円単!O79="","",ROUND(千円単!O79/1000,0)) -> 2935 | P79: =IF(千円単!P79="","",ROUND(千円単!P79/1000,0)) -> 107 | Q79: =IF(千円単!Q79="","",ROUND(千円単!Q79/1000,0)) -> 609 | R79: =IF(千円単!R79="","",ROUND(千円単!R79/1000,0)) -> 2565 | S79: =IF(千円単!S79="","",ROUND(千円単!S79/1000,0)) -> 1905 | T79: =IF(千円単!T79="","",ROUND(千円単!T79/1000,0)) -> 116 | U79: =IF(千円単!U79="","",ROUND(千円単!U79/1000,0)) -> 4068 | V79: =IF(千円単!V79="","",ROUND(千円単!V79/1000,0)) -> 757 | W79: =IF(千円単!W79="","",ROUND(千円単!W79/1000,0)) -> 3311 | X79: =IF(千円単!X79="","",ROUND(千円単!X79/1000,0)) -> -1503 | Y79: =IF(千円単!Y79="","",ROUND(千円単!Y79/1000,0)) -> 609
A80: 2021 | B80: 46 | C80: 17 | D80: 1 | E80: 79 | F80: 公共 | G80: 042056 | H80: 宮城県 | I80: 気仙沼市 | J80: =IF(千円単!J80="","",ROUND(千円単!J80/1000,0)) -> 1558 | K80: =IF(千円単!K80="","",ROUND(千円単!K80/1000,0)) -> 319 | L80: =IF(千円単!L80="","",ROUND(千円単!L80/1000,0)) -> 471 | M80: =IF(千円単!M80="","",ROUND(千円単!M80/1000,0)) -> 1661 | N80: =IF(千円単!N80="","",ROUND(千円単!N80/1000,0)) -> 71 | O80: =IF(千円単!O80="","",ROUND(千円単!O80/1000,0)) -> 1111 | P80: =IF(千円単!P80="","",ROUND(千円単!P80/1000,0)) -> 90 | Q80: =IF(千円単!Q80="","",ROUND(千円単!Q80/1000,0)) -> -103 | R80: =IF(千円単!R80="","",ROUND(千円単!R80/1000,0)) -> 890 | S80: =IF(千円単!S80="","",ROUND(千円単!S80/1000,0)) -> 247 | T80: =IF(千円単!T80="","",ROUND(千円単!T80/1000,0)) -> 0 | U80: =IF(千円単!U80="","",ROUND(千円単!U80/1000,0)) -> 1184 | V80: =IF(千円単!V80="","",ROUND(千円単!V80/1000,0)) -> 639 | W80: =IF(千円単!W80="","",ROUND(千円単!W80/1000,0)) -> 543 | X80: =IF(千円単!X80="","",ROUND(千円単!X80/1000,0)) -> -294 | Y80: =IF(千円単!Y80="","",ROUND(千円単!Y80/1000,0)) -> -103
A81: 2021 | B81: 46 | C81: 17 | D81: 1 | E81: 80 | F81: 公共 | G81: 042064 | H81: 宮城県 | I81: 白石市 | J81: =IF(千円単!J81="","",ROUND(千円単!J81/1000,0)) -> 922 | K81: =IF(千円単!K81="","",ROUND(千円単!K81/1000,0)) -> 552 | L81: =IF(千円単!L81="","",ROUND(千円単!L81/1000,0)) -> 50 | M81: =IF(千円単!M81="","",ROUND(千円単!M81/1000,0)) -> 774 | N81: =IF(千円単!N81="","",ROUND(千円単!N81/1000,0)) -> 79 | O81: =IF(千円単!O81="","",ROUND(千円単!O81/1000,0)) -> 485 | P81: =IF(千円単!P81="","",ROUND(千円単!P81/1000,0)) -> 15 | Q81: =IF(千円単!Q81="","",ROUND(千円単!Q81/1000,0)) -> 148 | R81: =IF(千円単!R81="","",ROUND(千円単!R81/1000,0)) -> 380 | S81: =IF(千円単!S81="","",ROUND(千円単!S81/1000,0)) -> 272 | T81: =IF(千円単!T81="","",ROUND(千円単!T81/1000,0)) -> 88 | U81: =IF(千円単!U81="","",ROUND(千円単!U81/1000,0)) -> 749 | V81: =IF(千円単!V81="","",ROUND(千円単!V81/1000,0)) -> 66 | W81: =IF(千円単!W81="","",ROUND(千円単!W81/1000,0)) -> 683 | X81: =IF(千円単!X81="","",ROUND(千円単!X81/1000,0)) -> -369 | Y81: =IF(千円単!Y81="","",ROUND(千円単!Y81/1000,0)) -> 148
A82: 2021 | B82: 46 | C82: 17 | D82: 1 | E82: 81 | F82: 公共 | G82: 042072 | H82: 宮城県 | I82: 名取市 | J82: =IF(千円単!J82="","",ROUND(千円単!J82/1000,0)) -> 3519 | K82: =IF(千円単!K82="","",ROUND(千円単!K82/1000,0)) -> 1327 | L82: =IF(千円単!L82="","",ROUND(千円単!L82/1000,0)) -> 1392 | M82: =IF(千円単!M82="","",ROUND(千円単!M82/1000,0)) -> 3524 | N82: =IF(千円単!N82="","",ROUND(千円単!N82/1000,0)) -> 205 | O82: =IF(千円単!O82="","",ROUND(千円単!O82/1000,0)) -> 1510 | P82: =IF(千円単!P82="","",ROUND(千円単!P82/1000,0)) -> 65 | Q82: =IF(千円単!Q82="","",ROUND(千円単!Q82/1000,0)) -> -5 | R82: =IF(千円単!R82="","",ROUND(千円単!R82/1000,0)) -> 471 | S82: =IF(千円単!S82="","",ROUND(千円単!S82/1000,0)) -> 227 | T82: =IF(千円単!T82="","",ROUND(千円単!T82/1000,0)) -> 0 | U82: =IF(千円単!U82="","",ROUND(千円単!U82/1000,0)) -> 1828 | V82: =IF(千円単!V82="","",ROUND(千円単!V82/1000,0)) -> 459 | W82: =IF(千円単!W82="","",ROUND(千円単!W82/1000,0)) -> 1369 | X82: =IF(千円単!X82="","",ROUND(千円単!X82/1000,0)) -> -1357 | Y82: =IF(千円単!Y82="","",ROUND(千円単!Y82/1000,0)) -> -5
A83: 2021 | B83: 46 | C83: 17 | D83: 1 | E83: 82 | F83: 公共 | G83: 042081 | H83: 宮城県 | I83: 角田市 | J83: =IF(千円単!J83="","",ROUND(千円単!J83/1000,0)) -> 829 | K83: =IF(千円単!K83="","",ROUND(千円単!K83/1000,0)) -> 253 | L83: =IF(千円単!L83="","",ROUND(千円単!L83/1000,0)) -> 160 | M83: =IF(千円単!M83="","",ROUND(千円単!M83/1000,0)) -> 830 | N83: =IF(千円単!N83="","",ROUND(千円単!N83/1000,0)) -> 104 | O83: =IF(千円単!O83="","",ROUND(千円単!O83/1000,0)) -> 566 | P83: =IF(千円単!P83="","",ROUND(千円単!P83/1000,0)) -> 40 | Q83: =IF(千円単!Q83="","",ROUND(千円単!Q83/1000,0)) -> -1 | R83: =IF(千円単!R83="","",ROUND(千円単!R83/1000,0)) -> 876 | S83: =IF(千円単!S83="","",ROUND(千円単!S83/1000,0)) -> 392 | T83: =IF(千円単!T83="","",ROUND(千円単!T83/1000,0)) -> 411 | U83: =IF(千円単!U83="","",ROUND(千円単!U83/1000,0)) -> 1015 | V83: =IF(千円単!V83="","",ROUND(千円単!V83/1000,0)) -> 222 | W83: =IF(千円単!W83="","",ROUND(千円単!W83/1000,0)) -> 793 | X83: =IF(千円単!X83="","",ROUND(千円単!X83/1000,0)) -> -138 | Y83: =IF(千円単!Y83="","",ROUND(千円単!Y83/1000,0)) -> -1
A84: 2021 | B84: 46 | C84: 17 | D84: 1 | E84: 83 | F84: 公共 | G84: 042099 | H84: 宮城県 | I84: 多賀城市 | J84: =IF(千円単!J84="","",ROUND(千円単!J84/1000,0)) -> 2938 | K84: =IF(千円単!K84="","",ROUND(千円単!K84/1000,0)) -> 764 | L84: =IF(千円単!L84="","",ROUND(千円単!L84/1000,0)) -> 996 | M84: =IF(千円単!M84="","",ROUND(千円単!M84/1000,0)) -> 2854 | N84: =IF(千円単!N84="","",ROUND(千円単!N84/1000,0)) -> 205 | O84: =IF(千円単!O84="","",ROUND(千円単!O84/1000,0)) -> 1953 | P84: =IF(千円単!P84="","",ROUND(千円単!P84/1000,0)) -> 105 | Q84: =IF(千円単!Q84="","",ROUND(千円単!Q84/1000,0)) -> 84 | R84: =IF(千円単!R84="","",ROUND(千円単!R84/1000,0)) -> 1359 | S84: =IF(千円単!S84="","",ROUND(千円単!S84/1000,0)) -> 792 | T84: =IF(千円単!T84="","",ROUND(千円単!T84/1000,0)) -> 164 | U84: =IF(千円単!U84="","",ROUND(千円単!U84/1000,0)) -> 2267 | V84: =IF(千円単!V84="","",ROUND(千円単!V84/1000,0)) -> 564 | W84: =IF(千円単!W84="","",ROUND(千円単!W84/1000,0)) -> 1704 | X84: =IF(千円単!X84="","",ROUND(千円単!X84/1000,0)) -> -909 | Y84: =IF(千円単!Y84="","",ROUND(千円単!Y84/1000,0)) -> 84
A85: 2021 | B85: 46 | C85: 17 | D85: 1 | E85: 84 | F85: 公共 | G85: 042111 | H85: 宮城県 | I85: 岩沼市 | J85: =IF(千円単!J85="","",ROUND(千円単!J85/1000,0)) -> 1893 | K85: =IF(千円単!K85="","",ROUND(千円単!K85/1000,0)) -> 712 | L85: =IF(千円単!L85="","",ROUND(千円単!L85/1000,0)) -> 194 | M85: =IF(千円単!M85="","",ROUND(千円単!M85/1000,0)) -> 1816 | N85: =IF(千円単!N85="","",ROUND(千円単!N85/1000,0)) -> 79 | O85: =IF(千円単!O85="","",ROUND(千円単!O85/1000,0)) -> 1258 | P85: =IF(千円単!P85="","",ROUND(千円単!P85/1000,0)) -> 31 | Q85: =IF(千円単!Q85="","",ROUND(千円単!Q85/1000,0)) -> 77 | R85: =IF(千円単!R85="","",ROUND(千円単!R85/1000,0)) -> 578 | S85: =IF(千円単!S85="","",ROUND(千円単!S85/1000,0)) -> 211 | T85: =IF(千円単!T85="","",ROUND(千円単!T85/1000,0)) -> 0 | U85: =IF(千円単!U85="","",ROUND(千円単!U85/1000,0)) -> 1051 | V85: =IF(千円単!V85="","",ROUND(千円単!V85/1000,0)) -> 595 | W85: =IF(千円単!W85="","",ROUND(千円単!W85/1000,0)) -> 456 | X85: =IF(千円単!X85="","",ROUND(千円単!X85/1000,0)) -> -473 | Y85: =IF(千円単!Y85="","",ROUND(千円単!Y85/1000,0)) -> 77
A86: 2021 | B86: 46 | C86: 17 | D86: 1 | E86: 85 | F86: 公共 | G86: 042129 | H86: 宮城県 | I86: 登米市 | J86: =IF(千円単!J86="","",ROUND(千円単!J86/1000,0)) -> 1066 | K86: =IF(千円単!K86="","",ROUND(千円単!K86/1000,0)) -> 255 | L86: =IF(千円単!L86="","",ROUND(千円単!L86/1000,0)) -> 433 | M86: =IF(千円単!M86="","",ROUND(千円単!M86/1000,0)) -> 1024 | N86: =IF(千円単!N86="","",ROUND(千円単!N86/1000,0)) -> 128 | O86: =IF(千円単!O86="","",ROUND(千円単!O86/1000,0)) -> 687 | P86: =IF(千円単!P86="","",ROUND(千円単!P86/1000,0)) -> 34 | Q86: =IF(千円単!Q86="","",ROUND(千円単!Q86/1000,0)) -> 42 | R86: =IF(千円単!R86="","",ROUND(千円単!R86/1000,0)) -> 1085 | S86: =IF(千円単!S86="","",ROUND(千円単!S86/1000,0)) -> 758 | T86: =IF(千円単!T86="","",ROUND(千円単!T86/1000,0)) -> 0 | U86: =IF(千円単!U86="","",ROUND(千円単!U86/1000,0)) -> 1405 | V86: =IF(千円単!V86="","",ROUND(千円単!V86/1000,0)) -> 603 | W86: =IF(千円単!W86="","",ROUND(千円単!W86/1000,0)) -> 802 | X86: =IF(千円単!X86="","",ROUND(千円単!X86/1000,0)) -> -320 | Y86: =IF(千円単!Y86="","",ROUND(千円単!Y86/1000,0)) -> 42
A87: 2021 | B87: 46 | C87: 17 | D87: 1 | E87: 86 | F87: 公共 | G87: 042137 | H87: 宮城県 | I87: 栗原市 | J87: =IF(千円単!J87="","",ROUND(千円単!J87/1000,0)) -> 600 | K87: =IF(千円単!K87="","",ROUND(千円単!K87/1000,0)) -> 204 | L87: =IF(千円単!L87="","",ROUND(千円単!L87/1000,0)) -> 247 | M87: =IF(千円単!M87="","",ROUND(千円単!M87/1000,0)) -> 594 | N87: =IF(千円単!N87="","",ROUND(千円単!N87/1000,0)) -> 67 | O87: =IF(千円単!O87="","",ROUND(千円単!O87/1000,0)) -> 337 | P87: =IF(千円単!P87="","",ROUND(千円単!P87/1000,0)) -> 34 | Q87: =IF(千円単!Q87="","",ROUND(千円単!Q87/1000,0)) -> 5 | R87: =IF(千円単!R87="","",ROUND(千円単!R87/1000,0)) -> 760 | S87: =IF(千円単!S87="","",ROUND(千円単!S87/1000,0)) -> 497 | T87: =IF(千円単!T87="","",ROUND(千円単!T87/1000,0)) -> 0 | U87: =IF(千円単!U87="","",ROUND(千円単!U87/1000,0)) -> 958 | V87: =IF(千円単!V87="","",ROUND(千円単!V87/1000,0)) -> 335 | W87: =IF(千円単!W87="","",ROUND(千円単!W87/1000,0)) -> 623 | X87: =IF(千円単!X87="","",ROUND(千円単!X87/1000,0)) -> -198 | Y87: =IF(千円単!Y87="","",ROUND(千円単!Y87/1000,0)) -> 5
A88: 2021 | B88: 46 | C88: 17 | D88: 1 | E88: 87 | F88: 公共 | G88: 042145 | H88: 宮城県 | I88: 東松島市 | J88: =IF(千円単!J88="","",ROUND(千円単!J88/1000,0)) -> 2283 | K88: =IF(千円単!K88="","",ROUND(千円単!K88/1000,0)) -> 497 | L88: =IF(千円単!L88="","",ROUND(千円単!L88/1000,0)) -> 605 | M88: =IF(千円単!M88="","",ROUND(千円単!M88/1000,0)) -> 1813 | N88: =IF(千円単!N88="","",ROUND(千円単!N88/1000,0)) -> 133 | O88: =IF(千円単!O88="","",ROUND(千円単!O88/1000,0)) -> 1315 | P88: =IF(千円単!P88="","",ROUND(千円単!P88/1000,0)) -> 29 | Q88: =IF(千円単!Q88="","",ROUND(千円単!Q88/1000,0)) -> 471 | R88: =IF(千円単!R88="","",ROUND(千円単!R88/1000,0)) -> 295 | S88: =IF(千円単!S88="","",ROUND(千円単!S88/1000,0)) -> 143 | T88: =IF(千円単!T88="","",ROUND(千円単!T88/1000,0)) -> 54 | U88: =IF(千円単!U88="","",ROUND(千円単!U88/1000,0)) -> 948 | V88: =IF(千円単!V88="","",ROUND(千円単!V88/1000,0)) -> 304 | W88: =IF(千円単!W88="","",ROUND(千円単!W88/1000,0)) -> 626 | X88: =IF(千円単!X88="","",ROUND(千円単!X88/1000,0)) -> -653 | Y88: =IF(千円単!Y88="","",ROUND(千円単!Y88/1000,0)) -> 471
A89: 2021 | B89: 46 | C89: 17 | D89: 1 | E89: 88 | F89: 公共 | G89: 042153 | H89: 宮城県 | I89: 大崎市 | J89: =IF(千円単!J89="","",ROUND(千円単!J89/1000,0)) -> 2459 | K89: =IF(千円単!K89="","",ROUND(千円単!K89/1000,0)) -> 926 | L89: =IF(千円単!L89="","",ROUND(千円単!L89/1000,0)) -> 742 | M89: =IF(千円単!M89="","",ROUND(千円単!M89/1000,0)) -> 2592 | N89: =IF(千円単!N89="","",ROUND(千円単!N89/1000,0)) -> 279 | O89: =IF(千円単!O89="","",ROUND(千円単!O89/1000,0)) -> 1606 | P89: =IF(千円単!P89="","",ROUND(千円単!P89/1000,0)) -> 58 | Q89: =IF(千円単!Q89="","",ROUND(千円単!Q89/1000,0)) -> -134 | R89: =IF(千円単!R89="","",ROUND(千円単!R89/1000,0)) -> 3357 | S89: =IF(千円単!S89="","",ROUND(千円単!S89/1000,0)) -> 1825 | T89: =IF(千円単!T89="","",ROUND(千円単!T89/1000,0)) -> 191 | U89: =IF(千円単!U89="","",ROUND(千円単!U89/1000,0)) -> 3986 | V89: =IF(千円単!V89="","",ROUND(千円単!V89/1000,0)) -> 1828 | W89: =IF(千円単!W89="","",ROUND(千円単!W89/1000,0)) -> 2157 | X89: =IF(千円単!X89="","",ROUND(千円単!X89/1000,0)) -> -630 | Y89: =IF(千円単!Y89="","",ROUND(千円単!Y89/1000,0)) -> -134
A90: 2021 | B90: 46 | C90: 17 | D90: 1 | E90: 89 | F90: 公共 | G90: 042161 | H90: 宮城県 | I90: 富谷市 | J90: =IF(千円単!J90="","",ROUND(千円単!J90/1000,0)) -> 1073 | K90: =IF(千円単!K90="","",ROUND(千円単!K90/1000,0)) -> 555 | L90: =IF(千円単!L90="","",ROUND(千円単!L90/1000,0)) -> 8 | M90: =IF(千円単!M90="","",ROUND(千円単!M90/1000,0)) -> 986 | N90: =IF(千円単!N90="","",ROUND(千円単!N90/1000,0)) -> 21 | O90: =IF(千円単!O90="","",ROUND(千円単!O90/1000,0)) -> 591 | P90: =IF(千円単!P90="","",ROUND(千円単!P90/1000,0)) -> 18 | Q90: =IF(千円単!Q90="","",ROUND(千円単!Q90/1000,0)) -> 87 | R90: =IF(千円単!R90="","",ROUND(千円単!R90/1000,0)) -> 252 | S90: =IF(千円単!S90="","",ROUND(千円単!S90/1000,0)) -> 67 | T90: =IF(千円単!T90="","",ROUND(千円単!T90/1000,0)) -> 49 | U90: =IF(千円単!U90="","",ROUND(千円単!U90/1000,0)) -> 420 | V90: =IF(千円単!V90="","",ROUND(千円単!V90/1000,0)) -> 221 | W90: =IF(千円単!W90="","",ROUND(千円単!W90/1000,0)) -> 199 | X90: =IF(千円単!X90="","",ROUND(千円単!X90/1000,0)) -> -168 | Y90: =IF(千円単!Y90="","",ROUND(千円単!Y90/1000,0)) -> 87
A91: 2021 | B91: 46 | C91: 17 | D91: 1 | E91: 90 | F91: 公共 | G91: 043214 | H91: 宮城県 | I91: 大河原町 | J91: =IF(千円単!J91="","",ROUND(千円単!J91/1000,0)) -> 743 | K91: =IF(千円単!K91="","",ROUND(千円単!K91/1000,0)) -> 361 | L91: =IF(千円単!L91="","",ROUND(千円単!L91/1000,0)) -> 179 | M91: =IF(千円単!M91="","",ROUND(千円単!M91/1000,0)) -> 580 | N91: =IF(千円単!N91="","",ROUND(千円単!N91/1000,0)) -> 57 | O91: =IF(千円単!O91="","",ROUND(千円単!O91/1000,0)) -> 343 | P91: =IF(千円単!P91="","",ROUND(千円単!P91/1000,0)) -> 15 | Q91: =IF(千円単!Q91="","",ROUND(千円単!Q91/1000,0)) -> 162 | R91: =IF(千円単!R91="","",ROUND(千円単!R91/1000,0)) -> 459 | S91: =IF(千円単!S91="","",ROUND(千円単!S91/1000,0)) -> 263 | T91: =IF(千円単!T91="","",ROUND(千円単!T91/1000,0)) -> 32 | U91: =IF(千円単!U91="","",ROUND(千円単!U91/1000,0)) -> 736 | V91: =IF(千円単!V91="","",ROUND(千円単!V91/1000,0)) -> 371 | W91: =IF(千円単!W91="","",ROUND(千円単!W91/1000,0)) -> 363 | X91: =IF(千円単!X91="","",ROUND(千円単!X91/1000,0)) -> -277 | Y91: =IF(千円単!Y91="","",ROUND(千円単!Y91/1000,0)) -> 162
A92: 2021 | B92: 46 | C92: 17 | D92: 1 | E92: 91 | F92: 公共 | G92: 043222 | H92: 宮城県 | I92: 村田町 | J92: =IF(千円単!J92="","",ROUND(千円単!J92/1000,0)) -> 278 | K92: =IF(千円単!K92="","",ROUND(千円単!K92/1000,0)) -> 152 | L92: =IF(千円単!L92="","",ROUND(千円単!L92/1000,0)) -> 32 | M92: =IF(千円単!M92="","",ROUND(千円単!M92/1000,0)) -> 261 | N92: =IF(千円単!N92="","",ROUND(千円単!N92/1000,0)) -> 24 | O92: =IF(千円単!O92="","",ROUND(千円単!O92/1000,0)) -> 187 | P92: =IF(千円単!P92="","",ROUND(千円単!P92/1000,0)) -> 7 | Q92: =IF(千円単!Q92="","",ROUND(千円単!Q92/1000,0)) -> 17 | R92: =IF(千円単!R92="","",ROUND(千円単!R92/1000,0)) -> 148 | S92: =IF(千円単!S92="","",ROUND(千円単!S92/1000,0)) -> 49 | T92: =IF(千円単!T92="","",ROUND(千円単!T92/1000,0)) -> 0 | U92: =IF(千円単!U92="","",ROUND(千円単!U92/1000,0)) -> 236 | V92: =IF(千円単!V92="","",ROUND(千円単!V92/1000,0)) -> 28 | W92: =IF(千円単!W92="","",ROUND(千円単!W92/1000,0)) -> 208 | X92: =IF(千円単!X92="","",ROUND(千円単!X92/1000,0)) -> -88 | Y92: =IF(千円単!Y92="","",ROUND(千円単!Y92/1000,0)) -> 17
A93: 2021 | B93: 46 | C93: 17 | D93: 1 | E93: 92 | F93: 公共 | G93: 043231 | H93: 宮城県 | I93: 柴田町 | J93: =IF(千円単!J93="","",ROUND(千円単!J93/1000,0)) -> 1150 | K93: =IF(千円単!K93="","",ROUND(千円単!K93/1000,0)) -> 529 | L93: =IF(千円単!L93="","",ROUND(千円単!L93/1000,0)) -> 166 | M93: =IF(千円単!M93="","",ROUND(千円単!M93/1000,0)) -> 1107 | N93: =IF(千円単!N93="","",ROUND(千円単!N93/1000,0)) -> 93 | O93: =IF(千円単!O93="","",ROUND(千円単!O93/1000,0)) -> 737 | P93: =IF(千円単!P93="","",ROUND(千円単!P93/1000,0)) -> 4 | Q93: =IF(千円単!Q93="","",ROUND(千円単!Q93/1000,0)) -> 43 | R93: =IF(千円単!R93="","",ROUND(千円単!R93/1000,0)) -> 1265 | S93: =IF(千円単!S93="","",ROUND(千円単!S93/1000,0)) -> 431 | T93: =IF(千円単!T93="","",ROUND(千円単!T93/1000,0)) -> 0 | U93: =IF(千円単!U93="","",ROUND(千円単!U93/1000,0)) -> 1541 | V93: =IF(千円単!V93="","",ROUND(千円単!V93/1000,0)) -> 959 | W93: =IF(千円単!W93="","",ROUND(千円単!W93/1000,0)) -> 583 | X93: =IF(千円単!X93="","",ROUND(千円単!X93/1000,0)) -> -276 | Y93: =IF(千円単!Y93="","",ROUND(千円単!Y93/1000,0)) -> 43
A94: 2021 | B94: 46 | C94: 17 | D94: 1 | E94: 93 | F94: 公共 | G94: 043613 | H94: 宮城県 | I94: 亘理町 | J94: =IF(千円単!J94="","",ROUND(千円単!J94/1000,0)) -> 1234 | K94: =IF(千円単!K94="","",ROUND(千円単!K94/1000,0)) -> 420 | L94: =IF(千円単!L94="","",ROUND(千円単!L94/1000,0)) -> 497 | M94: =IF(千円単!M94="","",ROUND(千円単!M94/1000,0)) -> 960 | N94: =IF(千円単!N94="","",ROUND(千円単!N94/1000,0)) -> 107 | O94: =IF(千円単!O94="","",ROUND(千円単!O94/1000,0)) -> 621 | P94: =IF(千円単!P94="","",ROUND(千円単!P94/1000,0)) -> 11 | Q94: =IF(千円単!Q94="","",ROUND(千円単!Q94/1000,0)) -> 274 | R94: =IF(千円単!R94="","",ROUND(千円単!R94/1000,0)) -> 645 | S94: =IF(千円単!S94="","",ROUND(千円単!S94/1000,0)) -> 364 | T94: =IF(千円単!T94="","",ROUND(千円単!T94/1000,0)) -> 65 | U94: =IF(千円単!U94="","",ROUND(千円単!U94/1000,0)) -> 1367 | V94: =IF(千円単!V94="","",ROUND(千円単!V94/1000,0)) -> 638 | W94: =IF(千円単!W94="","",ROUND(千円単!W94/1000,0)) -> 728 | X94: =IF(千円単!X94="","",ROUND(千円単!X94/1000,0)) -> -721 | Y94: =IF(千円単!Y94="","",ROUND(千円単!Y94/1000,0)) -> 274
A95: 2021 | B95: 46 | C95: 17 | D95: 1 | E95: 94 | F95: 公共 | G95: 044067 | H95: 宮城県 | I95: 利府町 | J95: =IF(千円単!J95="","",ROUND(千円単!J95/1000,0)) -> 1228 | K95: =IF(千円単!K95="","",ROUND(千円単!K95/1000,0)) -> 404 | L95: =IF(千円単!L95="","",ROUND(千円単!L95/1000,0)) -> 106 | M95: =IF(千円単!M95="","",ROUND(千円単!M95/1000,0)) -> 1164 | N95: =IF(千円単!N95="","",ROUND(千円単!N95/1000,0)) -> 34 | O95: =IF(千円単!O95="","",ROUND(千円単!O95/1000,0)) -> 847 | P95: =IF(千円単!P95="","",ROUND(千円単!P95/1000,0)) -> 29 | Q95: =IF(千円単!Q95="","",ROUND(千円単!Q95/1000,0)) -> 64 | R95: =IF(千円単!R95="","",ROUND(千円単!R95/1000,0)) -> 453 | S95: =IF(千円単!S95="","",ROUND(千円単!S95/1000,0)) -> 330 | T95: =IF(千円単!T95="","",ROUND(千円単!T95/1000,0)) -> 19 | U95: =IF(千円単!U95="","",ROUND(千円単!U95/1000,0)) -> 618 | V95: =IF(千円単!V95="","",ROUND(千円単!V95/1000,0)) -> 388 | W95: =IF(千円単!W95="","",ROUND(千円単!W95/1000,0)) -> 230 | X95: =IF(千円単!X95="","",ROUND(千円単!X95/1000,0)) -> -165 | Y95: =IF(千円単!Y95="","",ROUND(千円単!Y95/1000,0)) -> 64
A96: 2021 | B96: 46 | C96: 17 | D96: 1 | E96: 95 | F96: 公共 | G96: 045012 | H96: 宮城県 | I96: 涌谷町 | J96: =IF(千円単!J96="","",ROUND(千円単!J96/1000,0)) -> 344 | K96: =IF(千円単!K96="","",ROUND(千円単!K96/1000,0)) -> 84 | L96: =IF(千円単!L96="","",ROUND(千円単!L96/1000,0)) -> 152 | M96: =IF(千円単!M96="","",ROUND(千円単!M96/1000,0)) -> 338 | N96: =IF(千円単!N96="","",ROUND(千円単!N96/1000,0)) -> 47 | O96: =IF(千円単!O96="","",ROUND(千円単!O96/1000,0)) -> 208 | P96: =IF(千円単!P96="","",ROUND(千円単!P96/1000,0)) -> 25 | Q96: =IF(千円単!Q96="","",ROUND(千円単!Q96/1000,0)) -> 5 | R96: =IF(千円単!R96="","",ROUND(千円単!R96/1000,0)) -> 267 | S96: =IF(千円単!S96="","",ROUND(千円単!S96/1000,0)) -> 113 | T96: =IF(千円単!T96="","",ROUND(千円単!T96/1000,0)) -> 0 | U96: =IF(千円単!U96="","",ROUND(千円単!U96/1000,0)) -> 372 | V96: =IF(千円単!V96="","",ROUND(千円単!V96/1000,0)) -> 109 | W96: =IF(千円単!W96="","",ROUND(千円単!W96/1000,0)) -> 263 | X96: =IF(千円単!X96="","",ROUND(千円単!X96/1000,0)) -> -104 | Y96: =IF(千円単!Y96="","",ROUND(千円単!Y96/1000,0)) -> 5
A97: 2021 | B97: 46 | C97: 17 | D97: 1 | E97: 96 | F97: 公共 | G97: 045055 | H97: 宮城県 | I97: 美里町 | J97: =IF(千円単!J97="","",ROUND(千円単!J97/1000,0)) -> 443 | K97: =IF(千円単!K97="","",ROUND(千円単!K97/1000,0)) -> 154 | L97: =IF(千円単!L97="","",ROUND(千円単!L97/1000,0)) -> 119 | M97: =IF(千円単!M97="","",ROUND(千円単!M97/1000,0)) -> 431 | N97: =IF(千円単!N97="","",ROUND(千円単!N97/1000,0)) -> 58 | O97: =IF(千円単!O97="","",ROUND(千円単!O97/1000,0)) -> 252 | P97: =IF(千円単!P97="","",ROUND(千円単!P97/1000,0)) -> 9 | Q97: =IF(千円単!Q97="","",ROUND(千円単!Q97/1000,0)) -> 12 | R97: =IF(千円単!R97="","",ROUND(千円単!R97/1000,0)) -> 737 | S97: =IF(千円単!S97="","",ROUND(千円単!S97/1000,0)) -> 512 | T97: =IF(千円単!T97="","",ROUND(千円単!T97/1000,0)) -> 59 | U97: =IF(千円単!U97="","",ROUND(千円単!U97/1000,0)) -> 842 | V97: =IF(千円単!V97="","",ROUND(千円単!V97/1000,0)) -> 486 | W97: =IF(千円単!W97="","",ROUND(千円単!W97/1000,0)) -> 356 | X97: =IF(千円単!X97="","",ROUND(千円単!X97/1000,0)) -> -105 | Y97: =IF(千円単!Y97="","",ROUND(千円単!Y97/1000,0)) -> 12
A98: 2021 | B98: 46 | C98: 17 | D98: 1 | E98: 97 | F98: 公共 | G98: 052019 | H98: 秋田県 | I98: 秋田市 | J98: =IF(千円単!J98="","",ROUND(千円単!J98/1000,0)) -> 9857 | K98: =IF(千円単!K98="","",ROUND(千円単!K98/1000,0)) -> 4795 | L98: =IF(千円単!L98="","",ROUND(千円単!L98/1000,0)) -> 3113 | M98: =IF(千円単!M98="","",ROUND(千円単!M98/1000,0)) -> 9469 | N98: =IF(千円単!N98="","",ROUND(千円単!N98/1000,0)) -> 712 | O98: =IF(千円単!O98="","",ROUND(千円単!O98/1000,0)) -> 5187 | P98: =IF(千円単!P98="","",ROUND(千円単!P98/1000,0)) -> 388 | Q98: =IF(千円単!Q98="","",ROUND(千円単!Q98/1000,0)) -> 388 | R98: =IF(千円単!R98="","",ROUND(千円単!R98/1000,0)) -> 5297 | S98: =IF(千円単!S98="","",ROUND(千円単!S98/1000,0)) -> 3375 | T98: =IF(千円単!T98="","",ROUND(千円単!T98/1000,0)) -> 866 | U98: =IF(千円単!U98="","",ROUND(千円単!U98/1000,0)) -> 9290 | V98: =IF(千円単!V98="","",ROUND(千円単!V98/1000,0)) -> 3848 | W98: =IF(千円単!W98="","",ROUND(千円単!W98/1000,0)) -> 5442 | X98: =IF(千円単!X98="","",ROUND(千円単!X98/1000,0)) -> -3993 | Y98: =IF(千円単!Y98="","",ROUND(千円単!Y98/1000,0)) -> 388
A99: 2021 | B99: 46 | C99: 17 | D99: 1 | E99: 98 | F99: 公共 | G99: 052027 | H99: 秋田県 | I99: 能代市 | J99: =IF(千円単!J99="","",ROUND(千円単!J99/1000,0)) -> 1574 | K99: =IF(千円単!K99="","",ROUND(千円単!K99/1000,0)) -> 409 | L99: =IF(千円単!L99="","",ROUND(千円単!L99/1000,0)) -> 782 | M99: =IF(千円単!M99="","",ROUND(千円単!M99/1000,0)) -> 1347 | N99: =IF(千円単!N99="","",ROUND(千円単!N99/1000,0)) -> 137 | O99: =IF(千円単!O99="","",ROUND(千円単!O99/1000,0)) -> 885 | P99: =IF(千円単!P99="","",ROUND(千円単!P99/1000,0)) -> 27 | Q99: =IF(千円単!Q99="","",ROUND(千円単!Q99/1000,0)) -> 226 | R99: =IF(千円単!R99="","",ROUND(千円単!R99/1000,0)) -> 1176 | S99: =IF(千円単!S99="","",ROUND(千円単!S99/1000,0)) -> 806 | T99: =IF(千円単!T99="","",ROUND(千円単!T99/1000,0)) -> 59 | U99: =IF(千円単!U99="","",ROUND(千円単!U99/1000,0)) -> 1660 | V99: =IF(千円単!V99="","",ROUND(千円単!V99/1000,0)) -> 722 | W99: =IF(千円単!W99="","",ROUND(千円単!W99/1000,0)) -> 939 | X99: =IF(千円単!X99="","",ROUND(千円単!X99/1000,0)) -> -484 | Y99: =IF(千円単!Y99="","",ROUND(千円単!Y99/1000,0)) -> 226
A100: 2021 | B100: 46 | C100: 17 | D100: 1 | E100: 99 | F100: 公共 | G100: 052035 | H100: 秋田県 | I100: 横手市 | J100: =IF(千円単!J100="","",ROUND(千円単!J100/1000,0)) -> 1625 | K100: =IF(千円単!K100="","",ROUND(千円単!K100/1000,0)) -> 645 | L100: =IF(千円単!L100="","",ROUND(千円単!L100/1000,0)) -> 681 | M100: =IF(千円単!M100="","",ROUND(千円単!M100/1000,0)) -> 1554 | N100: =IF(千円単!N100="","",ROUND(千円単!N100/1000,0)) -> 178 | O100: =IF(千円単!O100="","",ROUND(千円単!O100/1000,0)) -> 845 | P100: =IF(千円単!P100="","",ROUND(千円単!P100/1000,0)) -> 91 | Q100: =IF(千円単!Q100="","",ROUND(千円単!Q100/1000,0)) -> 72 | R100: =IF(千円単!R100="","",ROUND(千円単!R100/1000,0)) -> 1120 | S100: =IF(千円単!S100="","",ROUND(千円単!S100/1000,0)) -> 658 | T100: =IF(千円単!T100="","",ROUND(千円単!T100/1000,0)) -> 314 | U100: =IF(千円単!U100="","",ROUND(千円単!U100/1000,0)) -> 1760 | V100: =IF(千円単!V100="","",ROUND(千円単!V100/1000,0)) -> 437 | W100: =IF(千円単!W100="","",ROUND(千円単!W100/1000,0)) -> 1324 | X100: =IF(千円単!X100="","",ROUND(千円単!X100/1000,0)) -> -640 | Y100: =IF(千円単!Y100="","",ROUND(千円単!Y100/1000,0)) -> 72
A101: 2021 | B101: 46 | C101: 17 | D101: 1 | E101: 100 | F101: 公共 | G101: 052043 | H101: 秋田県 | I101: 大館市 | J101: =IF(千円単!J101="","",ROUND(千円単!J101/1000,0)) -> 1221 | K101: =IF(千円単!K101="","",ROUND(千円単!K101/1000,0)) -> 493 | L101: =IF(千円単!L101="","",ROUND(千円単!L101/1000,0)) -> 493 | M101: =IF(千円単!M101="","",ROUND(千円単!M101/1000,0)) -> 1206 | N101: =IF(千円単!N101="","",ROUND(千円単!N101/1000,0)) -> 152 | O101: =IF(千円単!O101="","",ROUND(千円単!O101/1000,0)) -> 663 | P101: =IF(千円単!P101="","",ROUND(千円単!P101/1000,0)) -> 50 | Q101: =IF(千円単!Q101="","",ROUND(千円単!Q101/1000,0)) -> 14 | R101: =IF(千円単!R101="","",ROUND(千円単!R101/1000,0)) -> 933 | S101: =IF(千円単!S101="","",ROUND(千円単!S101/1000,0)) -> 602 | T101: =IF(千円単!T101="","",ROUND(千円単!T101/1000,0)) -> 165 | U101: =IF(千円単!U101="","",ROUND(千円単!U101/1000,0)) -> 1511 | V101: =IF(千円単!V101="","",ROUND(千円単!V101/1000,0)) -> 428 | W101: =IF(千円単!W101="","",ROUND(千円単!W101/1000,0)) -> 1084 | X101: =IF(千円単!X101="","",ROUND(千円単!X101/1000,0)) -> -578 | Y101: =IF(千円単!Y101="","",ROUND(千円単!Y101/1000,0)) -> 14
A102: 2021 | B102: 46 | C102: 17 | D102: 1 | E102: 101 | F102: 公共 | G102: 052060 | H102: 秋田県 | I102: 男鹿市 | J102: =IF(千円単!J102="","",ROUND(千円単!J102/1000,0)) -> 620 | K102: =IF(千円単!K102="","",ROUND(千円単!K102/1000,0)) -> 193 | L102: =IF(千円単!L102="","",ROUND(千円単!L102/1000,0)) -> 228 | M102: =IF(千円単!M102="","",ROUND(千円単!M102/1000,0)) -> 588 | N102: =IF(千円単!N102="","",ROUND(千円単!N102/1000,0)) -> 94 | O102: =IF(千円単!O102="","",ROUND(千円単!O102/1000,0)) -> 367 | P102: =IF(千円単!P102="","",ROUND(千円単!P102/1000,0)) -> 21 | Q102: =IF(千円単!Q102="","",ROUND(千円単!Q102/1000,0)) -> 33 | R102: =IF(千円単!R102="","",ROUND(千円単!R102/1000,0)) -> 413 | S102: =IF(千円単!S102="","",ROUND(千円単!S102/1000,0)) -> 199 | T102: =IF(千円単!T102="","",ROUND(千円単!T102/1000,0)) -> 199 | U102: =IF(千円単!U102="","",ROUND(千円単!U102/1000,0)) -> 622 | V102: =IF(千円単!V102="","",ROUND(千円単!V102/1000,0)) -> 37 | W102: =IF(千円単!W102="","",ROUND(千円単!W102/1000,0)) -> 585 | X102: =IF(千円単!X102="","",ROUND(千円単!X102/1000,0)) -> -209 | Y102: =IF(千円単!Y102="","",ROUND(千円単!Y102/1000,0)) -> 33
A103: 2021 | B103: 46 | C103: 17 | D103: 1 | E103: 102 | F103: 公共 | G103: 052078 | H103: 秋田県 | I103: 湯沢市 | J103: =IF(千円単!J103="","",ROUND(千円単!J103/1000,0)) -> 682 | K103: =IF(千円単!K103="","",ROUND(千円単!K103/1000,0)) -> 188 | L103: =IF(千円単!L103="","",ROUND(千円単!L103/1000,0)) -> 308 | M103: =IF(千円単!M103="","",ROUND(千円単!M103/1000,0)) -> 638 | N103: =IF(千円単!N103="","",ROUND(千円単!N103/1000,0)) -> 89 | O103: =IF(千円単!O103="","",ROUND(千円単!O103/1000,0)) -> 401 | P103: =IF(千円単!P103="","",ROUND(千円単!P103/1000,0)) -> 9 | Q103: =IF(千円単!Q103="","",ROUND(千円単!Q103/1000,0)) -> 45 | R103: =IF(千円単!R103="","",ROUND(千円単!R103/1000,0)) -> 512 | S103: =IF(千円単!S103="","",ROUND(千円単!S103/1000,0)) -> 226 | T103: =IF(千円単!T103="","",ROUND(千円単!T103/1000,0)) -> 245 | U103: =IF(千円単!U103="","",ROUND(千円単!U103/1000,0)) -> 736 | V103: =IF(千円単!V103="","",ROUND(千円単!V103/1000,0)) -> 101 | W103: =IF(千円単!W103="","",ROUND(千円単!W103/1000,0)) -> 635 | X103: =IF(千円単!X103="","",ROUND(千円単!X103/1000,0)) -> -224 | Y103: =IF(千円単!Y103="","",ROUND(千円単!Y103/1000,0)) -> 45
A104: 2021 | B104: 46 | C104: 17 | D104: 1 | E104: 103 | F104: 公共 | G104: 052094 | H104: 秋田県 | I104: 鹿角市 | J104: =IF(千円単!J104="","",ROUND(千円単!J104/1000,0)) -> 705 | K104: =IF(千円単!K104="","",ROUND(千円単!K104/1000,0)) -> 206 | L104: =IF(千円単!L104="","",ROUND(千円単!L104/1000,0)) -> 363 | M104: =IF(千円単!M104="","",ROUND(千円単!M104/1000,0)) -> 688 | N104: =IF(千円単!N104="","",ROUND(千円単!N104/1000,0)) -> 80 | O104: =IF(千円単!O104="","",ROUND(千円単!O104/1000,0)) -> 353 | P104: =IF(千円単!P104="","",ROUND(千円単!P104/1000,0)) -> 12 | Q104: =IF(千円単!Q104="","",ROUND(千円単!Q104/1000,0)) -> 17 | R104: =IF(千円単!R104="","",ROUND(千円単!R104/1000,0)) -> 409 | S104: =IF(千円単!S104="","",ROUND(千円単!S104/1000,0)) -> 250 | T104: =IF(千円単!T104="","",ROUND(千円単!T104/1000,0)) -> 120 | U104: =IF(千円単!U104="","",ROUND(千円単!U104/1000,0)) -> 625 | V104: =IF(千円単!V104="","",ROUND(千円単!V104/1000,0)) -> 144 | W104: =IF(千円単!W104="","",ROUND(千円単!W104/1000,0)) -> 481 | X104: =IF(千円単!X104="","",ROUND(千円単!X104/1000,0)) -> -216 | Y104: =IF(千円単!Y104="","",ROUND(千円単!Y104/1000,0)) -> 17
A105: 2021 | B105: 46 | C105: 17 | D105: 1 | E105: 104 | F105: 公共 | G105: 052108 | H105: 秋田県 | I105: 由利本荘市 | J105: =IF(千円単!J105="","",ROUND(千円単!J105/1000,0)) -> 1015 | K105: =IF(千円単!K105="","",ROUND(千円単!K105/1000,0)) -> 285 | L105: =IF(千円単!L105="","",ROUND(千円単!L105/1000,0)) -> 512 | M105: =IF(千円単!M105="","",ROUND(千円単!M105/1000,0)) -> 1016 | N105: =IF(千円単!N105="","",ROUND(千円単!N105/1000,0)) -> 131 | O105: =IF(千円単!O105="","",ROUND(千円単!O105/1000,0)) -> 617 | P105: =IF(千円単!P105="","",ROUND(千円単!P105/1000,0)) -> 35 | Q105: =IF(千円単!Q105="","",ROUND(千円単!Q105/1000,0)) -> -1 | R105: =IF(千円単!R105="","",ROUND(千円単!R105/1000,0)) -> 1092 | S105: =IF(千円単!S105="","",ROUND(千円単!S105/1000,0)) -> 509 | T105: =IF(千円単!T105="","",ROUND(千円単!T105/1000,0)) -> 25 | U105: =IF(千円単!U105="","",ROUND(千円単!U105/1000,0)) -> 1485 | V105: =IF(千円単!V105="","",ROUND(千円単!V105/1000,0)) -> 456 | W105: =IF(千円単!W105="","",ROUND(千円単!W105/1000,0)) -> 1023 | X105: =IF(千円単!X105="","",ROUND(千円単!X105/1000,0)) -> -393 | Y105: =IF(千円単!Y105="","",ROUND(千円単!Y105/1000,0)) -> -1
A106: 2021 | B106: 46 | C106: 17 | D106: 1 | E106: 105 | F106: 公共 | G106: 052116 | H106: 秋田県 | I106: 潟上市 | J106: =IF(千円単!J106="","",ROUND(千円単!J106/1000,0)) -> 575 | K106: =IF(千円単!K106="","",ROUND(千円単!K106/1000,0)) -> 270 | L106: =IF(千円単!L106="","",ROUND(千円単!L106/1000,0)) -> 109 | M106: =IF(千円単!M106="","",ROUND(千円単!M106/1000,0)) -> 555 | N106: =IF(千円単!N106="","",ROUND(千円単!N106/1000,0)) -> 41 | O106: =IF(千円単!O106="","",ROUND(千円単!O106/1000,0)) -> 344 | P106: =IF(千円単!P106="","",ROUND(千円単!P106/1000,0)) -> 24 | Q106: =IF(千円単!Q106="","",ROUND(千円単!Q106/1000,0)) -> 20 | R106: =IF(千円単!R106="","",ROUND(千円単!R106/1000,0)) -> 192 | S106: =IF(千円単!S106="","",ROUND(千円単!S106/1000,0)) -> 76 | T106: =IF(千円単!T106="","",ROUND(千円単!T106/1000,0)) -> 116 | U106: =IF(千円単!U106="","",ROUND(千円単!U106/1000,0)) -> 335 | V106: =IF(千円単!V106="","",ROUND(千円単!V106/1000,0)) -> 26 | W106: =IF(千円単!W106="","",ROUND(千円単!W106/1000,0)) -> 310 | X106: =IF(千円単!X106="","",ROUND(千円単!X106/1000,0)) -> -143 | Y106: =IF(千円単!Y106="","",ROUND(千円単!Y106/1000,0)) -> 20
A107: 2021 | B107: 46 | C107: 17 | D107: 1 | E107: 106 | F107: 公共 | G107: 052124 | H107: 秋田県 | I107: 大仙市 | J107: =IF(千円単!J107="","",ROUND(千円単!J107/1000,0)) -> 1271 | K107: =IF(千円単!K107="","",ROUND(千円単!K107/1000,0)) -> 342 | L107: =IF(千円単!L107="","",ROUND(千円単!L107/1000,0)) -> 549 | M107: =IF(千円単!M107="","",ROUND(千円単!M107/1000,0)) -> 1022 | N107: =IF(千円単!N107="","",ROUND(千円単!N107/1000,0)) -> 126 | O107: =IF(千円単!O107="","",ROUND(千円単!O107/1000,0)) -> 526 | P107: =IF(千円単!P107="","",ROUND(千円単!P107/1000,0)) -> 41 | Q107: =IF(千円単!Q107="","",ROUND(千円単!Q107/1000,0)) -> 248 | R107: =IF(千円単!R107="","",ROUND(千円単!R107/1000,0)) -> 461 | S107: =IF(千円単!S107="","",ROUND(千円単!S107/1000,0)) -> 243 | T107: =IF(千円単!T107="","",ROUND(千円単!T107/1000,0)) -> 187 | U107: =IF(千円単!U107="","",ROUND(千円単!U107/1000,0)) -> 850 | V107: =IF(千円単!V107="","",ROUND(千円単!V107/1000,0)) -> 86 | W107: =IF(千円単!W107="","",ROUND(千円単!W107/1000,0)) -> 764 | X107: =IF(千円単!X107="","",ROUND(千円単!X107/1000,0)) -> -389 | Y107: =IF(千円単!Y107="","",ROUND(千円単!Y107/1000,0)) -> 248
A108: 2021 | B108: 46 | C108: 17 | D108: 1 | E108: 107 | F108: 公共 | G108: 052132 | H108: 秋田県 | I108: 北秋田市 | J108: =IF(千円単!J108="","",ROUND(千円単!J108/1000,0)) -> 856 | K108: =IF(千円単!K108="","",ROUND(千円単!K108/1000,0)) -> 253 | L108: =IF(千円単!L108="","",ROUND(千円単!L108/1000,0)) -> 368 | M108: =IF(千円単!M108="","",ROUND(千円単!M108/1000,0)) -> 833 | N108: =IF(千円単!N108="","",ROUND(千円単!N108/1000,0)) -> 90 | O108: =IF(千円単!O108="","",ROUND(千円単!O108/1000,0)) -> 492 | P108: =IF(千円単!P108="","",ROUND(千円単!P108/1000,0)) -> 47 | Q108: =IF(千円単!Q108="","",ROUND(千円単!Q108/1000,0)) -> 23 | R108: =IF(千円単!R108="","",ROUND(千円単!R108/1000,0)) -> 932 | S108: =IF(千円単!S108="","",ROUND(千円単!S108/1000,0)) -> 453 | T108: =IF(千円単!T108="","",ROUND(千円単!T108/1000,0)) -> 38 | U108: =IF(千円単!U108="","",ROUND(千円単!U108/1000,0)) -> 1198 | V108: =IF(千円単!V108="","",ROUND(千円単!V108/1000,0)) -> 500 | W108: =IF(千円単!W108="","",ROUND(千円単!W108/1000,0)) -> 698 | X108: =IF(千円単!X108="","",ROUND(千円単!X108/1000,0)) -> -267 | Y108: =IF(千円単!Y108="","",ROUND(千円単!Y108/1000,0)) -> 23
A109: 2021 | B109: 46 | C109: 17 | D109: 1 | E109: 108 | F109: 公共 | G109: 052159 | H109: 秋田県 | I109: 仙北市 | J109: =IF(千円単!J109="","",ROUND(千円単!J109/1000,0)) -> 496 | K109: =IF(千円単!K109="","",ROUND(千円単!K109/1000,0)) -> 105 | L109: =IF(千円単!L109="","",ROUND(千円単!L109/1000,0)) -> 248 | M109: =IF(千円単!M109="","",ROUND(千円単!M109/1000,0)) -> 524 | N109: =IF(千円単!N109="","",ROUND(千円単!N109/1000,0)) -> 50 | O109: =IF(千円単!O109="","",ROUND(千円単!O109/1000,0)) -> 275 | P109: =IF(千円単!P109="","",ROUND(千円単!P109/1000,0)) -> 20 | Q109: =IF(千円単!Q109="","",ROUND(千円単!Q109/1000,0)) -> -27 | R109: =IF(千円単!R109="","",ROUND(千円単!R109/1000,0)) -> 413 | S109: =IF(千円単!S109="","",ROUND(千円単!S109/1000,0)) -> 192 | T109: =IF(千円単!T109="","",ROUND(千円単!T109/1000,0)) -> 29 | U109: =IF(千円単!U109="","",ROUND(千円単!U109/1000,0)) -> 535 | V109: =IF(千円単!V109="","",ROUND(千円単!V109/1000,0)) -> 172 | W109: =IF(千円単!W109="","",ROUND(千円単!W109/1000,0)) -> 363 | X109: =IF(千円単!X109="","",ROUND(千円単!X109/1000,0)) -> -121 | Y109: =IF(千円単!Y109="","",ROUND(千円単!Y109/1000,0)) -> -27
A110: 2021 | B110: 46 | C110: 17 | D110: 1 | E110: 109 | F110: 公共 | G110: 053619 | H110: 秋田県 | I110: 五城目町 | J110: =IF(千円単!J110="","",ROUND(千円単!J110/1000,0)) -> 246 | K110: =IF(千円単!K110="","",ROUND(千円単!K110/1000,0)) -> 59 | L110: =IF(千円単!L110="","",ROUND(千円単!L110/1000,0)) -> 126 | M110: =IF(千円単!M110="","",ROUND(千円単!M110/1000,0)) -> 239 | N110: =IF(千円単!N110="","",ROUND(千円単!N110/1000,0)) -> 30 | O110: =IF(千円単!O110="","",ROUND(千円単!O110/1000,0)) -> 139 | P110: =IF(千円単!P110="","",ROUND(千円単!P110/1000,0)) -> 14 | Q110: =IF(千円単!Q110="","",ROUND(千円単!Q110/1000,0)) -> 8 | R110: =IF(千円単!R110="","",ROUND(千円単!R110/1000,0)) -> 117 | S110: =IF(千円単!S110="","",ROUND(千円単!S110/1000,0)) -> 81 | T110: =IF(千円単!T110="","",ROUND(千円単!T110/1000,0)) -> 0 | U110: =IF(千円単!U110="","",ROUND(千円単!U110/1000,0)) -> 189 | V110: =IF(千円単!V110="","",ROUND(千円単!V110/1000,0)) -> 8 | W110: =IF(千円単!W110="","",ROUND(千円単!W110/1000,0)) -> 180 | X110: =IF(千円単!X110="","",ROUND(千円単!X110/1000,0)) -> -72 | Y110: =IF(千円単!Y110="","",ROUND(千円単!Y110/1000,0)) -> 8
A111: 2021 | B111: 46 | C111: 17 | D111: 1 | E111: 110 | F111: 公共 | G111: 062014 | H111: 山形県 | I111: 山形市 | J111: =IF(千円単!J111="","",ROUND(千円単!J111/1000,0)) -> 6634 | K111: =IF(千円単!K111="","",ROUND(千円単!K111/1000,0)) -> 3814 | L111: =IF(千円単!L111="","",ROUND(千円単!L111/1000,0)) -> 1081 | M111: =IF(千円単!M111="","",ROUND(千円単!M111/1000,0)) -> 6539 | N111: =IF(千円単!N111="","",ROUND(千円単!N111/1000,0)) -> 985 | O111: =IF(千円単!O111="","",ROUND(千円単!O111/1000,0)) -> 4149 | P111: =IF(千円単!P111="","",ROUND(千円単!P111/1000,0)) -> 183 | Q111: =IF(千円単!Q111="","",ROUND(千円単!Q111/1000,0)) -> 95 | R111: =IF(千円単!R111="","",ROUND(千円単!R111/1000,0)) -> 6006 | S111: =IF(千円単!S111="","",ROUND(千円単!S111/1000,0)) -> 3566 | T111: =IF(千円単!T111="","",ROUND(千円単!T111/1000,0)) -> 1675 | U111: =IF(千円単!U111="","",ROUND(千円単!U111/1000,0)) -> 8400 | V111: =IF(千円単!V111="","",ROUND(千円単!V111/1000,0)) -> 2466 | W111: =IF(千円単!W111="","",ROUND(千円単!W111/1000,0)) -> 5934 | X111: =IF(千円単!X111="","",ROUND(千円単!X111/1000,0)) -> -2394 | Y111: =IF(千円単!Y111="","",ROUND(千円単!Y111/1000,0)) -> 95
A112: 2021 | B112: 46 | C112: 17 | D112: 1 | E112: 111 | F112: 公共 | G112: 062022 | H112: 山形県 | I112: 米沢市 | J112: =IF(千円単!J112="","",ROUND(千円単!J112/1000,0)) -> 2241 | K112: =IF(千円単!K112="","",ROUND(千円単!K112/1000,0)) -> 1110 | L112: =IF(千円単!L112="","",ROUND(千円単!L112/1000,0)) -> 362 | M112: =IF(千円単!M112="","",ROUND(千円単!M112/1000,0)) -> 2105 | N112: =IF(千円単!N112="","",ROUND(千円単!N112/1000,0)) -> 222 | O112: =IF(千円単!O112="","",ROUND(千円単!O112/1000,0)) -> 1206 | P112: =IF(千円単!P112="","",ROUND(千円単!P112/1000,0)) -> 139 | Q112: =IF(千円単!Q112="","",ROUND(千円単!Q112/1000,0)) -> 136 | R112: =IF(千円単!R112="","",ROUND(千円単!R112/1000,0)) -> 902 | S112: =IF(千円単!S112="","",ROUND(千円単!S112/1000,0)) -> 540 | T112: =IF(千円単!T112="","",ROUND(千円単!T112/1000,0)) -> 188 | U112: =IF(千円単!U112="","",ROUND(千円単!U112/1000,0)) -> 1592 | V112: =IF(千円単!V112="","",ROUND(千円単!V112/1000,0)) -> 361 | W112: =IF(千円単!W112="","",ROUND(千円単!W112/1000,0)) -> 1230 | X112: =IF(千円単!X112="","",ROUND(千円単!X112/1000,0)) -> -689 | Y112: =IF(千円単!Y112="","",ROUND(千円単!Y112/1000,0)) -> 136
A113: 2021 | B113: 46 | C113: 17 | D113: 1 | E113: 112 | F113: 公共 | G113: 062031 | H113: 山形県 | I113: 鶴岡市 | J113: =IF(千円単!J113="","",ROUND(千円単!J113/1000,0)) -> 4138 | K113: =IF(千円単!K113="","",ROUND(千円単!K113/1000,0)) -> 2154 | L113: =IF(千円単!L113="","",ROUND(千円単!L113/1000,0)) -> 528 | M113: =IF(千円単!M113="","",ROUND(千円単!M113/1000,0)) -> 4421 | N113: =IF(千円単!N113="","",ROUND(千円単!N113/1000,0)) -> 385 | O113: =IF(千円単!O113="","",ROUND(千円単!O113/1000,0)) -> 2402 | P113: =IF(千円単!P113="","",ROUND(千円単!P113/1000,0)) -> 160 | Q113: =IF(千円単!Q113="","",ROUND(千円単!Q113/1000,0)) -> -282 | R113: =IF(千円単!R113="","",ROUND(千円単!R113/1000,0)) -> 3372 | S113: =IF(千円単!S113="","",ROUND(千円単!S113/1000,0)) -> 1401 | T113: =IF(千円単!T113="","",ROUND(千円単!T113/1000,0)) -> 988 | U113: =IF(千円単!U113="","",ROUND(千円単!U113/1000,0)) -> 4576 | V113: =IF(千円単!V113="","",ROUND(千円単!V113/1000,0)) -> 2003 | W113: =IF(千円単!W113="","",ROUND(千円単!W113/1000,0)) -> 2570 | X113: =IF(千円単!X113="","",ROUND(千円単!X113/1000,0)) -> -1203 | Y113: =IF(千円単!Y113="","",ROUND(千円単!Y113/1000,0)) -> -282
A114: 2021 | B114: 46 | C114: 17 | D114: 1 | E114: 113 | F114: 公共 | G114: 062049 | H114: 山形県 | I114: 酒田市 | J114: =IF(千円単!J114="","",ROUND(千円単!J114/1000,0)) -> 3607 | K114: =IF(千円単!K114="","",ROUND(千円単!K114/1000,0)) -> 1476 | L114: =IF(千円単!L114="","",ROUND(千円単!L114/1000,0)) -> 1697 | M114: =IF(千円単!M114="","",ROUND(千円単!M114/1000,0)) -> 3529 | N114: =IF(千円単!N114="","",ROUND(千円単!N114/1000,0)) -> 396 | O114: =IF(千円単!O114="","",ROUND(千円単!O114/1000,0)) -> 2094 | P114: =IF(千円単!P114="","",ROUND(千円単!P114/1000,0)) -> 146 | Q114: =IF(千円単!Q114="","",ROUND(千円単!Q114/1000,0)) -> 78 | R114: =IF(千円単!R114="","",ROUND(千円単!R114/1000,0)) -> 428 | S114: =IF(千円単!S114="","",ROUND(千円単!S114/1000,0)) -> 164 | T114: =IF(千円単!T114="","",ROUND(千円単!T114/1000,0)) -> 77 | U114: =IF(千円単!U114="","",ROUND(千円単!U114/1000,0)) -> 2128 | V114: =IF(千円単!V114="","",ROUND(千円単!V114/1000,0)) -> 305 | W114: =IF(千円単!W114="","",ROUND(千円単!W114/1000,0)) -> 1824 | X114: =IF(千円単!X114="","",ROUND(千円単!X114/1000,0)) -> -1700 | Y114: =IF(千円単!Y114="","",ROUND(千円単!Y114/1000,0)) -> 78
A115: 2021 | B115: 46 | C115: 17 | D115: 1 | E115: 114 | F115: 公共 | G115: 062057 | H115: 山形県 | I115: 新庄市 | J115: =IF(千円単!J115="","",ROUND(千円単!J115/1000,0)) -> 919 | K115: =IF(千円単!K115="","",ROUND(千円単!K115/1000,0)) -> 343 | L115: =IF(千円単!L115="","",ROUND(千円単!L115/1000,0)) -> 274 | M115: =IF(千円単!M115="","",ROUND(千円単!M115/1000,0)) -> 892 | N115: =IF(千円単!N115="","",ROUND(千円単!N115/1000,0)) -> 76 | O115: =IF(千円単!O115="","",ROUND(千円単!O115/1000,0)) -> 555 | P115: =IF(千円単!P115="","",ROUND(千円単!P115/1000,0)) -> 46 | Q115: =IF(千円単!Q115="","",ROUND(千円単!Q115/1000,0)) -> 27 | R115: =IF(千円単!R115="","",ROUND(千円単!R115/1000,0)) -> 488 | S115: =IF(千円単!S115="","",ROUND(千円単!S115/1000,0)) -> 235 | T115: =IF(千円単!T115="","",ROUND(千円単!T115/1000,0)) -> 0 | U115: =IF(千円単!U115="","",ROUND(千円単!U115/1000,0)) -> 769 | V115: =IF(千円単!V115="","",ROUND(千円単!V115/1000,0)) -> 195 | W115: =IF(千円単!W115="","",ROUND(千円単!W115/1000,0)) -> 574 | X115: =IF(千円単!X115="","",ROUND(千円単!X115/1000,0)) -> -281 | Y115: =IF(千円単!Y115="","",ROUND(千円単!Y115/1000,0)) -> 27
A116: 2021 | B116: 46 | C116: 17 | D116: 1 | E116: 115 | F116: 公共 | G116: 062065 | H116: 山形県 | I116: 寒河江市 | J116: =IF(千円単!J116="","",ROUND(千円単!J116/1000,0)) -> 1344 | K116: =IF(千円単!K116="","",ROUND(千円単!K116/1000,0)) -> 518 | L116: =IF(千円単!L116="","",ROUND(千円単!L116/1000,0)) -> 356 | M116: =IF(千円単!M116="","",ROUND(千円単!M116/1000,0)) -> 1313 | N116: =IF(千円単!N116="","",ROUND(千円単!N116/1000,0)) -> 113 | O116: =IF(千円単!O116="","",ROUND(千円単!O116/1000,0)) -> 867 | P116: =IF(千円単!P116="","",ROUND(千円単!P116/1000,0)) -> 58 | Q116: =IF(千円単!Q116="","",ROUND(千円単!Q116/1000,0)) -> 30 | R116: =IF(千円単!R116="","",ROUND(千円単!R116/1000,0)) -> 543 | S116: =IF(千円単!S116="","",ROUND(千円単!S116/1000,0)) -> 264 | T116: =IF(千円単!T116="","",ROUND(千円単!T116/1000,0)) -> 74 | U116: =IF(千円単!U116="","",ROUND(千円単!U116/1000,0)) -> 998 | V116: =IF(千円単!V116="","",ROUND(千円単!V116/1000,0)) -> 440 | W116: =IF(千円単!W116="","",ROUND(千円単!W116/1000,0)) -> 559 | X116: =IF(千円単!X116="","",ROUND(千円単!X116/1000,0)) -> -455 | Y116: =IF(千円単!Y116="","",ROUND(千円単!Y116/1000,0)) -> 30
A117: 2021 | B117: 46 | C117: 17 | D117: 1 | E117: 116 | F117: 公共 | G117: 062073 | H117: 山形県 | I117: 上山市 | J117: =IF(千円単!J117="","",ROUND(千円単!J117/1000,0)) -> 1017 | K117: =IF(千円単!K117="","",ROUND(千円単!K117/1000,0)) -> 462 | L117: =IF(千円単!L117="","",ROUND(千円単!L117/1000,0)) -> 256 | M117: =IF(千円単!M117="","",ROUND(千円単!M117/1000,0)) -> 973 | N117: =IF(千円単!N117="","",ROUND(千円単!N117/1000,0)) -> 74 | O117: =IF(千円単!O117="","",ROUND(千円単!O117/1000,0)) -> 624 | P117: =IF(千円単!P117="","",ROUND(千円単!P117/1000,0)) -> 24 | Q117: =IF(千円単!Q117="","",ROUND(千円単!Q117/1000,0)) -> 44 | R117: =IF(千円単!R117="","",ROUND(千円単!R117/1000,0)) -> 644 | S117: =IF(千円単!S117="","",ROUND(千円単!S117/1000,0)) -> 434 | T117: =IF(千円単!T117="","",ROUND(千円単!T117/1000,0)) -> 47 | U117: =IF(千円単!U117="","",ROUND(千円単!U117/1000,0)) -> 917 | V117: =IF(千円単!V117="","",ROUND(千円単!V117/1000,0)) -> 524 | W117: =IF(千円単!W117="","",ROUND(千円単!W117/1000,0)) -> 393 | X117: =IF(千円単!X117="","",ROUND(千円単!X117/1000,0)) -> -273 | Y117: =IF(千円単!Y117="","",ROUND(千円単!Y117/1000,0)) -> 44
A118: 2021 | B118: 46 | C118: 17 | D118: 1 | E118: 117 | F118: 公共 | G118: 062081 | H118: 山形県 | I118: 村山市 | J118: =IF(千円単!J118="","",ROUND(千円単!J118/1000,0)) -> 558 | K118: =IF(千円単!K118="","",ROUND(千円単!K118/1000,0)) -> 203 | L118: =IF(千円単!L118="","",ROUND(千円単!L118/1000,0)) -> 107 | M118: =IF(千円単!M118="","",ROUND(千円単!M118/1000,0)) -> 549 | N118: =IF(千円単!N118="","",ROUND(千円単!N118/1000,0)) -> 52 | O118: =IF(千円単!O118="","",ROUND(千円単!O118/1000,0)) -> 347 | P118: =IF(千円単!P118="","",ROUND(千円単!P118/1000,0)) -> 22 | Q118: =IF(千円単!Q118="","",ROUND(千円単!Q118/1000,0)) -> 9 | R118: =IF(千円単!R118="","",ROUND(千円単!R118/1000,0)) -> 408 | S118: =IF(千円単!S118="","",ROUND(千円単!S118/1000,0)) -> 101 | T118: =IF(千円単!T118="","",ROUND(千円単!T118/1000,0)) -> 0 | U118: =IF(千円単!U118="","",ROUND(千円単!U118/1000,0)) -> 528 | V118: =IF(千円単!V118="","",ROUND(千円単!V118/1000,0)) -> 60 | W118: =IF(千円単!W118="","",ROUND(千円単!W118/1000,0)) -> 468 | X118: =IF(千円単!X118="","",ROUND(千円単!X118/1000,0)) -> -119 | Y118: =IF(千円単!Y118="","",ROUND(千円単!Y118/1000,0)) -> 9
A119: 2021 | B119: 46 | C119: 17 | D119: 1 | E119: 118 | F119: 公共 | G119: 062090 | H119: 山形県 | I119: 長井市 | J119: =IF(千円単!J119="","",ROUND(千円単!J119/1000,0)) -> 608 | K119: =IF(千円単!K119="","",ROUND(千円単!K119/1000,0)) -> 281 | L119: =IF(千円単!L119="","",ROUND(千円単!L119/1000,0)) -> 171 | M119: =IF(千円単!M119="","",ROUND(千円単!M119/1000,0)) -> 604 | N119: =IF(千円単!N119="","",ROUND(千円単!N119/1000,0)) -> 51 | O119: =IF(千円単!O119="","",ROUND(千円単!O119/1000,0)) -> 438 | P119: =IF(千円単!P119="","",ROUND(千円単!P119/1000,0)) -> 7 | Q119: =IF(千円単!Q119="","",ROUND(千円単!Q119/1000,0)) -> 3 | R119: =IF(千円単!R119="","",ROUND(千円単!R119/1000,0)) -> 437 | S119: =IF(千円単!S119="","",ROUND(千円単!S119/1000,0)) -> 170 | T119: =IF(千円単!T119="","",ROUND(千円単!T119/1000,0)) -> 167 | U119: =IF(千円単!U119="","",ROUND(千円単!U119/1000,0)) -> 741 | V119: =IF(千円単!V119="","",ROUND(千円単!V119/1000,0)) -> 228 | W119: =IF(千円単!W119="","",ROUND(千円単!W119/1000,0)) -> 513 | X119: =IF(千円単!X119="","",ROUND(千円単!X119/1000,0)) -> -303 | Y119: =IF(千円単!Y119="","",ROUND(千円単!Y119/1000,0)) -> 3
A120: 2021 | B120: 46 | C120: 17 | D120: 1 | E120: 119 | F120: 公共 | G120: 062103 | H120: 山形県 | I120: 天童市 | J120: =IF(千円単!J120="","",ROUND(千円単!J120/1000,0)) -> 1158 | K120: =IF(千円単!K120="","",ROUND(千円単!K120/1000,0)) -> 873 | L120: =IF(千円単!L120="","",ROUND(千円単!L120/1000,0)) -> 99 | M120: =IF(千円単!M120="","",ROUND(千円単!M120/1000,0)) -> 1059 | N120: =IF(千円単!N120="","",ROUND(千円単!N120/1000,0)) -> 122 | O120: =IF(千円単!O120="","",ROUND(千円単!O120/1000,0)) -> 571 | P120: =IF(千円単!P120="","",ROUND(千円単!P120/1000,0)) -> 23 | Q120: =IF(千円単!Q120="","",ROUND(千円単!Q120/1000,0)) -> 99 | R120: =IF(千円単!R120="","",ROUND(千円単!R120/1000,0)) -> 586 | S120: =IF(千円単!S120="","",ROUND(千円単!S120/1000,0)) -> 352 | T120: =IF(千円単!T120="","",ROUND(千円単!T120/1000,0)) -> 134 | U120: =IF(千円単!U120="","",ROUND(千円単!U120/1000,0)) -> 1066 | V120: =IF(千円単!V120="","",ROUND(千円単!V120/1000,0)) -> 454 | W120: =IF(千円単!W120="","",ROUND(千円単!W120/1000,0)) -> 612 | X120: =IF(千円単!X120="","",ROUND(千円単!X120/1000,0)) -> -480 | Y120: =IF(千円単!Y120="","",ROUND(千円単!Y120/1000,0)) -> 99
A121: 2021 | B121: 46 | C121: 17 | D121: 1 | E121: 120 | F121: 公共 | G121: 062111 | H121: 山形県 | I121: 東根市 | J121: =IF(千円単!J121="","",ROUND(千円単!J121/1000,0)) -> 1389 | K121: =IF(千円単!K121="","",ROUND(千円単!K121/1000,0)) -> 674 | L121: =IF(千円単!L121="","",ROUND(千円単!L121/1000,0)) -> 272 | M121: =IF(千円単!M121="","",ROUND(千円単!M121/1000,0)) -> 1379 | N121: =IF(千円単!N121="","",ROUND(千円単!N121/1000,0)) -> 126 | O121: =IF(千円単!O121="","",ROUND(千円単!O121/1000,0)) -> 795 | P121: =IF(千円単!P121="","",ROUND(千円単!P121/1000,0)) -> 38 | Q121: =IF(千円単!Q121="","",ROUND(千円単!Q121/1000,0)) -> 10 | R121: =IF(千円単!R121="","",ROUND(千円単!R121/1000,0)) -> 819 | S121: =IF(千円単!S121="","",ROUND(千円単!S121/1000,0)) -> 386 | T121: =IF(千円単!T121="","",ROUND(千円単!T121/1000,0)) -> 106 | U121: =IF(千円単!U121="","",ROUND(千円単!U121/1000,0)) -> 1135 | V121: =IF(千円単!V121="","",ROUND(千円単!V121/1000,0)) -> 560 | W121: =IF(千円単!W121="","",ROUND(千円単!W121/1000,0)) -> 575 | X121: =IF(千円単!X121="","",ROUND(千円単!X121/1000,0)) -> -316 | Y121: =IF(千円単!Y121="","",ROUND(千円単!Y121/1000,0)) -> 10
A122: 2021 | B122: 46 | C122: 17 | D122: 1 | E122: 121 | F122: 公共 | G122: 062138 | H122: 山形県 | I122: 南陽市 | J122: =IF(千円単!J122="","",ROUND(千円単!J122/1000,0)) -> 950 | K122: =IF(千円単!K122="","",ROUND(千円単!K122/1000,0)) -> 357 | L122: =IF(千円単!L122="","",ROUND(千円単!L122/1000,0)) -> 383 | M122: =IF(千円単!M122="","",ROUND(千円単!M122/1000,0)) -> 943 | N122: =IF(千円単!N122="","",ROUND(千円単!N122/1000,0)) -> 108 | O122: =IF(千円単!O122="","",ROUND(千円単!O122/1000,0)) -> 563 | P122: =IF(千円単!P122="","",ROUND(千円単!P122/1000,0)) -> 35 | Q122: =IF(千円単!Q122="","",ROUND(千円単!Q122/1000,0)) -> 7 | R122: =IF(千円単!R122="","",ROUND(千円単!R122/1000,0)) -> 631 | S122: =IF(千円単!S122="","",ROUND(千円単!S122/1000,0)) -> 244 | T122: =IF(千円単!T122="","",ROUND(千円単!T122/1000,0)) -> 247 | U122: =IF(千円単!U122="","",ROUND(千円単!U122/1000,0)) -> 998 | V122: =IF(千円単!V122="","",ROUND(千円単!V122/1000,0)) -> 293 | W122: =IF(千円単!W122="","",ROUND(千円単!W122/1000,0)) -> 705 | X122: =IF(千円単!X122="","",ROUND(千円単!X122/1000,0)) -> -367 | Y122: =IF(千円単!Y122="","",ROUND(千円単!Y122/1000,0)) -> 7
A123: 2021 | B123: 46 | C123: 17 | D123: 1 | E123: 122 | F123: 公共 | G123: 063011 | H123: 山形県 | I123: 山辺町 | J123: =IF(千円単!J123="","",ROUND(千円単!J123/1000,0)) -> 374 | K123: =IF(千円単!K123="","",ROUND(千円単!K123/1000,0)) -> 167 | L123: =IF(千円単!L123="","",ROUND(千円単!L123/1000,0)) -> 86 | M123: =IF(千円単!M123="","",ROUND(千円単!M123/1000,0)) -> 327 | N123: =IF(千円単!N123="","",ROUND(千円単!N123/1000,0)) -> 44 | O123: =IF(千円単!O123="","",ROUND(千円単!O123/1000,0)) -> 195 | P123: =IF(千円単!P123="","",ROUND(千円単!P123/1000,0)) -> 22 | Q123: =IF(千円単!Q123="","",ROUND(千円単!Q123/1000,0)) -> 47 | R123: =IF(千円単!R123="","",ROUND(千円単!R123/1000,0)) -> 218 | S123: =IF(千円単!S123="","",ROUND(千円単!S123/1000,0)) -> 145 | T123: =IF(千円単!T123="","",ROUND(千円単!T123/1000,0)) -> 69 | U123: =IF(千円単!U123="","",ROUND(千円単!U123/1000,0)) -> 337 | V123: =IF(千円単!V123="","",ROUND(千円単!V123/1000,0)) -> 14 | W123: =IF(千円単!W123="","",ROUND(千円単!W123/1000,0)) -> 323 | X123: =IF(千円単!X123="","",ROUND(千円単!X123/1000,0)) -> -119 | Y123: =IF(千円単!Y123="","",ROUND(千円単!Y123/1000,0)) -> 47
A124: 2021 | B124: 46 | C124: 17 | D124: 1 | E124: 123 | F124: 公共 | G124: 064289 | H124: 山形県 | I124: 庄内町 | J124: =IF(千円単!J124="","",ROUND(千円単!J124/1000,0)) -> 466 | K124: =IF(千円単!K124="","",ROUND(千円単!K124/1000,0)) -> 139 | L124: =IF(千円単!L124="","",ROUND(千円単!L124/1000,0)) -> 58 | M124: =IF(千円単!M124="","",ROUND(千円単!M124/1000,0)) -> 442 | N124: =IF(千円単!N124="","",ROUND(千円単!N124/1000,0)) -> 56 | O124: =IF(千円単!O124="","",ROUND(千円単!O124/1000,0)) -> 268 | P124: =IF(千円単!P124="","",ROUND(千円単!P124/1000,0)) -> 15 | Q124: =IF(千円単!Q124="","",ROUND(千円単!Q124/1000,0)) -> 24 | R124: =IF(千円単!R124="","",ROUND(千円単!R124/1000,0)) -> 313 | S124: =IF(千円単!S124="","",ROUND(千円単!S124/1000,0)) -> 9 | T124: =IF(千円単!T124="","",ROUND(千円単!T124/1000,0)) -> 297 | U124: =IF(千円単!U124="","",ROUND(千円単!U124/1000,0)) -> 314 | V124: =IF(千円単!V124="","",ROUND(千円単!V124/1000,0)) -> 16 | W124: =IF(千円単!W124="","",ROUND(千円単!W124/1000,0)) -> 299 | X124: =IF(千円単!X124="","",ROUND(千円単!X124/1000,0)) -> -1 | Y124: =IF(千円単!Y124="","",ROUND(千円単!Y124/1000,0)) -> 24
A125: 2021 | B125: 46 | C125: 17 | D125: 1 | E125: 124 | F125: 公共 | G125: 069663 | H125: 山形県 | I125: 尾花沢市大石田町環境衛生事業組合（事業会計分） | J125: =IF(千円単!J125="","",ROUND(千円単!J125/1000,0)) -> 397 | K125: =IF(千円単!K125="","",ROUND(千円単!K125/1000,0)) -> 119 | L125: =IF(千円単!L125="","",ROUND(千円単!L125/1000,0)) -> 128 | M125: =IF(千円単!M125="","",ROUND(千円単!M125/1000,0)) -> 378 | N125: =IF(千円単!N125="","",ROUND(千円単!N125/1000,0)) -> 64 | O125: =IF(千円単!O125="","",ROUND(千円単!O125/1000,0)) -> 207 | P125: =IF(千円単!P125="","",ROUND(千円単!P125/1000,0)) -> 23 | Q125: =IF(千円単!Q125="","",ROUND(千円単!Q125/1000,0)) -> 19 | R125: =IF(千円単!R125="","",ROUND(千円単!R125/1000,0)) -> 320 | S125: =IF(千円単!S125="","",ROUND(千円単!S125/1000,0)) -> 155 | T125: =IF(千円単!T125="","",ROUND(千円単!T125/1000,0)) -> 115 | U125: =IF(千円単!U125="","",ROUND(千円単!U125/1000,0)) -> 382 | V125: =IF(千円単!V125="","",ROUND(千円単!V125/1000,0)) -> 131 | W125: =IF(千円単!W125="","",ROUND(千円単!W125/1000,0)) -> 252 | X125: =IF(千円単!X125="","",ROUND(千円単!X125/1000,0)) -> -62 | Y125: =IF(千円単!Y125="","",ROUND(千円単!Y125/1000,0)) -> 19
A126: 2021 | B126: 46 | C126: 17 | D126: 1 | E126: 125 | F126: 公共 | G126: 072010 | H126: 福島県 | I126: 福島市 | J126: =IF(千円単!J126="","",ROUND(千円単!J126/1000,0)) -> 7720 | K126: =IF(千円単!K126="","",ROUND(千円単!K126/1000,0)) -> 3126 | L126: =IF(千円単!L126="","",ROUND(千円単!L126/1000,0)) -> 2449 | M126: =IF(千円単!M126="","",ROUND(千円単!M126/1000,0)) -> 6604 | N126: =IF(千円単!N126="","",ROUND(千円単!N126/1000,0)) -> 757 | O126: =IF(千円単!O126="","",ROUND(千円単!O126/1000,0)) -> 3835 | P126: =IF(千円単!P126="","",ROUND(千円単!P126/1000,0)) -> 134 | Q126: =IF(千円単!Q126="","",ROUND(千円単!Q126/1000,0)) -> 1116 | R126: =IF(千円単!R126="","",ROUND(千円単!R126/1000,0)) -> 2297 | S126: =IF(千円単!S126="","",ROUND(千円単!S126/1000,0)) -> 1763 | T126: =IF(千円単!T126="","",ROUND(千円単!T126/1000,0)) -> 0 | U126: =IF(千円単!U126="","",ROUND(千円単!U126/1000,0)) -> 5287 | V126: =IF(千円単!V126="","",ROUND(千円単!V126/1000,0)) -> 1651 | W126: =IF(千円単!W126="","",ROUND(千円単!W126/1000,0)) -> 3635 | X126: =IF(千円単!X126="","",ROUND(千円単!X126/1000,0)) -> -2990 | Y126: =IF(千円単!Y126="","",ROUND(千円単!Y126/1000,0)) -> 1116
A127: 2021 | B127: 46 | C127: 17 | D127: 1 | E127: 126 | F127: 公共 | G127: 072028 | H127: 福島県 | I127: 会津若松市 | J127: =IF(千円単!J127="","",ROUND(千円単!J127/1000,0)) -> 2949 | K127: =IF(千円単!K127="","",ROUND(千円単!K127/1000,0)) -> 1518 | L127: =IF(千円単!L127="","",ROUND(千円単!L127/1000,0)) -> 536 | M127: =IF(千円単!M127="","",ROUND(千円単!M127/1000,0)) -> 2818 | N127: =IF(千円単!N127="","",ROUND(千円単!N127/1000,0)) -> 236 | O127: =IF(千円単!O127="","",ROUND(千円単!O127/1000,0)) -> 1941 | P127: =IF(千円単!P127="","",ROUND(千円単!P127/1000,0)) -> 159 | Q127: =IF(千円単!Q127="","",ROUND(千円単!Q127/1000,0)) -> 131 | R127: =IF(千円単!R127="","",ROUND(千円単!R127/1000,0)) -> 1400 | S127: =IF(千円単!S127="","",ROUND(千円単!S127/1000,0)) -> 711 | T127: =IF(千円単!T127="","",ROUND(千円単!T127/1000,0)) -> 54 | U127: =IF(千円単!U127="","",ROUND(千円単!U127/1000,0)) -> 2614 | V127: =IF(千円単!V127="","",ROUND(千円単!V127/1000,0)) -> 1451 | W127: =IF(千円単!W127="","",ROUND(千円単!W127/1000,0)) -> 1163 | X127: =IF(千円単!X127="","",ROUND(千円単!X127/1000,0)) -> -1214 | Y127: =IF(千円単!Y127="","",ROUND(千円単!Y127/1000,0)) -> 131
A128: 2021 | B128: 46 | C128: 17 | D128: 1 | E128: 127 | F128: 公共 | G128: 072036 | H128: 福島県 | I128: 郡山市 | J128: =IF(千円単!J128="","",ROUND(千円単!J128/1000,0)) -> 8272 | K128: =IF(千円単!K128="","",ROUND(千円単!K128/1000,0)) -> 3860 | L128: =IF(千円単!L128="","",ROUND(千円単!L128/1000,0)) -> 3000 | M128: =IF(千円単!M128="","",ROUND(千円単!M128/1000,0)) -> 8221 | N128: =IF(千円単!N128="","",ROUND(千円単!N128/1000,0)) -> 861 | O128: =IF(千円単!O128="","",ROUND(千円単!O128/1000,0)) -> 4044 | P128: =IF(千円単!P128="","",ROUND(千円単!P128/1000,0)) -> 362 | Q128: =IF(千円単!Q128="","",ROUND(千円単!Q128/1000,0)) -> 51 | R128: =IF(千円単!R128="","",ROUND(千円単!R128/1000,0)) -> 9298 | S128: =IF(千円単!S128="","",ROUND(千円単!S128/1000,0)) -> 4254 | T128: =IF(千円単!T128="","",ROUND(千円単!T128/1000,0)) -> 0 | U128: =IF(千円単!U128="","",ROUND(千円単!U128/1000,0)) -> 11744 | V128: =IF(千円単!V128="","",ROUND(千円単!V128/1000,0)) -> 6684 | W128: =IF(千円単!W128="","",ROUND(千円単!W128/1000,0)) -> 5060 | X128: =IF(千円単!X128="","",ROUND(千円単!X128/1000,0)) -> -2447 | Y128: =IF(千円単!Y128="","",ROUND(千円単!Y128/1000,0)) -> 51
A129: 2021 | B129: 46 | C129: 17 | D129: 1 | E129: 128 | F129: 公共 | G129: 072044 | H129: 福島県 | I129: いわき市 | J129: =IF(千円単!J129="","",ROUND(千円単!J129/1000,0)) -> 8555 | K129: =IF(千円単!K129="","",ROUND(千円単!K129/1000,0)) -> 3444 | L129: =IF(千円単!L129="","",ROUND(千円単!L129/1000,0)) -> 2745 | M129: =IF(千円単!M129="","",ROUND(千円単!M129/1000,0)) -> 7801 | N129: =IF(千円単!N129="","",ROUND(千円単!N129/1000,0)) -> 773 | O129: =IF(千円単!O129="","",ROUND(千円単!O129/1000,0)) -> 4377 | P129: =IF(千円単!P129="","",ROUND(千円単!P129/1000,0)) -> 224 | Q129: =IF(千円単!Q129="","",ROUND(千円単!Q129/1000,0)) -> 754 | R129: =IF(千円単!R129="","",ROUND(千円単!R129/1000,0)) -> 6133 | S129: =IF(千円単!S129="","",ROUND(千円単!S129/1000,0)) -> 3151 | T129: =IF(千円単!T129="","",ROUND(千円単!T129/1000,0)) -> 1001 | U129: =IF(千円単!U129="","",ROUND(千円単!U129/1000,0)) -> 9165 | V129: =IF(千円単!V129="","",ROUND(千円単!V129/1000,0)) -> 5137 | W129: =IF(千円単!W129="","",ROUND(千円単!W129/1000,0)) -> 4027 | X129: =IF(千円単!X129="","",ROUND(千円単!X129/1000,0)) -> -3033 | Y129: =IF(千円単!Y129="","",ROUND(千円単!Y129/1000,0)) -> 754
A130: 2021 | B130: 46 | C130: 17 | D130: 1 | E130: 129 | F130: 公共 | G130: 072052 | H130: 福島県 | I130: 白河市 | J130: =IF(千円単!J130="","",ROUND(千円単!J130/1000,0)) -> 1434 | K130: =IF(千円単!K130="","",ROUND(千円単!K130/1000,0)) -> 392 | L130: =IF(千円単!L130="","",ROUND(千円単!L130/1000,0)) -> 254 | M130: =IF(千円単!M130="","",ROUND(千円単!M130/1000,0)) -> 1398 | N130: =IF(千円単!N130="","",ROUND(千円単!N130/1000,0)) -> 134 | O130: =IF(千円単!O130="","",ROUND(千円単!O130/1000,0)) -> 751 | P130: =IF(千円単!P130="","",ROUND(千円単!P130/1000,0)) -> 46 | Q130: =IF(千円単!Q130="","",ROUND(千円単!Q130/1000,0)) -> 36 | R130: =IF(千円単!R130="","",ROUND(千円単!R130/1000,0)) -> 1226 | S130: =IF(千円単!S130="","",ROUND(千円単!S130/1000,0)) -> 412 | T130: =IF(千円単!T130="","",ROUND(千円単!T130/1000,0)) -> 552 | U130: =IF(千円単!U130="","",ROUND(千円単!U130/1000,0)) -> 1382 | V130: =IF(千円単!V130="","",ROUND(千円単!V130/1000,0)) -> 649 | W130: =IF(千円単!W130="","",ROUND(千円単!W130/1000,0)) -> 732 | X130: =IF(千円単!X130="","",ROUND(千円単!X130/1000,0)) -> -155 | Y130: =IF(千円単!Y130="","",ROUND(千円単!Y130/1000,0)) -> 36
A131: 2021 | B131: 46 | C131: 17 | D131: 1 | E131: 130 | F131: 公共 | G131: 072079 | H131: 福島県 | I131: 須賀川市 | J131: =IF(千円単!J131="","",ROUND(千円単!J131/1000,0)) -> 1406 | K131: =IF(千円単!K131="","",ROUND(千円単!K131/1000,0)) -> 535 | L131: =IF(千円単!L131="","",ROUND(千円単!L131/1000,0)) -> 477 | M131: =IF(千円単!M131="","",ROUND(千円単!M131/1000,0)) -> 1216 | N131: =IF(千円単!N131="","",ROUND(千円単!N131/1000,0)) -> 129 | O131: =IF(千円単!O131="","",ROUND(千円単!O131/1000,0)) -> 626 | P131: =IF(千円単!P131="","",ROUND(千円単!P131/1000,0)) -> 67 | Q131: =IF(千円単!Q131="","",ROUND(千円単!Q131/1000,0)) -> 191 | R131: =IF(千円単!R131="","",ROUND(千円単!R131/1000,0)) -> 913 | S131: =IF(千円単!S131="","",ROUND(千円単!S131/1000,0)) -> 312 | T131: =IF(千円単!T131="","",ROUND(千円単!T131/1000,0)) -> 194 | U131: =IF(千円単!U131="","",ROUND(千円単!U131/1000,0)) -> 1228 | V131: =IF(千円単!V131="","",ROUND(千円単!V131/1000,0)) -> 560 | W131: =IF(千円単!W131="","",ROUND(千円単!W131/1000,0)) -> 667 | X131: =IF(千円単!X131="","",ROUND(千円単!X131/1000,0)) -> -315 | Y131: =IF(千円単!Y131="","",ROUND(千円単!Y131/1000,0)) -> 191
A132: 2021 | B132: 46 | C132: 17 | D132: 1 | E132: 131 | F132: 公共 | G132: 072087 | H132: 福島県 | I132: 喜多方市 | J132: =IF(千円単!J132="","",ROUND(千円単!J132/1000,0)) -> 819 | K132: =IF(千円単!K132="","",ROUND(千円単!K132/1000,0)) -> 194 | L132: =IF(千円単!L132="","",ROUND(千円単!L132/1000,0)) -> 385 | M132: =IF(千円単!M132="","",ROUND(千円単!M132/1000,0)) -> 783 | N132: =IF(千円単!N132="","",ROUND(千円単!N132/1000,0)) -> 82 | O132: =IF(千円単!O132="","",ROUND(千円単!O132/1000,0)) -> 430 | P132: =IF(千円単!P132="","",ROUND(千円単!P132/1000,0)) -> 54 | Q132: =IF(千円単!Q132="","",ROUND(千円単!Q132/1000,0)) -> 36 | R132: =IF(千円単!R132="","",ROUND(千円単!R132/1000,0)) -> 743 | S132: =IF(千円単!S132="","",ROUND(千円単!S132/1000,0)) -> 292 | T132: =IF(千円単!T132="","",ROUND(千円単!T132/1000,0)) -> 38 | U132: =IF(千円単!U132="","",ROUND(千円単!U132/1000,0)) -> 945 | V132: =IF(千円単!V132="","",ROUND(千円単!V132/1000,0)) -> 494 | W132: =IF(千円単!W132="","",ROUND(千円単!W132/1000,0)) -> 450 | X132: =IF(千円単!X132="","",ROUND(千円単!X132/1000,0)) -> -202 | Y132: =IF(千円単!Y132="","",ROUND(千円単!Y132/1000,0)) -> 36
A133: 2021 | B133: 46 | C133: 17 | D133: 1 | E133: 132 | F133: 公共 | G133: 072095 | H133: 福島県 | I133: 相馬市 | J133: =IF(千円単!J133="","",ROUND(千円単!J133/1000,0)) -> 1298 | K133: =IF(千円単!K133="","",ROUND(千円単!K133/1000,0)) -> 255 | L133: =IF(千円単!L133="","",ROUND(千円単!L133/1000,0)) -> 471 | M133: =IF(千円単!M133="","",ROUND(千円単!M133/1000,0)) -> 1245 | N133: =IF(千円単!N133="","",ROUND(千円単!N133/1000,0)) -> 42 | O133: =IF(千円単!O133="","",ROUND(千円単!O133/1000,0)) -> 947 | P133: =IF(千円単!P133="","",ROUND(千円単!P133/1000,0)) -> 30 | Q133: =IF(千円単!Q133="","",ROUND(千円単!Q133/1000,0)) -> 53 | R133: =IF(千円単!R133="","",ROUND(千円単!R133/1000,0)) -> 232 | S133: =IF(千円単!S133="","",ROUND(千円単!S133/1000,0)) -> 20 | T133: =IF(千円単!T133="","",ROUND(千円単!T133/1000,0)) -> 57 | U133: =IF(千円単!U133="","",ROUND(千円単!U133/1000,0)) -> 610 | V133: =IF(千円単!V133="","",ROUND(千円単!V133/1000,0)) -> 36 | W133: =IF(千円単!W133="","",ROUND(千円単!W133/1000,0)) -> 575 | X133: =IF(千円単!X133="","",ROUND(千円単!X133/1000,0)) -> -378 | Y133: =IF(千円単!Y133="","",ROUND(千円単!Y133/1000,0)) -> 53
A134: 2021 | B134: 46 | C134: 17 | D134: 1 | E134: 133 | F134: 公共 | G134: 072109 | H134: 福島県 | I134: 二本松市 | J134: =IF(千円単!J134="","",ROUND(千円単!J134/1000,0)) -> 790 | K134: =IF(千円単!K134="","",ROUND(千円単!K134/1000,0)) -> 215 | L134: =IF(千円単!L134="","",ROUND(千円単!L134/1000,0)) -> 397 | M134: =IF(千円単!M134="","",ROUND(千円単!M134/1000,0)) -> 790 | N134: =IF(千円単!N134="","",ROUND(千円単!N134/1000,0)) -> 83 | O134: =IF(千円単!O134="","",ROUND(千円単!O134/1000,0)) -> 338 | P134: =IF(千円単!P134="","",ROUND(千円単!P134/1000,0)) -> 28 | Q134: =IF(千円単!Q134="","",ROUND(千円単!Q134/1000,0)) -> 0 | R134: =IF(千円単!R134="","",ROUND(千円単!R134/1000,0)) -> 94 | S134: =IF(千円単!S134="","",ROUND(千円単!S134/1000,0)) -> 8 | T134: =IF(千円単!T134="","",ROUND(千円単!T134/1000,0)) -> 74 | U134: =IF(千円単!U134="","",ROUND(千円単!U134/1000,0)) -> 433 | V134: =IF(千円単!V134="","",ROUND(千円単!V134/1000,0)) -> 31 | W134: =IF(千円単!W134="","",ROUND(千円単!W134/1000,0)) -> 402 | X134: =IF(千円単!X134="","",ROUND(千円単!X134/1000,0)) -> -339 | Y134: =IF(千円単!Y134="","",ROUND(千円単!Y134/1000,0)) -> 0
A135: 2021 | B135: 46 | C135: 17 | D135: 1 | E135: 134 | F135: 公共 | G135: 072117 | H135: 福島県 | I135: 田村市 | J135: =IF(千円単!J135="","",ROUND(千円単!J135/1000,0)) -> 598 | K135: =IF(千円単!K135="","",ROUND(千円単!K135/1000,0)) -> 164 | L135: =IF(千円単!L135="","",ROUND(千円単!L135/1000,0)) -> 255 | M135: =IF(千円単!M135="","",ROUND(千円単!M135/1000,0)) -> 596 | N135: =IF(千円単!N135="","",ROUND(千円単!N135/1000,0)) -> 83 | O135: =IF(千円単!O135="","",ROUND(千円単!O135/1000,0)) -> 342 | P135: =IF(千円単!P135="","",ROUND(千円単!P135/1000,0)) -> 13 | Q135: =IF(千円単!Q135="","",ROUND(千円単!Q135/1000,0)) -> 2 | R135: =IF(千円単!R135="","",ROUND(千円単!R135/1000,0)) -> 312 | S135: =IF(千円単!S135="","",ROUND(千円単!S135/1000,0)) -> 46 | T135: =IF(千円単!T135="","",ROUND(千円単!T135/1000,0)) -> 0 | U135: =IF(千円単!U135="","",ROUND(千円単!U135/1000,0)) -> 475 | V135: =IF(千円単!V135="","",ROUND(千円単!V135/1000,0)) -> 121 | W135: =IF(千円単!W135="","",ROUND(千円単!W135/1000,0)) -> 353 | X135: =IF(千円単!X135="","",ROUND(千円単!X135/1000,0)) -> -162 | Y135: =IF(千円単!Y135="","",ROUND(千円単!Y135/1000,0)) -> 2
A136: 2021 | B136: 46 | C136: 17 | D136: 1 | E136: 135 | F136: 公共 | G136: 072125 | H136: 福島県 | I136: 南相馬市 | J136: =IF(千円単!J136="","",ROUND(千円単!J136/1000,0)) -> 1537 | K136: =IF(千円単!K136="","",ROUND(千円単!K136/1000,0)) -> 460 | L136: =IF(千円単!L136="","",ROUND(千円単!L136/1000,0)) -> 563 | M136: =IF(千円単!M136="","",ROUND(千円単!M136/1000,0)) -> 1397 | N136: =IF(千円単!N136="","",ROUND(千円単!N136/1000,0)) -> 140 | O136: =IF(千円単!O136="","",ROUND(千円単!O136/1000,0)) -> 845 | P136: =IF(千円単!P136="","",ROUND(千円単!P136/1000,0)) -> 53 | Q136: =IF(千円単!Q136="","",ROUND(千円単!Q136/1000,0)) -> 139 | R136: =IF(千円単!R136="","",ROUND(千円単!R136/1000,0)) -> 884 | S136: =IF(千円単!S136="","",ROUND(千円単!S136/1000,0)) -> 652 | T136: =IF(千円単!T136="","",ROUND(千円単!T136/1000,0)) -> 0 | U136: =IF(千円単!U136="","",ROUND(千円単!U136/1000,0)) -> 1321 | V136: =IF(千円単!V136="","",ROUND(千円単!V136/1000,0)) -> 503 | W136: =IF(千円単!W136="","",ROUND(千円単!W136/1000,0)) -> 818 | X136: =IF(千円単!X136="","",ROUND(千円単!X136/1000,0)) -> -436 | Y136: =IF(千円単!Y136="","",ROUND(千円単!Y136/1000,0)) -> 139
A137: 2021 | B137: 46 | C137: 17 | D137: 1 | E137: 136 | F137: 公共 | G137: 072133 | H137: 福島県 | I137: 伊達市 | J137: =IF(千円単!J137="","",ROUND(千円単!J137/1000,0)) -> 845 | K137: =IF(千円単!K137="","",ROUND(千円単!K137/1000,0)) -> 283 | L137: =IF(千円単!L137="","",ROUND(千円単!L137/1000,0)) -> 310 | M137: =IF(千円単!M137="","",ROUND(千円単!M137/1000,0)) -> 680 | N137: =IF(千円単!N137="","",ROUND(千円単!N137/1000,0)) -> 92 | O137: =IF(千円単!O137="","",ROUND(千円単!O137/1000,0)) -> 365 | P137: =IF(千円単!P137="","",ROUND(千円単!P137/1000,0)) -> 25 | Q137: =IF(千円単!Q137="","",ROUND(千円単!Q137/1000,0)) -> 165 | R137: =IF(千円単!R137="","",ROUND(千円単!R137/1000,0)) -> 454 | S137: =IF(千円単!S137="","",ROUND(千円単!S137/1000,0)) -> 381 | T137: =IF(千円単!T137="","",ROUND(千円単!T137/1000,0)) -> 40 | U137: =IF(千円単!U137="","",ROUND(千円単!U137/1000,0)) -> 746 | V137: =IF(千円単!V137="","",ROUND(千円単!V137/1000,0)) -> 110 | W137: =IF(千円単!W137="","",ROUND(千円単!W137/1000,0)) -> 635 | X137: =IF(千円単!X137="","",ROUND(千円単!X137/1000,0)) -> -292 | Y137: =IF(千円単!Y137="","",ROUND(千円単!Y137/1000,0)) -> 165
A138: 2021 | B138: 46 | C138: 17 | D138: 1 | E138: 137 | F138: 公共 | G138: 072141 | H138: 福島県 | I138: 本宮市 | J138: =IF(千円単!J138="","",ROUND(千円単!J138/1000,0)) -> 760 | K138: =IF(千円単!K138="","",ROUND(千円単!K138/1000,0)) -> 234 | L138: =IF(千円単!L138="","",ROUND(千円単!L138/1000,0)) -> 293 | M138: =IF(千円単!M138="","",ROUND(千円単!M138/1000,0)) -> 632 | N138: =IF(千円単!N138="","",ROUND(千円単!N138/1000,0)) -> 48 | O138: =IF(千円単!O138="","",ROUND(千円単!O138/1000,0)) -> 396 | P138: =IF(千円単!P138="","",ROUND(千円単!P138/1000,0)) -> 12 | Q138: =IF(千円単!Q138="","",ROUND(千円単!Q138/1000,0)) -> 127 | R138: =IF(千円単!R138="","",ROUND(千円単!R138/1000,0)) -> 475 | S138: =IF(千円単!S138="","",ROUND(千円単!S138/1000,0)) -> 278 | T138: =IF(千円単!T138="","",ROUND(千円単!T138/1000,0)) -> 0 | U138: =IF(千円単!U138="","",ROUND(千円単!U138/1000,0)) -> 719 | V138: =IF(千円単!V138="","",ROUND(千円単!V138/1000,0)) -> 327 | W138: =IF(千円単!W138="","",ROUND(千円単!W138/1000,0)) -> 392 | X138: =IF(千円単!X138="","",ROUND(千円単!X138/1000,0)) -> -243 | Y138: =IF(千円単!Y138="","",ROUND(千円単!Y138/1000,0)) -> 127
A139: 2021 | B139: 46 | C139: 17 | D139: 1 | E139: 138 | F139: 公共 | G139: 073687 | H139: 福島県 | I139: 南会津町 | J139: =IF(千円単!J139="","",ROUND(千円単!J139/1000,0)) -> 241 | K139: =IF(千円単!K139="","",ROUND(千円単!K139/1000,0)) -> 56 | L139: =IF(千円単!L139="","",ROUND(千円単!L139/1000,0)) -> 105 | M139: =IF(千円単!M139="","",ROUND(千円単!M139/1000,0)) -> 241 | N139: =IF(千円単!N139="","",ROUND(千円単!N139/1000,0)) -> 14 | O139: =IF(千円単!O139="","",ROUND(千円単!O139/1000,0)) -> 171 | P139: =IF(千円単!P139="","",ROUND(千円単!P139/1000,0)) -> 8 | Q139: =IF(千円単!Q139="","",ROUND(千円単!Q139/1000,0)) -> 0 | R139: =IF(千円単!R139="","",ROUND(千円単!R139/1000,0)) -> 126 | S139: =IF(千円単!S139="","",ROUND(千円単!S139/1000,0)) -> 17 | T139: =IF(千円単!T139="","",ROUND(千円単!T139/1000,0)) -> 0 | U139: =IF(千円単!U139="","",ROUND(千円単!U139/1000,0)) -> 133 | V139: =IF(千円単!V139="","",ROUND(千円単!V139/1000,0)) -> 43 | W139: =IF(千円単!W139="","",ROUND(千円単!W139/1000,0)) -> 90 | X139: =IF(千円単!X139="","",ROUND(千円単!X139/1000,0)) -> -7 | Y139: =IF(千円単!Y139="","",ROUND(千円単!Y139/1000,0)) -> 0
A140: 2021 | B140: 46 | C140: 17 | D140: 1 | E140: 139 | F140: 公共 | G140: 074080 | H140: 福島県 | I140: 猪苗代町 | J140: =IF(千円単!J140="","",ROUND(千円単!J140/1000,0)) -> 386 | K140: =IF(千円単!K140="","",ROUND(千円単!K140/1000,0)) -> 125 | L140: =IF(千円単!L140="","",ROUND(千円単!L140/1000,0)) -> 144 | M140: =IF(千円単!M140="","",ROUND(千円単!M140/1000,0)) -> 426 | N140: =IF(千円単!N140="","",ROUND(千円単!N140/1000,0)) -> 30 | O140: =IF(千円単!O140="","",ROUND(千円単!O140/1000,0)) -> 268 | P140: =IF(千円単!P140="","",ROUND(千円単!P140/1000,0)) -> 31 | Q140: =IF(千円単!Q140="","",ROUND(千円単!Q140/1000,0)) -> -39 | R140: =IF(千円単!R140="","",ROUND(千円単!R140/1000,0)) -> 146 | S140: =IF(千円単!S140="","",ROUND(千円単!S140/1000,0)) -> 65 | T140: =IF(千円単!T140="","",ROUND(千円単!T140/1000,0)) -> 74 | U140: =IF(千円単!U140="","",ROUND(千円単!U140/1000,0)) -> 269 | V140: =IF(千円単!V140="","",ROUND(千円単!V140/1000,0)) -> 20 | W140: =IF(千円単!W140="","",ROUND(千円単!W140/1000,0)) -> 249 | X140: =IF(千円単!X140="","",ROUND(千円単!X140/1000,0)) -> -123 | Y140: =IF(千円単!Y140="","",ROUND(千円単!Y140/1000,0)) -> -39
A141: 2021 | B141: 46 | C141: 17 | D141: 1 | E141: 140 | F141: 公共 | G141: 074471 | H141: 福島県 | I141: 会津美里町 | J141: =IF(千円単!J141="","",ROUND(千円単!J141/1000,0)) -> 445 | K141: =IF(千円単!K141="","",ROUND(千円単!K141/1000,0)) -> 98 | L141: =IF(千円単!L141="","",ROUND(千円単!L141/1000,0)) -> 171 | M141: =IF(千円単!M141="","",ROUND(千円単!M141/1000,0)) -> 438 | N141: =IF(千円単!N141="","",ROUND(千円単!N141/1000,0)) -> 35 | O141: =IF(千円単!O141="","",ROUND(千円単!O141/1000,0)) -> 294 | P141: =IF(千円単!P141="","",ROUND(千円単!P141/1000,0)) -> 19 | Q141: =IF(千円単!Q141="","",ROUND(千円単!Q141/1000,0)) -> 7 | R141: =IF(千円単!R141="","",ROUND(千円単!R141/1000,0)) -> 264 | S141: =IF(千円単!S141="","",ROUND(千円単!S141/1000,0)) -> 107 | T141: =IF(千円単!T141="","",ROUND(千円単!T141/1000,0)) -> 0 | U141: =IF(千円単!U141="","",ROUND(千円単!U141/1000,0)) -> 337 | V141: =IF(千円単!V141="","",ROUND(千円単!V141/1000,0)) -> 122 | W141: =IF(千円単!W141="","",ROUND(千円単!W141/1000,0)) -> 215 | X141: =IF(千円単!X141="","",ROUND(千円単!X141/1000,0)) -> -73 | Y141: =IF(千円単!Y141="","",ROUND(千円単!Y141/1000,0)) -> 7
A142: 2021 | B142: 46 | C142: 17 | D142: 1 | E142: 141 | F142: 公共 | G142: 074616 | H142: 福島県 | I142: 西郷村 | J142: =IF(千円単!J142="","",ROUND(千円単!J142/1000,0)) -> 704 | K142: =IF(千円単!K142="","",ROUND(千円単!K142/1000,0)) -> 219 | L142: =IF(千円単!L142="","",ROUND(千円単!L142/1000,0)) -> 285 | M142: =IF(千円単!M142="","",ROUND(千円単!M142/1000,0)) -> 558 | N142: =IF(千円単!N142="","",ROUND(千円単!N142/1000,0)) -> 60 | O142: =IF(千円単!O142="","",ROUND(千円単!O142/1000,0)) -> 339 | P142: =IF(千円単!P142="","",ROUND(千円単!P142/1000,0)) -> 20 | Q142: =IF(千円単!Q142="","",ROUND(千円単!Q142/1000,0)) -> 146 | R142: =IF(千円単!R142="","",ROUND(千円単!R142/1000,0)) -> 153 | S142: =IF(千円単!S142="","",ROUND(千円単!S142/1000,0)) -> 40 | T142: =IF(千円単!T142="","",ROUND(千円単!T142/1000,0)) -> 65 | U142: =IF(千円単!U142="","",ROUND(千円単!U142/1000,0)) -> 446 | V142: =IF(千円単!V142="","",ROUND(千円単!V142/1000,0)) -> 145 | W142: =IF(千円単!W142="","",ROUND(千円単!W142/1000,0)) -> 301 | X142: =IF(千円単!X142="","",ROUND(千円単!X142/1000,0)) -> -293 | Y142: =IF(千円単!Y142="","",ROUND(千円単!Y142/1000,0)) -> 146
A143: 2021 | B143: 46 | C143: 17 | D143: 1 | E143: 142 | F143: 公共 | G143: 075213 | H143: 福島県 | I143: 三春町 | J143: =IF(千円単!J143="","",ROUND(千円単!J143/1000,0)) -> 158 | K143: =IF(千円単!K143="","",ROUND(千円単!K143/1000,0)) -> 73 | L143: =IF(千円単!L143="","",ROUND(千円単!L143/1000,0)) -> 16 | M143: =IF(千円単!M143="","",ROUND(千円単!M143/1000,0)) -> 176 | N143: =IF(千円単!N143="","",ROUND(千円単!N143/1000,0)) -> 16 | O143: =IF(千円単!O143="","",ROUND(千円単!O143/1000,0)) -> 116 | P143: =IF(千円単!P143="","",ROUND(千円単!P143/1000,0)) -> 10 | Q143: =IF(千円単!Q143="","",ROUND(千円単!Q143/1000,0)) -> -18 | R143: =IF(千円単!R143="","",ROUND(千円単!R143/1000,0)) -> 113 | S143: =IF(千円単!S143="","",ROUND(千円単!S143/1000,0)) -> 9 | T143: =IF(千円単!T143="","",ROUND(千円単!T143/1000,0)) -> 0 | U143: =IF(千円単!U143="","",ROUND(千円単!U143/1000,0)) -> 142 | V143: =IF(千円単!V143="","",ROUND(千円単!V143/1000,0)) -> 16 | W143: =IF(千円単!W143="","",ROUND(千円単!W143/1000,0)) -> 126 | X143: =IF(千円単!X143="","",ROUND(千円単!X143/1000,0)) -> -28 | Y143: =IF(千円単!Y143="","",ROUND(千円単!Y143/1000,0)) -> -18
A144: 2021 | B144: 46 | C144: 17 | D144: 1 | E144: 143 | F144: 公共 | G144: 082015 | H144: 茨城県 | I144: 水戸市 | J144: =IF(千円単!J144="","",ROUND(千円単!J144/1000,0)) -> 8459 | K144: =IF(千円単!K144="","",ROUND(千円単!K144/1000,0)) -> 3248 | L144: =IF(千円単!L144="","",ROUND(千円単!L144/1000,0)) -> 3330 | M144: =IF(千円単!M144="","",ROUND(千円単!M144/1000,0)) -> 8219 | N144: =IF(千円単!N144="","",ROUND(千円単!N144/1000,0)) -> 1136 | O144: =IF(千円単!O144="","",ROUND(千円単!O144/1000,0)) -> 5346 | P144: =IF(千円単!P144="","",ROUND(千円単!P144/1000,0)) -> 208 | Q144: =IF(千円単!Q144="","",ROUND(千円単!Q144/1000,0)) -> 240 | R144: =IF(千円単!R144="","",ROUND(千円単!R144/1000,0)) -> 5450 | S144: =IF(千円単!S144="","",ROUND(千円単!S144/1000,0)) -> 2634 | T144: =IF(千円単!T144="","",ROUND(千円単!T144/1000,0)) -> 657 | U144: =IF(千円単!U144="","",ROUND(千円単!U144/1000,0)) -> 9498 | V144: =IF(千円単!V144="","",ROUND(千円単!V144/1000,0)) -> 3861 | W144: =IF(千円単!W144="","",ROUND(千円単!W144/1000,0)) -> 5635 | X144: =IF(千円単!X144="","",ROUND(千円単!X144/1000,0)) -> -4047 | Y144: =IF(千円単!Y144="","",ROUND(千円単!Y144/1000,0)) -> 240
A145: 2021 | B145: 46 | C145: 17 | D145: 1 | E145: 144 | F145: 公共 | G145: 082023 | H145: 茨城県 | I145: 日立市 | J145: =IF(千円単!J145="","",ROUND(千円単!J145/1000,0)) -> 3810 | K145: =IF(千円単!K145="","",ROUND(千円単!K145/1000,0)) -> 2452 | L145: =IF(千円単!L145="","",ROUND(千円単!L145/1000,0)) -> 100 | M145: =IF(千円単!M145="","",ROUND(千円単!M145/1000,0)) -> 3445 | N145: =IF(千円単!N145="","",ROUND(千円単!N145/1000,0)) -> 161 | O145: =IF(千円単!O145="","",ROUND(千円単!O145/1000,0)) -> 2092 | P145: =IF(千円単!P145="","",ROUND(千円単!P145/1000,0)) -> 110 | Q145: =IF(千円単!Q145="","",ROUND(千円単!Q145/1000,0)) -> 365 | R145: =IF(千円単!R145="","",ROUND(千円単!R145/1000,0)) -> 1509 | S145: =IF(千円単!S145="","",ROUND(千円単!S145/1000,0)) -> 697 | T145: =IF(千円単!T145="","",ROUND(千円単!T145/1000,0)) -> 219 | U145: =IF(千円単!U145="","",ROUND(千円単!U145/1000,0)) -> 2635 | V145: =IF(千円単!V145="","",ROUND(千円単!V145/1000,0)) -> 1427 | W145: =IF(千円単!W145="","",ROUND(千円単!W145/1000,0)) -> 1205 | X145: =IF(千円単!X145="","",ROUND(千円単!X145/1000,0)) -> -1126 | Y145: =IF(千円単!Y145="","",ROUND(千円単!Y145/1000,0)) -> 365
A146: 2021 | B146: 46 | C146: 17 | D146: 1 | E146: 145 | F146: 公共 | G146: 082031 | H146: 茨城県 | I146: 土浦市 | J146: =IF(千円単!J146="","",ROUND(千円単!J146/1000,0)) -> 4263 | K146: =IF(千円単!K146="","",ROUND(千円単!K146/1000,0)) -> 1932 | L146: =IF(千円単!L146="","",ROUND(千円単!L146/1000,0)) -> 1074 | M146: =IF(千円単!M146="","",ROUND(千円単!M146/1000,0)) -> 4159 | N146: =IF(千円単!N146="","",ROUND(千円単!N146/1000,0)) -> 254 | O146: =IF(千円単!O146="","",ROUND(千円単!O146/1000,0)) -> 2468 | P146: =IF(千円単!P146="","",ROUND(千円単!P146/1000,0)) -> 100 | Q146: =IF(千円単!Q146="","",ROUND(千円単!Q146/1000,0)) -> 104 | R146: =IF(千円単!R146="","",ROUND(千円単!R146/1000,0)) -> 930 | S146: =IF(千円単!S146="","",ROUND(千円単!S146/1000,0)) -> 573 | T146: =IF(千円単!T146="","",ROUND(千円単!T146/1000,0)) -> 109 | U146: =IF(千円単!U146="","",ROUND(千円単!U146/1000,0)) -> 2253 | V146: =IF(千円単!V146="","",ROUND(千円単!V146/1000,0)) -> 884 | W146: =IF(千円単!W146="","",ROUND(千円単!W146/1000,0)) -> 1369 | X146: =IF(千円単!X146="","",ROUND(千円単!X146/1000,0)) -> -1323 | Y146: =IF(千円単!Y146="","",ROUND(千円単!Y146/1000,0)) -> 104
A147: 2021 | B147: 46 | C147: 17 | D147: 1 | E147: 146 | F147: 公共 | G147: 082040 | H147: 茨城県 | I147: 古河市 | J147: =IF(千円単!J147="","",ROUND(千円単!J147/1000,0)) -> 2916 | K147: =IF(千円単!K147="","",ROUND(千円単!K147/1000,0)) -> 1282 | L147: =IF(千円単!L147="","",ROUND(千円単!L147/1000,0)) -> 730 | M147: =IF(千円単!M147="","",ROUND(千円単!M147/1000,0)) -> 2890 | N147: =IF(千円単!N147="","",ROUND(千円単!N147/1000,0)) -> 203 | O147: =IF(千円単!O147="","",ROUND(千円単!O147/1000,0)) -> 1725 | P147: =IF(千円単!P147="","",ROUND(千円単!P147/1000,0)) -> 107 | Q147: =IF(千円単!Q147="","",ROUND(千円単!Q147/1000,0)) -> 26 | R147: =IF(千円単!R147="","",ROUND(千円単!R147/1000,0)) -> 1040 | S147: =IF(千円単!S147="","",ROUND(千円単!S147/1000,0)) -> 544 | T147: =IF(千円単!T147="","",ROUND(千円単!T147/1000,0)) -> 181 | U147: =IF(千円単!U147="","",ROUND(千円単!U147/1000,0)) -> 1919 | V147: =IF(千円単!V147="","",ROUND(千円単!V147/1000,0)) -> 758 | W147: =IF(千円単!W147="","",ROUND(千円単!W147/1000,0)) -> 1160 | X147: =IF(千円単!X147="","",ROUND(千円単!X147/1000,0)) -> -878 | Y147: =IF(千円単!Y147="","",ROUND(千円単!Y147/1000,0)) -> 26
A148: 2021 | B148: 46 | C148: 17 | D148: 1 | E148: 147 | F148: 公共 | G148: 082058 | H148: 茨城県 | I148: 石岡市 | J148: =IF(千円単!J148="","",ROUND(千円単!J148/1000,0)) -> 1467 | K148: =IF(千円単!K148="","",ROUND(千円単!K148/1000,0)) -> 473 | L148: =IF(千円単!L148="","",ROUND(千円単!L148/1000,0)) -> 657 | M148: =IF(千円単!M148="","",ROUND(千円単!M148/1000,0)) -> 1113 | N148: =IF(千円単!N148="","",ROUND(千円単!N148/1000,0)) -> 138 | O148: =IF(千円単!O148="","",ROUND(千円単!O148/1000,0)) -> 583 | P148: =IF(千円単!P148="","",ROUND(千円単!P148/1000,0)) -> 40 | Q148: =IF(千円単!Q148="","",ROUND(千円単!Q148/1000,0)) -> 354 | R148: =IF(千円単!R148="","",ROUND(千円単!R148/1000,0)) -> 254 | S148: =IF(千円単!S148="","",ROUND(千円単!S148/1000,0)) -> 187 | T148: =IF(千円単!T148="","",ROUND(千円単!T148/1000,0)) -> 0 | U148: =IF(千円単!U148="","",ROUND(千円単!U148/1000,0)) -> 968 | V148: =IF(千円単!V148="","",ROUND(千円単!V148/1000,0)) -> 238 | W148: =IF(千円単!W148="","",ROUND(千円単!W148/1000,0)) -> 730 | X148: =IF(千円単!X148="","",ROUND(千円単!X148/1000,0)) -> -714 | Y148: =IF(千円単!Y148="","",ROUND(千円単!Y148/1000,0)) -> 354
A149: 2021 | B149: 46 | C149: 17 | D149: 1 | E149: 148 | F149: 公共 | G149: 082074 | H149: 茨城県 | I149: 結城市 | J149: =IF(千円単!J149="","",ROUND(千円単!J149/1000,0)) -> 1251 | K149: =IF(千円単!K149="","",ROUND(千円単!K149/1000,0)) -> 494 | L149: =IF(千円単!L149="","",ROUND(千円単!L149/1000,0)) -> 362 | M149: =IF(千円単!M149="","",ROUND(千円単!M149/1000,0)) -> 1249 | N149: =IF(千円単!N149="","",ROUND(千円単!N149/1000,0)) -> 90 | O149: =IF(千円単!O149="","",ROUND(千円単!O149/1000,0)) -> 788 | P149: =IF(千円単!P149="","",ROUND(千円単!P149/1000,0)) -> 40 | Q149: =IF(千円単!Q149="","",ROUND(千円単!Q149/1000,0)) -> 2 | R149: =IF(千円単!R149="","",ROUND(千円単!R149/1000,0)) -> 508 | S149: =IF(千円単!S149="","",ROUND(千円単!S149/1000,0)) -> 243 | T149: =IF(千円単!T149="","",ROUND(千円単!T149/1000,0)) -> 89 | U149: =IF(千円単!U149="","",ROUND(千円単!U149/1000,0)) -> 890 | V149: =IF(千円単!V149="","",ROUND(千円単!V149/1000,0)) -> 435 | W149: =IF(千円単!W149="","",ROUND(千円単!W149/1000,0)) -> 455 | X149: =IF(千円単!X149="","",ROUND(千円単!X149/1000,0)) -> -382 | Y149: =IF(千円単!Y149="","",ROUND(千円単!Y149/1000,0)) -> 2
A150: 2021 | B150: 46 | C150: 17 | D150: 1 | E150: 149 | F150: 公共 | G150: 082082 | H150: 茨城県 | I150: 龍ケ崎市 | J150: =IF(千円単!J150="","",ROUND(千円単!J150/1000,0)) -> 2506 | K150: =IF(千円単!K150="","",ROUND(千円単!K150/1000,0)) -> 1166 | L150: =IF(千円単!L150="","",ROUND(千円単!L150/1000,0)) -> 264 | M150: =IF(千円単!M150="","",ROUND(千円単!M150/1000,0)) -> 2205 | N150: =IF(千円単!N150="","",ROUND(千円単!N150/1000,0)) -> 131 | O150: =IF(千円単!O150="","",ROUND(千円単!O150/1000,0)) -> 1533 | P150: =IF(千円単!P150="","",ROUND(千円単!P150/1000,0)) -> 37 | Q150: =IF(千円単!Q150="","",ROUND(千円単!Q150/1000,0)) -> 301 | R150: =IF(千円単!R150="","",ROUND(千円単!R150/1000,0)) -> 592 | S150: =IF(千円単!S150="","",ROUND(千円単!S150/1000,0)) -> 438 | T150: =IF(千円単!T150="","",ROUND(千円単!T150/1000,0)) -> 125 | U150: =IF(千円単!U150="","",ROUND(千円単!U150/1000,0)) -> 1345 | V150: =IF(千円単!V150="","",ROUND(千円単!V150/1000,0)) -> 126 | W150: =IF(千円単!W150="","",ROUND(千円単!W150/1000,0)) -> 1219 | X150: =IF(千円単!X150="","",ROUND(千円単!X150/1000,0)) -> -753 | Y150: =IF(千円単!Y150="","",ROUND(千円単!Y150/1000,0)) -> 301
A151: 2021 | B151: 46 | C151: 17 | D151: 1 | E151: 150 | F151: 公共 | G151: 082104 | H151: 茨城県 | I151: 下妻市 | J151: =IF(千円単!J151="","",ROUND(千円単!J151/1000,0)) -> 820 | K151: =IF(千円単!K151="","",ROUND(千円単!K151/1000,0)) -> 155 | L151: =IF(千円単!L151="","",ROUND(千円単!L151/1000,0)) -> 390 | M151: =IF(千円単!M151="","",ROUND(千円単!M151/1000,0)) -> 697 | N151: =IF(千円単!N151="","",ROUND(千円単!N151/1000,0)) -> 79 | O151: =IF(千円単!O151="","",ROUND(千円単!O151/1000,0)) -> 364 | P151: =IF(千円単!P151="","",ROUND(千円単!P151/1000,0)) -> 33 | Q151: =IF(千円単!Q151="","",ROUND(千円単!Q151/1000,0)) -> 123 | R151: =IF(千円単!R151="","",ROUND(千円単!R151/1000,0)) -> 577 | S151: =IF(千円単!S151="","",ROUND(千円単!S151/1000,0)) -> 303 | T151: =IF(千円単!T151="","",ROUND(千円単!T151/1000,0)) -> 117 | U151: =IF(千円単!U151="","",ROUND(千円単!U151/1000,0)) -> 808 | V151: =IF(千円単!V151="","",ROUND(千円単!V151/1000,0)) -> 393 | W151: =IF(千円単!W151="","",ROUND(千円単!W151/1000,0)) -> 416 | X151: =IF(千円単!X151="","",ROUND(千円単!X151/1000,0)) -> -231 | Y151: =IF(千円単!Y151="","",ROUND(千円単!Y151/1000,0)) -> 123
A152: 2021 | B152: 46 | C152: 17 | D152: 1 | E152: 151 | F152: 公共 | G152: 082112 | H152: 茨城県 | I152: 常総市 | J152: =IF(千円単!J152="","",ROUND(千円単!J152/1000,0)) -> 893 | K152: =IF(千円単!K152="","",ROUND(千円単!K152/1000,0)) -> 214 | L152: =IF(千円単!L152="","",ROUND(千円単!L152/1000,0)) -> 397 | M152: =IF(千円単!M152="","",ROUND(千円単!M152/1000,0)) -> 878 | N152: =IF(千円単!N152="","",ROUND(千円単!N152/1000,0)) -> 111 | O152: =IF(千円単!O152="","",ROUND(千円単!O152/1000,0)) -> 511 | P152: =IF(千円単!P152="","",ROUND(千円単!P152/1000,0)) -> 34 | Q152: =IF(千円単!Q152="","",ROUND(千円単!Q152/1000,0)) -> 15 | R152: =IF(千円単!R152="","",ROUND(千円単!R152/1000,0)) -> 1385 | S152: =IF(千円単!S152="","",ROUND(千円単!S152/1000,0)) -> 946 | T152: =IF(千円単!T152="","",ROUND(千円単!T152/1000,0)) -> 0 | U152: =IF(千円単!U152="","",ROUND(千円単!U152/1000,0)) -> 1607 | V152: =IF(千円単!V152="","",ROUND(千円単!V152/1000,0)) -> 1099 | W152: =IF(千円単!W152="","",ROUND(千円単!W152/1000,0)) -> 508 | X152: =IF(千円単!X152="","",ROUND(千円単!X152/1000,0)) -> -222 | Y152: =IF(千円単!Y152="","",ROUND(千円単!Y152/1000,0)) -> 15
A153: 2021 | B153: 46 | C153: 17 | D153: 1 | E153: 152 | F153: 公共 | G153: 082121 | H153: 茨城県 | I153: 常陸太田市 | J153: =IF(千円単!J153="","",ROUND(千円単!J153/1000,0)) -> 932 | K153: =IF(千円単!K153="","",ROUND(千円単!K153/1000,0)) -> 231 | L153: =IF(千円単!L153="","",ROUND(千円単!L153/1000,0)) -> 453 | M153: =IF(千円単!M153="","",ROUND(千円単!M153/1000,0)) -> 708 | N153: =IF(千円単!N153="","",ROUND(千円単!N153/1000,0)) -> 63 | O153: =IF(千円単!O153="","",ROUND(千円単!O153/1000,0)) -> 437 | P153: =IF(千円単!P153="","",ROUND(千円単!P153/1000,0)) -> 54 | Q153: =IF(千円単!Q153="","",ROUND(千円単!Q153/1000,0)) -> 223 | R153: =IF(千円単!R153="","",ROUND(千円単!R153/1000,0)) -> 668 | S153: =IF(千円単!S153="","",ROUND(千円単!S153/1000,0)) -> 281 | T153: =IF(千円単!T153="","",ROUND(千円単!T153/1000,0)) -> 171 | U153: =IF(千円単!U153="","",ROUND(千円単!U153/1000,0)) -> 738 | V153: =IF(千円単!V153="","",ROUND(千円単!V153/1000,0)) -> 400 | W153: =IF(千円単!W153="","",ROUND(千円単!W153/1000,0)) -> 338 | X153: =IF(千円単!X153="","",ROUND(千円単!X153/1000,0)) -> -70 | Y153: =IF(千円単!Y153="","",ROUND(千円単!Y153/1000,0)) -> 223
A154: 2021 | B154: 46 | C154: 17 | D154: 1 | E154: 153 | F154: 公共 | G154: 082155 | H154: 茨城県 | I154: 北茨城市 | J154: =IF(千円単!J154="","",ROUND(千円単!J154/1000,0)) -> 386 | K154: =IF(千円単!K154="","",ROUND(千円単!K154/1000,0)) -> 67 | L154: =IF(千円単!L154="","",ROUND(千円単!L154/1000,0)) -> 156 | M154: =IF(千円単!M154="","",ROUND(千円単!M154/1000,0)) -> 460 | N154: =IF(千円単!N154="","",ROUND(千円単!N154/1000,0)) -> 51 | O154: =IF(千円単!O154="","",ROUND(千円単!O154/1000,0)) -> 314 | P154: =IF(千円単!P154="","",ROUND(千円単!P154/1000,0)) -> 28 | Q154: =IF(千円単!Q154="","",ROUND(千円単!Q154/1000,0)) -> -75 | R154: =IF(千円単!R154="","",ROUND(千円単!R154/1000,0)) -> 331 | S154: =IF(千円単!S154="","",ROUND(千円単!S154/1000,0)) -> 118 | T154: =IF(千円単!T154="","",ROUND(千円単!T154/1000,0)) -> 0 | U154: =IF(千円単!U154="","",ROUND(千円単!U154/1000,0)) -> 381 | V154: =IF(千円単!V154="","",ROUND(千円単!V154/1000,0)) -> 168 | W154: =IF(千円単!W154="","",ROUND(千円単!W154/1000,0)) -> 213 | X154: =IF(千円単!X154="","",ROUND(千円単!X154/1000,0)) -> -50 | Y154: =IF(千円単!Y154="","",ROUND(千円単!Y154/1000,0)) -> -75
A155: 2021 | B155: 46 | C155: 17 | D155: 1 | E155: 154 | F155: 公共 | G155: 082163 | H155: 茨城県 | I155: 笠間市 | J155: =IF(千円単!J155="","",ROUND(千円単!J155/1000,0)) -> 1821 | K155: =IF(千円単!K155="","",ROUND(千円単!K155/1000,0)) -> 606 | L155: =IF(千円単!L155="","",ROUND(千円単!L155/1000,0)) -> 633 | M155: =IF(千円単!M155="","",ROUND(千円単!M155/1000,0)) -> 1734 | N155: =IF(千円単!N155="","",ROUND(千円単!N155/1000,0)) -> 196 | O155: =IF(千円単!O155="","",ROUND(千円単!O155/1000,0)) -> 989 | P155: =IF(千円単!P155="","",ROUND(千円単!P155/1000,0)) -> 64 | Q155: =IF(千円単!Q155="","",ROUND(千円単!Q155/1000,0)) -> 87 | R155: =IF(千円単!R155="","",ROUND(千円単!R155/1000,0)) -> 1408 | S155: =IF(千円単!S155="","",ROUND(千円単!S155/1000,0)) -> 766 | T155: =IF(千円単!T155="","",ROUND(千円単!T155/1000,0)) -> 0 | U155: =IF(千円単!U155="","",ROUND(千円単!U155/1000,0)) -> 2008 | V155: =IF(千円単!V155="","",ROUND(千円単!V155/1000,0)) -> 820 | W155: =IF(千円単!W155="","",ROUND(千円単!W155/1000,0)) -> 1189 | X155: =IF(千円単!X155="","",ROUND(千円単!X155/1000,0)) -> -601 | Y155: =IF(千円単!Y155="","",ROUND(千円単!Y155/1000,0)) -> 87
A156: 2021 | B156: 46 | C156: 17 | D156: 1 | E156: 155 | F156: 公共 | G156: 082198 | H156: 茨城県 | I156: 牛久市 | J156: =IF(千円単!J156="","",ROUND(千円単!J156/1000,0)) -> 1532 | K156: =IF(千円単!K156="","",ROUND(千円単!K156/1000,0)) -> 817 | L156: =IF(千円単!L156="","",ROUND(千円単!L156/1000,0)) -> 173 | M156: =IF(千円単!M156="","",ROUND(千円単!M156/1000,0)) -> 1448 | N156: =IF(千円単!N156="","",ROUND(千円単!N156/1000,0)) -> 105 | O156: =IF(千円単!O156="","",ROUND(千円単!O156/1000,0)) -> 833 | P156: =IF(千円単!P156="","",ROUND(千円単!P156/1000,0)) -> 35 | Q156: =IF(千円単!Q156="","",ROUND(千円単!Q156/1000,0)) -> 84 | R156: =IF(千円単!R156="","",ROUND(千円単!R156/1000,0)) -> 966 | S156: =IF(千円単!S156="","",ROUND(千円単!S156/1000,0)) -> 329 | T156: =IF(千円単!T156="","",ROUND(千円単!T156/1000,0)) -> 380 | U156: =IF(千円単!U156="","",ROUND(千円単!U156/1000,0)) -> 1441 | V156: =IF(千円単!V156="","",ROUND(千円単!V156/1000,0)) -> 777 | W156: =IF(千円単!W156="","",ROUND(千円単!W156/1000,0)) -> 664 | X156: =IF(千円単!X156="","",ROUND(千円単!X156/1000,0)) -> -475 | Y156: =IF(千円単!Y156="","",ROUND(千円単!Y156/1000,0)) -> 84
A157: 2021 | B157: 46 | C157: 17 | D157: 1 | E157: 156 | F157: 公共 | G157: 082201 | H157: 茨城県 | I157: つくば市 | J157: =IF(千円単!J157="","",ROUND(千円単!J157/1000,0)) -> 8880 | K157: =IF(千円単!K157="","",ROUND(千円単!K157/1000,0)) -> 3441 | L157: =IF(千円単!L157="","",ROUND(千円単!L157/1000,0)) -> 757 | M157: =IF(千円単!M157="","",ROUND(千円単!M157/1000,0)) -> 8631 | N157: =IF(千円単!N157="","",ROUND(千円単!N157/1000,0)) -> 379 | O157: =IF(千円単!O157="","",ROUND(千円単!O157/1000,0)) -> 6102 | P157: =IF(千円単!P157="","",ROUND(千円単!P157/1000,0)) -> 101 | Q157: =IF(千円単!Q157="","",ROUND(千円単!Q157/1000,0)) -> 249 | R157: =IF(千円単!R157="","",ROUND(千円単!R157/1000,0)) -> 4012 | S157: =IF(千円単!S157="","",ROUND(千円単!S157/1000,0)) -> 1448 | T157: =IF(千円単!T157="","",ROUND(千円単!T157/1000,0)) -> 748 | U157: =IF(千円単!U157="","",ROUND(千円単!U157/1000,0)) -> 4204 | V157: =IF(千円単!V157="","",ROUND(千円単!V157/1000,0)) -> 2522 | W157: =IF(千円単!W157="","",ROUND(千円単!W157/1000,0)) -> 1682 | X157: =IF(千円単!X157="","",ROUND(千円単!X157/1000,0)) -> -192 | Y157: =IF(千円単!Y157="","",ROUND(千円単!Y157/1000,0)) -> 249
A158: 2021 | B158: 46 | C158: 17 | D158: 1 | E158: 157 | F158: 公共 | G158: 082210 | H158: 茨城県 | I158: ひたちなか市 | J158: =IF(千円単!J158="","",ROUND(千円単!J158/1000,0)) -> 3957 | K158: =IF(千円単!K158="","",ROUND(千円単!K158/1000,0)) -> 1328 | L158: =IF(千円単!L158="","",ROUND(千円単!L158/1000,0)) -> 1624 | M158: =IF(千円単!M158="","",ROUND(千円単!M158/1000,0)) -> 3260 | N158: =IF(千円単!N158="","",ROUND(千円単!N158/1000,0)) -> 379 | O158: =IF(千円単!O158="","",ROUND(千円単!O158/1000,0)) -> 2061 | P158: =IF(千円単!P158="","",ROUND(千円単!P158/1000,0)) -> 86 | Q158: =IF(千円単!Q158="","",ROUND(千円単!Q158/1000,0)) -> 698 | R158: =IF(千円単!R158="","",ROUND(千円単!R158/1000,0)) -> 2842 | S158: =IF(千円単!S158="","",ROUND(千円単!S158/1000,0)) -> 1971 | T158: =IF(千円単!T158="","",ROUND(千円単!T158/1000,0)) -> 0 | U158: =IF(千円単!U158="","",ROUND(千円単!U158/1000,0)) -> 4656 | V158: =IF(千円単!V158="","",ROUND(千円単!V158/1000,0)) -> 2448 | W158: =IF(千円単!W158="","",ROUND(千円単!W158/1000,0)) -> 2206 | X158: =IF(千円単!X158="","",ROUND(千円単!X158/1000,0)) -> -1813 | Y158: =IF(千円単!Y158="","",ROUND(千円単!Y158/1000,0)) -> 698
A159: 2021 | B159: 46 | C159: 17 | D159: 1 | E159: 158 | F159: 公共 | G159: 082228 | H159: 茨城県 | I159: 鹿嶋市 | J159: =IF(千円単!J159="","",ROUND(千円単!J159/1000,0)) -> 1452 | K159: =IF(千円単!K159="","",ROUND(千円単!K159/1000,0)) -> 567 | L159: =IF(千円単!L159="","",ROUND(千円単!L159/1000,0)) -> 397 | M159: =IF(千円単!M159="","",ROUND(千円単!M159/1000,0)) -> 1372 | N159: =IF(千円単!N159="","",ROUND(千円単!N159/1000,0)) -> 119 | O159: =IF(千円単!O159="","",ROUND(千円単!O159/1000,0)) -> 886 | P159: =IF(千円単!P159="","",ROUND(千円単!P159/1000,0)) -> 32 | Q159: =IF(千円単!Q159="","",ROUND(千円単!Q159/1000,0)) -> 80 | R159: =IF(千円単!R159="","",ROUND(千円単!R159/1000,0)) -> 554 | S159: =IF(千円単!S159="","",ROUND(千円単!S159/1000,0)) -> 327 | T159: =IF(千円単!T159="","",ROUND(千円単!T159/1000,0)) -> 0 | U159: =IF(千円単!U159="","",ROUND(千円単!U159/1000,0)) -> 1041 | V159: =IF(千円単!V159="","",ROUND(千円単!V159/1000,0)) -> 543 | W159: =IF(千円単!W159="","",ROUND(千円単!W159/1000,0)) -> 498 | X159: =IF(千円単!X159="","",ROUND(千円単!X159/1000,0)) -> -487 | Y159: =IF(千円単!Y159="","",ROUND(千円単!Y159/1000,0)) -> 80
A160: 2021 | B160: 46 | C160: 17 | D160: 1 | E160: 159 | F160: 公共 | G160: 082236 | H160: 茨城県 | I160: 潮来市 | J160: =IF(千円単!J160="","",ROUND(千円単!J160/1000,0)) -> 1192 | K160: =IF(千円単!K160="","",ROUND(千円単!K160/1000,0)) -> 325 | L160: =IF(千円単!L160="","",ROUND(千円単!L160/1000,0)) -> 401 | M160: =IF(千円単!M160="","",ROUND(千円単!M160/1000,0)) -> 1180 | N160: =IF(千円単!N160="","",ROUND(千円単!N160/1000,0)) -> 80 | O160: =IF(千円単!O160="","",ROUND(千円単!O160/1000,0)) -> 592 | P160: =IF(千円単!P160="","",ROUND(千円単!P160/1000,0)) -> 31 | Q160: =IF(千円単!Q160="","",ROUND(千円単!Q160/1000,0)) -> 12 | R160: =IF(千円単!R160="","",ROUND(千円単!R160/1000,0)) -> 1459 | S160: =IF(千円単!S160="","",ROUND(千円単!S160/1000,0)) -> 743 | T160: =IF(千円単!T160="","",ROUND(千円単!T160/1000,0)) -> 390 | U160: =IF(千円単!U160="","",ROUND(千円単!U160/1000,0)) -> 1613 | V160: =IF(千円単!V160="","",ROUND(千円単!V160/1000,0)) -> 981 | W160: =IF(千円単!W160="","",ROUND(千円単!W160/1000,0)) -> 632 | X160: =IF(千円単!X160="","",ROUND(千円単!X160/1000,0)) -> -153 | Y160: =IF(千円単!Y160="","",ROUND(千円単!Y160/1000,0)) -> 12
A161: 2021 | B161: 46 | C161: 17 | D161: 1 | E161: 160 | F161: 公共 | G161: 082244 | H161: 茨城県 | I161: 守谷市 | J161: =IF(千円単!J161="","",ROUND(千円単!J161/1000,0)) -> 2234 | K161: =IF(千円単!K161="","",ROUND(千円単!K161/1000,0)) -> 1299 | L161: =IF(千円単!L161="","",ROUND(千円単!L161/1000,0)) -> 32 | M161: =IF(千円単!M161="","",ROUND(千円単!M161/1000,0)) -> 1818 | N161: =IF(千円単!N161="","",ROUND(千円単!N161/1000,0)) -> 50 | O161: =IF(千円単!O161="","",ROUND(千円単!O161/1000,0)) -> 1095 | P161: =IF(千円単!P161="","",ROUND(千円単!P161/1000,0)) -> 58 | Q161: =IF(千円単!Q161="","",ROUND(千円単!Q161/1000,0)) -> 416 | R161: =IF(千円単!R161="","",ROUND(千円単!R161/1000,0)) -> 78 | S161: =IF(千円単!S161="","",ROUND(千円単!S161/1000,0)) -> 0 | T161: =IF(千円単!T161="","",ROUND(千円単!T161/1000,0)) -> 34 | U161: =IF(千円単!U161="","",ROUND(千円単!U161/1000,0)) -> 499 | V161: =IF(千円単!V161="","",ROUND(千円単!V161/1000,0)) -> 248 | W161: =IF(千円単!W161="","",ROUND(千円単!W161/1000,0)) -> 251 | X161: =IF(千円単!X161="","",ROUND(千円単!X161/1000,0)) -> -421 | Y161: =IF(千円単!Y161="","",ROUND(千円単!Y161/1000,0)) -> 416
A162: 2021 | B162: 46 | C162: 17 | D162: 1 | E162: 161 | F162: 公共 | G162: 082252 | H162: 茨城県 | I162: 常陸大宮市 | J162: =IF(千円単!J162="","",ROUND(千円単!J162/1000,0)) -> 542 | K162: =IF(千円単!K162="","",ROUND(千円単!K162/1000,0)) -> 154 | L162: =IF(千円単!L162="","",ROUND(千円単!L162/1000,0)) -> 263 | M162: =IF(千円単!M162="","",ROUND(千円単!M162/1000,0)) -> 421 | N162: =IF(千円単!N162="","",ROUND(千円単!N162/1000,0)) -> 48 | O162: =IF(千円単!O162="","",ROUND(千円単!O162/1000,0)) -> 242 | P162: =IF(千円単!P162="","",ROUND(千円単!P162/1000,0)) -> 28 | Q162: =IF(千円単!Q162="","",ROUND(千円単!Q162/1000,0)) -> 121 | R162: =IF(千円単!R162="","",ROUND(千円単!R162/1000,0)) -> 775 | S162: =IF(千円単!S162="","",ROUND(千円単!S162/1000,0)) -> 505 | T162: =IF(千円単!T162="","",ROUND(千円単!T162/1000,0)) -> 7 | U162: =IF(千円単!U162="","",ROUND(千円単!U162/1000,0)) -> 1015 | V162: =IF(千円単!V162="","",ROUND(千円単!V162/1000,0)) -> 823 | W162: =IF(千円単!W162="","",ROUND(千円単!W162/1000,0)) -> 192 | X162: =IF(千円単!X162="","",ROUND(千円単!X162/1000,0)) -> -241 | Y162: =IF(千円単!Y162="","",ROUND(千円単!Y162/1000,0)) -> 121
A163: 2021 | B163: 46 | C163: 17 | D163: 1 | E163: 162 | F163: 公共 | G163: 082261 | H163: 茨城県 | I163: 那珂市 | J163: =IF(千円単!J163="","",ROUND(千円単!J163/1000,0)) -> 1340 | K163: =IF(千円単!K163="","",ROUND(千円単!K163/1000,0)) -> 492 | L163: =IF(千円単!L163="","",ROUND(千円単!L163/1000,0)) -> 565 | M163: =IF(千円単!M163="","",ROUND(千円単!M163/1000,0)) -> 1097 | N163: =IF(千円単!N163="","",ROUND(千円単!N163/1000,0)) -> 133 | O163: =IF(千円単!O163="","",ROUND(千円単!O163/1000,0)) -> 629 | P163: =IF(千円単!P163="","",ROUND(千円単!P163/1000,0)) -> 45 | Q163: =IF(千円単!Q163="","",ROUND(千円単!Q163/1000,0)) -> 243 | R163: =IF(千円単!R163="","",ROUND(千円単!R163/1000,0)) -> 985 | S163: =IF(千円単!S163="","",ROUND(千円単!S163/1000,0)) -> 614 | T163: =IF(千円単!T163="","",ROUND(千円単!T163/1000,0)) -> 41 | U163: =IF(千円単!U163="","",ROUND(千円単!U163/1000,0)) -> 1617 | V163: =IF(千円単!V163="","",ROUND(千円単!V163/1000,0)) -> 895 | W163: =IF(千円単!W163="","",ROUND(千円単!W163/1000,0)) -> 723 | X163: =IF(千円単!X163="","",ROUND(千円単!X163/1000,0)) -> -633 | Y163: =IF(千円単!Y163="","",ROUND(千円単!Y163/1000,0)) -> 243
A164: 2021 | B164: 46 | C164: 17 | D164: 1 | E164: 163 | F164: 公共 | G164: 082279 | H164: 茨城県 | I164: 筑西市 | J164: =IF(千円単!J164="","",ROUND(千円単!J164/1000,0)) -> 1620 | K164: =IF(千円単!K164="","",ROUND(千円単!K164/1000,0)) -> 516 | L164: =IF(千円単!L164="","",ROUND(千円単!L164/1000,0)) -> 725 | M164: =IF(千円単!M164="","",ROUND(千円単!M164/1000,0)) -> 1534 | N164: =IF(千円単!N164="","",ROUND(千円単!N164/1000,0)) -> 141 | O164: =IF(千円単!O164="","",ROUND(千円単!O164/1000,0)) -> 868 | P164: =IF(千円単!P164="","",ROUND(千円単!P164/1000,0)) -> 56 | Q164: =IF(千円単!Q164="","",ROUND(千円単!Q164/1000,0)) -> 86 | R164: =IF(千円単!R164="","",ROUND(千円単!R164/1000,0)) -> 757 | S164: =IF(千円単!S164="","",ROUND(千円単!S164/1000,0)) -> 317 | T164: =IF(千円単!T164="","",ROUND(千円単!T164/1000,0)) -> 268 | U164: =IF(千円単!U164="","",ROUND(千円単!U164/1000,0)) -> 1229 | V164: =IF(千円単!V164="","",ROUND(千円単!V164/1000,0)) -> 389 | W164: =IF(千円単!W164="","",ROUND(千円単!W164/1000,0)) -> 840 | X164: =IF(千円単!X164="","",ROUND(千円単!X164/1000,0)) -> -472 | Y164: =IF(千円単!Y164="","",ROUND(千円単!Y164/1000,0)) -> 86
A165: 2021 | B165: 46 | C165: 17 | D165: 1 | E165: 164 | F165: 公共 | G165: 082287 | H165: 茨城県 | I165: 坂東市 | J165: =IF(千円単!J165="","",ROUND(千円単!J165/1000,0)) -> 945 | K165: =IF(千円単!K165="","",ROUND(千円単!K165/1000,0)) -> 310 | L165: =IF(千円単!L165="","",ROUND(千円単!L165/1000,0)) -> 308 | M165: =IF(千円単!M165="","",ROUND(千円単!M165/1000,0)) -> 798 | N165: =IF(千円単!N165="","",ROUND(千円単!N165/1000,0)) -> 54 | O165: =IF(千円単!O165="","",ROUND(千円単!O165/1000,0)) -> 455 | P165: =IF(千円単!P165="","",ROUND(千円単!P165/1000,0)) -> 32 | Q165: =IF(千円単!Q165="","",ROUND(千円単!Q165/1000,0)) -> 147 | R165: =IF(千円単!R165="","",ROUND(千円単!R165/1000,0)) -> 289 | S165: =IF(千円単!S165="","",ROUND(千円単!S165/1000,0)) -> 108 | T165: =IF(千円単!T165="","",ROUND(千円単!T165/1000,0)) -> 96 | U165: =IF(千円単!U165="","",ROUND(千円単!U165/1000,0)) -> 554 | V165: =IF(千円単!V165="","",ROUND(千円単!V165/1000,0)) -> 200 | W165: =IF(千円単!W165="","",ROUND(千円単!W165/1000,0)) -> 354 | X165: =IF(千円単!X165="","",ROUND(千円単!X165/1000,0)) -> -265 | Y165: =IF(千円単!Y165="","",ROUND(千円単!Y165/1000,0)) -> 147
A166: 2021 | B166: 46 | C166: 17 | D166: 1 | E166: 165 | F166: 公共 | G166: 082295 | H166: 茨城県 | I166: 稲敷市 | J166: =IF(千円単!J166="","",ROUND(千円単!J166/1000,0)) -> 435 | K166: =IF(千円単!K166="","",ROUND(千円単!K166/1000,0)) -> 40 | L166: =IF(千円単!L166="","",ROUND(千円単!L166/1000,0)) -> 255 | M166: =IF(千円単!M166="","",ROUND(千円単!M166/1000,0)) -> 360 | N166: =IF(千円単!N166="","",ROUND(千円単!N166/1000,0)) -> 53 | O166: =IF(千円単!O166="","",ROUND(千円単!O166/1000,0)) -> 238 | P166: =IF(千円単!P166="","",ROUND(千円単!P166/1000,0)) -> 9 | Q166: =IF(千円単!Q166="","",ROUND(千円単!Q166/1000,0)) -> 76 | R166: =IF(千円単!R166="","",ROUND(千円単!R166/1000,0)) -> 9 | S166: =IF(千円単!S166="","",ROUND(千円単!S166/1000,0)) -> 4 | T166: =IF(千円単!T166="","",ROUND(千円単!T166/1000,0)) -> 5 | U166: =IF(千円単!U166="","",ROUND(千円単!U166/1000,0)) -> 207 | V166: =IF(千円単!V166="","",ROUND(千円単!V166/1000,0)) -> 4 | W166: =IF(千円単!W166="","",ROUND(千円単!W166/1000,0)) -> 203 | X166: =IF(千円単!X166="","",ROUND(千円単!X166/1000,0)) -> -198 | Y166: =IF(千円単!Y166="","",ROUND(千円単!Y166/1000,0)) -> 76
A167: 2021 | B167: 46 | C167: 17 | D167: 1 | E167: 166 | F167: 公共 | G167: 082309 | H167: 茨城県 | I167: かすみがうら市 | J167: =IF(千円単!J167="","",ROUND(千円単!J167/1000,0)) -> 601 | K167: =IF(千円単!K167="","",ROUND(千円単!K167/1000,0)) -> 279 | L167: =IF(千円単!L167="","",ROUND(千円単!L167/1000,0)) -> 144 | M167: =IF(千円単!M167="","",ROUND(千円単!M167/1000,0)) -> 572 | N167: =IF(千円単!N167="","",ROUND(千円単!N167/1000,0)) -> 47 | O167: =IF(千円単!O167="","",ROUND(千円単!O167/1000,0)) -> 242 | P167: =IF(千円単!P167="","",ROUND(千円単!P167/1000,0)) -> 34 | Q167: =IF(千円単!Q167="","",ROUND(千円単!Q167/1000,0)) -> 30 | R167: =IF(千円単!R167="","",ROUND(千円単!R167/1000,0)) -> 209 | S167: =IF(千円単!S167="","",ROUND(千円単!S167/1000,0)) -> 51 | T167: =IF(千円単!T167="","",ROUND(千円単!T167/1000,0)) -> 145 | U167: =IF(千円単!U167="","",ROUND(千円単!U167/1000,0)) -> 351 | V167: =IF(千円単!V167="","",ROUND(千円単!V167/1000,0)) -> 71 | W167: =IF(千円単!W167="","",ROUND(千円単!W167/1000,0)) -> 280 | X167: =IF(千円単!X167="","",ROUND(千円単!X167/1000,0)) -> -142 | Y167: =IF(千円単!Y167="","",ROUND(千円単!Y167/1000,0)) -> 30
A168: 2021 | B168: 46 | C168: 17 | D168: 1 | E168: 167 | F168: 公共 | G168: 082317 | H168: 茨城県 | I168: 桜川市 | J168: =IF(千円単!J168="","",ROUND(千円単!J168/1000,0)) -> 405 | K168: =IF(千円単!K168="","",ROUND(千円単!K168/1000,0)) -> 76 | L168: =IF(千円単!L168="","",ROUND(千円単!L168/1000,0)) -> 237 | M168: =IF(千円単!M168="","",ROUND(千円単!M168/1000,0)) -> 513 | N168: =IF(千円単!N168="","",ROUND(千円単!N168/1000,0)) -> 78 | O168: =IF(千円単!O168="","",ROUND(千円単!O168/1000,0)) -> 237 | P168: =IF(千円単!P168="","",ROUND(千円単!P168/1000,0)) -> 23 | Q168: =IF(千円単!Q168="","",ROUND(千円単!Q168/1000,0)) -> -108 | R168: =IF(千円単!R168="","",ROUND(千円単!R168/1000,0)) -> 307 | S168: =IF(千円単!S168="","",ROUND(千円単!S168/1000,0)) -> 49 | T168: =IF(千円単!T168="","",ROUND(千円単!T168/1000,0)) -> 0 | U168: =IF(千円単!U168="","",ROUND(千円単!U168/1000,0)) -> 353 | V168: =IF(千円単!V168="","",ROUND(千円単!V168/1000,0)) -> 81 | W168: =IF(千円単!W168="","",ROUND(千円単!W168/1000,0)) -> 272 | X168: =IF(千円単!X168="","",ROUND(千円単!X168/1000,0)) -> -46 | Y168: =IF(千円単!Y168="","",ROUND(千円単!Y168/1000,0)) -> -108
A169: 2021 | B169: 46 | C169: 17 | D169: 1 | E169: 168 | F169: 公共 | G169: 082325 | H169: 茨城県 | I169: 神栖市 | J169: =IF(千円単!J169="","",ROUND(千円単!J169/1000,0)) -> 1679 | K169: =IF(千円単!K169="","",ROUND(千円単!K169/1000,0)) -> 666 | L169: =IF(千円単!L169="","",ROUND(千円単!L169/1000,0)) -> 380 | M169: =IF(千円単!M169="","",ROUND(千円単!M169/1000,0)) -> 1601 | N169: =IF(千円単!N169="","",ROUND(千円単!N169/1000,0)) -> 90 | O169: =IF(千円単!O169="","",ROUND(千円単!O169/1000,0)) -> 880 | P169: =IF(千円単!P169="","",ROUND(千円単!P169/1000,0)) -> 79 | Q169: =IF(千円単!Q169="","",ROUND(千円単!Q169/1000,0)) -> 78 | R169: =IF(千円単!R169="","",ROUND(千円単!R169/1000,0)) -> 1648 | S169: =IF(千円単!S169="","",ROUND(千円単!S169/1000,0)) -> 694 | T169: =IF(千円単!T169="","",ROUND(千円単!T169/1000,0)) -> 252 | U169: =IF(千円単!U169="","",ROUND(千円単!U169/1000,0)) -> 2038 | V169: =IF(千円単!V169="","",ROUND(千円単!V169/1000,0)) -> 1678 | W169: =IF(千円単!W169="","",ROUND(千円単!W169/1000,0)) -> 361 | X169: =IF(千円単!X169="","",ROUND(千円単!X169/1000,0)) -> -391 | Y169: =IF(千円単!Y169="","",ROUND(千円単!Y169/1000,0)) -> 78
A170: 2021 | B170: 46 | C170: 17 | D170: 1 | E170: 169 | F170: 公共 | G170: 082333 | H170: 茨城県 | I170: 行方市 | J170: =IF(千円単!J170="","",ROUND(千円単!J170/1000,0)) -> 274 | K170: =IF(千円単!K170="","",ROUND(千円単!K170/1000,0)) -> 45 | L170: =IF(千円単!L170="","",ROUND(千円単!L170/1000,0)) -> 175 | M170: =IF(千円単!M170="","",ROUND(千円単!M170/1000,0)) -> 242 | N170: =IF(千円単!N170="","",ROUND(千円単!N170/1000,0)) -> 30 | O170: =IF(千円単!O170="","",ROUND(千円単!O170/1000,0)) -> 143 | P170: =IF(千円単!P170="","",ROUND(千円単!P170/1000,0)) -> 19 | Q170: =IF(千円単!Q170="","",ROUND(千円単!Q170/1000,0)) -> 32 | R170: =IF(千円単!R170="","",ROUND(千円単!R170/1000,0)) -> 96 | S170: =IF(千円単!S170="","",ROUND(千円単!S170/1000,0)) -> 22 | T170: =IF(千円単!T170="","",ROUND(千円単!T170/1000,0)) -> 67 | U170: =IF(千円単!U170="","",ROUND(千円単!U170/1000,0)) -> 182 | V170: =IF(千円単!V170="","",ROUND(千円単!V170/1000,0)) -> 25 | W170: =IF(千円単!W170="","",ROUND(千円単!W170/1000,0)) -> 157 | X170: =IF(千円単!X170="","",ROUND(千円単!X170/1000,0)) -> -85 | Y170: =IF(千円単!Y170="","",ROUND(千円単!Y170/1000,0)) -> 32
A171: 2021 | B171: 46 | C171: 17 | D171: 1 | E171: 170 | F171: 公共 | G171: 082341 | H171: 茨城県 | I171: 鉾田市 | J171: =IF(千円単!J171="","",ROUND(千円単!J171/1000,0)) -> 277 | K171: =IF(千円単!K171="","",ROUND(千円単!K171/1000,0)) -> 27 | L171: =IF(千円単!L171="","",ROUND(千円単!L171/1000,0)) -> 155 | M171: =IF(千円単!M171="","",ROUND(千円単!M171/1000,0)) -> 277 | N171: =IF(千円単!N171="","",ROUND(千円単!N171/1000,0)) -> 36 | O171: =IF(千円単!O171="","",ROUND(千円単!O171/1000,0)) -> 162 | P171: =IF(千円単!P171="","",ROUND(千円単!P171/1000,0)) -> 17 | Q171: =IF(千円単!Q171="","",ROUND(千円単!Q171/1000,0)) -> 0 | R171: =IF(千円単!R171="","",ROUND(千円単!R171/1000,0)) -> 278 | S171: =IF(千円単!S171="","",ROUND(千円単!S171/1000,0)) -> 174 | T171: =IF(千円単!T171="","",ROUND(千円単!T171/1000,0)) -> 0 | U171: =IF(千円単!U171="","",ROUND(千円単!U171/1000,0)) -> 377 | V171: =IF(千円単!V171="","",ROUND(千円単!V171/1000,0)) -> 296 | W171: =IF(千円単!W171="","",ROUND(千円単!W171/1000,0)) -> 81 | X171: =IF(千円単!X171="","",ROUND(千円単!X171/1000,0)) -> -99 | Y171: =IF(千円単!Y171="","",ROUND(千円単!Y171/1000,0)) -> 0
A172: 2021 | B172: 46 | C172: 17 | D172: 1 | E172: 171 | F172: 公共 | G172: 082350 | H172: 茨城県 | I172: つくばみらい市 | J172: =IF(千円単!J172="","",ROUND(千円単!J172/1000,0)) -> 1338 | K172: =IF(千円単!K172="","",ROUND(千円単!K172/1000,0)) -> 354 | L172: =IF(千円単!L172="","",ROUND(千円単!L172/1000,0)) -> 415 | M172: =IF(千円単!M172="","",ROUND(千円単!M172/1000,0)) -> 1050 | N172: =IF(千円単!N172="","",ROUND(千円単!N172/1000,0)) -> 65 | O172: =IF(千円単!O172="","",ROUND(千円単!O172/1000,0)) -> 677 | P172: =IF(千円単!P172="","",ROUND(千円単!P172/1000,0)) -> 45 | Q172: =IF(千円単!Q172="","",ROUND(千円単!Q172/1000,0)) -> 289 | R172: =IF(千円単!R172="","",ROUND(千円単!R172/1000,0)) -> 226 | S172: =IF(千円単!S172="","",ROUND(千円単!S172/1000,0)) -> 138 | T172: =IF(千円単!T172="","",ROUND(千円単!T172/1000,0)) -> 0 | U172: =IF(千円単!U172="","",ROUND(千円単!U172/1000,0)) -> 558 | V172: =IF(千円単!V172="","",ROUND(千円単!V172/1000,0)) -> 247 | W172: =IF(千円単!W172="","",ROUND(千円単!W172/1000,0)) -> 311 | X172: =IF(千円単!X172="","",ROUND(千円単!X172/1000,0)) -> -331 | Y172: =IF(千円単!Y172="","",ROUND(千円単!Y172/1000,0)) -> 289
A173: 2021 | B173: 46 | C173: 17 | D173: 1 | E173: 172 | F173: 公共 | G173: 082368 | H173: 茨城県 | I173: 小美玉市 | J173: =IF(千円単!J173="","",ROUND(千円単!J173/1000,0)) -> 960 | K173: =IF(千円単!K173="","",ROUND(千円単!K173/1000,0)) -> 230 | L173: =IF(千円単!L173="","",ROUND(千円単!L173/1000,0)) -> 476 | M173: =IF(千円単!M173="","",ROUND(千円単!M173/1000,0)) -> 883 | N173: =IF(千円単!N173="","",ROUND(千円単!N173/1000,0)) -> 106 | O173: =IF(千円単!O173="","",ROUND(千円単!O173/1000,0)) -> 483 | P173: =IF(千円単!P173="","",ROUND(千円単!P173/1000,0)) -> 79 | Q173: =IF(千円単!Q173="","",ROUND(千円単!Q173/1000,0)) -> 77 | R173: =IF(千円単!R173="","",ROUND(千円単!R173/1000,0)) -> 365 | S173: =IF(千円単!S173="","",ROUND(千円単!S173/1000,0)) -> 170 | T173: =IF(千円単!T173="","",ROUND(千円単!T173/1000,0)) -> 0 | U173: =IF(千円単!U173="","",ROUND(千円単!U173/1000,0)) -> 696 | V173: =IF(千円単!V173="","",ROUND(千円単!V173/1000,0)) -> 272 | W173: =IF(千円単!W173="","",ROUND(千円単!W173/1000,0)) -> 423 | X173: =IF(千円単!X173="","",ROUND(千円単!X173/1000,0)) -> -330 | Y173: =IF(千円単!Y173="","",ROUND(千円単!Y173/1000,0)) -> 77
A174: 2021 | B174: 46 | C174: 17 | D174: 1 | E174: 173 | F174: 公共 | G174: 083020 | H174: 茨城県 | I174: 茨城町 | J174: =IF(千円単!J174="","",ROUND(千円単!J174/1000,0)) -> 659 | K174: =IF(千円単!K174="","",ROUND(千円単!K174/1000,0)) -> 135 | L174: =IF(千円単!L174="","",ROUND(千円単!L174/1000,0)) -> 330 | M174: =IF(千円単!M174="","",ROUND(千円単!M174/1000,0)) -> 633 | N174: =IF(千円単!N174="","",ROUND(千円単!N174/1000,0)) -> 72 | O174: =IF(千円単!O174="","",ROUND(千円単!O174/1000,0)) -> 334 | P174: =IF(千円単!P174="","",ROUND(千円単!P174/1000,0)) -> 45 | Q174: =IF(千円単!Q174="","",ROUND(千円単!Q174/1000,0)) -> 27 | R174: =IF(千円単!R174="","",ROUND(千円単!R174/1000,0)) -> 232 | S174: =IF(千円単!S174="","",ROUND(千円単!S174/1000,0)) -> 47 | T174: =IF(千円単!T174="","",ROUND(千円単!T174/1000,0)) -> 0 | U174: =IF(千円単!U174="","",ROUND(千円単!U174/1000,0)) -> 381 | V174: =IF(千円単!V174="","",ROUND(千円単!V174/1000,0)) -> 93 | W174: =IF(千円単!W174="","",ROUND(千円単!W174/1000,0)) -> 288 | X174: =IF(千円単!X174="","",ROUND(千円単!X174/1000,0)) -> -149 | Y174: =IF(千円単!Y174="","",ROUND(千円単!Y174/1000,0)) -> 27
A175: 2021 | B175: 46 | C175: 17 | D175: 1 | E175: 174 | F175: 公共 | G175: 083411 | H175: 茨城県 | I175: 東海村 | J175: =IF(千円単!J175="","",ROUND(千円単!J175/1000,0)) -> 791 | K175: =IF(千円単!K175="","",ROUND(千円単!K175/1000,0)) -> 332 | L175: =IF(千円単!L175="","",ROUND(千円単!L175/1000,0)) -> 197 | M175: =IF(千円単!M175="","",ROUND(千円単!M175/1000,0)) -> 784 | N175: =IF(千円単!N175="","",ROUND(千円単!N175/1000,0)) -> 53 | O175: =IF(千円単!O175="","",ROUND(千円単!O175/1000,0)) -> 480 | P175: =IF(千円単!P175="","",ROUND(千円単!P175/1000,0)) -> 18 | Q175: =IF(千円単!Q175="","",ROUND(千円単!Q175/1000,0)) -> 8 | R175: =IF(千円単!R175="","",ROUND(千円単!R175/1000,0)) -> 422 | S175: =IF(千円単!S175="","",ROUND(千円単!S175/1000,0)) -> 114 | T175: =IF(千円単!T175="","",ROUND(千円単!T175/1000,0)) -> 0 | U175: =IF(千円単!U175="","",ROUND(千円単!U175/1000,0)) -> 644 | V175: =IF(千円単!V175="","",ROUND(千円単!V175/1000,0)) -> 343 | W175: =IF(千円単!W175="","",ROUND(千円単!W175/1000,0)) -> 301 | X175: =IF(千円単!X175="","",ROUND(千円単!X175/1000,0)) -> -222 | Y175: =IF(千円単!Y175="","",ROUND(千円単!Y175/1000,0)) -> 8
A176: 2021 | B176: 46 | C176: 17 | D176: 1 | E176: 175 | F176: 公共 | G176: 084425 | H176: 茨城県 | I176: 美浦村 | J176: =IF(千円単!J176="","",ROUND(千円単!J176/1000,0)) -> 430 | K176: =IF(千円単!K176="","",ROUND(千円単!K176/1000,0)) -> 225 | L176: =IF(千円単!L176="","",ROUND(千円単!L176/1000,0)) -> 38 | M176: =IF(千円単!M176="","",ROUND(千円単!M176/1000,0)) -> 542 | N176: =IF(千円単!N176="","",ROUND(千円単!N176/1000,0)) -> 63 | O176: =IF(千円単!O176="","",ROUND(千円単!O176/1000,0)) -> 279 | P176: =IF(千円単!P176="","",ROUND(千円単!P176/1000,0)) -> 20 | Q176: =IF(千円単!Q176="","",ROUND(千円単!Q176/1000,0)) -> -112 | R176: =IF(千円単!R176="","",ROUND(千円単!R176/1000,0)) -> 717 | S176: =IF(千円単!S176="","",ROUND(千円単!S176/1000,0)) -> 254 | T176: =IF(千円単!T176="","",ROUND(千円単!T176/1000,0)) -> 201 | U176: =IF(千円単!U176="","",ROUND(千円単!U176/1000,0)) -> 745 | V176: =IF(千円単!V176="","",ROUND(千円単!V176/1000,0)) -> 539 | W176: =IF(千円単!W176="","",ROUND(千円単!W176/1000,0)) -> 206 | X176: =IF(千円単!X176="","",ROUND(千円単!X176/1000,0)) -> -28 | Y176: =IF(千円単!Y176="","",ROUND(千円単!Y176/1000,0)) -> -112
A177: 2021 | B177: 46 | C177: 17 | D177: 1 | E177: 176 | F177: 公共 | G177: 084433 | H177: 茨城県 | I177: 阿見町 | J177: =IF(千円単!J177="","",ROUND(千円単!J177/1000,0)) -> 1537 | K177: =IF(千円単!K177="","",ROUND(千円単!K177/1000,0)) -> 741 | L177: =IF(千円単!L177="","",ROUND(千円単!L177/1000,0)) -> 259 | M177: =IF(千円単!M177="","",ROUND(千円単!M177/1000,0)) -> 1339 | N177: =IF(千円単!N177="","",ROUND(千円単!N177/1000,0)) -> 87 | O177: =IF(千円単!O177="","",ROUND(千円単!O177/1000,0)) -> 672 | P177: =IF(千円単!P177="","",ROUND(千円単!P177/1000,0)) -> 33 | Q177: =IF(千円単!Q177="","",ROUND(千円単!Q177/1000,0)) -> 198 | R177: =IF(千円単!R177="","",ROUND(千円単!R177/1000,0)) -> 659 | S177: =IF(千円単!S177="","",ROUND(千円単!S177/1000,0)) -> 250 | T177: =IF(千円単!T177="","",ROUND(千円単!T177/1000,0)) -> 234 | U177: =IF(千円単!U177="","",ROUND(千円単!U177/1000,0)) -> 1038 | V177: =IF(千円単!V177="","",ROUND(千円単!V177/1000,0)) -> 513 | W177: =IF(千円単!W177="","",ROUND(千円単!W177/1000,0)) -> 524 | X177: =IF(千円単!X177="","",ROUND(千円単!X177/1000,0)) -> -379 | Y177: =IF(千円単!Y177="","",ROUND(千円単!Y177/1000,0)) -> 198
A178: 2021 | B178: 46 | C178: 17 | D178: 1 | E178: 177 | F178: 公共 | G178: 089192 | H178: 茨城県 | I178: 取手地方広域下水道組合 | J178: =IF(千円単!J178="","",ROUND(千円単!J178/1000,0)) -> 4017 | K178: =IF(千円単!K178="","",ROUND(千円単!K178/1000,0)) -> 1116 | L178: =IF(千円単!L178="","",ROUND(千円単!L178/1000,0)) -> 1619 | M178: =IF(千円単!M178="","",ROUND(千円単!M178/1000,0)) -> 3880 | N178: =IF(千円単!N178="","",ROUND(千円単!N178/1000,0)) -> 339 | O178: =IF(千円単!O178="","",ROUND(千円単!O178/1000,0)) -> 2407 | P178: =IF(千円単!P178="","",ROUND(千円単!P178/1000,0)) -> 264 | Q178: =IF(千円単!Q178="","",ROUND(千円単!Q178/1000,0)) -> 137 | R178: =IF(千円単!R178="","",ROUND(千円単!R178/1000,0)) -> 1848 | S178: =IF(千円単!S178="","",ROUND(千円単!S178/1000,0)) -> 788 | T178: =IF(千円単!T178="","",ROUND(千円単!T178/1000,0)) -> 233 | U178: =IF(千円単!U178="","",ROUND(千円単!U178/1000,0)) -> 3119 | V178: =IF(千円単!V178="","",ROUND(千円単!V178/1000,0)) -> 1631 | W178: =IF(千円単!W178="","",ROUND(千円単!W178/1000,0)) -> 1485 | X178: =IF(千円単!X178="","",ROUND(千円単!X178/1000,0)) -> -1271 | Y178: =IF(千円単!Y178="","",ROUND(千円単!Y178/1000,0)) -> 137
A179: 2021 | B179: 46 | C179: 17 | D179: 1 | E179: 178 | F179: 公共 | G179: 089222 | H179: 茨城県 | I179: 日立・高萩広域下水道組合 | J179: =IF(千円単!J179="","",ROUND(千円単!J179/1000,0)) -> 2166 | K179: =IF(千円単!K179="","",ROUND(千円単!K179/1000,0)) -> 1154 | L179: =IF(千円単!L179="","",ROUND(千円単!L179/1000,0)) -> 463 | M179: =IF(千円単!M179="","",ROUND(千円単!M179/1000,0)) -> 2165 | N179: =IF(千円単!N179="","",ROUND(千円単!N179/1000,0)) -> 151 | O179: =IF(千円単!O179="","",ROUND(千円単!O179/1000,0)) -> 1317 | P179: =IF(千円単!P179="","",ROUND(千円単!P179/1000,0)) -> 180 | Q179: =IF(千円単!Q179="","",ROUND(千円単!Q179/1000,0)) -> 1 | R179: =IF(千円単!R179="","",ROUND(千円単!R179/1000,0)) -> 1131 | S179: =IF(千円単!S179="","",ROUND(千円単!S179/1000,0)) -> 411 | T179: =IF(千円単!T179="","",ROUND(千円単!T179/1000,0)) -> 0 | U179: =IF(千円単!U179="","",ROUND(千円単!U179/1000,0)) -> 2059 | V179: =IF(千円単!V179="","",ROUND(千円単!V179/1000,0)) -> 959 | W179: =IF(千円単!W179="","",ROUND(千円単!W179/1000,0)) -> 1100 | X179: =IF(千円単!X179="","",ROUND(千円単!X179/1000,0)) -> -928 | Y179: =IF(千円単!Y179="","",ROUND(千円単!Y179/1000,0)) -> 1
A180: 2021 | B180: 46 | C180: 17 | D180: 1 | E180: 179 | F180: 公共 | G180: 089354 | H180: 茨城県 | I180: ひたちなか・東海広域事務組合 | J180: =IF(千円単!J180="","",ROUND(千円単!J180/1000,0)) -> 548 | K180: =IF(千円単!K180="","",ROUND(千円単!K180/1000,0)) -> 82 | L180: =IF(千円単!L180="","",ROUND(千円単!L180/1000,0)) -> 0 | M180: =IF(千円単!M180="","",ROUND(千円単!M180/1000,0)) -> 536 | N180: =IF(千円単!N180="","",ROUND(千円単!N180/1000,0)) -> 0 | O180: =IF(千円単!O180="","",ROUND(千円単!O180/1000,0)) -> 469 | P180: =IF(千円単!P180="","",ROUND(千円単!P180/1000,0)) -> 17 | Q180: =IF(千円単!Q180="","",ROUND(千円単!Q180/1000,0)) -> 12 | R180: =IF(千円単!R180="","",ROUND(千円単!R180/1000,0)) -> 0 | S180: =IF(千円単!S180="","",ROUND(千円単!S180/1000,0)) -> 0 | T180: =IF(千円単!T180="","",ROUND(千円単!T180/1000,0)) -> 0 | U180: =IF(千円単!U180="","",ROUND(千円単!U180/1000,0)) -> 3 | V180: =IF(千円単!V180="","",ROUND(千円単!V180/1000,0)) -> 0 | W180: =IF(千円単!W180="","",ROUND(千円単!W180/1000,0)) -> 3 | X180: =IF(千円単!X180="","",ROUND(千円単!X180/1000,0)) -> -3 | Y180: =IF(千円単!Y180="","",ROUND(千円単!Y180/1000,0)) -> 12
A181: 2021 | B181: 46 | C181: 17 | D181: 1 | E181: 180 | F181: 公共 | G181: 092011 | H181: 栃木県 | I181: 宇都宮市 | J181: =IF(千円単!J181="","",ROUND(千円単!J181/1000,0)) -> 11158 | K181: =IF(千円単!K181="","",ROUND(千円単!K181/1000,0)) -> 6717 | L181: =IF(千円単!L181="","",ROUND(千円単!L181/1000,0)) -> 1664 | M181: =IF(千円単!M181="","",ROUND(千円単!M181/1000,0)) -> 11055 | N181: =IF(千円単!N181="","",ROUND(千円単!N181/1000,0)) -> 673 | O181: =IF(千円単!O181="","",ROUND(千円単!O181/1000,0)) -> 6021 | P181: =IF(千円単!P181="","",ROUND(千円単!P181/1000,0)) -> 507 | Q181: =IF(千円単!Q181="","",ROUND(千円単!Q181/1000,0)) -> 104 | R181: =IF(千円単!R181="","",ROUND(千円単!R181/1000,0)) -> 3698 | S181: =IF(千円単!S181="","",ROUND(千円単!S181/1000,0)) -> 1262 | T181: =IF(千円単!T181="","",ROUND(千円単!T181/1000,0)) -> 97 | U181: =IF(千円単!U181="","",ROUND(千円単!U181/1000,0)) -> 7656 | V181: =IF(千円単!V181="","",ROUND(千円単!V181/1000,0)) -> 3091 | W181: =IF(千円単!W181="","",ROUND(千円単!W181/1000,0)) -> 4565 | X181: =IF(千円単!X181="","",ROUND(千円単!X181/1000,0)) -> -3958 | Y181: =IF(千円単!Y181="","",ROUND(千円単!Y181/1000,0)) -> 104
A182: 2021 | B182: 46 | C182: 17 | D182: 1 | E182: 181 | F182: 公共 | G182: 092029 | H182: 栃木県 | I182: 足利市 | J182: =IF(千円単!J182="","",ROUND(千円単!J182/1000,0)) -> 3991 | K182: =IF(千円単!K182="","",ROUND(千円単!K182/1000,0)) -> 1624 | L182: =IF(千円単!L182="","",ROUND(千円単!L182/1000,0)) -> 1434 | M182: =IF(千円単!M182="","",ROUND(千円単!M182/1000,0)) -> 3699 | N182: =IF(千円単!N182="","",ROUND(千円単!N182/1000,0)) -> 450 | O182: =IF(千円単!O182="","",ROUND(千円単!O182/1000,0)) -> 2389 | P182: =IF(千円単!P182="","",ROUND(千円単!P182/1000,0)) -> 138 | Q182: =IF(千円単!Q182="","",ROUND(千円単!Q182/1000,0)) -> 292 | R182: =IF(千円単!R182="","",ROUND(千円単!R182/1000,0)) -> 2776 | S182: =IF(千円単!S182="","",ROUND(千円単!S182/1000,0)) -> 1600 | T182: =IF(千円単!T182="","",ROUND(千円単!T182/1000,0)) -> 456 | U182: =IF(千円単!U182="","",ROUND(千円単!U182/1000,0)) -> 4091 | V182: =IF(千円単!V182="","",ROUND(千円単!V182/1000,0)) -> 653 | W182: =IF(千円単!W182="","",ROUND(千円単!W182/1000,0)) -> 3438 | X182: =IF(千円単!X182="","",ROUND(千円単!X182/1000,0)) -> -1315 | Y182: =IF(千円単!Y182="","",ROUND(千円単!Y182/1000,0)) -> 292
A183: 2021 | B183: 46 | C183: 17 | D183: 1 | E183: 182 | F183: 公共 | G183: 092037 | H183: 栃木県 | I183: 栃木市 | J183: =IF(千円単!J183="","",ROUND(千円単!J183/1000,0)) -> 3438 | K183: =IF(千円単!K183="","",ROUND(千円単!K183/1000,0)) -> 1229 | L183: =IF(千円単!L183="","",ROUND(千円単!L183/1000,0)) -> 1570 | M183: =IF(千円単!M183="","",ROUND(千円単!M183/1000,0)) -> 3089 | N183: =IF(千円単!N183="","",ROUND(千円単!N183/1000,0)) -> 343 | O183: =IF(千円単!O183="","",ROUND(千円単!O183/1000,0)) -> 1702 | P183: =IF(千円単!P183="","",ROUND(千円単!P183/1000,0)) -> 110 | Q183: =IF(千円単!Q183="","",ROUND(千円単!Q183/1000,0)) -> 349 | R183: =IF(千円単!R183="","",ROUND(千円単!R183/1000,0)) -> 1245 | S183: =IF(千円単!S183="","",ROUND(千円単!S183/1000,0)) -> 726 | T183: =IF(千円単!T183="","",ROUND(千円単!T183/1000,0)) -> 172 | U183: =IF(千円単!U183="","",ROUND(千円単!U183/1000,0)) -> 2914 | V183: =IF(千円単!V183="","",ROUND(千円単!V183/1000,0)) -> 1262 | W183: =IF(千円単!W183="","",ROUND(千円単!W183/1000,0)) -> 1652 | X183: =IF(千円単!X183="","",ROUND(千円単!X183/1000,0)) -> -1669 | Y183: =IF(千円単!Y183="","",ROUND(千円単!Y183/1000,0)) -> 349
A184: 2021 | B184: 46 | C184: 17 | D184: 1 | E184: 183 | F184: 公共 | G184: 092045 | H184: 栃木県 | I184: 佐野市 | J184: =IF(千円単!J184="","",ROUND(千円単!J184/1000,0)) -> 4490 | K184: =IF(千円単!K184="","",ROUND(千円単!K184/1000,0)) -> 1139 | L184: =IF(千円単!L184="","",ROUND(千円単!L184/1000,0)) -> 1661 | M184: =IF(千円単!M184="","",ROUND(千円単!M184/1000,0)) -> 3843 | N184: =IF(千円単!N184="","",ROUND(千円単!N184/1000,0)) -> 265 | O184: =IF(千円単!O184="","",ROUND(千円単!O184/1000,0)) -> 2480 | P184: =IF(千円単!P184="","",ROUND(千円単!P184/1000,0)) -> 119 | Q184: =IF(千円単!Q184="","",ROUND(千円単!Q184/1000,0)) -> 647 | R184: =IF(千円単!R184="","",ROUND(千円単!R184/1000,0)) -> 1989 | S184: =IF(千円単!S184="","",ROUND(千円単!S184/1000,0)) -> 1024 | T184: =IF(千円単!T184="","",ROUND(千円単!T184/1000,0)) -> 88 | U184: =IF(千円単!U184="","",ROUND(千円単!U184/1000,0)) -> 3355 | V184: =IF(千円単!V184="","",ROUND(千円単!V184/1000,0)) -> 1997 | W184: =IF(千円単!W184="","",ROUND(千円単!W184/1000,0)) -> 1358 | X184: =IF(千円単!X184="","",ROUND(千円単!X184/1000,0)) -> -1366 | Y184: =IF(千円単!Y184="","",ROUND(千円単!Y184/1000,0)) -> 647
A185: 2021 | B185: 46 | C185: 17 | D185: 1 | E185: 184 | F185: 公共 | G185: 092053 | H185: 栃木県 | I185: 鹿沼市 | J185: =IF(千円単!J185="","",ROUND(千円単!J185/1000,0)) -> 2291 | K185: =IF(千円単!K185="","",ROUND(千円単!K185/1000,0)) -> 886 | L185: =IF(千円単!L185="","",ROUND(千円単!L185/1000,0)) -> 779 | M185: =IF(千円単!M185="","",ROUND(千円単!M185/1000,0)) -> 1779 | N185: =IF(千円単!N185="","",ROUND(千円単!N185/1000,0)) -> 174 | O185: =IF(千円単!O185="","",ROUND(千円単!O185/1000,0)) -> 1075 | P185: =IF(千円単!P185="","",ROUND(千円単!P185/1000,0)) -> 99 | Q185: =IF(千円単!Q185="","",ROUND(千円単!Q185/1000,0)) -> 512 | R185: =IF(千円単!R185="","",ROUND(千円単!R185/1000,0)) -> 598 | S185: =IF(千円単!S185="","",ROUND(千円単!S185/1000,0)) -> 244 | T185: =IF(千円単!T185="","",ROUND(千円単!T185/1000,0)) -> 0 | U185: =IF(千円単!U185="","",ROUND(千円単!U185/1000,0)) -> 1367 | V185: =IF(千円単!V185="","",ROUND(千円単!V185/1000,0)) -> 503 | W185: =IF(千円単!W185="","",ROUND(千円単!W185/1000,0)) -> 864 | X185: =IF(千円単!X185="","",ROUND(千円単!X185/1000,0)) -> -769 | Y185: =IF(千円単!Y185="","",ROUND(千円単!Y185/1000,0)) -> 512
A186: 2021 | B186: 46 | C186: 17 | D186: 1 | E186: 185 | F186: 公共 | G186: 092061 | H186: 栃木県 | I186: 日光市 | J186: =IF(千円単!J186="","",ROUND(千円単!J186/1000,0)) -> 2373 | K186: =IF(千円単!K186="","",ROUND(千円単!K186/1000,0)) -> 987 | L186: =IF(千円単!L186="","",ROUND(千円単!L186/1000,0)) -> 780 | M186: =IF(千円単!M186="","",ROUND(千円単!M186/1000,0)) -> 1993 | N186: =IF(千円単!N186="","",ROUND(千円単!N186/1000,0)) -> 155 | O186: =IF(千円単!O186="","",ROUND(千円単!O186/1000,0)) -> 1061 | P186: =IF(千円単!P186="","",ROUND(千円単!P186/1000,0)) -> 60 | Q186: =IF(千円単!Q186="","",ROUND(千円単!Q186/1000,0)) -> 381 | R186: =IF(千円単!R186="","",ROUND(千円単!R186/1000,0)) -> 791 | S186: =IF(千円単!S186="","",ROUND(千円単!S186/1000,0)) -> 492 | T186: =IF(千円単!T186="","",ROUND(千円単!T186/1000,0)) -> 223 | U186: =IF(千円単!U186="","",ROUND(千円単!U186/1000,0)) -> 1620 | V186: =IF(千円単!V186="","",ROUND(千円単!V186/1000,0)) -> 358 | W186: =IF(千円単!W186="","",ROUND(千円単!W186/1000,0)) -> 1263 | X186: =IF(千円単!X186="","",ROUND(千円単!X186/1000,0)) -> -829 | Y186: =IF(千円単!Y186="","",ROUND(千円単!Y186/1000,0)) -> 381
A187: 2021 | B187: 46 | C187: 17 | D187: 1 | E187: 186 | F187: 公共 | G187: 092088 | H187: 栃木県 | I187: 小山市 | J187: =IF(千円単!J187="","",ROUND(千円単!J187/1000,0)) -> 3751 | K187: =IF(千円単!K187="","",ROUND(千円単!K187/1000,0)) -> 1370 | L187: =IF(千円単!L187="","",ROUND(千円単!L187/1000,0)) -> 1240 | M187: =IF(千円単!M187="","",ROUND(千円単!M187/1000,0)) -> 3557 | N187: =IF(千円単!N187="","",ROUND(千円単!N187/1000,0)) -> 344 | O187: =IF(千円単!O187="","",ROUND(千円単!O187/1000,0)) -> 2216 | P187: =IF(千円単!P187="","",ROUND(千円単!P187/1000,0)) -> 69 | Q187: =IF(千円単!Q187="","",ROUND(千円単!Q187/1000,0)) -> 194 | R187: =IF(千円単!R187="","",ROUND(千円単!R187/1000,0)) -> 2956 | S187: =IF(千円単!S187="","",ROUND(千円単!S187/1000,0)) -> 1803 | T187: =IF(千円単!T187="","",ROUND(千円単!T187/1000,0)) -> 283 | U187: =IF(千円単!U187="","",ROUND(千円単!U187/1000,0)) -> 4435 | V187: =IF(千円単!V187="","",ROUND(千円単!V187/1000,0)) -> 2104 | W187: =IF(千円単!W187="","",ROUND(千円単!W187/1000,0)) -> 2331 | X187: =IF(千円単!X187="","",ROUND(千円単!X187/1000,0)) -> -1480 | Y187: =IF(千円単!Y187="","",ROUND(千円単!Y187/1000,0)) -> 194
A188: 2021 | B188: 46 | C188: 17 | D188: 1 | E188: 187 | F188: 公共 | G188: 092096 | H188: 栃木県 | I188: 真岡市 | J188: =IF(千円単!J188="","",ROUND(千円単!J188/1000,0)) -> 1815 | K188: =IF(千円単!K188="","",ROUND(千円単!K188/1000,0)) -> 700 | L188: =IF(千円単!L188="","",ROUND(千円単!L188/1000,0)) -> 579 | M188: =IF(千円単!M188="","",ROUND(千円単!M188/1000,0)) -> 1437 | N188: =IF(千円単!N188="","",ROUND(千円単!N188/1000,0)) -> 135 | O188: =IF(千円単!O188="","",ROUND(千円単!O188/1000,0)) -> 837 | P188: =IF(千円単!P188="","",ROUND(千円単!P188/1000,0)) -> 73 | Q188: =IF(千円単!Q188="","",ROUND(千円単!Q188/1000,0)) -> 378 | R188: =IF(千円単!R188="","",ROUND(千円単!R188/1000,0)) -> 657 | S188: =IF(千円単!S188="","",ROUND(千円単!S188/1000,0)) -> 351 | T188: =IF(千円単!T188="","",ROUND(千円単!T188/1000,0)) -> 204 | U188: =IF(千円単!U188="","",ROUND(千円単!U188/1000,0)) -> 1380 | V188: =IF(千円単!V188="","",ROUND(千円単!V188/1000,0)) -> 377 | W188: =IF(千円単!W188="","",ROUND(千円単!W188/1000,0)) -> 1002 | X188: =IF(千円単!X188="","",ROUND(千円単!X188/1000,0)) -> -722 | Y188: =IF(千円単!Y188="","",ROUND(千円単!Y188/1000,0)) -> 378
A189: 2021 | B189: 46 | C189: 17 | D189: 1 | E189: 188 | F189: 公共 | G189: 092100 | H189: 栃木県 | I189: 大田原市 | J189: =IF(千円単!J189="","",ROUND(千円単!J189/1000,0)) -> 1076 | K189: =IF(千円単!K189="","",ROUND(千円単!K189/1000,0)) -> 478 | L189: =IF(千円単!L189="","",ROUND(千円単!L189/1000,0)) -> 345 | M189: =IF(千円単!M189="","",ROUND(千円単!M189/1000,0)) -> 905 | N189: =IF(千円単!N189="","",ROUND(千円単!N189/1000,0)) -> 70 | O189: =IF(千円単!O189="","",ROUND(千円単!O189/1000,0)) -> 492 | P189: =IF(千円単!P189="","",ROUND(千円単!P189/1000,0)) -> 33 | Q189: =IF(千円単!Q189="","",ROUND(千円単!Q189/1000,0)) -> 171 | R189: =IF(千円単!R189="","",ROUND(千円単!R189/1000,0)) -> 88 | S189: =IF(千円単!S189="","",ROUND(千円単!S189/1000,0)) -> 50 | T189: =IF(千円単!T189="","",ROUND(千円単!T189/1000,0)) -> 17 | U189: =IF(千円単!U189="","",ROUND(千円単!U189/1000,0)) -> 497 | V189: =IF(千円単!V189="","",ROUND(千円単!V189/1000,0)) -> 104 | W189: =IF(千円単!W189="","",ROUND(千円単!W189/1000,0)) -> 393 | X189: =IF(千円単!X189="","",ROUND(千円単!X189/1000,0)) -> -409 | Y189: =IF(千円単!Y189="","",ROUND(千円単!Y189/1000,0)) -> 171
A190: 2021 | B190: 46 | C190: 17 | D190: 1 | E190: 189 | F190: 公共 | G190: 092118 | H190: 栃木県 | I190: 矢板市 | J190: =IF(千円単!J190="","",ROUND(千円単!J190/1000,0)) -> 761 | K190: =IF(千円単!K190="","",ROUND(千円単!K190/1000,0)) -> 212 | L190: =IF(千円単!L190="","",ROUND(千円単!L190/1000,0)) -> 254 | M190: =IF(千円単!M190="","",ROUND(千円単!M190/1000,0)) -> 607 | N190: =IF(千円単!N190="","",ROUND(千円単!N190/1000,0)) -> 45 | O190: =IF(千円単!O190="","",ROUND(千円単!O190/1000,0)) -> 348 | P190: =IF(千円単!P190="","",ROUND(千円単!P190/1000,0)) -> 21 | Q190: =IF(千円単!Q190="","",ROUND(千円単!Q190/1000,0)) -> 154 | R190: =IF(千円単!R190="","",ROUND(千円単!R190/1000,0)) -> 259 | S190: =IF(千円単!S190="","",ROUND(千円単!S190/1000,0)) -> 143 | T190: =IF(千円単!T190="","",ROUND(千円単!T190/1000,0)) -> 0 | U190: =IF(千円単!U190="","",ROUND(千円単!U190/1000,0)) -> 472 | V190: =IF(千円単!V190="","",ROUND(千円単!V190/1000,0)) -> 275 | W190: =IF(千円単!W190="","",ROUND(千円単!W190/1000,0)) -> 195 | X190: =IF(千円単!X190="","",ROUND(千円単!X190/1000,0)) -> -212 | Y190: =IF(千円単!Y190="","",ROUND(千円単!Y190/1000,0)) -> 154
A191: 2021 | B191: 46 | C191: 17 | D191: 1 | E191: 190 | F191: 公共 | G191: 092134 | H191: 栃木県 | I191: 那須塩原市 | J191: =IF(千円単!J191="","",ROUND(千円単!J191/1000,0)) -> 2359 | K191: =IF(千円単!K191="","",ROUND(千円単!K191/1000,0)) -> 878 | L191: =IF(千円単!L191="","",ROUND(千円単!L191/1000,0)) -> 630 | M191: =IF(千円単!M191="","",ROUND(千円単!M191/1000,0)) -> 2141 | N191: =IF(千円単!N191="","",ROUND(千円単!N191/1000,0)) -> 161 | O191: =IF(千円単!O191="","",ROUND(千円単!O191/1000,0)) -> 1344 | P191: =IF(千円単!P191="","",ROUND(千円単!P191/1000,0)) -> 74 | Q191: =IF(千円単!Q191="","",ROUND(千円単!Q191/1000,0)) -> 218 | R191: =IF(千円単!R191="","",ROUND(千円単!R191/1000,0)) -> 324 | S191: =IF(千円単!S191="","",ROUND(千円単!S191/1000,0)) -> 187 | T191: =IF(千円単!T191="","",ROUND(千円単!T191/1000,0)) -> 74 | U191: =IF(千円単!U191="","",ROUND(千円単!U191/1000,0)) -> 1143 | V191: =IF(千円単!V191="","",ROUND(千円単!V191/1000,0)) -> 294 | W191: =IF(千円単!W191="","",ROUND(千円単!W191/1000,0)) -> 848 | X191: =IF(千円単!X191="","",ROUND(千円単!X191/1000,0)) -> -819 | Y191: =IF(千円単!Y191="","",ROUND(千円単!Y191/1000,0)) -> 218
A192: 2021 | B192: 46 | C192: 17 | D192: 1 | E192: 191 | F192: 公共 | G192: 092142 | H192: 栃木県 | I192: さくら市 | J192: =IF(千円単!J192="","",ROUND(千円単!J192/1000,0)) -> 733 | K192: =IF(千円単!K192="","",ROUND(千円単!K192/1000,0)) -> 203 | L192: =IF(千円単!L192="","",ROUND(千円単!L192/1000,0)) -> 366 | M192: =IF(千円単!M192="","",ROUND(千円単!M192/1000,0)) -> 595 | N192: =IF(千円単!N192="","",ROUND(千円単!N192/1000,0)) -> 77 | O192: =IF(千円単!O192="","",ROUND(千円単!O192/1000,0)) -> 324 | P192: =IF(千円単!P192="","",ROUND(千円単!P192/1000,0)) -> 27 | Q192: =IF(千円単!Q192="","",ROUND(千円単!Q192/1000,0)) -> 138 | R192: =IF(千円単!R192="","",ROUND(千円単!R192/1000,0)) -> 183 | S192: =IF(千円単!S192="","",ROUND(千円単!S192/1000,0)) -> 85 | T192: =IF(千円単!T192="","",ROUND(千円単!T192/1000,0)) -> 13 | U192: =IF(千円単!U192="","",ROUND(千円単!U192/1000,0)) -> 551 | V192: =IF(千円単!V192="","",ROUND(千円単!V192/1000,0)) -> 238 | W192: =IF(千円単!W192="","",ROUND(千円単!W192/1000,0)) -> 314 | X192: =IF(千円単!X192="","",ROUND(千円単!X192/1000,0)) -> -368 | Y192: =IF(千円単!Y192="","",ROUND(千円単!Y192/1000,0)) -> 138
A193: 2021 | B193: 46 | C193: 17 | D193: 1 | E193: 192 | F193: 公共 | G193: 092169 | H193: 栃木県 | I193: 下野市 | J193: =IF(千円単!J193="","",ROUND(千円単!J193/1000,0)) -> 1436 | K193: =IF(千円単!K193="","",ROUND(千円単!K193/1000,0)) -> 573 | L193: =IF(千円単!L193="","",ROUND(千円単!L193/1000,0)) -> 272 | M193: =IF(千円単!M193="","",ROUND(千円単!M193/1000,0)) -> 1179 | N193: =IF(千円単!N193="","",ROUND(千円単!N193/1000,0)) -> 74 | O193: =IF(千円単!O193="","",ROUND(千円単!O193/1000,0)) -> 717 | P193: =IF(千円単!P193="","",ROUND(千円単!P193/1000,0)) -> 26 | Q193: =IF(千円単!Q193="","",ROUND(千円単!Q193/1000,0)) -> 258 | R193: =IF(千円単!R193="","",ROUND(千円単!R193/1000,0)) -> 624 | S193: =IF(千円単!S193="","",ROUND(千円単!S193/1000,0)) -> 261 | T193: =IF(千円単!T193="","",ROUND(千円単!T193/1000,0)) -> 98 | U193: =IF(千円単!U193="","",ROUND(千円単!U193/1000,0)) -> 971 | V193: =IF(千円単!V193="","",ROUND(千円単!V193/1000,0)) -> 612 | W193: =IF(千円単!W193="","",ROUND(千円単!W193/1000,0)) -> 359 | X193: =IF(千円単!X193="","",ROUND(千円単!X193/1000,0)) -> -347 | Y193: =IF(千円単!Y193="","",ROUND(千円単!Y193/1000,0)) -> 258
A194: 2021 | B194: 46 | C194: 17 | D194: 1 | E194: 193 | F194: 公共 | G194: 093017 | H194: 栃木県 | I194: 上三川町 | J194: =IF(千円単!J194="","",ROUND(千円単!J194/1000,0)) -> 611 | K194: =IF(千円単!K194="","",ROUND(千円単!K194/1000,0)) -> 229 | L194: =IF(千円単!L194="","",ROUND(千円単!L194/1000,0)) -> 43 | M194: =IF(千円単!M194="","",ROUND(千円単!M194/1000,0)) -> 604 | N194: =IF(千円単!N194="","",ROUND(千円単!N194/1000,0)) -> 58 | O194: =IF(千円単!O194="","",ROUND(千円単!O194/1000,0)) -> 345 | P194: =IF(千円単!P194="","",ROUND(千円単!P194/1000,0)) -> 20 | Q194: =IF(千円単!Q194="","",ROUND(千円単!Q194/1000,0)) -> 7 | R194: =IF(千円単!R194="","",ROUND(千円単!R194/1000,0)) -> 367 | S194: =IF(千円単!S194="","",ROUND(千円単!S194/1000,0)) -> 36 | T194: =IF(千円単!T194="","",ROUND(千円単!T194/1000,0)) -> 245 | U194: =IF(千円単!U194="","",ROUND(千円単!U194/1000,0)) -> 386 | V194: =IF(千円単!V194="","",ROUND(千円単!V194/1000,0)) -> 111 | W194: =IF(千円単!W194="","",ROUND(千円単!W194/1000,0)) -> 275 | X194: =IF(千円単!X194="","",ROUND(千円単!X194/1000,0)) -> -19 | Y194: =IF(千円単!Y194="","",ROUND(千円単!Y194/1000,0)) -> 7
A195: 2021 | B195: 46 | C195: 17 | D195: 1 | E195: 194 | F195: 公共 | G195: 093611 | H195: 栃木県 | I195: 壬生町 | J195: =IF(千円単!J195="","",ROUND(千円単!J195/1000,0)) -> 1129 | K195: =IF(千円単!K195="","",ROUND(千円単!K195/1000,0)) -> 465 | L195: =IF(千円単!L195="","",ROUND(千円単!L195/1000,0)) -> 348 | M195: =IF(千円単!M195="","",ROUND(千円単!M195/1000,0)) -> 1013 | N195: =IF(千円単!N195="","",ROUND(千円単!N195/1000,0)) -> 69 | O195: =IF(千円単!O195="","",ROUND(千円単!O195/1000,0)) -> 540 | P195: =IF(千円単!P195="","",ROUND(千円単!P195/1000,0)) -> 54 | Q195: =IF(千円単!Q195="","",ROUND(千円単!Q195/1000,0)) -> 116 | R195: =IF(千円単!R195="","",ROUND(千円単!R195/1000,0)) -> 522 | S195: =IF(千円単!S195="","",ROUND(千円単!S195/1000,0)) -> 242 | T195: =IF(千円単!T195="","",ROUND(千円単!T195/1000,0)) -> 6 | U195: =IF(千円単!U195="","",ROUND(千円単!U195/1000,0)) -> 876 | V195: =IF(千円単!V195="","",ROUND(千円単!V195/1000,0)) -> 555 | W195: =IF(千円単!W195="","",ROUND(千円単!W195/1000,0)) -> 321 | X195: =IF(千円単!X195="","",ROUND(千円単!X195/1000,0)) -> -354 | Y195: =IF(千円単!Y195="","",ROUND(千円単!Y195/1000,0)) -> 116
A196: 2021 | B196: 46 | C196: 17 | D196: 1 | E196: 195 | F196: 公共 | G196: 093645 | H196: 栃木県 | I196: 野木町 | J196: =IF(千円単!J196="","",ROUND(千円単!J196/1000,0)) -> 478 | K196: =IF(千円単!K196="","",ROUND(千円単!K196/1000,0)) -> 164 | L196: =IF(千円単!L196="","",ROUND(千円単!L196/1000,0)) -> 207 | M196: =IF(千円単!M196="","",ROUND(千円単!M196/1000,0)) -> 428 | N196: =IF(千円単!N196="","",ROUND(千円単!N196/1000,0)) -> 43 | O196: =IF(千円単!O196="","",ROUND(千円単!O196/1000,0)) -> 227 | P196: =IF(千円単!P196="","",ROUND(千円単!P196/1000,0)) -> 0 | Q196: =IF(千円単!Q196="","",ROUND(千円単!Q196/1000,0)) -> 50 | R196: =IF(千円単!R196="","",ROUND(千円単!R196/1000,0)) -> 349 | S196: =IF(千円単!S196="","",ROUND(千円単!S196/1000,0)) -> 254 | T196: =IF(千円単!T196="","",ROUND(千円単!T196/1000,0)) -> 0 | U196: =IF(千円単!U196="","",ROUND(千円単!U196/1000,0)) -> 507 | V196: =IF(千円単!V196="","",ROUND(千円単!V196/1000,0)) -> 250 | W196: =IF(千円単!W196="","",ROUND(千円単!W196/1000,0)) -> 256 | X196: =IF(千円単!X196="","",ROUND(千円単!X196/1000,0)) -> -157 | Y196: =IF(千円単!Y196="","",ROUND(千円単!Y196/1000,0)) -> 50
A197: 2021 | B197: 46 | C197: 17 | D197: 1 | E197: 196 | F197: 公共 | G197: 093866 | H197: 栃木県 | I197: 高根沢町 | J197: =IF(千円単!J197="","",ROUND(千円単!J197/1000,0)) -> 573 | K197: =IF(千円単!K197="","",ROUND(千円単!K197/1000,0)) -> 176 | L197: =IF(千円単!L197="","",ROUND(千円単!L197/1000,0)) -> 233 | M197: =IF(千円単!M197="","",ROUND(千円単!M197/1000,0)) -> 545 | N197: =IF(千円単!N197="","",ROUND(千円単!N197/1000,0)) -> 57 | O197: =IF(千円単!O197="","",ROUND(千円単!O197/1000,0)) -> 295 | P197: =IF(千円単!P197="","",ROUND(千円単!P197/1000,0)) -> 14 | Q197: =IF(千円単!Q197="","",ROUND(千円単!Q197/1000,0)) -> 28 | R197: =IF(千円単!R197="","",ROUND(千円単!R197/1000,0)) -> 367 | S197: =IF(千円単!S197="","",ROUND(千円単!S197/1000,0)) -> 137 | T197: =IF(千円単!T197="","",ROUND(千円単!T197/1000,0)) -> 0 | U197: =IF(千円単!U197="","",ROUND(千円単!U197/1000,0)) -> 559 | V197: =IF(千円単!V197="","",ROUND(千円単!V197/1000,0)) -> 320 | W197: =IF(千円単!W197="","",ROUND(千円単!W197/1000,0)) -> 239 | X197: =IF(千円単!X197="","",ROUND(千円単!X197/1000,0)) -> -192 | Y197: =IF(千円単!Y197="","",ROUND(千円単!Y197/1000,0)) -> 28
A198: 2021 | B198: 46 | C198: 17 | D198: 1 | E198: 197 | F198: 公共 | G198: 102016 | H198: 群馬県 | I198: 前橋市 | J198: =IF(千円単!J198="","",ROUND(千円単!J198/1000,0)) -> 6840 | K198: =IF(千円単!K198="","",ROUND(千円単!K198/1000,0)) -> 3017 | L198: =IF(千円単!L198="","",ROUND(千円単!L198/1000,0)) -> 2258 | M198: =IF(千円単!M198="","",ROUND(千円単!M198/1000,0)) -> 6526 | N198: =IF(千円単!N198="","",ROUND(千円単!N198/1000,0)) -> 572 | O198: =IF(千円単!O198="","",ROUND(千円単!O198/1000,0)) -> 3178 | P198: =IF(千円単!P198="","",ROUND(千円単!P198/1000,0)) -> 403 | Q198: =IF(千円単!Q198="","",ROUND(千円単!Q198/1000,0)) -> 314 | R198: =IF(千円単!R198="","",ROUND(千円単!R198/1000,0)) -> 2848 | S198: =IF(千円単!S198="","",ROUND(千円単!S198/1000,0)) -> 1492 | T198: =IF(千円単!T198="","",ROUND(千円単!T198/1000,0)) -> 501 | U198: =IF(千円単!U198="","",ROUND(千円単!U198/1000,0)) -> 5293 | V198: =IF(千円単!V198="","",ROUND(千円単!V198/1000,0)) -> 2211 | W198: =IF(千円単!W198="","",ROUND(千円単!W198/1000,0)) -> 3082 | X198: =IF(千円単!X198="","",ROUND(千円単!X198/1000,0)) -> -2445 | Y198: =IF(千円単!Y198="","",ROUND(千円単!Y198/1000,0)) -> 314
A199: 2021 | B199: 46 | C199: 17 | D199: 1 | E199: 198 | F199: 公共 | G199: 102024 | H199: 群馬県 | I199: 高崎市 | J199: =IF(千円単!J199="","",ROUND(千円単!J199/1000,0)) -> 7758 | K199: =IF(千円単!K199="","",ROUND(千円単!K199/1000,0)) -> 3777 | L199: =IF(千円単!L199="","",ROUND(千円単!L199/1000,0)) -> 2583 | M199: =IF(千円単!M199="","",ROUND(千円単!M199/1000,0)) -> 6628 | N199: =IF(千円単!N199="","",ROUND(千円単!N199/1000,0)) -> 626 | O199: =IF(千円単!O199="","",ROUND(千円単!O199/1000,0)) -> 3552 | P199: =IF(千円単!P199="","",ROUND(千円単!P199/1000,0)) -> 333 | Q199: =IF(千円単!Q199="","",ROUND(千円単!Q199/1000,0)) -> 1130 | R199: =IF(千円単!R199="","",ROUND(千円単!R199/1000,0)) -> 3246 | S199: =IF(千円単!S199="","",ROUND(千円単!S199/1000,0)) -> 1736 | T199: =IF(千円単!T199="","",ROUND(千円単!T199/1000,0)) -> 398 | U199: =IF(千円単!U199="","",ROUND(千円単!U199/1000,0)) -> 6538 | V199: =IF(千円単!V199="","",ROUND(千円単!V199/1000,0)) -> 3452 | W199: =IF(千円単!W199="","",ROUND(千円単!W199/1000,0)) -> 3084 | X199: =IF(千円単!X199="","",ROUND(千円単!X199/1000,0)) -> -3291 | Y199: =IF(千円単!Y199="","",ROUND(千円単!Y199/1000,0)) -> 1130
A200: 2021 | B200: 46 | C200: 17 | D200: 1 | E200: 199 | F200: 公共 | G200: 102032 | H200: 群馬県 | I200: 桐生市 | J200: =IF(千円単!J200="","",ROUND(千円単!J200/1000,0)) -> 2704 | K200: =IF(千円単!K200="","",ROUND(千円単!K200/1000,0)) -> 1340 | L200: =IF(千円単!L200="","",ROUND(千円単!L200/1000,0)) -> 626 | M200: =IF(千円単!M200="","",ROUND(千円単!M200/1000,0)) -> 2613 | N200: =IF(千円単!N200="","",ROUND(千円単!N200/1000,0)) -> 163 | O200: =IF(千円単!O200="","",ROUND(千円単!O200/1000,0)) -> 1392 | P200: =IF(千円単!P200="","",ROUND(千円単!P200/1000,0)) -> 97 | Q200: =IF(千円単!Q200="","",ROUND(千円単!Q200/1000,0)) -> 91 | R200: =IF(千円単!R200="","",ROUND(千円単!R200/1000,0)) -> 939 | S200: =IF(千円単!S200="","",ROUND(千円単!S200/1000,0)) -> 421 | T200: =IF(千円単!T200="","",ROUND(千円単!T200/1000,0)) -> 86 | U200: =IF(千円単!U200="","",ROUND(千円単!U200/1000,0)) -> 1548 | V200: =IF(千円単!V200="","",ROUND(千円単!V200/1000,0)) -> 365 | W200: =IF(千円単!W200="","",ROUND(千円単!W200/1000,0)) -> 1182 | X200: =IF(千円単!X200="","",ROUND(千円単!X200/1000,0)) -> -609 | Y200: =IF(千円単!Y200="","",ROUND(千円単!Y200/1000,0)) -> 91
... 3406 more rows

Sheet R3公共
A13: 団体 コード | B13: 都道府県名 | C13: 団体名 | D13: 事業 コード | E13: 類型区分 | F13: 処理区域内人口別区分 | G13: 有収水量密度別 区分 | H13: 供用開始後年数別区分 | I13: 処理区域内 人口 | J13: 有収水量 密度 | K13: 供用開始 後年 | L13: 事業別 普及率 | M13: 進捗率 | N13: 一般家庭使用料 （1ヶ月20m3あたり） | O13: 処理区域内 人口密度 | P13: 施設利用率 | Q13: 有収率 | R13: 水洗化率 | S13: 使用料単価 | T13: 汚水処理原価 | U13: 汚水処理原価（分流式下水道等に要する経費控除前） | V13: 汚水処理原価（維持管理費） | W13: 汚水処理原価（資本費） | X13: 経費回収率 | Y13: 経費回収率 （分流式下水道等に要する経費控除前） | Z13: 経費回収率 （維持管理費） | AA13: 処理区域１人 あたりの管理運営費（汚水分） | AB13: 処理区域１人 あたりの維持管理費（汚水分） | AC13: 処理区域１人 あたりの資本費（汚水分） | AD13: 職員1人あたりの処理区域内人口 | AE13: 職員給与費 対営業収益比率 | AF13: 総収支比率 | AG13: 経常収支比率 | AH13: 事業別 資金不足比率 | AI13: 利子負担率 | AJ13: 自己資本 構成比率 | AK13: 固定資産対 長期資本比率 | AL13: 処理区域内人口 1人あたり企業債（地方債）残高
I14: 人 | J14: 千㎥/ｈa | K14: 年 | L14: ％ | M14: ％ | N14: 円/月 | O14: 人/ha | P14: ％ | Q14: ％ | R14: ％ | S14: 円/m3 | T14: 円/m3 | U14: 円/m3 | V14: 円/m3 | W14: 円/m3 | X14: ％ | Y14: ％ | Z14: ％ | AA14: 円/人 | AB14: 円/人 | AC14: 円/人 | AD14: 人/人 | AE14: ％ | AF14: ％ | AG14: ％ | AH14: ％ | AI14: ％ | AJ14: ％ | AK14: ％ | AL14: 千円/人
A16: 011002 | B16: 北海道 | C16: 札幌市 | D16: 1171 | E16: 政令市等 | F16: 政令市等 | G16: 政令市等 | H16: 政令市等 | I16: 1945631 | J16: 8.3 | K16: 61 | L16: 99.3 | M16: 104.8 | N16: 1371 | O16: 79 | P16: 65.2 | Q16: 73.4 | R16: 100 | S16: 88.96 | T16: 93.63 | U16: 93.63 | V16: 53.26 | W16: 40.37 | X16: 95 | Y16: 95 | Z16: 167 | AA16: 9826 | AB16: 5589 | AC16: 4237 | AD16: 3822 | AE16: 7.6 | AF16: 105.6 | AG16: 105.6 | AH16: 0 | AI16: 1 | AJ16: 57.4 | AK16: 101.6 | AL16: 120
A17: 041009 | B17: 宮城県 | C17: 仙台市 | D17: 1171 | E17: 政令市等 | F17: 政令市等 | G17: 政令市等 | H17: 政令市等 | I17: 1046356 | J17: 6.4 | K17: 58 | L17: 98.5 | M17: 107.1 | N17: 1917 | O17: 61 | P17: 70.8 | Q17: 97.5 | R17: 99.7 | S17: 142.31 | T17: 116.1 | U17: 116.1 | V17: 55.5 | W17: 60.6 | X17: 122.6 | Y17: 122.6 | Z17: 256.4 | AA17: 12163 | AB17: 5814 | AC17: 6349 | AD17: 4396 | AE17: 5.3 | AF17: 109.4 | AG17: 110.5 | AH17: 0 | AI17: 1.3 | AJ17: 70.7 | AK17: 101.7 | AL17: 163
A18: 111007 | B18: 埼玉県 | C18: さいたま市 | D18: 1171 | E18: 政令市等 | F18: 政令市等 | G18: 政令市等 | H18: 政令市等 | I18: 1260519 | J18: 9.7 | K18: 57 | L18: 94.4 | M18: 114.2 | N18: 2459 | O18: 101 | P18: 48.5 | Q18: 81.6 | R18: 97.6 | S18: 140.02 | T18: 132.6 | U18: 132.6 | V18: 58.1 | W18: 74.5 | X18: 105.6 | Y18: 105.6 | Z18: 241 | AA18: 12758 | AB18: 5590 | AC18: 7168 | AD18: 7593 | AE18: 2.9 | AF18: 104.1 | AG18: 104.1 | AH18: 0 | AI18: 1.3 | AJ18: 56.3 | AK18: 101.2 | AL18: 142
A19: 121002 | B19: 千葉県 | C19: 千葉市 | D19: 1171 | E19: 政令市等 | F19: 政令市等 | G19: 政令市等 | H19: 政令市等 | I19: 881588 | J19: 8.4 | K19: 59 | L19: 90.3 | M19: 96.9 | N19: 2035 | O19: 77 | P19: 57.3 | Q19: 81.2 | R19: 99.9 | S19: 133.13 | T19: 122.2 | U19: 122.2 | V19: 64.69 | W19: 57.51 | X19: 108.9 | Y19: 108.9 | Z19: 205.8 | AA19: 13406 | AB19: 7097 | AC19: 6310 | AD19: 5279 | AE19: 3.5 | AF19: 103.6 | AG19: 103.2 | AH19: 0 | AI19: 1.4 | AJ19: 51.9 | AK19: 103.5 | AL19: 230
A20: 130001 | B20: 東京都 | C20: 東京都 | D20: 1171 | E20: 政令市等 | F20: 政令市等 | G20: 政令市等 | H20: 政令市等 | I20: 9522769 | J20: 21.2 | K20: 70 | L20: 99.9 | M20: 109.6 | N20: 2068 | O20: 169 | P20: 58.7 | Q20: 92.6 | R20: 100 | S20: 121.14 | T20: 117 | U20: 117 | V20: 66.4 | W20: 50.6 | X20: 103.5 | Y20: 103.5 | Z20: 182.4 | AA20: 14616 | AB20: 8295 | AC20: 6322 | AD20: 3904 | AE20: 5.1 | AF20: 104.6 | AG20: 105.6 | AH20: 0 | AI20: 1.1 | AJ20: 75.4 | AK20: 101.1 | AL20: 126
A21: 141003 | B21: 神奈川県 | C21: 横浜市 | D21: 1171 | E21: 政令市等 | F21: 政令市等 | G21: 政令市等 | H21: 政令市等 | I21: 3753968 | J21: 12.2 | K21: 60 | L21: 100 | M21: 101.5 | N21: 2035 | O21: 119 | P21: 62.1 | Q21: 71.9 | R21: 99.8 | S21: 140.46 | T21: 131.91 | U21: 131.91 | V21: 52.45 | W21: 79.46 | X21: 106.5 | Y21: 106.5 | Z21: 267.8 | AA21: 13461 | AB21: 5352 | AC21: 8109 | AD21: 3858 | AE21: 6.2 | AF21: 111.5 | AG21: 110.8 | AH21: 0 | AI21: 0.9 | AJ21: 67.4 | AK21: 100.3 | AL21: 165
A22: 141305 | B22: 神奈川県 | C22: 川崎市 | D22: 1171 | E22: 政令市等 | F22: 政令市等 | G22: 政令市等 | H22: 政令市等 | I22: 1531670 | J22: 14.4 | K22: 91 | L22: 99.5 | M22: 104.5 | N22: 2156 | O22: 143 | P22: 50.4 | Q22: 85.3 | R22: 99 | S22: 141.97 | T22: 126.6 | U22: 126.6 | V22: 60.83 | W22: 65.77 | X22: 112.1 | Y22: 112.1 | Z22: 233.4 | AA22: 12741 | AB22: 6121 | AC22: 6619 | AD22: 3381 | AE22: 8.7 | AF22: 108.6 | AG22: 107 | AH22: 0 | AI22: 0.9 | AJ22: 54.6 | AK22: 103 | AL22: 186
A23: 141500 | B23: 神奈川県 | C23: 相模原市 | D23: 1171 | E23: 政令市等 | F23: 政令市等 | G23: 政令市等 | H23: 政令市等 | I23: 698663 | J23: 9.6 | K23: 54 | L23: 97.2 | M23: 103.2 | N23: 2036 | O23: 90 | P23: 0 | Q23: 93.8 | R23: 99.2 | S23: 115.95 | T23: 106.18 | U23: 132.15 | V23: 47.35 | W23: 58.83 | X23: 109.2 | Y23: 87.7 | Z23: 244.8 | AA23: 11316 | AB23: 5047 | AC23: 6269 | AD23: 6783 | AE23: 3.4 | AF23: 107.5 | AG23: 107.5 | AH23: 0 | AI23: 1.6 | AJ23: 68.2 | AK23: 100 | AL23: 109
A24: 151009 | B24: 新潟県 | C24: 新潟市 | D24: 1171 | E24: 政令市等 | F24: 政令市等 | G24: 政令市等 | H24: 政令市等 | I24: 654146 | J24: 5.8 | K24: 55 | L24: 84.2 | M24: 99.3 | N24: 3047 | O24: 54 | P24: 89.4 | Q24: 67 | R24: 92.5 | S24: 169.77 | T24: 163.49 | U24: 184.67 | V24: 60.89 | W24: 102.6 | X24: 103.8 | Y24: 91.9 | Z24: 278.8 | AA24: 17434 | AB24: 6493 | AC24: 10941 | AD24: 3086 | AE24: 4.6 | AF24: 104.7 | AG24: 104.7 | AH24: 0 | AI24: 1.4 | AJ24: 46.3 | AK24: 103.6 | AL24: 445
A25: 221007 | B25: 静岡県 | C25: 静岡市 | D25: 1171 | E25: 政令市等 | F25: 政令市等 | G25: 政令市等 | H25: 政令市等 | I25: 603698 | J25: 7.1 | K25: 62 | L25: 87.9 | M25: 103.5 | N25: 2770 | O25: 67 | P25: 68.2 | Q25: 52.1 | R25: 90.7 | S25: 149.38 | T25: 149.83 | U25: 170.65 | V25: 68.79 | W25: 81.04 | X25: 99.7 | Y25: 87.5 | Z25: 217.1 | AA25: 15819 | AB25: 7263 | AC25: 8556 | AD25: 2821 | AE25: 6.5 | AF25: 107.1 | AG25: 107.1 | AH25: 0 | AI25: 1.4 | AJ25: 60.3 | AK25: 99.8 | AL25: 235
A26: 221309 | B26: 静岡県 | C26: 浜松市 | D26: 1171 | E26: 政令市等 | F26: 政令市等 | G26: 政令市等 | H26: 政令市等 | I26: 574816 | J26: 5.6 | K26: 56 | L26: 72.4 | M26: 116 | N26: 2948 | O26: 49 | P26: 70 | Q26: 84.7 | R26: 98.2 | S26: 132.31 | T26: 117.13 | U26: 117.13 | V26: 28.66 | W26: 88.47 | X26: 113 | Y26: 113 | Z26: 461.6 | AA26: 13573 | AB26: 3321 | AC26: 10252 | AD26: 5926 | AE26: 2.9 | AF26: 115.5 | AG26: 115.7 | AH26: 0 | AI26: 1.7 | AJ26: 61.2 | AK26: 101.4 | AL26: 187
A27: 231002 | B27: 愛知県 | C27: 名古屋市 | D27: 1171 | E27: 政令市等 | F27: 政令市等 | G27: 政令市等 | H27: 政令市等 | I27: 2272800 | J27: 9 | K27: 110 | L27: 99.4 | M27: 99.7 | N27: 1804 | O27: 80 | P27: 54.5 | Q27: 65.2 | R27: 99.8 | S27: 115.81 | T27: 119.58 | U27: 119.58 | V27: 59.63 | W27: 59.95 | X27: 96.8 | Y27: 96.8 | Z27: 194.2 | AA27: 13414 | AB27: 6689 | AC27: 6725 | AD27: 2348 | AE27: 9.7 | AF27: 102.2 | AG27: 102.2 | AH27: 0 | AI27: 1.2 | AJ27: 57.9 | AK27: 100.1 | AL27: 190
A28: 261009 | B28: 京都府 | C28: 京都市 | D28: 1171 | E28: 政令市等 | F28: 政令市等 | G28: 政令市等 | H28: 政令市等 | I28: 1371600 | J28: 11.2 | K28: 88 | L28: 99.1 | M28: 104.8 | N28: 2013 | O28: 90 | P28: 56.6 | Q28: 57.5 | R28: 99.4 | S28: 117.79 | T28: 102.97 | U28: 102.97 | V28: 48.13 | W28: 54.85 | X28: 114.4 | Y28: 114.4 | Z28: 244.8 | AA28: 12851 | AB28: 6006 | AC28: 6845 | AD28: 2498 | AE28: 8.9 | AF28: 108.4 | AG28: 108.4 | AH28: 0 | AI28: 1.3 | AJ28: 60.8 | AK28: 102.9 | AL28: 182
A29: 271004 | B29: 大阪府 | C29: 大阪市 | D29: 1171 | E29: 政令市等 | F29: 政令市等 | G29: 政令市等 | H29: 政令市等 | I29: 2729664 | J29: 20.6 | K29: 82 | L29: 100 | M29: 99.4 | N29: 1276 | O29: 143 | P29: 54.2 | Q29: 72.9 | R29: 100 | S29: 88.53 | T29: 90.48 | U29: 90.48 | V29: 55.1 | W29: 35.38 | X29: 97.8 | Y29: 97.8 | Z29: 160.7 | AA29: 13019 | AB29: 7928 | AC29: 5091 | AD29: 6333 | AE29: 3.5 | AF29: 103.6 | AG29: 103.5 | AH29: 0 | AI29: 0.9 | AJ29: 58.1 | AK29: 99.6 | AL29: 163
A30: 271403 | B30: 大阪府 | C30: 堺市 | D30: 1171 | E30: 政令市等 | F30: 政令市等 | G30: 政令市等 | H30: 政令市等 | I30: 811186 | J30: 8.2 | K30: 62 | L30: 98.5 | M30: 103.1 | N30: 2821 | O30: 80 | P30: 66.7 | Q30: 82.9 | R30: 95.9 | S30: 174.28 | T30: 148.88 | U30: 148.88 | V30: 57.31 | W30: 91.58 | X30: 117.1 | Y30: 117.1 | Z30: 304.1 | AA30: 15242 | AB30: 5867 | AC30: 9375 | AD30: 2826 | AE30: 7.3 | AF30: 106.8 | AG30: 106.7 | AH30: 0 | AI30: 1.5 | AJ30: 49 | AK30: 102.5 | AL30: 292
A31: 281000 | B31: 兵庫県 | C31: 神戸市 | D31: 1171 | E31: 政令市等 | F31: 政令市等 | G31: 政令市等 | H31: 政令市等 | I31: 1476099 | J31: 9.9 | K31: 64 | L31: 97.7 | M31: 99.3 | N31: 1760 | O31: 86 | P31: 68.8 | Q31: 95.8 | R31: 99.9 | S31: 112.83 | T31: 110.53 | U31: 110.53 | V31: 46.07 | W31: 64.46 | X31: 102.1 | Y31: 102.1 | Z31: 244.9 | AA31: 12690 | AB31: 5290 | AC31: 7401 | AD31: 4044 | AE31: 9.9 | AF31: 103.9 | AG31: 103.8 | AH31: 0 | AI31: 1.3 | AJ31: 75.1 | AK31: 96.3 | AL31: 97
A32: 331007 | B32: 岡山県 | C32: 岡山市 | D32: 1171 | E32: 政令市等 | F32: 政令市等 | G32: 政令市等 | H32: 政令市等 | I32: 472838 | J32: 6.7 | K32: 60 | L32: 67.3 | M32: 84.4 | N32: 3011 | O32: 61 | P32: 58.4 | Q32: 85.8 | R32: 92.2 | S32: 177.24 | T32: 186.51 | U32: 207.78 | V32: 70.72 | W32: 115.78 | X32: 95 | Y32: 85.3 | Z32: 250.6 | AA32: 20289 | AB32: 7694 | AC32: 12596 | AD32: 3665 | AE32: 4.1 | AF32: 100 | AG32: 100 | AH32: 0 | AI32: 1.4 | AJ32: 42.9 | AK32: 104.8 | AL32: 402
A33: 341002 | B33: 広島県 | C33: 広島市 | D33: 1171 | E33: 政令市等 | F33: 政令市等 | G33: 政令市等 | H33: 政令市等 | I33: 1125320 | J33: 8.2 | K33: 61 | L33: 94.9 | M33: 106.1 | N33: 2260 | O33: 80 | P33: 63.3 | Q33: 83.7 | R33: 98.8 | S33: 159.25 | T33: 142.76 | U33: 142.76 | V33: 50.46 | W33: 92.29 | X33: 111.6 | Y33: 111.6 | Z33: 315.6 | AA33: 14677 | AB33: 5188 | AC33: 9489 | AD33: 2813 | AE33: 7.7 | AF33: 102.6 | AG33: 102.6 | AH33: 0 | AI33: 1.3 | AJ33: 50.1 | AK33: 105.9 | AL33: 330
A34: 401005 | B34: 福岡県 | C34: 北九州市 | D34: 1171 | E34: 政令市等 | F34: 政令市等 | G34: 政令市等 | H34: 政令市等 | I34: 918903 | J34: 5.8 | K34: 59 | L34: 98.7 | M34: 72 | N34: 2207 | O34: 57 | P34: 58.4 | Q34: 75 | R34: 99.8 | S34: 141.5 | T34: 136.13 | U34: 136.13 | V34: 64.17 | W34: 71.96 | X34: 103.9 | Y34: 103.9 | Z34: 220.5 | AA34: 13758 | AB34: 6485 | AC34: 7273 | AD34: 5779 | AE34: 4.6 | AF34: 101.8 | AG34: 101.8 | AH34: 0 | AI34: 1.1 | AJ34: 65.5 | AK34: 100.6 | AL34: 151
A35: 401307 | B35: 福岡県 | C35: 福岡市 | D35: 1171 | E35: 政令市等 | F35: 政令市等 | G35: 政令市等 | H35: 政令市等 | I35: 1564160 | J35: 9.1 | K35: 60 | L35: 99.7 | M35: 97.7 | N35: 2651 | O35: 91 | P35: 58.3 | Q35: 83.9 | R35: 99.7 | S35: 169.68 | T35: 140.93 | U35: 140.93 | V35: 69.48 | W35: 71.45 | X35: 120.4 | Y35: 120.4 | Z35: 244.2 | AA35: 14120 | AB35: 6961 | AC35: 7159 | AD35: 4697 | AE35: 3.5 | AF35: 108.9 | AG35: 111.8 | AH35: 0 | AI35: 1.3 | AJ35: 56.2 | AK35: 101.4 | AL35: 211
A36: 431001 | B36: 熊本県 | C36: 熊本市 | D36: 1171 | E36: 政令市等 | F36: 政令市等 | G36: 政令市等 | H36: 政令市等 | I36: 660768 | J36: 5.9 | K36: 62 | L36: 90.5 | M36: 95.8 | N36: 2346 | O36: 54 | P36: 70.3 | Q36: 85.3 | R36: 97.5 | S36: 142.34 | T36: 146.69 | U36: 146.69 | V36: 58.76 | W36: 87.92 | X36: 97 | Y36: 97 | Z36: 242.2 | AA36: 16007 | AB36: 6413 | AC36: 9595 | AD36: 3223 | AE36: 8.6 | AF36: 111.3 | AG36: 111.3 | AH36: 0.7 | AI36: 1.3 | AJ36: 53.5 | AK36: 100.2 | AL36: 199
B37: 団体数 | C37: 21 | E37: 政令市等 計 | M37: 102.8 | N37: 2238 | O37: 99 | P37: 59.5 | Q37: 79.7 | R37: 99.2 | S37: 126.5 | T37: 120.15 | U37: 121.57 | V37: 58.87 | W37: 61.27 | X37: 105.3 | Y37: 104.1 | Z37: 214.9 | AA37: 13708 | AB37: 6717 | AC37: 6991 | AD37: 3818 | AE37: 6 | AF37: 105.9 | AG37: 106.2 | AH37: 0 | AI37: 1.2 | AJ37: 64 | AK37: 101.2 | AL37: 172
A38: 112011 | B38: 埼玉県 | C38: 川越市 | D38: 1171 | E38: Aa1 | F38: A | G38: a | H38: 1 | I38: 313893 | J38: 8.9 | K38: 58 | L38: 88.9 | M38: 101 | N38: 1595 | O38: 83 | P38: 0 | Q38: 74 | R38: 98.2 | S38: 96.23 | T38: 103.93 | U38: 103.93 | V38: 51.11 | W38: 52.82 | X38: 92.6 | Y38: 92.6 | Z38: 188.3 | AA38: 11125 | AB38: 5471 | AC38: 5655 | AD38: 4829 | AE38: 8.8 | AF38: 103.6 | AG38: 103.6 | AH38: 0.2 | AI38: 1.8 | AJ38: 80.6 | AK38: 94.7 | AL38: 47
A39: 112038 | B39: 埼玉県 | C39: 川口市 | D39: 1171 | E39: Aa1 | F39: A | G39: a | H39: 1 | I39: 533986 | J39: 12.1 | K39: 63 | L39: 88.3 | M39: 105.1 | N39: 1998 | O39: 123 | P39: 0 | Q39: 89.3 | R39: 94.3 | S39: 112.27 | T39: 129.5 | U39: 129.5 | V39: 62.97 | W39: 66.53 | X39: 86.7 | Y39: 86.7 | Z39: 178.3 | AA39: 12741 | AB39: 6195 | AC39: 6546 | AD39: 6846 | AE39: 6.6 | AF39: 115.9 | AG39: 115.9 | AH39: 0 | AI39: 1.3 | AJ39: 60 | AK39: 100.9 | AL39: 101
A40: 112089 | B40: 埼玉県 | C40: 所沢市 | D40: 1171 | E40: Aa1 | F40: A | G40: a | H40: 1 | I40: 326740 | J40: 10.2 | K40: 54 | L40: 95.1 | M40: 102.6 | N40: 1639 | O40: 99 | P40: 0 | Q40: 95.2 | R40: 98.7 | S40: 97.76 | T40: 97.25 | U40: 97.25 | V40: 48.42 | W40: 48.83 | X40: 100.5 | Y40: 100.5 | Z40: 201.9 | AA40: 10006 | AB40: 4982 | AC40: 5024 | AD40: 4877 | AE40: 7.1 | AF40: 105.3 | AG40: 105.3 | AH40: 0 | AI40: 1.4 | AJ40: 75.8 | AK40: 97.4 | AL40: 61
A41: 112143 | B41: 埼玉県 | C41: 春日部市 | D41: 1171 | E41: Aa1 | F41: A | G41: a | H41: 1 | I41: 209223 | J41: 8.8 | K41: 35 | L41: 90 | M41: 95.6 | N41: 2376 | O41: 92 | P41: 0 | Q41: 89.2 | R41: 97.1 | S41: 125.94 | T41: 142.9 | U41: 142.9 | V41: 60.77 | W41: 82.13 | X41: 88.1 | Y41: 88.1 | Z41: 207.3 | AA41: 13618 | AB41: 5791 | AC41: 7827 | AD41: 14945 | AE41: 3 | AF41: 114.6 | AG41: 114.7 | AH41: 0 | AI41: 1.3 | AJ41: 47.4 | AK41: 103.1 | AL41: 161
A42: 112151 | B42: 埼玉県 | C42: 狭山市 | D42: 1171 | E42: Aa1 | F42: A | G42: a | H42: 1 | I42: 144677 | J42: 8.1 | K42: 48 | L42: 96.8 | M42: 98 | N42: 1727 | O42: 73 | P42: 0 | Q42: 85.3 | R42: 98.8 | S42: 105.27 | T42: 106.82 | U42: 106.82 | V42: 41.98 | W42: 64.84 | X42: 98.5 | Y42: 98.5 | Z42: 250.7 | AA42: 11923 | AB42: 4686 | AC42: 7237 | AD42: 6290 | AE42: 4 | AF42: 114.6 | AG42: 114.5 | AH42: 0 | AI42: 1.8 | AJ42: 79.3 | AK42: 96.6 | AL42: 74
A43: 112194 | B43: 埼玉県 | C43: 上尾市 | D43: 1171 | E43: Aa1 | F43: A | G43: a | H43: 1 | I43: 193479 | J43: 7.8 | K43: 47 | L43: 84 | M43: 107.2 | N43: 2156 | O43: 80 | P43: 0 | Q43: 94 | R43: 97 | S43: 119.59 | T43: 137.04 | U43: 137.04 | V43: 65.31 | W43: 71.73 | X43: 87.3 | Y43: 87.3 | Z43: 183.1 | AA43: 13300 | AB43: 6339 | AC43: 6961 | AD43: 7739 | AE43: 3.3 | AF43: 100.3 | AG43: 100.3 | AH43: 0 | AI43: 1.3 | AJ43: 66.9 | AK43: 98.8 | AL43: 89
A44: 112216 | B44: 埼玉県 | C44: 草加市 | D44: 1171 | E44: Aa1 | F44: A | G44: a | H44: 1 | I44: 245685 | J44: 10.1 | K44: 39 | L44: 98 | M44: 108.9 | N44: 1947 | O44: 100 | P44: 0 | Q44: 88.6 | R44: 94.7 | S44: 100.39 | T44: 119.41 | U44: 119.41 | V44: 59.99 | W44: 59.42 | X44: 84.1 | Y44: 84.1 | Z44: 167.4 | AA44: 12055 | AB44: 6056 | AC44: 5999 | AD44: 11699 | AE44: 3.2 | AF44: 101.8 | AG44: 101.8 | AH44: 0 | AI44: 2 | AJ44: 69.2 | AK44: 102.9 | AL44: 109
A45: 112224 | B45: 埼玉県 | C45: 越谷市 | D45: 1171 | E45: Aa1 | F45: A | G45: a | H45: 1 | I45: 290315 | J45: 10.2 | K45: 39 | L45: 84.2 | M45: 101.9 | N45: 2574 | O45: 104 | P45: 0 | Q45: 86.7 | R45: 96.5 | S45: 119.8 | T45: 113.37 | U45: 113.37 | V45: 66.37 | W45: 47.01 | X45: 105.7 | Y45: 105.7 | Z45: 180.5 | AA45: 11016 | AB45: 6448 | AC45: 4567 | AD45: 11166 | AE45: 3.2 | AF45: 109.9 | AG45: 109.8 | AH45: 0 | AI45: 1.7 | AJ45: 69 | AK45: 103.2 | AL45: 87
A46: 112241 | B46: 埼玉県 | C46: 戸田市 | D46: 1171 | E46: Aa1 | F46: A | G46: a | H46: 1 | I46: 134395 | J46: 12.2 | K46: 49 | L46: 95.2 | M46: 117.1 | N46: 1023 | O46: 107 | P46: 0 | Q46: 89.3 | R46: 97.8 | S46: 84.66 | T46: 75.7 | U46: 75.7 | V46: 54.18 | W46: 21.52 | X46: 111.8 | Y46: 111.8 | Z46: 156.2 | AA46: 8607 | AB46: 6160 | AC46: 2446 | AD46: 11200 | AE46: 3 | AF46: 107 | AG46: 107 | AH46: 0 | AI46: 1.2 | AJ46: 54.8 | AK46: 97.5 | AL46: 71
A47: 112259 | B47: 埼玉県 | C47: 入間市 | D47: 1171 | E47: Aa1 | F47: A | G47: a | H47: 1 | I47: 129476 | J47: 8.4 | K47: 36 | L47: 88.6 | M47: 91.9 | N47: 1815 | O47: 81 | P47: 0 | Q47: 93.1 | R47: 97.8 | S47: 101.05 | T47: 107.34 | U47: 107.34 | V47: 45.37 | W47: 61.97 | X47: 94.1 | Y47: 94.1 | Z47: 222.7 | AA47: 11183 | AB47: 4726 | AC47: 6456 | AD47: 8092 | AE47: 4.4 | AF47: 109.8 | AG47: 109.8 | AH47: 0 | AI47: 2 | AJ47: 81.8 | AK47: 97.1 | AL47: 43
A48: 112275 | B48: 埼玉県 | C48: 朝霞市 | D48: 1171 | E48: Aa1 | F48: A | G48: a | H48: 1 | I48: 140780 | J48: 13.3 | K48: 40 | L48: 97.8 | M48: 118.6 | N48: 1155 | O48: 128 | P48: 0 | Q48: 83.8 | R48: 99.1 | S48: 61.45 | T48: 66.65 | U48: 66.65 | V48: 48.04 | W48: 18.61 | X48: 92.2 | Y48: 92.2 | Z48: 127.9 | AA48: 6914 | AB48: 4984 | AC48: 1930 | AD48: 10829 | AE48: 5.7 | AF48: 137.4 | AG48: 110.1 | AH48: 0 | AI48: 1.1 | AJ48: 82.7 | AK48: 95.5 | AL48: 25
A49: 112305 | B49: 埼玉県 | C49: 新座市 | D49: 1171 | E49: Aa1 | F49: A | G49: a | H49: 1 | I49: 158823 | J49: 11 | K49: 40 | L49: 95.8 | M49: 112.2 | N49: 1639 | O49: 109 | P49: 0 | Q49: 99.4 | R49: 98.5 | S49: 89.09 | T49: 87.56 | U49: 87.56 | V49: 38.59 | W49: 48.98 | X49: 101.7 | Y49: 101.7 | Z49: 230.9 | AA49: 8847 | AB49: 3899 | AC49: 4948 | AD49: 8824 | AE49: 3.1 | AF49: 115.2 | AG49: 115.2 | AH49: 0 | AI49: 1.6 | AJ49: 76.2 | AK49: 100.8 | AL49: 78
A50: 112356 | B50: 埼玉県 | C50: 富士見市 | D50: 1171 | E50: Aa1 | F50: A | G50: a | H50: 1 | I50: 107116 | J50: 12.1 | K50: 40 | L50: 94.9 | M50: 108.3 | N50: 1650 | O50: 127 | P50: 0 | Q50: 87.6 | R50: 99.4 | S50: 88.08 | T50: 78.47 | U50: 78.47 | V50: 44.92 | W50: 33.54 | X50: 112.2 | Y50: 112.2 | Z50: 196.1 | AA50: 7471 | AB50: 4277 | AC50: 3194 | AD50: 11902 | AE50: 2.6 | AF50: 116.9 | AG50: 116.1 | AH50: 0 | AI50: 1.7 | AJ50: 76.2 | AK50: 99.8 | AL50: 44
A51: 112372 | B51: 埼玉県 | C51: 三郷市 | D51: 1171 | E51: Aa1 | F51: A | G51: a | H51: 1 | I51: 123434 | J51: 8.5 | K51: 39 | L51: 86.5 | M51: 100.5 | N51: 2214 | O51: 92 | P51: 0 | Q51: 83.7 | R51: 89 | S51: 117.36 | T51: 150 | U51: 176.04 | V51: 59.35 | W51: 90.65 | X51: 78.2 | Y51: 66.7 | Z51: 197.7 | AA51: 13880 | AB51: 5492 | AC51: 8388 | AD51: 7261 | AE51: 4 | AF51: 111.9 | AG51: 111.9 | AH51: 0 | AI51: 1.3 | AJ51: 48.8 | AK51: 102.4 | AL51: 219
A52: 112453 | B52: 埼玉県 | C52: ふじみ野市 | D52: 1171 | E52: Aa1 | F52: A | G52: a | H52: 1 | I52: 107330 | J52: 14.3 | K52: 40 | L52: 94.1 | M52: 112.3 | N52: 1367 | O52: 116 | P52: 0 | Q52: 87.9 | R52: 97.3 | S52: 79.45 | T52: 66.43 | U52: 66.43 | V52: 44.94 | W52: 21.49 | X52: 119.6 | Y52: 119.6 | Z52: 176.8 | AA52: 8227 | AB52: 5566 | AC52: 2661 | AD52: 10733 | AE52: 4.4 | AF52: 118.7 | AG52: 118.7 | AH52: 0 | AI52: 1.5 | AJ52: 83.7 | AK52: 89.5 | AL52: 25
A53: 122033 | B53: 千葉県 | C53: 市川市 | D53: 1171 | E53: Aa1 | F53: A | G53: a | H53: 1 | I53: 377400 | J53: 14.5 | K53: 50 | L53: 76.8 | M53: 83.1 | N53: 2563 | O53: 156 | P53: 113.5 | Q53: 81.7 | R53: 92.8 | S53: 139.45 | T53: 140 | U53: 140 | V53: 91.96 | W53: 48.04 | X53: 99.6 | Y53: 99.6 | Z53: 151.6 | AA53: 12983 | AB53: 8528 | AC53: 4455 | AD53: 6087 | AE53: 5 | AF53: 100.2 | AG53: 99.5 | AH53: 0.6 | AI53: 1 | AJ53: 60.6 | AK53: 100.1 | AL53: 120
A54: 122041 | B54: 千葉県 | C54: 船橋市 | D54: 1171 | E54: Aa1 | F54: A | G54: a | H54: 1 | I54: 583739 | J54: 10.8 | K54: 61 | L54: 90.4 | M54: 105 | N54: 2211 | O54: 115 | P54: 95.4 | Q54: 79.5 | R54: 94.7 | S54: 138.84 | T54: 150 | U54: 162.23 | V54: 71.22 | W54: 78.78 | X54: 92.6 | Y54: 85.6 | Z54: 194.9 | AA54: 14139 | AB54: 6713 | AC54: 7425 | AD54: 5507 | AE54: 3.5 | AF54: 103.1 | AG54: 103.1 | AH54: 0 | AI54: 1.4 | AJ54: 55.6 | AK54: 103.2 | AL54: 212
A55: 122076 | B55: 千葉県 | C55: 松戸市 | D55: 1171 | E55: Aa1 | F55: A | G55: a | H55: 1 | I55: 436517 | J55: 10.5 | K55: 62 | L55: 87.8 | M55: 91.5 | N55: 2468 | O55: 108 | P55: 1173.3 | Q55: 78 | R55: 96.4 | S55: 149.06 | T55: 150 | U55: 182.22 | V55: 82.72 | W55: 67.28 | X55: 99.4 | Y55: 81.8 | Z55: 180.2 | AA55: 14559 | AB55: 8029 | AC55: 6531 | AD55: 8236 | AE55: 3.9 | AF55: 106.1 | AG55: 104.3 | AH55: 0 | AI55: 1.7 | AJ55: 66 | AK55: 101.4 | AL55: 108
A56: 122165 | B56: 千葉県 | C56: 習志野市 | D56: 1171 | E56: Aa1 | F56: A | G56: a | H56: 1 | I56: 167287 | J56: 11.8 | K56: 55 | L56: 95.6 | M56: 103.3 | N56: 2192 | O56: 109 | P56: 246.6 | Q56: 72.4 | R56: 97.9 | S56: 155.58 | T56: 133.82 | U56: 133.82 | V56: 75.22 | W56: 58.6 | X56: 116.3 | Y56: 116.3 | Z56: 206.8 | AA56: 14500 | AB56: 8150 | AC56: 6350 | AD56: 4402 | AE56: 5.7 | AF56: 110 | AG56: 109.8 | AH56: 0 | AI56: 1.7 | AJ56: 71.6 | AK56: 101.1 | AL56: 126
A57: 122173 | B57: 千葉県 | C57: 柏市 | D57: 1171 | E57: Aa1 | F57: A | G57: a | H57: 1 | I57: 389377 | J57: 8.4 | K57: 49 | L57: 90.3 | M57: 99.4 | N57: 2357 | O57: 84 | P57: 0 | Q57: 79.8 | R57: 95 | S57: 143.09 | T57: 142.09 | U57: 142.09 | V57: 81.48 | W57: 60.61 | X57: 100.7 | Y57: 100.7 | Z57: 175.6 | AA57: 14212 | AB57: 8149 | AC57: 6062 | AD57: 7211 | AE57: 3.5 | AF57: 109.8 | AG57: 104.3 | AH57: 0 | AI57: 1.8 | AJ57: 76 | AK57: 98.8 | AL57: 81
A58: 122203 | B58: 千葉県 | C58: 流山市 | D58: 1171 | E58: Aa1 | F58: A | G58: a | H58: 1 | I58: 189610 | J58: 9.5 | K58: 36 | L58: 92.3 | M58: 114.2 | N58: 2200 | O58: 99 | P58: 0 | Q58: 79.8 | R58: 93.2 | S58: 121.46 | T58: 128.76 | U58: 128.76 | V58: 76.75 | W58: 52.01 | X58: 94.3 | Y58: 94.3 | Z58: 158.3 | AA58: 12270 | AB58: 7314 | AC58: 4956 | AD58: 9481 | AE58: 3.7 | AF58: 105.4 | AG58: 102.5 | AH58: 0 | AI58: 1.6 | AJ58: 69.7 | AK58: 98.7 | AL58: 87
A59: 122211 | B59: 千葉県 | C59: 八千代市 | D59: 1171 | E59: Aa1 | F59: A | G59: a | H59: 1 | I59: 188291 | J59: 8.7 | K59: 54 | L59: 92.5 | M59: 87.7 | N59: 2101 | O59: 92 | P59: 0 | Q59: 81.9 | R59: 99.2 | S59: 124.37 | T59: 119.5 | U59: 119.5 | V59: 81.65 | W59: 37.85 | X59: 104.1 | Y59: 104.1 | Z59: 152.3 | AA59: 11302 | AB59: 7722 | AC59: 3580 | AD59: 7532 | AE59: 5.3 | AF59: 104.7 | AG59: 102.2 | AH59: 0 | AI59: 1.4 | AJ59: 79.7 | AK59: 96.7 | AL59: 44
A60: 122220 | B60: 千葉県 | C60: 我孫子市 | D60: 1171 | E60: Aa1 | F60: A | G60: a | H60: 1 | I60: 110635 | J60: 8.2 | K60: 52 | L60: 84.4 | M60: 83.1 | N60: 2178 | O60: 84 | P60: 0 | Q60: 77.1 | R60: 99.3 | S60: 123.78 | T60: 150.05 | U60: 159.59 | V60: 81.3 | W60: 68.74 | X60: 82.5 | Y60: 77.6 | Z60: 152.2 | AA60: 14585 | AB60: 7903 | AC60: 6682 | AD60: 6146 | AE60: 5.6 | AF60: 111.7 | AG60: 104.9 | AH60: 0 | AI60: 1.2 | AJ60: 66.5 | AK60: 101.9 | AL60: 105
A61: 122271 | B61: 千葉県 | C61: 浦安市 | D61: 1171 | E61: Aa1 | F61: A | G61: a | H61: 1 | I61: 168987 | J61: 12.6 | K61: 38 | L61: 99.8 | M61: 100 | N61: 1848 | O61: 107 | P61: 0 | Q61: 74.7 | R61: 97.9 | S61: 111.66 | T61: 103.96 | U61: 103.96 | V61: 74.66 | W61: 29.3 | X61: 107.4 | Y61: 107.4 | Z61: 149.6 | AA61: 12255 | AB61: 8801 | AC61: 3454 | AD61: 12071 | AE61: 3 | AF61: 100.6 | AG61: 98.4 | AH61: 8.6 | AI61: 1.4 | AJ61: 82.6 | AK61: 101.7 | AL61: 49
A62: 132021 | B62: 東京都 | C62: 立川市 | D62: 1171 | E62: Aa1 | F62: A | G62: a | H62: 1 | I62: 185201 | J62: 9.6 | K62: 62 | L62: 100 | M62: 105.8 | N62: 1408 | O62: 85 | P62: 53.1 | Q62: 88.3 | R62: 99.8 | S62: 106.9 | T62: 93.54 | U62: 93.54 | V62: 70.9 | W62: 22.65 | X62: 114.3 | Y62: 114.3 | Z62: 150.8 | AA62: 10507 | AB62: 7964 | AC62: 2544 | AD62: 4307 | AE62: 6.4 | AF62: 108.3 | AG62: 108.5 | AH62: 0 | AI62: 1.2 | AJ62: 74.4 | AK62: 99.5 | AL62: 77
A63: 132039 | B63: 東京都 | C63: 武蔵野市 | D63: 1171 | E63: Aa1 | F63: A | G63: a | H63: 1 | I63: 148300 | J63: 15.7 | K63: 53 | L63: 100 | M63: 112.9 | N63: 1199 | O63: 138 | P63: 0 | Q63: 99.8 | R63: 100 | S63: 75.73 | T63: 75.56 | U63: 75.56 | V63: 65.35 | W63: 10.21 | X63: 100.2 | Y63: 100.2 | Z63: 115.9 | AA63: 8604 | AB63: 7442 | AC63: 1162 | AD63: 6741 | AE63: 5.7 | AF63: 101.5 | AG63: 101.5 | AH63: 0 | AI63: 1.4 | AJ63: 66.8 | AK63: 99.6 | AL63: 52
A64: 132047 | B64: 東京都 | C64: 三鷹市 | D64: 1171 | E64: Aa1 | F64: A | G64: a | H64: 1 | I64: 190295 | J64: 12.3 | K64: 54 | L64: 100 | M64: 110.1 | N64: 1258 | O64: 115 | P64: 63.9 | Q64: 91.8 | R64: 100 | S64: 83.98 | T64: 86.13 | U64: 86.13 | V64: 71.57 | W64: 14.56 | X64: 97.5 | Y64: 97.5 | Z64: 117.3 | AA64: 9199 | AB64: 7643 | AC64: 1555 | AD64: 8274 | AE64: 6.3 | AF64: 106.4 | AG64: 106.4 | AH64: 0 | AI64: 1.6 | AJ64: 47 | AK64: 103.5 | AL64: 52
A65: 132063 | B65: 東京都 | C65: 府中市 | D65: 1171 | E65: Aa1 | F65: A | G65: a | H65: 1 | I65: 260144 | J65: 10.4 | K65: 49 | L65: 100 | M65: 103.4 | N65: 908 | O65: 95 | P65: 0 | Q65: 99.6 | R65: 100 | S65: 64.17 | T65: 59.41 | U65: 59.41 | V65: 52.46 | W65: 6.95 | X65: 108 | Y65: 108 | Z65: 122.3 | AA65: 6499 | AB65: 5739 | AC65: 760 | AD65: 17343 | AE65: 2.3 | AF65: 106.3 | AG65: 106.3 | AH65: 0 | AI65: 1.2 | AJ65: 87.2 | AK65: 99.2 | AL65: 18
A66: 132071 | B66: 東京都 | C66: 昭島市 | D66: 1171 | E66: Aa1 | F66: A | G66: a | H66: 1 | I66: 113988 | J66: 9.2 | K66: 44 | L66: 99.9 | M66: 111.1 | N66: 1347 | O66: 79 | P66: 0 | Q66: 86.8 | R66: 99.5 | S66: 112.24 | T66: 98.95 | U66: 98.95 | V66: 64.74 | W66: 34.21 | X66: 113.4 | Y66: 113.4 | Z66: 173.4 | AA66: 11514 | AB66: 7533 | AC66: 3981 | AD66: 7599 | AE66: 3.6 | AF66: 110.9 | AG66: 110.9 | AH66: 0 | AI66: 1.1 | AJ66: 85.6 | AK66: 98.5 | AL66: 34
A67: 132080 | B67: 東京都 | C67: 調布市 | D67: 1171 | E67: Aa1 | F67: A | G67: a | H67: 1 | I67: 238394 | J67: 12.6 | K67: 50 | L67: 100 | M67: 111.3 | N67: 1276 | O67: 122 | P67: 0 | Q67: 80 | R67: 100 | S67: 74.06 | T67: 83.1 | U67: 83.1 | V67: 61.33 | W67: 21.78 | X67: 89.1 | Y67: 89.1 | Z67: 120.8 | AA67: 8609 | AB67: 6353 | AC67: 2256 | AD67: 13244 | AE67: 3.6 | AF67: 99.6 | AG67: 99.6 | AH67: 0 | AI67: 1.6 | AJ67: 74.4 | AK67: 99.7 | AL67: 30
A68: 132098 | B68: 東京都 | C68: 町田市 | D68: 1171 | E68: Aa1 | F68: A | G68: a | H68: 1 | I68: 426224 | J68: 8.3 | K68: 55 | L68: 98.9 | M68: 99.8 | N68: 2068 | O68: 83 | P68: 77.9 | Q68: 90.3 | R68: 99.5 | S68: 119.95 | T68: 128.21 | U68: 128.21 | V68: 76.53 | W68: 51.68 | X68: 93.6 | Y68: 93.6 | Z68: 156.7 | AA68: 12749 | AB68: 7610 | AC68: 5139 | AD68: 4098 | AE68: 11.2 | AF68: 104.1 | AG68: 104.6 | AH68: 0 | AI68: 1.7 | AJ68: 75.1 | AK68: 101.7 | AL68: 99
A69: 132101 | B69: 東京都 | C69: 小金井市 | D69: 1171 | E69: Aa1 | F69: A | G69: a | H69: 1 | I69: 124539 | J69: 11.1 | K69: 49 | L69: 100 | M69: 112.4 | N69: 1309 | O69: 110 | P69: 0 | Q69: 99.7 | R69: 100 | S69: 79.26 | T69: 44.47 | U69: 44.47 | V69: 34.66 | W69: 9.81 | X69: 178.2 | Y69: 178.2 | Z69: 228.7 | AA69: 4488 | AB69: 3498 | AC69: 990 | AD69: 9580 | AE69: 3.2 | AF69: 104.1 | AG69: 104.1 | AH69: 0 | AI69: 2.3 | AJ69: 89.9 | AK69: 94.7 | AL69: 8
A70: 132110 | B70: 東京都 | C70: 小平市 | D70: 1171 | E70: Aa1 | F70: A | G70: a | H70: 1 | I70: 195014 | J70: 9.8 | K70: 47 | L70: 100 | M70: 109.6 | N70: 1655 | O70: 95 | P70: 0 | Q70: 95.9 | R70: 99.9 | S70: 98.78 | T70: 76.06 | U70: 76.06 | V70: 56.32 | W70: 19.74 | X70: 129.9 | Y70: 129.9 | Z70: 175.4 | AA70: 7839 | AB70: 5804 | AC70: 2035 | AD70: 7801 | AE70: 3.3 | AF70: 113.6 | AG70: 113.6 | AH70: 0 | AI70: 1.3 | AJ70: 83.1 | AK70: 97.3 | AL70: 37
A71: 132128 | B71: 東京都 | C71: 日野市 | D71: 1171 | E71: Aa1 | F71: A | G71: a | H71: 1 | I71: 179858 | J71: 7.9 | K71: 64 | L71: 96.1 | M71: 100.9 | N71: 2068 | O71: 80 | P71: 0 | Q71: 88.8 | R71: 98.1 | S71: 117.68 | T71: 98.02 | U71: 126.6 | V71: 58.16 | W71: 39.86 | X71: 120.1 | Y71: 93 | Z71: 202.4 | AA71: 9713 | AB71: 5763 | AC71: 3950 | AD71: 17986 | AE71: 2.3 | AF71: 110.3 | AG71: 110.3 | AH71: 0 | AI71: 2 | AJ71: 74 | AK71: 103.1 | AL71: 82
A72: 132136 | B72: 東京都 | C72: 東村山市 | D72: 1171 | E72: Aa1 | F72: A | G72: a | H72: 1 | I72: 151666 | J72: 9.1 | K72: 43 | L72: 100 | M72: 109.9 | N72: 1936 | O72: 89 | P72: 0 | Q72: 88.7 | R72: 99.3 | S72: 120.67 | T72: 112.42 | U72: 112.42 | V72: 63.63 | W72: 48.78 | X72: 107.3 | Y72: 107.3 | Z72: 189.6 | AA72: 11417 | AB72: 6463 | AC72: 4955 | AD72: 25278 | AE72: 2.3 | AF72: 111.2 | AG72: 111.2 | AH72: 0 | AI72: 1.5 | AJ72: 64.2 | AK72: 104.4 | AL72: 72
A73: 132144 | B73: 東京都 | C73: 国分寺市 | D73: 1171 | E73: Aa1 | F73: A | G73: a | H73: 1 | I73: 128007 | J73: 11.4 | K73: 46 | L73: 100 | M73: 108.2 | N73: 1699 | O73: 112 | P73: 0 | Q73: 100 | R73: 99.4 | S73: 100.43 | T73: 89.89 | U73: 89.89 | V73: 55.32 | W73: 34.56 | X73: 111.7 | Y73: 111.7 | Z73: 181.5 | AA73: 9132 | AB73: 5620 | AC73: 3511 | AD73: 8534 | AE73: 4.1 | AF73: 89.7 | AG73: 89.7 | AH73: 0 | AI73: 2.1 | AJ73: 87.7 | AK73: 100.8 | AL73: 28
A74: 132225 | B74: 東京都 | C74: 東久留米市 | D74: 1171 | E74: Aa1 | F74: A | G74: a | H74: 1 | I74: 117006 | J74: 9 | K74: 54 | L74: 100 | M74: 107.2 | N74: 2134 | O74: 91 | P74: 0 | Q74: 88.2 | R74: 99.7 | S74: 109.02 | T74: 140.96 | U74: 140.96 | V74: 68.28 | W74: 72.68 | X74: 77.3 | Y74: 77.3 | Z74: 159.7 | AA74: 13962 | AB74: 6763 | AC74: 7200 | AD74: 13001 | AE74: 3.9 | AF74: 93.6 | AG74: 93.6 | AH74: 0 | AI74: 2.1 | AJ74: 77.2 | AK74: 101.4 | AL74: 46
A75: 132241 | B75: 東京都 | C75: 多摩市 | D75: 1171 | E75: Aa1 | F75: A | G75: a | H75: 1 | I75: 147547 | J75: 7.9 | K75: 56 | L75: 100 | M75: 104.8 | N75: 2068 | O75: 73 | P75: 0 | Q75: 96.4 | R75: 99.8 | S75: 128.49 | T75: 88.03 | U75: 88.03 | V75: 69.34 | W75: 18.7 | X75: 146 | Y75: 146 | Z75: 185.3 | AA75: 9498 | AB75: 7480 | AC75: 2017 | AD75: 8679 | AE75: 4.5 | AF75: 121.3 | AG75: 121.3 | AH75: 0 | AI75: 2.8 | AJ75: 98 | AK75: 70.4 | AL75: 3
A76: 132292 | B76: 東京都 | C76: 西東京市 | D76: 1171 | E76: Aa1 | F76: A | G76: a | H76: 1 | I76: 205725 | J76: 12.6 | K76: 39 | L76: 100 | M76: 106.4 | N76: 1612 | O76: 130 | P76: 0 | Q76: 86.8 | R76: 97.6 | S76: 94.59 | T76: 91.25 | U76: 91.25 | V76: 63.48 | W76: 27.77 | X76: 103.7 | Y76: 103.7 | Z76: 149 | AA76: 8829 | AB76: 6142 | AC76: 2687 | AD76: 17144 | AE76: 3.7 | AF76: 103.2 | AG76: 103.2 | AH76: 2.1 | AI76: 1.5 | AJ76: 79.7 | AK76: 99.2 | AL76: 30
A77: 142034 | B77: 神奈川県 | C77: 平塚市 | D77: 1171 | E77: Aa1 | F77: A | G77: a | H77: 1 | I77: 249569 | J77: 8 | K77: 49 | L77: 97.6 | M77: 99.3 | N77: 2035 | O77: 70 | P77: 0 | Q77: 86.2 | R77: 98.1 | S77: 115.01 | T77: 99.03 | U77: 120.44 | V77: 54.81 | W77: 44.22 | X77: 116.1 | Y77: 95.5 | Z77: 209.8 | AA77: 11243 | AB77: 6223 | AC77: 5020 | AD77: 5804 | AE77: 4 | AF77: 107.1 | AG77: 107 | AH77: 0 | AI77: 1.8 | AJ77: 69.8 | AK77: 100.5 | AL77: 130
A78: 142042 | B78: 神奈川県 | C78: 鎌倉市 | D78: 1171 | E78: Aa1 | F78: A | G78: a | H78: 1 | I78: 173061 | J78: 7.6 | K78: 51 | L78: 97.8 | M78: 107.2 | N78: 2302 | O78: 72 | P78: 56.7 | Q78: 85.6 | R78: 93.6 | S78: 129.95 | T78: 171.2 | U78: 219.43 | V78: 108.71 | W78: 62.49 | X78: 75.9 | Y78: 59.2 | Z78: 119.5 | AA78: 18161 | AB78: 11532 | AC78: 6629 | AD78: 3090 | AE78: 10 | AF78: 104.3 | AG78: 105 | AH78: 0 | AI78: 1.5 | AJ78: 61.1 | AK78: 103.3 | AL78: 186
A79: 142051 | B79: 神奈川県 | C79: 藤沢市 | D79: 1171 | E79: Aa1 | F79: A | G79: a | H79: 1 | I79: 425070 | J79: 9.4 | K79: 63 | L79: 96 | M79: 96.1 | N79: 2203 | O79: 89 | P79: 64.6 | Q79: 80.2 | R79: 98.5 | S79: 128.02 | T79: 126.57 | U79: 126.57 | V79: 78.53 | W79: 48.04 | X79: 101.1 | Y79: 101.1 | Z79: 163 | AA79: 13432 | AB79: 8333 | AC79: 5098 | AD79: 4776 | AE79: 6.2 | AF79: 107 | AG79: 107 | AH79: 0 | AI79: 1.6 | AJ79: 70.6 | AK79: 101.1 | AL79: 104
A80: 142069 | B80: 神奈川県 | C80: 小田原市 | D80: 1171 | E80: Aa1 | F80: A | G80: a | H80: 1 | I80: 156700 | J80: 7.8 | K80: 56 | L80: 83.3 | M80: 100.1 | N80: 2636 | O80: 61 | P80: 0 | Q80: 71.5 | R80: 94 | S80: 167.04 | T80: 195.61 | U80: 241.33 | V80: 113.93 | W80: 81.69 | X80: 85.4 | Y80: 69.2 | Z80: 146.6 | AA80: 24920 | AB80: 14513 | AC80: 10406 | AD80: 2849 | AE80: 4.2 | AF80: 96.9 | AG80: 96.9 | AH80: 0 | AI80: 1.6 | AJ80: 56.4 | AK80: 101.1 | AL80: 241
A81: 142077 | B81: 神奈川県 | C81: 茅ヶ崎市 | D81: 1171 | E81: Aa1 | F81: A | G81: a | H81: 1 | I81: 235196 | J81: 10.8 | K81: 45 | L81: 95.7 | M81: 97.6 | N81: 1878 | O81: 105 | P81: 0 | Q81: 84 | R81: 98.9 | S81: 111.76 | T81: 89.82 | U81: 89.82 | V81: 54.7 | W81: 35.12 | X81: 124.4 | Y81: 124.4 | Z81: 204.3 | AA81: 9258 | AB81: 5638 | AC81: 3620 | AD81: 6357 | AE81: 3.3 | AF81: 111.8 | AG81: 111.8 | AH81: 0 | AI81: 1.7 | AJ81: 60.5 | AK81: 100.2 | AL81: 115
A82: 142123 | B82: 神奈川県 | C82: 厚木市 | D82: 1171 | E82: Aa1 | F82: A | G82: a | H82: 1 | I82: 199928 | J82: 7.8 | K82: 49 | L82: 89.5 | M82: 93.8 | N82: 1974 | O82: 60 | P82: 0 | Q82: 85 | R82: 99.4 | S82: 111.36 | T82: 101.1 | U82: 101.1 | V82: 56.62 | W82: 44.47 | X82: 110.2 | Y82: 110.2 | Z82: 196.7 | AA82: 13159 | AB82: 7370 | AC82: 5789 | AD82: 9520 | AE82: 3.7 | AF82: 105 | AG82: 104.9 | AH82: 0 | AI82: 1.6 | AJ82: 76.7 | AK82: 100.6 | AL82: 95
A83: 142131 | B83: 神奈川県 | C83: 大和市 | D83: 1171 | E83: Aa1 | F83: A | G83: a | H83: 1 | I83: 232018 | J83: 12.5 | K83: 53 | L83: 95.5 | M83: 100.9 | N83: 2292 | O83: 119 | P83: 65.7 | Q83: 95.1 | R83: 99.7 | S83: 126.76 | T83: 145.12 | U83: 145.12 | V83: 82.22 | W83: 62.9 | X83: 87.4 | Y83: 87.4 | Z83: 154.2 | AA83: 15361 | AB83: 8703 | AC83: 6658 | AD83: 5524 | AE83: 5.4 | AF83: 102.9 | AG83: 108 | AH83: 0 | AI83: 1.4 | AJ83: 68.8 | AK83: 101.2 | AL83: 117
A84: 142158 | B84: 神奈川県 | C84: 海老名市 | D84: 1171 | E84: Aa1 | F84: A | G84: a | H84: 1 | I84: 132270 | J84: 12.2 | K84: 44 | L84: 96.2 | M84: 94.5 | N84: 1796 | O84: 98 | P84: 0 | Q84: 86.2 | R84: 98.4 | S84: 104.72 | T84: 90.65 | U84: 90.65 | V84: 50.76 | W84: 39.89 | X84: 115.5 | Y84: 115.5 | Z84: 206.3 | AA84: 11264 | AB84: 6307 | AC84: 4957 | AD84: 8267 | AE84: 3.9 | AF84: 110.2 | AG84: 110.3 | AH84: 2.2 | AI84: 1.4 | AJ84: 70.8 | AK84: 101.2 | AL84: 91
A85: 142166 | B85: 神奈川県 | C85: 座間市 | D85: 1171 | E85: Aa1 | F85: A | G85: a | H85: 1 | I85: 129597 | J85: 10.5 | K85: 44 | L85: 98.6 | M85: 107.3 | N85: 2634 | O85: 106 | P85: 0 | Q85: 97.6 | R85: 97.4 | S85: 137.69 | T85: 116.56 | U85: 116.56 | V85: 46.79 | W85: 69.77 | X85: 118.1 | Y85: 118.1 | Z85: 294.2 | AA85: 11493 | AB85: 4614 | AC85: 6879 | AD85: 8100 | AE85: 3.9 | AF85: 115.5 | AG85: 115.5 | AH85: 0 | AI85: 1.8 | AJ85: 67.5 | AK85: 102.8 | AL85: 92
A86: 262048 | B86: 京都府 | C86: 宇治市 | D86: 1171 | E86: Aa1 | F86: A | G86: a | H86: 1 | I86: 176856 | J86: 8.7 | K86: 36 | L86: 96.7 | M86: 97.3 | N86: 3082 | O86: 92 | P86: 68.6 | Q86: 87.4 | R86: 89 | S86: 162.91 | T86: 169.15 | U86: 202.07 | V86: 80.39 | W86: 88.76 | X86: 96.3 | Y86: 80.6 | Z86: 202.7 | AA86: 16135 | AB86: 7668 | AC86: 8467 | AD86: 3401 | AE86: 7.1 | AF86: 100 | AG86: 100.1 | AH86: 0 | AI86: 1.4 | AJ86: 53.2 | AK86: 102.5 | AL86: 241
A87: 272035 | B87: 大阪府 | C87: 豊中市 | D87: 1171 | E87: Aa1 | F87: A | G87: a | H87: 1 | I87: 407843 | J87: 13.2 | K87: 57 | L87: 100 | M87: 84.6 | N87: 1421 | O87: 121 | P87: 66.2 | Q87: 67.5 | R87: 99.9 | S87: 82.05 | T87: 87.09 | U87: 87.09 | V87: 54.3 | W87: 32.79 | X87: 94.2 | Y87: 94.2 | Z87: 151.1 | AA87: 9512 | AB87: 5931 | AC87: 3581 | AD87: 3641 | AE87: 10.9 | AF87: 104 | AG87: 104 | AH87: 0 | AI87: 1.4 | AJ87: 70.2 | AK87: 96.5 | AL87: 65
A88: 272051 | B88: 大阪府 | C88: 吹田市 | D88: 1171 | E88: Aa1 | F88: A | G88: a | H88: 1 | I88: 378505 | J88: 12.4 | K88: 60 | L88: 99.9 | M88: 107.6 | N88: 1609 | O88: 109 | P88: 56.3 | Q88: 76.7 | R88: 99.6 | S88: 104.48 | T88: 87.71 | U88: 87.71 | V88: 56.69 | W88: 31.02 | X88: 119.1 | Y88: 119.1 | Z88: 184.3 | AA88: 9995 | AB88: 6460 | AC88: 3535 | AD88: 3537 | AE88: 9.4 | AF88: 114.4 | AG88: 112 | AH88: 0 | AI88: 1.7 | AJ88: 65.2 | AK88: 99.6 | AL88: 84
A89: 272078 | B89: 大阪府 | C89: 高槻市 | D89: 1171 | E89: Aa1 | F89: A | G89: a | H89: 1 | I89: 347473 | J89: 11.1 | K89: 53 | L89: 99.5 | M89: 113.2 | N89: 1965 | O89: 107 | P89: 0 | Q89: 76.9 | R89: 98.1 | S89: 124.15 | T89: 127.23 | U89: 127.23 | V89: 56.95 | W89: 70.27 | X89: 97.6 | Y89: 97.6 | Z89: 218 | AA89: 13100 | AB89: 5864 | AC89: 7235 | AD89: 7393 | AE89: 2.9 | AF89: 107.3 | AG89: 107 | AH89: 0 | AI89: 2 | AJ89: 72.2 | AK89: 101.9 | AL89: 95
A90: 272094 | B90: 大阪府 | C90: 守口市 | D90: 1171 | E90: Aa1 | F90: A | G90: a | H90: 1 | I90: 142279 | J90: 13.8 | K90: 56 | L90: 100 | M90: 100.2 | N90: 2055 | O90: 124 | P90: 57.1 | Q90: 66 | R90: 100 | S90: 130.78 | T90: 88.46 | U90: 88.46 | V90: 58.19 | W90: 30.27 | X90: 147.8 | Y90: 147.8 | Z90: 224.7 | AA90: 9844 | AB90: 6475 | AC90: 3369 | AD90: 4743 | AE90: 5 | AF90: 121 | AG90: 120.3 | AH90: 0 | AI90: 1.2 | AJ90: 63.2 | AK90: 92.5 | AL90: 104
A91: 272108 | B91: 大阪府 | C91: 枚方市 | D91: 1171 | E91: Aa1 | F91: A | G91: a | H91: 1 | I91: 386172 | J91: 11.5 | K91: 64 | L91: 97.5 | M91: 101.6 | N91: 2618 | O91: 111 | P91: 0 | Q91: 84.7 | R91: 97.5 | S91: 148.59 | T91: 150.35 | U91: 175.03 | V91: 56.55 | W91: 93.8 | X91: 98.8 | Y91: 84.9 | Z91: 262.7 | AA91: 15490 | AB91: 5826 | AC91: 9663 | AD91: 3417 | AE91: 8.1 | AF91: 116.2 | AG91: 115.4 | AH91: 0 | AI91: 1.7 | AJ91: 72.8 | AK91: 101.3 | AL91: 141
A92: 272116 | B92: 大阪府 | C92: 茨木市 | D92: 1171 | E92: Aa1 | F92: A | G92: a | H92: 1 | I92: 281542 | J92: 11 | K92: 52 | L92: 99.2 | M92: 95.4 | N92: 2035 | O92: 102 | P92: 0 | Q92: 69 | R92: 99 | S92: 117.74 | T92: 91.73 | U92: 91.73 | V92: 52.5 | W92: 39.23 | X92: 128.4 | Y92: 128.4 | Z92: 224.3 | AA92: 9886 | AB92: 5658 | AC92: 4228 | AD92: 10829 | AE92: 2.2 | AF92: 120.5 | AG92: 118.2 | AH92: 0 | AI92: 1.8 | AJ92: 74.1 | AK92: 100.9 | AL92: 76
A93: 272124 | B93: 大阪府 | C93: 八尾市 | D93: 1171 | E93: Aa1 | F93: A | G93: a | H93: 1 | I93: 238985 | J93: 9.7 | K93: 49 | L93: 90.9 | M93: 95.2 | N93: 2563 | O93: 85 | P93: 0 | Q93: 54.7 | R93: 92.6 | S93: 146.42 | T93: 130.71 | U93: 130.71 | V93: 61.85 | W93: 68.86 | X93: 112 | Y93: 112 | Z93: 236.8 | AA93: 14898 | AB93: 7049 | AC93: 7849 | AD93: 5431 | AE93: 2.9 | AF93: 106.1 | AG93: 105.4 | AH93: 0 | AI93: 1.6 | AJ93: 53.5 | AK93: 102.4 | AL93: 336
A94: 272159 | B94: 大阪府 | C94: 寝屋川市 | D94: 1171 | E94: Aa1 | F94: A | G94: a | H94: 1 | I94: 227897 | J94: 12.8 | K94: 50 | L94: 99.7 | M94: 115.9 | N94: 2406 | O94: 126 | P94: 0 | Q94: 65.1 | R94: 98.6 | S94: 135.63 | T94: 129.24 | U94: 129.24 | V94: 48.29 | W94: 80.95 | X94: 104.9 | Y94: 104.9 | Z94: 280.9 | AA94: 13186 | AB94: 4927 | AC94: 8259 | AD94: 12661 | AE94: 1.3 | AF94: 108.7 | AG94: 108.7 | AH94: 0 | AI94: 1.4 | AJ94: 45.9 | AK94: 105.1 | AL94: 190
A95: 272175 | B95: 大阪府 | C95: 松原市 | D95: 1171 | E95: Aa1 | F95: A | G95: a | H95: 1 | I95: 115396 | J95: 9.6 | K95: 37 | L95: 98.4 | M95: 109.7 | N95: 2868 | O95: 111 | P95: 0 | Q95: 89.3 | R95: 92.7 | S95: 154.82 | T95: 165.58 | U95: 173.1 | V95: 43.83 | W95: 121.75 | X95: 93.5 | Y95: 89.4 | Z95: 353.2 | AA95: 14284 | AB95: 3781 | AC95: 10503 | AD95: 14425 | AE95: 1.9 | AF95: 98.1 | AG95: 97.4 | AH95: 0 | AI95: 1.5 | AJ95: 40.3 | AK95: 105.7 | AL95: 309
A96: 272183 | B96: 大阪府 | C96: 大東市 | D96: 1171 | E96: Aa1 | F96: A | G96: a | H96: 1 | I96: 116900 | J96: 10.2 | K96: 50 | L96: 99.2 | M96: 99.6 | N96: 1970 | O96: 97 | P96: 0 | Q96: 61.8 | R96: 97.5 | S96: 117.63 | T96: 108.65 | U96: 108.65 | V96: 54.1 | W96: 54.56 | X96: 108.3 | Y96: 108.3 | Z96: 217.4 | AA96: 11430 | AB96: 5691 | AC96: 5739 | AD96: 5845 | AE96: 4.1 | AF96: 104 | AG96: 104 | AH96: 0 | AI96: 1.8 | AJ96: 60.8 | AK96: 102.1 | AL96: 185
A97: 272230 | B97: 大阪府 | C97: 門真市 | D97: 1171 | E97: Aa1 | F97: A | G97: a | H97: 1 | I97: 115015 | J97: 12 | K97: 50 | L97: 96.9 | M97: 105.6 | N97: 2420 | O97: 114 | P97: 0 | Q97: 65.1 | R97: 99.6 | S97: 136.02 | T97: 121.68 | U97: 121.68 | V97: 60.26 | W97: 61.43 | X97: 111.8 | Y97: 111.8 | Z97: 225.7 | AA97: 12909 | AB97: 6393 | AC97: 6517 | AD97: 5228 | AE97: 3.8 | AF97: 115.3 | AG97: 113.9 | AH97: 0 | AI97: 1.3 | AJ97: 39.3 | AK97: 104.5 | AL97: 343
A98: 272272 | B98: 大阪府 | C98: 東大阪市 | D98: 1171 | E98: Aa1 | F98: A | G98: a | H98: 1 | I98: 476333 | J98: 10.4 | K98: 54 | L98: 99 | M98: 99 | N98: 2087 | O98: 96 | P98: 0 | Q98: 53.9 | R98: 97.8 | S98: 124.03 | T98: 98.64 | U98: 98.64 | V98: 52.45 | W98: 46.18 | X98: 125.7 | Y98: 125.7 | Z98: 236.5 | AA98: 10658 | AB98: 5668 | AC98: 4990 | AD98: 5954 | AE98: 3.7 | AF98: 106 | AG98: 106 | AH98: 0 | AI98: 1.5 | AJ98: 40.6 | AK98: 102.1 | AL98: 267
A99: 282022 | B99: 兵庫県 | C99: 尼崎市 | D99: 1171 | E99: Aa1 | F99: A | G99: a | H99: 1 | I99: 459222 | J99: 13.5 | K99: 63 | L99: 100 | M99: 100.3 | N99: 1714 | O99: 113 | P99: 50.8 | Q99: 73.1 | R99: 99.6 | S99: 102.67 | T99: 78.35 | U99: 78.35 | V99: 53.49 | W99: 24.86 | X99: 131 | Y99: 131 | Z99: 191.9 | AA99: 9340 | AB99: 6376 | AC99: 2963 | AD99: 4992 | AE99: 5.4 | AF99: 112.9 | AG99: 112.7 | AH99: 0 | AI99: 1.5 | AJ99: 80.4 | AK99: 92 | AL99: 60
A100: 282031 | B100: 兵庫県 | C100: 明石市 | D100: 1171 | E100: Aa1 | F100: A | G100: a | H100: 1 | I100: 303775 | J100: 8.2 | K100: 54 | L100: 99.7 | M100: 109.7 | N100: 2197 | O100: 79 | P100: 67.1 | Q100: 83.4 | R100: 98.9 | S100: 145.59 | T100: 118.11 | U100: 139.73 | V100: 68.3 | W100: 49.8 | X100: 123.3 | Y100: 104.2 | Z100: 213.1 | AA100: 12293 | AB100: 7109 | AC100: 5184 | AD100: 3797 | AE100: 7.9 | AF100: 113.4 | AG100: 113.5 | AH100: 0 | AI100: 1.9 | AJ100: 64.7 | AK100: 99.9 | AL100: 123
A101: 282049 | B101: 兵庫県 | C101: 西宮市 | D101: 1171 | E101: Aa1 | F101: A | G101: a | H101: 1 | I101: 481925 | J101: 11 | K101: 62 | L101: 99.9 | M101: 92.7 | N101: 1777 | O101: 100 | P101: 59.3 | Q101: 87.4 | R101: 99.8 | S101: 98.65 | T101: 95.08 | U101: 103.44 | V101: 51.05 | W101: 44.03 | X101: 103.8 | Y101: 95.4 | Z101: 193.2 | AA101: 10475 | AB101: 5625 | AC101: 4851 | AD101: 5806 | AE101: 7 | AF101: 102 | AG101: 102 | AH101: 0 | AI101: 1.4 | AJ101: 68.5 | AK101: 101.3 | AL101: 117
A102: 282073 | B102: 兵庫県 | C102: 伊丹市 | D102: 1171 | E102: Aa1 | F102: A | G102: a | H102: 1 | I102: 202503 | J102: 12.3 | K102: 53 | L102: 100 | M102: 103.2 | N102: 1727 | O102: 100 | P102: 0 | Q102: 76.1 | R102: 99.7 | S102: 101.69 | T102: 76.06 | U102: 76.06 | V102: 35.24 | W102: 40.82 | X102: 133.7 | Y102: 133.7 | Z102: 288.6 | AA102: 9364 | AB102: 4338 | AC102: 5025 | AD102: 9205 | AE102: 2.9 | AF102: 116.1 | AG102: 116.1 | AH102: 0 | AI102: 1.7 | AJ102: 56.3 | AK102: 103 | AL102: 125
A103: 282146 | B103: 兵庫県 | C103: 宝塚市 | D103: 1171 | E103: Aa1 | F103: A | G103: a | H103: 1 | I103: 228967 | J103: 9.5 | K103: 48 | L103: 98.9 | M103: 99.3 | N103: 1848 | O103: 93 | P103: 0 | Q103: 77.7 | R103: 99.5 | S103: 96.6 | T103: 112.28 | U103: 112.28 | V103: 52.19 | W103: 60.09 | X103: 86 | Y103: 86 | Z103: 185.1 | AA103: 11497 | AB103: 5344 | AC103: 6153 | AD103: 9159 | AE103: 4.8 | AF103: 100 | AG103: 99.6 | AH103: 0 | AI103: 1.6 | AJ103: 74.5 | AK103: 102.6 | AL103: 76
A104: 282171 | B104: 兵庫県 | C104: 川西市 | D104: 1171 | E104: Aa1 | F104: A | G104: a | H104: 1 | I104: 155012 | J104: 8.3 | K104: 48 | L104: 99.7 | M104: 97.6 | N104: 2145 | O104: 86 | P104: 0 | Q104: 80 | R104: 99.4 | S104: 116.7 | T104: 73.12 | U104: 84.2 | V104: 48.24 | W104: 24.88 | X104: 159.6 | Y104: 138.6 | Z104: 241.9 | AA104: 7035 | AB104: 4641 | AC104: 2394 | AD104: 5167 | AE104: 7.5 | AF104: 123.5 | AG104: 121.9 | AH104: 0 | AI104: 1.5 | AJ104: 70.9 | AK104: 96.4 | AL104: 70
A105: 462012 | B105: 鹿児島県 | C105: 鹿児島市 | D105: 1171 | E105: Aa1 | F105: A | G105: a | H105: 1 | I105: 469000 | J105: 7.6 | K105: 67 | L105: 78.4 | M105: 94.9 | N105: 1837 | O105: 66 | P105: 81.7 | Q105: 89.1 | R105: 98.4 | S105: 104.99 | T105: 107.75 | U105: 116.69 | V105: 60.58 | W105: 47.17 | X105: 97.4 | Y105: 90 | Z105: 173.3 | AA105: 12387 | AB105: 6964 | AC105: 5423 | AD105: 2620 | AE105: 14.3 | AF105: 105.6 | AG105: 105.4 | AH105: 0 | AI105: 1.7 | AJ105: 66 | AK105: 97.3 | AL105: 88
A106: 472018 | B106: 沖縄県 | C106: 那覇市 | D106: 1171 | E106: Aa1 | F106: A | G106: a | H106: 1 | I106: 311725 | J106: 9.6 | K106: 53 | L106: 98.3 | M106: 104.3 | N106: 1489 | O106: 89 | P106: 0 | Q106: 100 | R106: 96.6 | S106: 89.96 | T106: 99.42 | U106: 99.42 | V106: 73.89 | W106: 25.53 | X106: 90.5 | Y106: 90.5 | Z106: 121.8 | AA106: 10768 | AB106: 8003 | AC106: 2765 | AD106: 4453 | AE106: 9.4 | AF106: 100.1 | AG106: 99.9 | AH106: 0 | AI106: 1.7 | AJ106: 74.2 | AK106: 92.9 | AL106: 40
A107: 472085 | B107: 沖縄県 | C107: 浦添市 | D107: 1171 | E107: Aa1 | F107: A | G107: a | H107: 1 | I107: 111800 | J107: 7.6 | K107: 50 | L107: 97.1 | M107: 95.8 | N107: 1408 | O107: 70 | P107: 0 | Q107: 100 | R107: 95 | S107: 82.09 | T107: 87.71 | U107: 87.71 | V107: 71.22 | W107: 16.49 | X107: 93.6 | Y107: 93.6 | Z107: 115.3 | AA107: 9464 | AB107: 7685 | AC107: 1779 | AD107: 5082 | AE107: 10 | AF107: 101.6 | AG107: 103.2 | AH107: 0 | AI107: 0.9 | AJ107: 74.1 | AK107: 99.4 | AL107: 40
B108: 団体数 | C108: 70 | E108: Aa1 計 | M108: 100.9 | N108: 1942 | O108: 97 | P108: 82.8 | Q108: 81 | R108: 97.7 | S108: 114.61 | T108: 111.34 | U108: 116.33 | V108: 62.69 | W108: 48.66 | X108: 102.9 | Y108: 98.5 | Z108: 182.8 | AA108: 11715 | AB108: 6596 | AC108: 5120 | AD108: 5930 | AE108: 5.3 | AF108: 107.5 | AG108: 107 | AH108: 0.2 | AI108: 1.5 | AJ108: 66.5 | AK108: 100.3 | AL108: 106
A109: 012025 | B109: 北海道 | C109: 函館市 | D109: 1171 | E109: Ab1 | F109: A | G109: b | H109: 1 | I109: 221356 | J109: 5.5 | K109: 73 | L109: 89.9 | M109: 108.1 | N109: 3014 | O109: 48 | P109: 86.6 | Q109: 73.7 | R109: 96.4 | S109: 156.03 | T109: 117.6 | U109: 117.6 | V109: 71.09 | W109: 46.51 | X109: 132.7 | Y109: 132.7 | Z109: 219.5 | AA109: 13692 | AB109: 8277 | AC109: 5415 | AD109: 3816 | AE109: 7.2 | AF109: 118.2 | AG109: 118.2 | AH109: 0 | AI109: 1.4 | AJ109: 49.9 | AK109: 102 | AL109: 210
A110: 032018 | B110: 岩手県 | C110: 盛岡市 | D110: 1171 | E110: Ab1 | F110: A | G110: b | H110: 1 | I110: 255549 | J110: 5.5 | K110: 67 | L110: 90 | M110: 97.6 | N110: 2455 | O110: 51 | P110: 0 | Q110: 84.6 | R110: 97.6 | S110: 150.2 | T110: 150.15 | U110: 210.99 | V110: 77.54 | W110: 72.61 | X110: 100 | Y110: 71.2 | Z110: 193.7 | AA110: 16256 | AB110: 8395 | AC110: 7861 | AD110: 3362 | AE110: 6 | AF110: 105.2 | AG110: 105 | AH110: 0 | AI110: 1.8 | AJ110: 71.4 | AK110: 97.8 | AL110: 120
A111: 092011 | B111: 栃木県 | C111: 宇都宮市 | D111: 1171 | E111: Ab1 | F111: A | G111: b | H111: 1 | I111: 437568 | J111: 5.6 | K111: 57 | L111: 84.6 | M111: 99.6 | N111: 2695 | O111: 54 | P111: 82.5 | Q111: 64.5 | R111: 96.6 | S111: 147.95 | T111: 160.03 | U111: 174.76 | V111: 83.14 | W111: 76.89 | X111: 92.4 | Y111: 84.7 | Z111: 178 | AA111: 16604 | AB111: 8626 | AC111: 7978 | AD111: 5470 | AE111: 6.6 | AF111: 100.9 | AG111: 97.8 | AH111: 0 | AI111: 2 | AJ111: 75.8 | AK111: 101.6 | AL111: 75
A112: 112321 | B112: 埼玉県 | C112: 久喜市 | D112: 1171 | E112: Ab1 | F112: A | G112: b | H112: 1 | I112: 105683 | J112: 6.3 | K112: 48 | L112: 69.9 | M112: 87.3 | N112: 1870 | O112: 55 | P112: 0 | Q112: 80.2 | R112: 93.5 | S112: 108.39 | T112: 150 | U112: 201.11 | V112: 101.9 | W112: 48.1 | X112: 72.3 | Y112: 53.9 | Z112: 106.4 | AA112: 17024 | AB112: 11564 | AC112: 5459 | AD112: 5871 | AE112: 5.7 | AF112: 102.7 | AG112: 102.7 | AH112: 0 | AI112: 1.2 | AJ112: 58.8 | AK112: 103.9 | AL112: 171
A113: 118541 | B113: 埼玉県 | C113: 坂戸、鶴ケ島下水道組合 | D113: 1171 | E113: Ab1 | F113: A | G113: b | H113: 1 | I113: 124463 | J113: 7.2 | K113: 49 | L113: 76.7 | M113: 102.3 | N113: 2343 | O113: 70 | P113: 56.4 | Q113: 79.1 | R113: 95.5 | S113: 140.66 | T113: 146.4 | U113: 172.85 | V113: 106.26 | W113: 40.15 | X113: 96.1 | Y113: 81.4 | Z113: 132.4 | AA113: 15171 | AB113: 11011 | AC113: 4160 | AD113: 2766 | AE113: 12.5 | AF113: 102.7 | AG113: 102.7 | AH113: 0.5 | AI113: 1.5 | AJ113: 76.6 | AK113: 101 | AL113: 106
A114: 122084 | B114: 千葉県 | C114: 野田市 | D114: 1171 | E114: Ab1 | F114: A | G114: b | H114: 1 | I114: 108192 | J114: 5.2 | K114: 35 | L114: 70.5 | M114: 81.9 | N114: 2310 | O114: 59 | P114: 0 | Q114: 79.7 | R114: 93.2 | S114: 141.67 | T114: 150 | U114: 188.03 | V114: 96.93 | W114: 53.07 | X114: 94.4 | Y114: 75.3 | Z114: 146.2 | AA114: 13273 | AB114: 8577 | AC114: 4696 | AD114: 4508 | AE114: 7 | AF114: 103.5 | AG114: 102.4 | AH114: 0 | AI114: 1.7 | AJ114: 79.8 | AK114: 101.1 | AL114: 122
A115: 122114 | B115: 千葉県 | C115: 成田市 | D115: 1171 | E115: Ab1 | F115: A | G115: b | H115: 1 | I115: 100424 | J115: 5.6 | K115: 48 | L115: 77.1 | M115: 105.3 | N115: 1980 | O115: 54 | P115: 0 | Q115: 81.4 | R115: 97.5 | S115: 114.36 | T115: 191.68 | U115: 191.68 | V115: 96.45 | W115: 95.24 | X115: 59.7 | Y115: 59.7 | Z115: 118.6 | AA115: 19761 | AB115: 9943 | AC115: 9818 | AD115: 9129 | AE115: 5.5 | AF115: 100.2 | AG115: 98.7 | AH115: 3.1 | AI115: 1.6 | AJ115: 91.3 | AK115: 100.3 | AL115: 48
A116: 122122 | B116: 千葉県 | C116: 佐倉市 | D116: 1171 | E116: Ab1 | F116: A | G116: b | H116: 1 | I116: 158102 | J116: 6.6 | K116: 55 | L116: 92.1 | M116: 85.5 | N116: 2472 | O116: 63 | P116: 0 | Q116: 81.3 | R116: 98.6 | S116: 143.67 | T116: 115.19 | U116: 115.19 | V116: 85.74 | W116: 29.45 | X116: 124.7 | Y116: 124.7 | Z116: 167.6 | AA116: 12097 | AB116: 9004 | AC116: 3093 | AD116: 6874 | AE116: 5.2 | AF116: 118.2 | AG116: 115.7 | AH116: 0 | AI116: 1.8 | AJ116: 92.4 | AK116: 92.9 | AL116: 17
A117: 122190 | B117: 千葉県 | C117: 市原市 | D117: 1171 | E117: Ab1 | F117: A | G117: b | H117: 1 | I117: 176984 | J117: 5.5 | K117: 50 | L117: 65.3 | M117: 102.4 | N117: 2140 | O117: 57 | P117: 58 | Q117: 86.5 | R117: 95.3 | S117: 122.34 | T117: 132.34 | U117: 132.34 | V117: 71.78 | W117: 60.56 | X117: 92.4 | Y117: 92.4 | Z117: 170.4 | AA117: 12857 | AB117: 6973 | AC117: 5884 | AD117: 3470 | AE117: 7.9 | AF117: 100 | AG117: 100.3 | AH117: 0 | AI117: 1.4 | AJ117: 78.1 | AK117: 101.2 | AL117: 107
A118: 132012 | B118: 東京都 | C118: 八王子市 | D118: 1171 | E118: Ab1 | F118: A | G118: b | H118: 1 | I118: 557847 | J118: 7 | K118: 61 | L118: 99.4 | M118: 98.8 | N118: 2068 | O118: 66 | P118: 0 | Q118: 89.7 | R118: 98.6 | S118: 126.81 | T118: 123.54 | U118: 123.54 | V118: 59.89 | W118: 63.65 | X118: 102.6 | Y118: 102.6 | Z118: 211.7 | AA118: 13112 | AB118: 6356 | AC118: 6756 | AD118: 14680 | AE118: 2.6 | AF118: 112.2 | AG118: 112.2 | AH118: 0 | AI118: 1.4 | AJ118: 69.3 | AK118: 102.3 | AL118: 93
A119: 132055 | B119: 東京都 | C119: 青梅市 | D119: 1171 | E119: Ab1 | F119: A | G119: b | H119: 1 | I119: 128380 | J119: 6.4 | K119: 44 | L119: 98.2 | M119: 97.3 | N119: 2126 | O119: 59 | P119: 0 | Q119: 86.5 | R119: 99.2 | S119: 133.09 | T119: 172.63 | U119: 205.74 | V119: 95.98 | W119: 76.64 | X119: 77.1 | Y119: 64.7 | Z119: 138.7 | AA119: 18613 | AB119: 10349 | AC119: 8264 | AD119: 4938 | AE119: 6.5 | AF119: 100 | AG119: 99.5 | AH119: 0 | AI119: 1.6 | AJ119: 65 | AK119: 102.8 | AL119: 119
A120: 142018 | B120: 神奈川県 | C120: 横須賀市 | D120: 1171 | E120: Ab1 | F120: A | G120: b | H120: 1 | I120: 381907 | J120: 7 | K120: 56 | L120: 97.9 | M120: 99.7 | N120: 2443 | O120: 65 | P120: 71.9 | Q120: 76.9 | R120: 96.5 | S120: 162.49 | T120: 142.86 | U120: 151.32 | V120: 91.22 | W120: 51.64 | X120: 113.7 | Y120: 107.4 | Z120: 178.1 | AA120: 15438 | AB120: 9857 | AC120: 5581 | AD120: 2748 | AE120: 9.6 | AF120: 104.6 | AG120: 105 | AH120: 0 | AI120: 0.9 | AJ120: 67 | AK120: 102.4 | AL120: 193
A121: 142115 | B121: 神奈川県 | C121: 秦野市 | D121: 1171 | E121: Ab1 | F121: A | G121: b | H121: 1 | I121: 140633 | J121: 6.7 | K121: 42 | L121: 88.1 | M121: 99 | N121: 2469 | O121: 64 | P121: 64.6 | Q121: 99 | R121: 92.4 | S121: 141.02 | T121: 152.76 | U121: 215.55 | V121: 87.63 | W121: 65.13 | X121: 92.3 | Y121: 65.4 | Z121: 160.9 | AA121: 16058 | AB121: 9212 | AC121: 6846 | AD121: 3801 | AE121: 8.1 | AF121: 112.7 | AG121: 112.7 | AH121: 0 | AI121: 1.6 | AJ121: 59.7 | AK121: 101.4 | AL121: 200
A122: 172014 | B122: 石川県 | C122: 金沢市 | D122: 1171 | E122: Ab1 | F122: A | G122: b | H122: 1 | I122: 438488 | J122: 5.7 | K122: 53 | L122: 98 | M122: 95.9 | N122: 2651 | O122: 49 | P122: 57 | Q122: 84.7 | R122: 97.7 | S122: 134.98 | T122: 153.1 | U122: 160.75 | V122: 56.26 | W122: 96.84 | X122: 88.2 | Y122: 84 | Z122: 239.9 | AA122: 17799 | AB122: 6540 | AC122: 11259 | AD122: 5040 | AE122: 5.1 | AF122: 106.7 | AG122: 106.6 | AH122: 0 | AI122: 1.5 | AJ122: 50.5 | AK122: 103 | AL122: 267
A123: 182010 | B123: 福井県 | C123: 福井市 | D123: 1171 | E123: Ab1 | F123: A | G123: b | H123: 1 | I123: 223077 | J123: 5.5 | K123: 63 | L123: 86.4 | M123: 103.8 | N123: 2513 | O123: 45 | P123: 67.7 | Q123: 66.3 | R123: 96.1 | S123: 152.37 | T123: 129.96 | U123: 152.87 | V123: 62.48 | W123: 67.48 | X123: 117.2 | Y123: 99.7 | Z123: 243.9 | AA123: 15888 | AB123: 7638 | AC123: 8250 | AD123: 2253 | AE123: 8.4 | AF123: 114.1 | AG123: 114.1 | AH123: 0 | AI123: 1.3 | AJ123: 52 | AK123: 98.1 | AL123: 281
A124: 192015 | B124: 山梨県 | C124: 甲府市 | D124: 1171 | E124: Ab1 | F124: A | G124: b | H124: 1 | I124: 153550 | J124: 6 | K124: 60 | L124: 82.7 | M124: 98.4 | N124: 2431 | O124: 48 | P124: 82.5 | Q124: 62.1 | R124: 99.6 | S124: 144.74 | T124: 150 | U124: 194.59 | V124: 55.69 | W124: 94.31 | X124: 96.5 | Y124: 74.4 | Z124: 259.9 | AA124: 18882 | AB124: 7010 | AC124: 11872 | AD124: 3490 | AE124: 6.6 | AF124: 128.9 | AG124: 127.8 | AH124: 0 | AI124: 1.6 | AJ124: 65.7 | AK124: 101.6 | AL124: 171
A125: 202029 | B125: 長野県 | C125: 松本市 | D125: 1171 | E125: Ab1 | F125: A | G125: b | H125: 1 | I125: 192462 | J125: 5.1 | K125: 63 | L125: 81.4 | M125: 119 | N125: 3140 | O125: 41 | P125: 84.1 | Q125: 77.6 | R125: 99.3 | S125: 169.61 | T125: 130.66 | U125: 131.05 | V125: 65.85 | W125: 64.8 | X125: 129.8 | Y125: 129.4 | Z125: 257.6 | AA125: 16420 | AB125: 8276 | AC125: 8144 | AD125: 5202 | AE125: 6.9 | AF125: 119.1 | AG125: 119.1 | AH125: 0 | AI125: 1.7 | AJ125: 80.9 | AK125: 94.9 | AL125: 75
A126: 212016 | B126: 岐阜県 | C126: 岐阜市 | D126: 1171 | E126: Ab1 | F126: A | G126: b | H126: 1 | I126: 379200 | J126: 5.4 | K126: 85 | L126: 94.1 | M126: 100.2 | N126: 2739 | O126: 47 | P126: 65 | Q126: 76.2 | R126: 86.7 | S126: 136.81 | T126: 127.53 | U126: 127.53 | V126: 69.36 | W126: 58.17 | X126: 107.3 | Y126: 107.3 | Z126: 197.2 | AA126: 14598 | AB126: 7940 | AC126: 6659 | AD126: 3356 | AE126: 11 | AF126: 106.4 | AG126: 106.4 | AH126: 0 | AI126: 1.5 | AJ126: 52.3 | AK126: 101.6 | AL126: 146
A127: 222038 | B127: 静岡県 | C127: 沼津市 | D127: 1171 | E127: Ab1 | F127: A | G127: b | H127: 1 | I127: 109149 | J127: 7.3 | K127: 44 | L127: 56.1 | M127: 74 | N127: 2600 | O127: 63 | P127: 84.1 | Q127: 55.8 | R127: 88.8 | S127: 131.61 | T127: 188.76 | U127: 227.85 | V127: 104.22 | W127: 84.53 | X127: 69.7 | Y127: 57.8 | Z127: 126.3 | AA127: 21938 | AB127: 12113 | AC127: 9825 | AD127: 2950 | AE127: 8.1 | AF127: 106.1 | AG127: 106.1 | AH127: 0 | AI127: 1.5 | AJ127: 49.5 | AK127: 103.9 | AL127: 286
A128: 232017 | B128: 愛知県 | C128: 豊橋市 | D128: 1171 | E128: Ab1 | F128: A | G128: b | H128: 1 | I128: 264099 | J128: 6.1 | K128: 87 | L128: 71.2 | M128: 98.2 | N128: 2277 | O128: 59 | P128: 52.8 | Q128: 76.3 | R128: 97.4 | S128: 149.19 | T128: 129.17 | U128: 129.17 | V128: 58.79 | W128: 70.38 | X128: 115.5 | Y128: 115.5 | Z128: 253.7 | AA128: 13451 | AB128: 6122 | AC128: 7329 | AD128: 2539 | AE128: 8.4 | AF128: 111.6 | AG128: 110.4 | AH128: 0 | AI128: 1.5 | AJ128: 68.8 | AK128: 99.8 | AL128: 122
A129: 232025 | B129: 愛知県 | C129: 岡崎市 | D129: 1171 | E129: Ab1 | F129: A | G129: b | H129: 1 | I129: 337885 | J129: 5.7 | K129: 60 | L129: 87.8 | M129: 105.4 | N129: 1998 | O129: 59 | P129: 0 | Q129: 88.9 | R129: 95.6 | S129: 116.88 | T129: 150 | U129: 153.99 | V129: 60.34 | W129: 89.66 | X129: 77.9 | Y129: 75.9 | Z129: 193.7 | AA129: 14428 | AB129: 5804 | AC129: 8624 | AD129: 5043 | AE129: 6 | AF129: 107 | AG129: 104.7 | AH129: 0 | AI129: 1.6 | AJ129: 56.3 | AK129: 100.3 | AL129: 184
A130: 232033 | B130: 愛知県 | C130: 一宮市 | D130: 1171 | E130: Ab1 | F130: A | G130: b | H130: 1 | I130: 261970 | J130: 5.9 | K130: 62 | L130: 68.7 | M130: 99.9 | N130: 2019 | O130: 61 | P130: 41 | Q130: 75.6 | R130: 75.4 | S130: 99.46 | T130: 150 | U130: 219.8 | V130: 83.96 | W130: 66.04 | X130: 66.3 | Y130: 45.3 | Z130: 118.5 | AA130: 14555 | AB130: 8147 | AC130: 6408 | AD130: 2911 | AE130: 13.9 | AF130: 99.7 | AG130: 99.9 | AH130: 0 | AI130: 1.5 | AJ130: 46 | AK130: 99.8 | AL130: 284
A131: 232050 | B131: 愛知県 | C131: 半田市 | D131: 1171 | E131: Ab1 | F131: A | G131: b | H131: 1 | I131: 105300 | J131: 5.4 | K131: 31 | L131: 89.1 | M131: 98 | N131: 2030 | O131: 56 | P131: 0 | Q131: 86.7 | R131: 88.8 | S131: 116.85 | T131: 150.04 | U131: 156.84 | V131: 69.08 | W131: 80.96 | X131: 77.9 | Y131: 74.5 | Z131: 169.2 | AA131: 14492 | AB131: 6672 | AC131: 7820 | AD131: 7020 | AE131: 4.6 | AF131: 101.4 | AG131: 101.4 | AH131: 0 | AI131: 2.1 | AJ131: 69 | AK131: 103.4 | AL131: 154
A132: 232068 | B132: 愛知県 | C132: 春日井市 | D132: 1171 | E132: Ab1 | F132: A | G132: b | H132: 1 | I132: 213979 | J132: 6.7 | K132: 54 | L132: 69.2 | M132: 78.2 | N132: 2915 | O132: 66 | P132: 60.5 | Q132: 81.4 | R132: 96 | S132: 131.91 | T132: 150 | U132: 166.03 | V132: 75.4 | W132: 74.6 | X132: 87.9 | Y132: 79.4 | Z132: 174.9 | AA132: 15314 | AB132: 7698 | AC132: 7616 | AD132: 3754 | AE132: 7.6 | AF132: 100 | AG132: 96.7 | AH132: 0 | AI132: 1.3 | AJ132: 54.6 | AK132: 104 | AL132: 210
A133: 232106 | B133: 愛知県 | C133: 刈谷市 | D133: 1171 | E133: Ab1 | F133: A | G133: b | H133: 1 | I133: 142510 | J133: 6 | K133: 33 | L133: 93.3 | M133: 91.6 | N133: 1650 | O133: 63 | P133: 0 | Q133: 78.6 | R133: 91.9 | S133: 95.89 | T133: 117.24 | U133: 117.24 | V133: 63.03 | W133: 54.21 | X133: 81.8 | Y133: 81.8 | Z133: 152.1 | AA133: 11120 | AB133: 5978 | AC133: 5141 | AD133: 5481 | AE133: 5.6 | AF133: 100.7 | AG133: 100.8 | AH133: 0 | AI133: 1.9 | AJ133: 72.7 | AK133: 101.5 | AL133: 120
A134: 232114 | B134: 愛知県 | C134: 豊田市 | D134: 1171 | E134: Ab1 | F134: A | G134: b | H134: 1 | I134: 309349 | J134: 6 | K134: 34 | L134: 74 | M134: 89 | N134: 1980 | O134: 61 | P134: 0 | Q134: 91.8 | R134: 94.3 | S134: 119.28 | T134: 150.86 | U134: 158.96 | V134: 59.24 | W134: 91.62 | X134: 79.1 | Y134: 75 | Z134: 201.3 | AA134: 14840 | AB134: 5828 | AC134: 9012 | AD134: 5524 | AE134: 4.7 | AF134: 104 | AG134: 104 | AH134: 0 | AI134: 1.7 | AJ134: 75.7 | AK134: 99.4 | AL134: 107
A135: 232122 | B135: 愛知県 | C135: 安城市 | D135: 1171 | E135: Ab1 | F135: A | G135: b | H135: 1 | I135: 142790 | J135: 6.6 | K135: 29 | L135: 75.5 | M135: 85.9 | N135: 1650 | O135: 67 | P135: 0 | Q135: 96.4 | R135: 93.3 | S135: 95.97 | T135: 137.97 | U135: 137.97 | V135: 57.14 | W135: 80.84 | X135: 69.6 | Y135: 69.6 | Z135: 168 | AA135: 13585 | AB135: 5626 | AC135: 7959 | AD135: 7515 | AE135: 5 | AF135: 100 | AG135: 100 | AH135: 0 | AI135: 1.9 | AJ135: 69.5 | AK135: 102.2 | AL135: 95
A136: 232190 | B136: 愛知県 | C136: 小牧市 | D136: 1171 | E136: Ab1 | F136: A | G136: b | H136: 1 | I136: 115850 | J136: 5.7 | K136: 35 | L136: 76.9 | M136: 77.6 | N136: 1581 | O136: 51 | P136: 0 | Q136: 78 | R136: 92.7 | S136: 88.78 | T136: 150 | U136: 162.41 | V136: 86.86 | W136: 63.14 | X136: 59.2 | Y136: 54.7 | Z136: 102.2 | AA136: 16750 | AB136: 9700 | AC136: 7051 | AD136: 6097 | AE136: 4.7 | AF136: 100.2 | AG136: 100.2 | AH136: 0 | AI136: 1.8 | AJ136: 79.1 | AK136: 100.9 | AL136: 66
A137: 242021 | B137: 三重県 | C137: 四日市市 | D137: 1171 | E137: Ab1 | F137: A | G137: b | H137: 1 | I137: 247570 | J137: 5.3 | K137: 60 | L137: 80 | M137: 92.6 | N137: 3520 | O137: 52 | P137: 74.7 | Q137: 78 | R137: 93.8 | S137: 186.92 | T137: 186.92 | U137: 205.54 | V137: 76.42 | W137: 110.49 | X137: 100 | Y137: 90.9 | Z137: 244.6 | AA137: 19176 | AB137: 7841 | AC137: 11336 | AD137: 2427 | AE137: 4 | AF137: 108.5 | AG137: 108.6 | AH137: 0 | AI137: 1.5 | AJ137: 65.5 | AK137: 101.2 | AL137: 300
A138: 252018 | B138: 滋賀県 | C138: 大津市 | D138: 1171 | E138: Ab1 | F138: A | G138: b | H138: 1 | I138: 333534 | J138: 6.7 | K138: 53 | L138: 97.1 | M138: 99.1 | N138: 2931 | O138: 60 | P138: 64.4 | Q138: 79.2 | R138: 98.2 | S138: 176.75 | T138: 126.82 | U138: 148.41 | V138: 74.17 | W138: 52.65 | X138: 139.4 | Y138: 119.1 | Z138: 238.3 | AA138: 13956 | AB138: 8162 | AC138: 5794 | AD138: 4834 | AE138: 6 | AF138: 128 | AG138: 120.3 | AH138: 0 | AI138: 2.1 | AJ138: 73.7 | AK138: 98.5 | AL138: 92
A139: 252069 | B139: 滋賀県 | C139: 草津市 | D139: 1171 | E139: Ab1 | F139: A | G139: b | H139: 1 | I139: 113525 | J139: 7.4 | K139: 40 | L139: 82.7 | M139: 96.3 | N139: 2530 | O139: 61 | P139: 0 | Q139: 84.6 | R139: 98.7 | S139: 130.19 | T139: 105.18 | U139: 120.53 | V139: 67.66 | W139: 37.53 | X139: 123.8 | Y139: 108 | Z139: 192.4 | AA139: 12722 | AB139: 8183 | AC139: 4539 | AD139: 5975 | AE139: 4.6 | AF139: 123.3 | AG139: 117.7 | AH139: 0 | AI139: 1.6 | AJ139: 70.9 | AK139: 102.7 | AL139: 94
A140: 272027 | B140: 大阪府 | C140: 岸和田市 | D140: 1171 | E140: Ab1 | F140: A | G140: b | H140: 1 | I140: 182792 | J140: 6.9 | K140: 53 | L140: 96.1 | M140: 92.9 | N140: 2871 | O140: 64 | P140: 18.8 | Q140: 76.8 | R140: 93.1 | S140: 173.78 | T140: 126.91 | U140: 126.91 | V140: 56.09 | W140: 70.81 | X140: 136.9 | Y140: 136.9 | Z140: 309.8 | AA140: 13540 | AB140: 5985 | AC140: 7555 | AD140: 4940 | AE140: 6.3 | AF140: 116.4 | AG140: 115.7 | AH140: 0 | AI140: 1.4 | AJ140: 52.7 | AK140: 106.1 | AL140: 238
A141: 272141 | B141: 大阪府 | C141: 富田林市 | D141: 1171 | E141: Ab1 | F141: A | G141: b | H141: 1 | I141: 102108 | J141: 5.8 | K141: 55 | L141: 94.1 | M141: 88.3 | N141: 2382 | O141: 59 | P141: 0 | Q141: 89.1 | R141: 94.4 | S141: 134.06 | T141: 116.91 | U141: 149 | V141: 76.8 | W141: 40.11 | X141: 114.7 | Y141: 90 | Z141: 174.6 | AA141: 11464 | AB141: 7531 | AC141: 3933 | AD141: 6006 | AE141: 5 | AF141: 108.1 | AG141: 106.8 | AH141: 0 | AI141: 1.7 | AJ141: 68.5 | AK141: 101.9 | AL141: 135
A142: 272191 | B142: 大阪府 | C142: 和泉市 | D142: 1171 | E142: Ab1 | F142: A | G142: b | H142: 1 | I142: 163281 | J142: 7.3 | K142: 44 | L142: 88.7 | M142: 83 | N142: 2530 | O142: 74 | P142: 0 | Q142: 83.4 | R142: 90.6 | S142: 136.27 | T142: 107.14 | U142: 107.14 | V142: 47.08 | W142: 60.06 | X142: 127.2 | Y142: 127.2 | Z142: 289.5 | AA142: 10663 | AB142: 4685 | AC142: 5977 | AD142: 9605 | AE142: 3.1 | AF142: 114.3 | AG142: 113.5 | AH142: 0 | AI142: 1.5 | AJ142: 65.1 | AK142: 101.5 | AL142: 141
A143: 272205 | B143: 大阪府 | C143: 箕面市 | D143: 1171 | E143: Ab1 | F143: A | G143: b | H143: 1 | I143: 138634 | J143: 7.4 | K143: 53 | L143: 100 | M143: 91.8 | N143: 1863 | O143: 71 | P143: 0 | Q143: 72.4 | R143: 100 | S143: 101.73 | T143: 89.62 | U143: 89.62 | V143: 49.84 | W143: 39.78 | X143: 113.5 | Y143: 113.5 | Z143: 204.1 | AA143: 9313 | AB143: 5179 | AC143: 4134 | AD143: 9902 | AE143: 5.3 | AF143: 111.5 | AG143: 111.6 | AH143: 0 | AI143: 1.6 | AJ143: 89.9 | AK143: 88.5 | AL143: 27
A144: 282103 | B144: 兵庫県 | C144: 加古川市 | D144: 1171 | E144: Ab1 | F144: A | G144: b | H144: 1 | I144: 232117 | J144: 6 | K144: 55 | L144: 89 | M144: 96.1 | N144: 2530 | O144: 61 | P144: 0 | Q144: 85.3 | R144: 97.1 | S144: 154.05 | T144: 135.08 | U144: 160.79 | V144: 64.47 | W144: 70.61 | X144: 114 | Y144: 95.8 | Z144: 239 | AA144: 13267 | AB144: 6332 | AC144: 6935 | AD144: 6273 | AE144: 3.3 | AF144: 108.4 | AG144: 108.4 | AH144: 0 | AI144: 1.6 | AJ144: 54.3 | AK144: 100.3 | AL144: 175
A145: 292010 | B145: 奈良県 | C145: 奈良市 | D145: 1171 | E145: Ab1 | F145: A | G145: b | H145: 1 | I145: 310298 | J145: 7.3 | K145: 59 | L145: 88.1 | M145: 110.2 | N145: 2893 | O145: 66 | P145: 55.1 | Q145: 98 | R145: 97.6 | S145: 132.02 | T145: 119.42 | U145: 119.42 | V145: 84.56 | W145: 34.86 | X145: 110.6 | Y145: 110.6 | Z145: 156.1 | AA145: 13322 | AB145: 9433 | AC145: 3889 | AD145: 8866 | AE145: 4.2 | AF145: 107.2 | AG145: 107.2 | AH145: 0 | AI145: 0.8 | AJ145: 63.3 | AK145: 101.3 | AL145: 98
A146: 302015 | B146: 和歌山県 | C146: 和歌山市 | D146: 1171 | E146: Ab1 | F146: A | G146: b | H146: 1 | I146: 137018 | J146: 6.4 | K146: 41 | L146: 37.9 | M146: 41.8 | N146: 3139 | O146: 56 | P146: 43 | Q146: 66.5 | R146: 80.4 | S146: 176.77 | T146: 179.81 | U146: 250.94 | V146: 78.31 | W146: 101.5 | X146: 98.3 | Y146: 70.4 | Z146: 225.7 | AA146: 20309 | AB146: 8844 | AC146: 11464 | AD146: 1357 | AE146: 8.3 | AF146: 106.7 | AG146: 106.5 | AH146: 31.2 | AI146: 1.4 | AJ146: 49.9 | AK146: 104.8 | AL146: 675
A147: 342025 | B147: 広島県 | C147: 呉市 | D147: 1171 | E147: Ab1 | F147: A | G147: b | H147: 1 | I147: 180498 | J147: 5 | K147: 60 | L147: 85.4 | M147: 103.2 | N147: 3894 | O147: 50 | P147: 56.7 | Q147: 82.4 | R147: 98.1 | S147: 216.56 | T147: 203.78 | U147: 203.78 | V147: 113.75 | W147: 90.03 | X147: 106.3 | Y147: 106.3 | Z147: 190.4 | AA147: 20312 | AB147: 11338 | AC147: 8974 | AD147: 2911 | AE147: 7.7 | AF147: 107.9 | AG147: 107.9 | AH147: 1.7 | AI147: 1.5 | AJ147: 59.8 | AK147: 101.8 | AL147: 165
A148: 372013 | B148: 香川県 | C148: 高松市 | D148: 1171 | E148: Ab1 | F148: A | G148: b | H148: 1 | I148: 261773 | J148: 5.2 | K148: 57 | L148: 62 | M148: 87.5 | N148: 2506 | O148: 51 | P148: 67.6 | Q148: 74.7 | R148: 93.6 | S148: 142.03 | T148: 159.25 | U148: 178.87 | V148: 67.78 | W148: 91.47 | X148: 89.2 | Y148: 79.4 | Z148: 209.5 | AA148: 16033 | AB148: 6824 | AC148: 9209 | AD148: 2671 | AE148: 9.1 | AF148: 100 | AG148: 100 | AH148: 0 | AI148: 1.3 | AJ148: 56.7 | AK148: 102.2 | AL148: 299
A149: 382019 | B149: 愛媛県 | C149: 松山市 | D149: 1171 | E149: Ab1 | F149: A | G149: b | H149: 1 | I149: 329129 | J149: 6.5 | K149: 60 | L149: 65.1 | M149: 77.1 | N149: 3385 | O149: 63 | P149: 56.8 | Q149: 75.6 | R149: 92.6 | S149: 177.46 | T149: 177.46 | U149: 186.7 | V149: 63.74 | W149: 113.71 | X149: 100 | Y149: 95 | Z149: 278.4 | AA149: 18308 | AB149: 6576 | AC149: 11732 | AD149: 3076 | AE149: 4.9 | AF149: 110.8 | AG149: 110.8 | AH149: 0 | AI149: 1.4 | AJ149: 55.5 | AK149: 100.4 | AL149: 349
A150: 392014 | B150: 高知県 | C150: 高知市 | D150: 1171 | E150: Ab1 | F150: A | G150: b | H150: 1 | I150: 209547 | J150: 6.9 | K150: 53 | L150: 65.4 | M150: 89.2 | N150: 2948 | O150: 67 | P150: 68.6 | Q150: 60.1 | R150: 85 | S150: 172.35 | T150: 154.03 | U150: 169.06 | V150: 62.06 | W150: 91.97 | X150: 111.9 | Y150: 101.9 | Z150: 277.7 | AA150: 15894 | AB150: 6404 | AC150: 9490 | AD150: 2117 | AE150: 10.6 | AF150: 109.5 | AG150: 109.7 | AH150: 0 | AI150: 1.3 | AJ150: 46.9 | AK150: 102.5 | AL150: 375
A151: 402184 | B151: 福岡県 | C151: 春日市 | D151: 1171 | E151: Ab1 | F151: A | G151: b | H151: 1 | I151: 112737 | J151: 6.9 | K151: 44 | L151: 100 | M151: 100.9 | N151: 3160 | O151: 82 | P151: 0 | Q151: 86.1 | R151: 99.5 | S151: 164.47 | T151: 135.74 | U151: 135.74 | V151: 72.37 | W151: 63.37 | X151: 121.2 | Y151: 121.2 | Z151: 227.3 | AA151: 11444 | AB151: 6102 | AC151: 5342 | AD151: 10249 | AE151: 3.3 | AF151: 126.9 | AG151: 123.9 | AH151: 0 | AI151: 1.3 | AJ151: 58.6 | AK151: 100.8 | AL151: 88
A152: 402192 | B152: 福岡県 | C152: 大野城市 | D152: 1171 | E152: Ab1 | F152: A | G152: b | H152: 1 | I152: 101965 | J152: 6.3 | K152: 45 | L152: 100 | M152: 95.6 | N152: 2953 | O152: 70 | P152: 0 | Q152: 82.5 | R152: 99.8 | S152: 160.15 | T152: 145.42 | U152: 145.42 | V152: 78.85 | W152: 66.57 | X152: 110.1 | Y152: 110.1 | Z152: 203.1 | AA152: 13263 | AB152: 7191 | AC152: 6071 | AD152: 7283 | AE152: 3.4 | AF152: 116.2 | AG152: 113.7 | AH152: 0 | AI152: 1.5 | AJ152: 68.2 | AK152: 99 | AL152: 82
A153: 422011 | B153: 長崎県 | C153: 長崎市 | D153: 1171 | E153: Ab1 | F153: A | G153: b | H153: 1 | I153: 376002 | J153: 6.8 | K153: 61 | L153: 93.2 | M153: 114.3 | N153: 3300 | O153: 70 | P153: 70.1 | Q153: 79.8 | R153: 97.5 | S153: 202.75 | T153: 178.1 | U153: 222.24 | V153: 94.31 | W153: 83.78 | X153: 113.8 | Y153: 91.2 | Z153: 215 | AA153: 17191 | AB153: 9103 | AC153: 8087 | AD153: 3798 | AE153: 6.2 | AF153: 110 | AG153: 110 | AH153: 0 | AI153: 1.4 | AJ153: 63.5 | AK153: 97.7 | AL153: 161
A154: 442011 | B154: 大分県 | C154: 大分市 | D154: 1171 | E154: Ab1 | F154: A | G154: b | H154: 1 | I154: 315238 | J154: 5.6 | K154: 53 | L154: 66.2 | M154: 70 | N154: 2791 | O154: 53 | P154: 62.3 | Q154: 79 | R154: 92.3 | S154: 152.7 | T154: 154.54 | U154: 160.73 | V154: 67.18 | W154: 87.36 | X154: 98.8 | Y154: 95 | Z154: 227.3 | AA154: 16442 | AB154: 7147 | AC154: 9295 | AD154: 3390 | AE154: 3.4 | AF154: 100 | AG154: 100 | AH154: 0 | AI154: 1.4 | AJ154: 62 | AK154: 102.6 | AL154: 247
A155: 472115 | B155: 沖縄県 | C155: 沖縄市 | D155: 1171 | E155: Ab1 | F155: A | G155: b | H155: 1 | I155: 138765 | J155: 5.4 | K155: 52 | L155: 97.4 | M155: 100.6 | N155: 1584 | O155: 50 | P155: 0 | Q155: 100 | R155: 89 | S155: 77.29 | T155: 109.98 | U155: 109.98 | V155: 68.1 | W155: 41.88 | X155: 70.3 | Y155: 70.3 | Z155: 113.5 | AA155: 11732 | AB155: 7265 | AC155: 4468 | AD155: 4785 | AE155: 5.9 | AF155: 100.6 | AG155: 100.6 | AH155: 0 | AI155: 1.6 | AJ155: 71.5 | AK155: 98.8 | AL155: 69
B156: 団体数 | C156: 47 | E156: Ab1 計 | M156: 93.2 | N156: 2516 | O156: 58 | P156: 64.1 | Q156: 79 | R156: 94.6 | S156: 144.66 | T156: 144.41 | U156: 160.05 | V156: 72.87 | W156: 71.54 | X156: 100.2 | Y156: 90.4 | Z156: 198.5 | AA156: 15253 | AB156: 7697 | AC156: 7556 | AD156: 4019 | AE156: 6.5 | AF156: 108 | AG156: 107.4 | AH156: 0.8 | AI156: 1.5 | AJ156: 62.7 | AK156: 101.1 | AL156: 174
A157: 012033 | B157: 北海道 | C157: 小樽市 | D157: 1171 | E157: Ac1 | F157: A | G157: c | H157: 1 | I157: 108760 | J157: 4.1 | K157: 66 | L157: 99.1 | M157: 93.9 | N157: 2750 | O157: 39 | P157: 56.6 | Q157: 61.4 | R157: 97.9 | S157: 157.05 | T157: 147.49 | U157: 187.39 | V157: 98.14 | W157: 49.36 | X157: 106.5 | Y157: 83.8 | Z157: 160 | AA157: 15254 | AB157: 10150 | AC157: 5105 | AD157: 4944 | AE157: 5.4 | AF157: 103.9 | AG157: 103.9 | AH157: 0 | AI157: 1.1 | AJ157: 74.5 | AK157: 103 | AL157: 97
A158: 012041 | B158: 北海道 | C158: 旭川市 | D158: 1171 | E158: Ac1 | F158: A | G158: c | H158: 1 | I158: 317136 | J158: 3.9 | K158: 58 | L158: 97.3 | M158: 107.2 | N158: 3264 | O158: 39 | P158: 70.2 | Q158: 75.4 | R158: 97 | S158: 164.29 | T158: 157.46 | U158: 157.46 | V158: 80.26 | W158: 77.2 | X158: 104.3 | Y158: 104.3 | Z158: 204.7 | AA158: 15476 | AB158: 7888 | AC158: 7588 | AD158: 4405 | AE158: 6.4 | AF158: 107 | AG158: 107 | AH158: 0 | AI158: 1.3 | AJ158: 73.7 | AK158: 102.9 | AL158: 90
A159: 012068 | B159: 北海道 | C159: 釧路市 | D159: 1171 | E159: Ac1 | F159: A | G159: c | H159: 1 | I159: 154701 | J159: 3.5 | K159: 62 | L159: 95.7 | M159: 110.1 | N159: 4502 | O159: 37 | P159: 60.1 | Q159: 65.9 | R159: 96 | S159: 235.81 | T159: 185.73 | U159: 185.73 | V159: 100.21 | W159: 85.52 | X159: 127 | Y159: 127 | Z159: 235.3 | AA159: 17316 | AB159: 9343 | AC159: 7973 | AD159: 3094 | AE159: 4.5 | AF159: 121.9 | AG159: 121.9 | AH159: 0 | AI159: 1.3 | AJ159: 67.3 | AK159: 101.9 | AL159: 146
A160: 012076 | B160: 北海道 | C160: 帯広市 | D160: 1171 | E160: Ac1 | F160: A | G160: c | H160: 1 | I160: 157669 | J160: 3.8 | K160: 62 | L160: 95.9 | M160: 101 | N160: 2970 | O160: 37 | P160: 99.5 | Q160: 69.7 | R160: 99 | S160: 162.27 | T160: 130.25 | U160: 130.25 | V160: 71.57 | W160: 58.68 | X160: 124.6 | Y160: 124.6 | Z160: 226.7 | AA160: 13403 | AB160: 7365 | AC160: 6038 | AD160: 6855 | AE160: 2.8 | AF160: 118.3 | AG160: 118.3 | AH160: 17.3 | AI160: 1.7 | AJ160: 66.3 | AK160: 100.8 | AL160: 112
A161: 012084 | B161: 北海道 | C161: 北見市 | D161: 1171 | E161: Ac1 | F161: A | G161: c | H161: 1 | I161: 102197 | J161: 3.1 | K161: 59 | L161: 89.9 | M161: 107 | N161: 3620 | O161: 32 | P161: 57.4 | Q161: 64.3 | R161: 99.2 | S161: 171.69 | T161: 170.32 | U161: 170.32 | V161: 73.42 | W161: 96.89 | X161: 100.8 | Y161: 100.8 | Z161: 233.8 | AA161: 16321 | AB161: 7036 | AC161: 9285 | AD161: 3097 | AE161: 8 | AF161: 108.9 | AG161: 108.9 | AH161: 0.3 | AI161: 1.1 | AJ161: 50.3 | AK161: 101.6 | AL161: 293
A162: 012131 | B162: 北海道 | C162: 苫小牧市 | D162: 1171 | E162: Ac1 | F162: A | G162: c | H162: 1 | I162: 167789 | J162: 3.5 | K162: 63 | L162: 99.3 | M162: 108 | N162: 2295 | O162: 38 | P162: 76.8 | Q162: 78.5 | R162: 99.8 | S162: 145.36 | T162: 130.99 | U162: 130.99 | V162: 65.29 | W162: 65.7 | X162: 111 | Y162: 111 | Z162: 222.7 | AA162: 12234 | AB162: 6097 | AC162: 6137 | AD162: 3902 | AE162: 4 | AF162: 116.2 | AG162: 115.2 | AH162: 0 | AI162: 1.5 | AJ162: 61.5 | AK162: 100.6 | AL162: 170
A163: 012173 | B163: 北海道 | C163: 江別市 | D163: 1171 | E163: Ac1 | F163: A | G163: c | H163: 1 | I163: 116341 | J163: 4.7 | K163: 57 | L163: 97.7 | M163: 103.9 | N163: 2343 | O163: 48 | P163: 74.6 | Q163: 78.4 | R163: 99.5 | S163: 110.26 | T163: 107.43 | U163: 107.43 | V163: 75.22 | W163: 32.21 | X163: 102.6 | Y163: 102.6 | Z163: 146.6 | AA163: 10715 | AB163: 7502 | AC163: 3213 | AD163: 4012 | AE163: 6.3 | AF163: 104.4 | AG163: 104.4 | AH163: 0 | AI163: 1.4 | AJ163: 79.5 | AK163: 100 | AL163: 88
A164: 022012 | B164: 青森県 | C164: 青森市 | D164: 1171 | E164: Ac1 | F164: A | G164: c | H164: 1 | I164: 221973 | J164: 4.9 | K164: 56 | L164: 81.4 | M164: 100.4 | N164: 3108 | O164: 50 | P164: 63.7 | Q164: 75.4 | R164: 89.4 | S164: 165.9 | T164: 170.41 | U164: 203.3 | V164: 68.91 | W164: 101.49 | X164: 97.4 | Y164: 81.6 | Z164: 240.7 | AA164: 16801 | AB164: 6794 | AC164: 10006 | AD164: 2018 | AE164: 11.3 | AF164: 104.8 | AG164: 103.9 | AH164: 4 | AI164: 1.2 | AJ164: 40.1 | AK164: 106.9 | AL164: 304
A165: 022021 | B165: 青森県 | C165: 弘前市 | D165: 1171 | E165: Ac1 | F165: A | G165: c | H165: 1 | I165: 138859 | J165: 4.2 | K165: 49 | L165: 84.2 | M165: 115.5 | N165: 3145 | O165: 39 | P165: 0 | Q165: 80.8 | R165: 94.4 | S165: 182.83 | T165: 150.25 | U165: 199.09 | V165: 100.66 | W165: 49.58 | X165: 121.7 | Y165: 91.8 | Z165: 181.6 | AA165: 15996 | AB165: 10717 | AC165: 5279 | AD165: 3967 | AE165: 6.6 | AF165: 113.3 | AG165: 113.5 | AH165: 0 | AI165: 1.4 | AJ165: 48.4 | AK165: 98.7 | AL165: 185
A166: 022039 | B166: 青森県 | C166: 八戸市 | D166: 1171 | E166: Ac1 | F166: A | G166: c | H166: 1 | I166: 146832 | J166: 3.4 | K166: 44 | L166: 66.1 | M166: 91.2 | N166: 3383 | O166: 39 | P166: 110.1 | Q166: 70.8 | R166: 83.8 | S166: 188.39 | T166: 211.11 | U166: 233.22 | V166: 95.14 | W166: 115.97 | X166: 89.2 | Y166: 80.8 | Z166: 198 | AA166: 18539 | AB166: 8355 | AC166: 10184 | AD166: 2068 | AE166: 5.9 | AF166: 104 | AG166: 104.4 | AH166: 0 | AI166: 0.6 | AJ166: 50.7 | AK166: 103.1 | AL166: 402
A167: 052019 | B167: 秋田県 | C167: 秋田市 | D167: 1171 | E167: Ac1 | F167: A | G167: c | H167: 1 | I167: 280601 | J167: 4.8 | K167: 90 | L167: 93 | M167: 103 | N167: 3113 | O167: 49 | P167: 0 | Q167: 83.8 | R167: 90.6 | S167: 173.83 | T167: 173.63 | U167: 173.63 | V167: 94.68 | W167: 78.95 | X167: 100.1 | Y167: 100.1 | Z167: 183.6 | AA167: 17070 | AB167: 9308 | AC167: 7762 | AD167: 3792 | AE167: 5.7 | AF167: 104.1 | AG167: 104.1 | AH167: 0 | AI167: 1.2 | AJ167: 61.4 | AK167: 100.8 | AL167: 211
A168: 062014 | B168: 山形県 | C168: 山形市 | D168: 1171 | E168: Ac1 | F168: A | G168: c | H168: 1 | I168: 212216 | J168: 4.1 | K168: 57 | L168: 88.1 | M168: 100.5 | N168: 3355 | O168: 41 | P168: 98.3 | Q168: 76.2 | R168: 94.9 | S168: 181.58 | T168: 181.62 | U168: 196.87 | V168: 59.54 | W168: 122.07 | X168: 100 | Y168: 92.2 | Z168: 305 | AA168: 17976 | AB168: 5894 | AC168: 12083 | AD168: 4935 | AE168: 4.2 | AF168: 101.5 | AG168: 101.5 | AH168: 0 | AI168: 1.5 | AJ168: 46.4 | AK168: 102.5 | AL168: 317
A169: 072010 | B169: 福島県 | C169: 福島市 | D169: 1171 | E169: Ac1 | F169: A | G169: c | H169: 1 | I169: 181360 | J169: 4.6 | K169: 51 | L169: 66.7 | M169: 78.5 | N169: 2860 | O169: 46 | P169: 63.7 | Q169: 90.3 | R169: 93.5 | S169: 173.24 | T169: 173.24 | U169: 276.46 | V169: 96.4 | W169: 76.83 | X169: 100 | Y169: 62.7 | Z169: 179.7 | AA169: 17237 | AB169: 9592 | AC169: 7645 | AD169: 5496 | AE169: 3.7 | AF169: 116.9 | AG169: 116.3 | AH169: 0 | AI169: 1.8 | AJ169: 62.5 | AK169: 101.9 | AL169: 236
A170: 072036 | B170: 福島県 | C170: 郡山市 | D170: 1171 | E170: Ac1 | F170: A | G170: c | H170: 1 | I170: 234895 | J170: 4.8 | K170: 52 | L170: 73.7 | M170: 94.7 | N170: 3066 | O170: 50 | P170: 0 | Q170: 76.8 | R170: 93.8 | S170: 172.98 | T170: 172.98 | U170: 242.97 | V170: 127.05 | W170: 45.93 | X170: 100 | Y170: 71.2 | Z170: 136.2 | AA170: 16433 | AB170: 12070 | AC170: 4363 | AD170: 3051 | AE170: 7 | AF170: 100.6 | AG170: 99.2 | AH170: 0 | AI170: 1.5 | AJ170: 56.2 | AK170: 102.7 | AL170: 242
A171: 072044 | B171: 福島県 | C171: いわき市 | D171: 1171 | E171: Ac1 | F171: A | G171: c | H171: 1 | I171: 171691 | J171: 4.1 | K171: 53 | L171: 54.9 | M171: 105.5 | N171: 3500 | O171: 40 | P171: 71.8 | Q171: 68.2 | R171: 94.7 | S171: 196.84 | T171: 185.83 | U171: 249.42 | V171: 110.46 | W171: 75.36 | X171: 105.9 | Y171: 78.9 | Z171: 178.2 | AA171: 18936 | AB171: 11256 | AC171: 7680 | AD171: 2563 | AE171: 4.4 | AF171: 109.7 | AG171: 103.3 | AH171: 0 | AI171: 1.3 | AJ171: 47.7 | AK171: 102.2 | AL171: 342
A172: 082015 | B172: 茨城県 | C172: 水戸市 | D172: 1171 | E172: Ac1 | F172: A | G172: c | H172: 1 | I172: 214943 | J172: 4.1 | K172: 48 | L172: 79.5 | M172: 92.8 | N172: 2989 | O172: 44 | P172: 68.1 | Q172: 65.2 | R172: 87.9 | S172: 159.9 | T172: 159.84 | U172: 257.81 | V172: 71.11 | W172: 88.73 | X172: 100 | Y172: 62 | Z172: 224.9 | AA172: 15105 | AB172: 6721 | AC172: 8385 | AD172: 3706 | AE172: 5.2 | AF172: 102.9 | AG172: 103 | AH172: 0 | AI172: 1.6 | AJ172: 53.6 | AK172: 103.1 | AL172: 328
A173: 082023 | B173: 茨城県 | C173: 日立市 | D173: 1171 | E173: Ac1 | F173: A | G173: c | H173: 1 | I173: 127623 | J173: 4 | K173: 49 | L173: 74.4 | M173: 100 | N173: 2805 | O173: 33 | P173: 64.8 | Q173: 76.3 | R173: 99.6 | S173: 161.61 | T173: 155.54 | U173: 155.54 | V173: 72.24 | W173: 83.3 | X173: 103.9 | Y173: 103.9 | Z173: 223.7 | AA173: 18488 | AB173: 8587 | AC173: 9902 | AD173: 5549 | AE173: 4.4 | AF173: 110.6 | AG173: 110.6 | AH173: 0 | AI173: 1.6 | AJ173: 76.1 | AK173: 101.6 | AL173: 75
A174: 082031 | B174: 茨城県 | C174: 土浦市 | D174: 1171 | E174: Ac1 | F174: A | G174: c | H174: 1 | I174: 120240 | J174: 3.8 | K174: 44 | L174: 85.3 | M174: 86.8 | N174: 2750 | O174: 35 | P174: 0 | Q174: 88.8 | R174: 95.4 | S174: 147.15 | T174: 150 | U174: 183.83 | V174: 95.65 | W174: 54.35 | X174: 98.1 | Y174: 80 | Z174: 153.8 | AA174: 16378 | AB174: 10444 | AC174: 5934 | AD174: 5726 | AE174: 4.4 | AF174: 102.5 | AG174: 102.6 | AH174: 0 | AI174: 1.6 | AJ174: 69.3 | AK174: 101.7 | AL174: 133
A175: 082201 | B175: 茨城県 | C175: つくば市 | D175: 1171 | E175: Ac1 | F175: A | G175: c | H175: 1 | I175: 176722 | J175: 3.6 | K175: 42 | L175: 71.4 | M175: 97.4 | N175: 3135 | O175: 28 | P175: 0 | Q175: 89.2 | R175: 98 | S175: 148.5 | T175: 149.35 | U175: 149.35 | V175: 89.49 | W175: 59.87 | X175: 99.4 | Y175: 99.4 | Z175: 165.9 | AA175: 19584 | AB175: 11734 | AC175: 7850 | AD175: 8836 | AE175: 2.5 | AF175: 102.9 | AG175: 102.8 | AH175: 0 | AI175: 1.7 | AJ175: 82.9 | AK175: 100.7 | AL175: 127
A176: 092029 | B176: 栃木県 | C176: 足利市 | D176: 1171 | E176: Ac1 | F176: A | G176: c | H176: 1 | I176: 111614 | J176: 3.8 | K176: 45 | L176: 77.9 | M176: 106.3 | N176: 3040 | O176: 39 | P176: 84.5 | Q176: 49.4 | R176: 81.2 | S176: 147.01 | T176: 150 | U176: 204.67 | V176: 43.7 | W176: 106.3 | X176: 98 | Y176: 71.8 | Z176: 336.4 | AA176: 14845 | AB176: 4325 | AC176: 10520 | AD176: 3986 | AE176: 7.3 | AF176: 107.9 | AG176: 107.5 | AH176: 0 | AI176: 1.5 | AJ176: 52.7 | AK176: 103.4 | AL176: 269
A177: 092088 | B177: 栃木県 | C177: 小山市 | D177: 1171 | E177: Ac1 | F177: A | G177: c | H177: 1 | I177: 107145 | J177: 4.8 | K177: 46 | L177: 64 | M177: 73.1 | N177: 2299 | O177: 44 | P177: 87.4 | Q177: 84.7 | R177: 90.6 | S177: 118.32 | T177: 150 | U177: 162.03 | V177: 80.52 | W177: 69.48 | X177: 78.9 | Y177: 73 | Z177: 146.9 | AA177: 16213 | AB177: 8703 | AC177: 7510 | AD177: 4870 | AE177: 3.5 | AF177: 105.5 | AG177: 104.2 | AH177: 0 | AI177: 1.3 | AJ177: 54.4 | AK177: 103.7 | AL177: 239
A178: 102016 | B178: 群馬県 | C178: 前橋市 | D178: 1171 | E178: Ac1 | F178: A | G178: c | H178: 1 | I178: 236899 | J178: 4.4 | K178: 60 | L178: 71.3 | M178: 105.3 | N178: 2156 | O178: 38 | P178: 111.1 | Q178: 83 | R178: 96.5 | S178: 110.59 | T178: 134.25 | U178: 134.25 | V178: 57.01 | W178: 77.24 | X178: 82.4 | Y178: 82.4 | Z178: 194 | AA178: 15461 | AB178: 6566 | AC178: 8896 | AD178: 4156 | AE178: 9.1 | AF178: 104.8 | AG178: 104.7 | AH178: 0 | AI178: 1.6 | AJ178: 60.9 | AK178: 100.8 | AL178: 153
A179: 102024 | B179: 群馬県 | C179: 高崎市 | D179: 1171 | E179: Ac1 | F179: A | G179: c | H179: 1 | I179: 263585 | J179: 4.8 | K179: 90 | L179: 71.3 | M179: 84 | N179: 2173 | O179: 41 | P179: 64.2 | Q179: 88.9 | R179: 94.8 | S179: 122.26 | T179: 94.55 | U179: 94.55 | V179: 55.98 | W179: 38.57 | X179: 129.3 | Y179: 129.3 | Z179: 218.4 | AA179: 11081 | AB179: 6560 | AC179: 4521 | AD179: 4119 | AE179: 7.1 | AF179: 117.1 | AG179: 117.1 | AH179: 0 | AI179: 1.7 | AJ179: 67.2 | AK179: 96.7 | AL179: 143
A180: 102059 | B180: 群馬県 | C180: 太田市 | D180: 1171 | E180: Ac1 | F180: A | G180: c | H180: 1 | I180: 105227 | J180: 4.3 | K180: 50 | L180: 47.3 | M180: 65.5 | N180: 2222 | O180: 55 | P180: 64.8 | Q180: 80.6 | R180: 76.2 | S180: 100.97 | T180: 150 | U180: 229.15 | V180: 109.47 | W180: 40.53 | X180: 67.3 | Y180: 44.1 | Z180: 92.2 | AA180: 11715 | AB180: 8550 | AC180: 3165 | AD180: 6190 | AE180: 6 | AF180: 100.4 | AG180: 100.4 | AH180: 0 | AI180: 1.5 | AJ180: 55.3 | AK180: 102 | AL180: 213
A181: 152021 | B181: 新潟県 | C181: 長岡市 | D181: 1171 | E181: Ac1 | F181: A | G181: c | H181: 1 | I181: 221813 | J181: 4 | K181: 95 | L181: 84.5 | M181: 106 | N181: 2288 | O181: 35 | P181: 77.3 | Q181: 75.9 | R181: 98.3 | S181: 124.01 | T181: 151.02 | U181: 151.02 | V181: 68.19 | W181: 82.83 | X181: 82.1 | Y181: 82.1 | Z181: 181.8 | AA181: 17545 | AB181: 7923 | AC181: 9623 | AD181: 6524 | AE181: 3.2 | AF181: 101.4 | AG181: 100.5 | AH181: 0 | AI181: 1.9 | AJ181: 75.1 | AK181: 102.2 | AL181: 144
A182: 152226 | B182: 新潟県 | C182: 上越市 | D182: 1171 | E182: Ac1 | F182: A | G182: c | H182: 1 | I182: 108101 | J182: 3.4 | K182: 34 | L182: 58.2 | M182: 86.5 | N182: 3941 | O182: 33 | P182: 62.3 | Q182: 98 | R182: 95.2 | S182: 210.12 | T182: 212.1 | U182: 239.08 | V182: 65.96 | W182: 146.14 | X182: 99.1 | Y182: 87.9 | Z182: 318.6 | AA182: 22352 | AB182: 6951 | AC182: 15401 | AD182: 2637 | AE182: 5 | AF182: 100.6 | AG182: 100 | AH182: 0 | AI182: 1.3 | AJ182: 45.9 | AK182: 104.5 | AL182: 676
A183: 162019 | B183: 富山県 | C183: 富山市 | D183: 1171 | E183: Ac1 | F183: A | G183: c | H183: 1 | I183: 305234 | J183: 4.6 | K183: 60 | L183: 74.4 | M183: 102.4 | N183: 3080 | O183: 42 | P183: 64.5 | Q183: 81.6 | R183: 97.5 | S183: 179.12 | T183: 181.21 | U183: 182.8 | V183: 66.42 | W183: 114.79 | X183: 98.9 | Y183: 98 | Z183: 269.7 | AA183: 20137 | AB183: 7381 | AC183: 12757 | AD183: 5004 | AE183: 3.5 | AF183: 116.2 | AG183: 116.5 | AH183: 0 | AI183: 1.7 | AJ183: 62.9 | AK183: 102.8 | AL183: 226
A184: 162027 | B184: 富山県 | C184: 高岡市 | D184: 1171 | E184: Ac1 | F184: A | G184: c | H184: 1 | I184: 125050 | J184: 3.9 | K184: 57 | L184: 75 | M184: 108.3 | N184: 3476 | O184: 39 | P184: 48.7 | Q184: 57.2 | R184: 96.9 | S184: 194.25 | T184: 189.96 | U184: 189.96 | V184: 90.23 | W184: 99.73 | X184: 102.3 | Y184: 102.3 | Z184: 215.3 | AA184: 19336 | AB184: 9184 | AC184: 10152 | AD184: 7356 | AE184: 1.8 | AF184: 117.6 | AG184: 115.8 | AH184: 0 | AI184: 1.3 | AJ184: 46.2 | AK184: 104.8 | AL184: 219
A185: 172103 | B185: 石川県 | C185: 白山市 | D185: 1171 | E185: Ac1 | F185: A | G185: c | H185: 1 | I185: 102498 | J185: 4.1 | K185: 44 | L185: 90.8 | M185: 97.2 | N185: 2662 | O185: 38 | P185: 59.6 | Q185: 91.3 | R185: 96.8 | S185: 133.37 | T185: 102.3 | U185: 185.89 | V185: 79.95 | W185: 22.35 | X185: 130.4 | Y185: 71.7 | Z185: 166.8 | AA185: 11080 | AB185: 8660 | AC185: 2421 | AD185: 6833 | AE185: 4.7 | AF185: 101.4 | AG185: 101.4 | AH185: 0 | AI185: 1.3 | AJ185: 38.5 | AK185: 102.4 | AL185: 344
A186: 202011 | B186: 長野県 | C186: 長野市 | D186: 1171 | E186: Ac1 | F186: A | G186: c | H186: 1 | I186: 335729 | J186: 4.2 | K186: 63 | L186: 90.8 | M186: 115.3 | N186: 3534 | O186: 40 | P186: 65.2 | Q186: 87.4 | R186: 97.7 | S186: 190.1 | T186: 165.19 | U186: 217.56 | V186: 85.2 | W186: 79.99 | X186: 115.1 | Y186: 87.4 | Z186: 223.1 | AA186: 17227 | AB186: 8885 | AC186: 8342 | AD186: 5890 | AE186: 4.1 | AF186: 125.7 | AG186: 125.7 | AH186: 0 | AI186: 1.8 | AJ186: 64.1 | AK186: 98.9 | AL186: 196
A187: 212024 | B187: 岐阜県 | C187: 大垣市 | D187: 1171 | E187: Ac1 | F187: A | G187: c | H187: 1 | I187: 140564 | J187: 4.5 | K187: 60 | L187: 88.2 | M187: 97.5 | N187: 2560 | O187: 40 | P187: 75.3 | Q187: 64 | R187: 88.9 | S187: 127.56 | T187: 156.24 | U187: 172.42 | V187: 47.56 | W187: 108.68 | X187: 81.6 | Y187: 74 | Z187: 268.2 | AA187: 17434 | AB187: 5307 | AC187: 12127 | AD187: 3799 | AE187: 7.7 | AF187: 100 | AG187: 100 | AH187: 0 | AI187: 1.5 | AJ187: 55.4 | AK187: 103 | AL187: 212
A188: 212041 | B188: 岐阜県 | C188: 多治見市 | D188: 1171 | E188: Ac1 | F188: A | G188: c | H188: 1 | I188: 102806 | J188: 4.1 | K188: 50 | L188: 95.7 | M188: 113.6 | N188: 2750 | O188: 40 | P188: 80.4 | Q188: 49.4 | R188: 93.8 | S188: 150.21 | T188: 131.51 | U188: 131.51 | V188: 54.04 | W188: 77.46 | X188: 114.2 | Y188: 114.2 | Z188: 277.9 | AA188: 13313 | AB188: 5471 | AC188: 7842 | AD188: 3427 | AE188: 7.3 | AF188: 108 | AG188: 108 | AH188: 0 | AI188: 1.5 | AJ188: 61.7 | AK188: 100.2 | AL188: 148
A189: 212130 | B189: 岐阜県 | C189: 各務原市 | D189: 1171 | E189: Ac1 | F189: A | G189: c | H189: 1 | I189: 121111 | J189: 4 | K189: 31 | L189: 83.2 | M189: 94 | N189: 2557 | O189: 46 | P189: 0 | Q189: 83.6 | R189: 90 | S189: 128.11 | T189: 144.53 | U189: 173.02 | V189: 87.98 | W189: 56.55 | X189: 88.6 | Y189: 74 | Z189: 145.6 | AA189: 12626 | AB189: 7686 | AC189: 4940 | AD189: 6728 | AE189: 7.5 | AF189: 100 | AG189: 100 | AH189: 0 | AI189: 1.4 | AJ189: 59.7 | AK189: 101.7 | AL189: 152
A190: 222101 | B190: 静岡県 | C190: 富士市 | D190: 1171 | E190: Ac1 | F190: A | G190: c | H190: 1 | I190: 196071 | J190: 4.7 | K190: 57 | L190: 78.4 | M190: 96.9 | N190: 2640 | O190: 45 | P190: 64.8 | Q190: 76.6 | R190: 92 | S190: 137.45 | T190: 150.99 | U190: 198.94 | V190: 80.84 | W190: 70.15 | X190: 91 | Y190: 69.1 | Z190: 170 | AA190: 15655 | AB190: 8382 | AC190: 7273 | AD190: 3565 | AE190: 10.9 | AF190: 120.5 | AG190: 120.5 | AH190: 0 | AI190: 1.8 | AJ190: 67.4 | AK190: 101.5 | AL190: 128
A191: 232076 | B191: 愛知県 | C191: 豊川市 | D191: 1171 | E191: Ac1 | F191: A | G191: c | H191: 1 | I191: 152702 | J191: 5 | K191: 42 | L191: 82 | M191: 105.3 | N191: 1991 | O191: 48 | P191: 0 | Q191: 87.6 | R191: 93.4 | S191: 122.44 | T191: 137.68 | U191: 137.68 | V191: 64.48 | W191: 73.2 | X191: 88.9 | Y191: 88.9 | Z191: 189.9 | AA191: 14335 | AB191: 6713 | AC191: 7622 | AD191: 7272 | AE191: 3.8 | AF191: 109.8 | AG191: 104.5 | AH191: 0 | AI191: 0.7 | AJ191: 67.4 | AK191: 101.4 | AL191: 124
A192: 232131 | B192: 愛知県 | C192: 西尾市 | D192: 1171 | E192: Ac1 | F192: A | G192: c | H192: 1 | I192: 127024 | J192: 3.6 | K192: 30 | L192: 74.5 | M192: 96.4 | N192: 1870 | O192: 45 | P192: 0 | Q192: 88.6 | R192: 88.7 | S192: 106.54 | T192: 150.99 | U192: 156.08 | V192: 56.89 | W192: 94.09 | X192: 70.6 | Y192: 68.3 | Z192: 187.3 | AA192: 12316 | AB192: 4641 | AC192: 7675 | AD192: 5293 | AE192: 6.2 | AF192: 100 | AG192: 100 | AH192: 0 | AI192: 1.6 | AJ192: 66.3 | AK192: 102.2 | AL192: 160
A193: 242012 | B193: 三重県 | C193: 津市 | D193: 1171 | E193: Ac1 | F193: A | G193: c | H193: 1 | I193: 121541 | J193: 4.2 | K193: 56 | L193: 44.5 | M193: 74.6 | N193: 2519 | O193: 41 | P193: 37.4 | Q193: 78.4 | R193: 86 | S193: 147.46 | T193: 161.29 | U193: 274.21 | V193: 141.94 | W193: 19.35 | X193: 91.4 | Y193: 53.8 | Z193: 103.9 | AA193: 16414 | AB193: 14445 | AC193: 1970 | AD193: 2170 | AE193: 7.5 | AF193: 112.3 | AG193: 112.3 | AH193: 0 | AI193: 1.4 | AJ193: 61.8 | AK193: 102.6 | AL193: 453
A194: 242055 | B194: 三重県 | C194: 桑名市 | D194: 1171 | E194: Ac1 | F194: A | G194: c | H194: 1 | I194: 111327 | J194: 4.4 | K194: 43 | L194: 79.7 | M194: 85.9 | N194: 3496 | O194: 45 | P194: 414.7 | Q194: 85 | R194: 94.4 | S194: 195.71 | T194: 164.53 | U194: 164.53 | V194: 84.19 | W194: 80.34 | X194: 119 | Y194: 119 | Z194: 232.5 | AA194: 16149 | AB194: 8263 | AC194: 7886 | AD194: 4840 | AE194: 3.8 | AF194: 112.1 | AG194: 112.1 | AH194: 0 | AI194: 1.6 | AJ194: 65.9 | AK194: 102 | AL194: 233
A195: 242071 | B195: 三重県 | C195: 鈴鹿市 | D195: 1171 | E195: Ac1 | F195: A | G195: c | H195: 1 | I195: 120327 | J195: 4.8 | K195: 27 | L195: 61.1 | M195: 84.7 | N195: 3025 | O195: 53 | P195: 0 | Q195: 92.8 | R195: 87.4 | S195: 170.38 | T195: 188.33 | U195: 189.88 | V195: 91.76 | W195: 96.56 | X195: 90.5 | Y195: 89.7 | Z195: 185.7 | AA195: 17123 | AB195: 8343 | AC195: 8780 | AD195: 3167 | AE195: 6.5 | AF195: 109.6 | AG195: 109.6 | AH195: 0 | AI195: 1.4 | AJ195: 51.1 | AK195: 102.4 | AL195: 336
A196: 282014 | B196: 兵庫県 | C196: 姫路市 | D196: 1171 | E196: Ac1 | F196: A | G196: c | H196: 1 | I196: 479873 | J196: 4.9 | K196: 64 | L196: 90.6 | M196: 104.7 | N196: 2629 | O196: 46 | P196: 61.3 | Q196: 66 | R196: 98.1 | S196: 164.53 | T196: 221.89 | U196: 249.16 | V196: 83.87 | W196: 138.02 | X196: 74.2 | Y196: 66 | Z196: 196.2 | AA196: 23571 | AB196: 8909 | AC196: 14662 | AD196: 5051 | AE196: 4.7 | AF196: 100 | AG196: 100 | AH196: 0 | AI196: 1.9 | AJ196: 63.3 | AK196: 103.4 | AL196: 171
A197: 312011 | B197: 鳥取県 | C197: 鳥取市 | D197: 1171 | E197: Ac1 | F197: A | G197: c | H197: 1 | I197: 135401 | J197: 4.9 | K197: 54 | L197: 73.7 | M197: 102.8 | N197: 2767 | O197: 44 | P197: 62.7 | Q197: 82.7 | R197: 97.2 | S197: 166.27 | T197: 148.21 | U197: 179.5 | V197: 82.67 | W197: 65.54 | X197: 112.2 | Y197: 92.6 | Z197: 201.1 | AA197: 16800 | AB197: 9371 | AC197: 7429 | AD197: 2821 | AE197: 5.6 | AF197: 106.8 | AG197: 107 | AH197: 0 | AI197: 1.6 | AJ197: 53 | AK197: 99.2 | AL197: 293
A198: 312029 | B198: 鳥取県 | C198: 米子市 | D198: 1171 | E198: Ac1 | F198: A | G198: c | H198: 1 | I198: 106119 | J198: 4.7 | K198: 48 | L198: 72.6 | M198: 81.3 | N198: 3429 | O198: 44 | P198: 42.4 | Q198: 85.4 | R198: 90.7 | S198: 180.91 | T198: 181.3 | U198: 196 | V198: 71.42 | W198: 109.88 | X198: 99.8 | Y198: 92.3 | Z198: 253.3 | AA198: 19228 | AB198: 7575 | AC198: 11653 | AD198: 1830 | AE198: 10.5 | AF198: 105.1 | AG198: 105.1 | AH198: 0 | AI198: 1.2 | AJ198: 51.2 | AK198: 100.5 | AL198: 345
A199: 322016 | B199: 島根県 | C199: 松江市 | D199: 1171 | E199: Ac1 | F199: A | G199: c | H199: 1 | I199: 155197 | J199: 3.7 | K199: 41 | L199: 78.3 | M199: 96.2 | N199: 3080 | O199: 34 | P199: 0 | Q199: 90.1 | R199: 95.1 | S199: 179.15 | T199: 153.23 | U199: 188.66 | V199: 85.73 | W199: 67.5 | X199: 116.9 | Y199: 95 | Z199: 209 | AA199: 16354 | AB199: 9150 | AC199: 7204 | AD199: 6208 | AE199: 5.1 | AF199: 118.5 | AG199: 118.8 | AH199: 0 | AI199: 1.9 | AJ199: 63 | AK199: 102.9 | AL199: 179
A200: 332020 | B200: 岡山県 | C200: 倉敷市 | D200: 1171 | E200: Ac1 | F200: A | G200: c | H200: 1 | I200: 391372 | J200: 4.6 | K200: 62 | L200: 81.8 | M200: 83.5 | N200: 2967 | O200: 48 | P200: 48.6 | Q200: 90.6 | R200: 93.3 | S200: 180.98 | T200: 180.98 | U200: 263.72 | V200: 79.38 | W200: 101.6 | X200: 100 | Y200: 68.6 | Z200: 228 | AA200: 17466 | AB200: 7661 | AC200: 9805 | AD200: 3463 | AE200: 5.3 | AF200: 125.7 | AG200: 126 | AH200: 0 | AI200: 1.8 | AJ200: 56.8 | AK200: 103.3 | AL200: 307
A201: 342076 | B201: 広島県 | C201: 福山市 | D201: 1171 | E201: Ac1 | F201: A | G201: c | H201: 1 | I201: 351267 | J201: 4.9 | K201: 61 | L201: 76.1 | M201: 95 | N201: 2926 | O201: 48 | P201: 88.2 | Q201: 87.8 | R201: 95.2 | S201: 166.32 | T201: 166.32 | U201: 177.39 | V201: 64.15 | W201: 102.17 | X201: 100 | Y201: 93.8 | Z201: 259.3 | AA201: 16941 | AB201: 6534 | AC201: 10407 | AD201: 3992 | AE201: 4.8 | AF201: 116.6 | AG201: 116.7 | AH201: 0 | AI201: 1.6 | AJ201: 53.2 | AK201: 102.9 | AL201: 219
A202: 352012 | B202: 山口県 | C202: 下関市 | D202: 1171 | E202: Ac1 | F202: A | G202: c | H202: 1 | I202: 196487 | J202: 4.4 | K202: 57 | L202: 77.8 | M202: 106.3 | N202: 3336 | O202: 44 | P202: 51.7 | Q202: 88.1 | R202: 97 | S202: 170.35 | T202: 170.35 | U202: 221.86 | V202: 94.96 | W202: 75.38 | X202: 100 | Y202: 76.8 | Z202: 179.4 | AA202: 17239 | AB202: 9610 | AC202: 7629 | AD202: 2655 | AE202: 10.8 | AF202: 109.9 | AG202: 109.9 | AH202: 0 | AI202: 0.9 | AJ202: 56.3 | AK202: 102.1 | AL202: 241
A203: 352021 | B203: 山口県 | C203: 宇部市 | D203: 1171 | E203: Ac1 | F203: A | G203: c | H203: 1 | I203: 126712 | J203: 3.7 | K203: 61 | L203: 78.6 | M203: 113.1 | N203: 3135 | O203: 36 | P203: 53 | Q203: 70.7 | R203: 96.2 | S203: 170.83 | T203: 170.83 | U203: 216.74 | V203: 83.73 | W203: 87.09 | X203: 100 | Y203: 78.8 | Z203: 204 | AA203: 17431 | AB203: 8544 | AC203: 8887 | AD203: 1564 | AE203: 16.8 | AF203: 107 | AG203: 106.9 | AH203: 0 | AI203: 0.9 | AJ203: 67.2 | AK203: 98.2 | AL203: 292
A204: 352039 | B204: 山口県 | C204: 山口市 | D204: 1171 | E204: Ac1 | F204: A | G204: c | H204: 1 | I204: 125503 | J204: 4.1 | K204: 55 | L204: 66.6 | M204: 100.2 | N204: 3080 | O204: 36 | P204: 61 | Q204: 83.1 | R204: 97.2 | S204: 160.31 | T204: 160.28 | U204: 201.39 | V204: 90.32 | W204: 69.96 | X204: 100 | Y204: 79.6 | Z204: 177.5 | AA204: 18290 | AB204: 10307 | AC204: 7983 | AD204: 1992 | AE204: 9.2 | AF204: 104.1 | AG204: 104.2 | AH204: 0 | AI204: 1.4 | AJ204: 60 | AK204: 101 | AL204: 275
A205: 352152 | B205: 山口県 | C205: 周南市 | D205: 1171 | E205: Ac1 | F205: A | G205: c | H205: 1 | I205: 117981 | J205: 4.2 | K205: 56 | L205: 85.1 | M205: 108.1 | N205: 3275 | O205: 41 | P205: 74.2 | Q205: 59.3 | R205: 94.7 | S205: 167.79 | T205: 167.62 | U205: 201.73 | V205: 95.18 | W205: 72.44 | X205: 100.1 | Y205: 83.2 | Z205: 176.3 | AA205: 17499 | AB205: 9937 | AC205: 7563 | AD205: 2878 | AE205: 11.2 | AF205: 102.9 | AG205: 102.9 | AH205: 0 | AI205: 1.6 | AJ205: 74.4 | AK205: 98.4 | AL205: 133
A206: 402036 | B206: 福岡県 | C206: 久留米市 | D206: 1171 | E206: Ac1 | F206: A | G206: c | H206: 1 | I206: 262379 | J206: 4.4 | K206: 50 | L206: 86.8 | M206: 92.8 | N206: 3091 | O206: 48 | P206: 61.3 | Q206: 84 | R206: 87.8 | S206: 177.13 | T206: 177.73 | U206: 199.52 | V206: 71.18 | W206: 106.55 | X206: 99.7 | Y206: 88.8 | Z206: 248.8 | AA206: 16286 | AB206: 6523 | AC206: 9763 | AD206: 4524 | AE206: 4.9 | AF206: 111.6 | AG206: 111.5 | AH206: 0 | AI206: 1.1 | AJ206: 43.9 | AK206: 100.6 | AL206: 266
A207: 412015 | B207: 佐賀県 | C207: 佐賀市 | D207: 1171 | E207: Ac1 | F207: A | G207: c | H207: 1 | I207: 185966 | J207: 4.1 | K207: 44 | L207: 81.1 | M207: 108.3 | N207: 3168 | O207: 44 | P207: 80.8 | Q207: 84.9 | R207: 92.4 | S207: 176.58 | T207: 151.1 | U207: 151.1 | V207: 77.56 | W207: 73.54 | X207: 116.9 | Y207: 116.9 | Z207: 227.6 | AA207: 14367 | AB207: 7375 | AC207: 6992 | AD207: 2657 | AE207: 9.3 | AF207: 101.9 | AG207: 101.9 | AH207: 0 | AI207: 1.5 | AJ207: 56.3 | AK207: 101.4 | AL207: 277
A208: 422029 | B208: 長崎県 | C208: 佐世保市 | D208: 1171 | E208: Ac1 | F208: A | G208: c | H208: 1 | I208: 145475 | J208: 4.2 | K208: 61 | L208: 60.4 | M208: 71.9 | N208: 2461 | O208: 44 | P208: 53.3 | Q208: 95.9 | R208: 92.3 | S208: 145.5 | T208: 151.2 | U208: 244.95 | V208: 114.51 | W208: 36.69 | X208: 96.2 | Y208: 59.4 | Z208: 127.1 | AA208: 14573 | AB208: 11037 | AC208: 3537 | AD208: 1865 | AE208: 14.9 | AF208: 103.1 | AG208: 103.1 | AH208: 0 | AI208: 1.3 | AJ208: 56.8 | AK208: 98.3 | AL208: 228
A209: 452017 | B209: 宮崎県 | C209: 宮崎市 | D209: 1171 | E209: Ac1 | F209: A | G209: c | H209: 1 | I209: 356235 | J209: 4.9 | K209: 48 | L209: 89.1 | M209: 100.9 | N209: 2386 | O209: 48 | P209: 68.8 | Q209: 79.5 | R209: 93.7 | S209: 131.98 | T209: 151.24 | U209: 156.16 | V209: 66.45 | W209: 84.8 | X209: 87.3 | Y209: 84.5 | Z209: 198.6 | AA209: 15344 | AB209: 6741 | AC209: 8603 | AD209: 3872 | AE209: 7.7 | AF209: 98.5 | AG209: 98.6 | AH209: 0 | AI209: 1.3 | AJ209: 55.3 | AK209: 101.8 | AL209: 196
B210: 団体数 | C210: 53 | E210: Ac1 計 | M210: 96.9 | N210: 2924 | O210: 42 | P210: 67.6 | Q210: 77.8 | R210: 94 | S210: 160.45 | T210: 162.41 | U210: 190.37 | V210: 79.96 | W210: 82.45 | X210: 98.8 | Y210: 84.3 | Z210: 200.7 | AA210: 16625 | AB210: 8185 | AC210: 8440 | AD210: 3728 | AE210: 6.1 | AF210: 108.8 | AG210: 108.5 | AH210: 0.4 | AI210: 1.4 | AJ210: 59.2 | AK210: 101.8 | AL210: 222
